Workbook

Sheet kopie (smazat) (hidden)
B2: Počet rozvozů v krajích | C2: 2012 | D2: 2014 | E2: 2015 | F2: 2016 | G2: 2017 | H2: 2018 | I2: 2019 | L2: 3.5
B3: Olomoucký kraj | D3: =L3*$L$2 -> 131.95 | E3: =D3*(1+((RANDBETWEEN(1,20)/100))) -> 149.1035 | F3: =E3*(1+((RANDBETWEEN(1,20)/100))) -> 152.08557 | G3: =F3*(1-((RANDBETWEEN(1,20)/100))) -> 132.3144459 | H3: 133.6375904 | I3: 160.3651084 | L3: 37.7
B4: Moravskoslezský kraj | D4: =L4*$L$2 -> 141.05 | E4: =D4*(1+((RANDBETWEEN(1,20)/100))) -> 146.692 | F4: =E4*(1+((RANDBETWEEN(1,20)/100))) -> 161.3612 | G4: =F4*(1-((RANDBETWEEN(1,20)/100))) -> 130.702572 | H4: 156.8430864 | I4: 172.527395 | L4: 40.3
B5: Zlínský kraj | D5: 145.6 | E5: =D5*(1+((RANDBETWEEN(1,20)/100))) -> 171.808 | F5: =E5*(1+((RANDBETWEEN(1,20)/100))) -> 176.96224 | G5: 155.7267712 | H5: 168.1849129 | I5: 178.2760077 | L5: 41.6 | O5: 1 | P5: 2 | Q5: 3 | R5: 4 | S5: 5 | T5: 6 | U5: 7 | V5: 8 | W5: 9 | X5: 10 | Y5: 11 | Z5: 12
B6: Liberecký kraj | D6: 131.95 | E6: =D6*(1+((RANDBETWEEN(1,20)/100))) -> 143.8255 | F6: =E6*(1+((RANDBETWEEN(1,20)/100))) -> 149.57852 | G6: 148.0827348 | H6: 149.5635621 | I6: 173.4937321 | L6: 37.7 | N6: 2012 | O6: 0 | P6: 0 | Q6: 0 | R6: 0 | S6: 0 | T6: 0 | U6: 0 | V6: 34 | W6: 60 | X6: 55 | Y6: 21 | Z6: 10 | AA6: 200
B7: Ústecký kraj | D7: 122.85 | E7: =D7*(1+((RANDBETWEEN(1,20)/100))) -> 142.506 | F7: =E7*(1+((RANDBETWEEN(1,20)/100))) -> 163.8819 | G7: 139.299615 | H7: =G7*(1+((RANDBETWEEN(1,20)/100))) -> 167.159538 | I7: 177.1891103 | L7: 35.1 | N7: 2014 | O7: 0 | P7: 0 | Q7: 0 | R7: 0 | S7: 0 | T7: 0 | U7: 0 | V7: 0 | W7: 16 | X7: 32 | Y7: 27 | Z7: 0 | AA7: 75
B8: Karlovarský kraj | D8: 109.2 | E8: =D8*(1+((RANDBETWEEN(1,20)/100))) -> 129.948 | F8: 135.14592 | G8: 132.4430016 | H8: 140.3895817 | I8: 161.448019 | L8: 31.2 | N8: 2015 | O8: 0 | P8: 0 | Q8: 0 | R8: 0 | S8: 0 | T8: 0 | U8: 0 | V8: 0 | W8: 6.896551724 | X8: 6.896551724 | Y8: 13.79310345 | Z8: 50.83014049 | AA8: 78.41634738
B9: Plzeňský kraj | D9: 150.15 | E9: =D9*(1+((RANDBETWEEN(1,20)/100))) -> 165.165 | F9: 194.8947 | G9: 165.660495 | H9: =G9*(1+((RANDBETWEEN(1,20)/100))) -> 197.135989 | I9: 220.7923077 | L9: 42.9 | N9: 2016 | O9: 43.93358876 | P9: 37.03703704 | Q9: 45.03703704 | R9: 24 | S9: 28 | T9: 28 | U9: 71.29565217 | V9: 55.29565217 | W9: 51.29565217 | X9: 64.29565217 | Y9: 30.79310345 | Z9: 232.3472375 | AA9: 711.3306125
B10: Jihočeský kraj | D10: 141.05 | E10: =D10*(1+((RANDBETWEEN(1,20)/100))) -> 148.1025 | F10: 167.355825 | G10: 153.967359 | H10: 183.2211572 | I10: 201.5432729 | L10: 40.3 | N10: 2017 | O10: 155.4388361 | P10: 142.4388361 | Q10: 572.7401623 | R10: 622.3632238 | S10: 655.5744039 | T10: 785.7245014 | U10: 384.0816847 | V10: 396.7498585 | W10: 359.0355728 | X10: 331.0952307 | Y10: 284.6436178 | Z10: 1487.169124 | AA10: 6177.055052
B11: Jihomoravský kraj | D11: 163.8 | E11: =D11*(1+((RANDBETWEEN(1,20)/100))) -> 178.542 | F11: 189.25452 | G11: 183.5768844 | H11: 209.2776482 | I11: 211.3704247 | L11: 46.8 | N11: 2018 | O11: 283.7926899 | P11: 292.2036853 | Q11: 313.2036853 | R11: 256.0585499 | S11: 207.9695192 | T11: 144.6420016 | U11: 159.9947966 | V11: 175.6566101 | W11: 775.5212718 | X11: 794.0099127 | Y11: 819.5082974 | Z11: 2075.91878 | AA11: 6298.4798
B12: Pardubický kraj | D12: 136.5 | E12: =D12*(1+((RANDBETWEEN(1,20)/100))) -> 152.88 | F12: 166.6392 | G12: 153.308064 | H12: 165.5727091 | I12: 198.6872509 | L12: 39 | N12: 2019 | O12: 203.6330537 | P12: 158.5408348 | Q12: 129.167916 | R12: 181.799495 | S12: 117.3857019 | T12: 123.3627134 | U12: 98.08445251 | V12: 135.5978011 | W12: 178.1385783 | X12: 255.5127638 | Y12: 342.5984781 | Z12: 1011.867616 | AA12: 2935.689404
B13: Královehradecký kraj | D13: 150.15 | E13: =D13*(1+((RANDBETWEEN(1,20)/100))) -> 172.6725 | F13: 176.12595 | G13: 162.035874 | H13: 184.7208964 | I13: 205.040195 | L13: 42.9
B14: Kraj Vysočina | D14: 136.5 | E14: =D14*(1+((RANDBETWEEN(1,20)/100))) -> 141.96 | F14: 163.254 | G14: 140.39844 | H14: 143.2064088 | I14: 163.255306 | L14: 39
B15: Středočeský kraj | D15: 254.8 | E15: =D15*(1+((RANDBETWEEN(1,20)/100))) -> 295.568 | F15: =E15*(1+((RANDBETWEEN(1,20)/100))) -> 351.72592 | G15: 344.6914016 | H15: 396.3951118 | I15: =H15*(1+((RANDBETWEEN(1,20)/100))) -> 475.6741342 | L15: 72.8
D16: =SUM(D3:D15) -> 1915.55 | E16: =SUM(E3:E15) -> 2138.773 | F16: 2348.265465 | G16: 2142.207658 | H16: 2395.308192 | I16: 2699.662264 | J16: =SUM(C16:I16) -> 13639.76658 | N16: 2012 | O16: 2014 | P16: 2015 | Q16: 2016 | R16: 2017 | S16: 2018 | T16: 2019
C17: 200 | D17: 75 | E17: 78.41634738 | F17: 711.3306125 | G17: 6177.055052 | H17: 6298.4798 | I17: 2935.689404 | N17: 200 | O17: 75 | P17: 78.41634738 | Q17: 711.3306125 | R17: 6177.055052 | S17: 6298.4798 | T17: 2935.689404
B24: Kraj | C24: 1 | D24: 2 | E24: 3 | F24: 4 | G24: 5 | H24: 6 | I24: 7 | J24: 8 | K24: 9 | L24: 10 | M24: 11 | N24: 12 | O24: 2012 | P24: 1 | Q24: 2 | R24: 3 | S24: 4 | T24: 5 | U24: 6 | V24: 7 | W24: 8 | X24: 9 | Y24: 10 | Z24: 11 | AA24: 12 | AB24: 2014 | AC24: 1 | AD24: 2 | AE24: 3 | AF24: 4 | AG24: 5 | AH24: 6 | AI24: 7 | AJ24: 8 | AK24: 9 | AL24: 10 | AM24: 11 | AN24: 12 | AO24: 2015 | AP24: 1 | AQ24: 2 | AR24: 3 | AS24: 4 | AT24: 5 | AU24: 6 | AV24: 7 | AW24: 8 | AX24: 9 | AY24: 10 | AZ24: 11 | BA24: 12 | BB24: 2016 | BC24: 1 | BD24: 2 | BE24: 3 | BF24: 4 | BG24: 5 | BH24: 6 | BI24: 7 | BJ24: 8 | BK24: 9 | BL24: 10 | BM24: 11 | BN24: 12 | BO24: 2017 | BP24: 1 | BQ24: 2 | BR24: 3 | BS24: 4 | BT24: 5 | BU24: 6 | BV24: 7 | BW24: 8 | BX24: 9 | BY24: 10 | BZ24: 11 | CA24: 12 | CB24: 2018 | CC24: 1 | CD24: 2 | CE24: 3 | CF24: 4 | CG24: 5 | CH24: 6 | CI24: 7 | CJ24: 8 | CK24: 9 | CL24: 10 | CM24: 11 | CN24: 12 | CO24: 2019
B25: Celá ČR | C25: 0 | D25: 0 | E25: 0 | F25: 0 | G25: 0 | H25: 0 | I25: 0 | J25: 34 | K25: 60 | L25: 55 | M25: 21 | N25: 10 | O25: 200 | P25: 0 | Q25: 0 | R25: 0 | S25: 0 | T25: 0 | U25: 0 | V25: 0 | W25: 0 | X25: 16 | Y25: 32 | Z25: 27 | AA25: 0 | AB25: 75 | AC25: 0 | AD25: 0 | AE25: 0 | AF25: 0 | AG25: 0 | AH25: 0 | AI25: 0 | AJ25: 0 | AK25: 6.896551724 | AL25: 6.896551724 | AM25: 13.79310345 | AN25: 50.83014049 | AO25: 78.41634738 | AP25: 43.93358876 | AQ25: 37.03703704 | AR25: 45.03703704 | AS25: 24 | AT25: 28 | AU25: 28 | AV25: 71.29565217 | AW25: 55.29565217 | AX25: 51.29565217 | AY25: 64.29565217 | AZ25: 30.79310345 | BA25: 232.3472375 | BB25: 711.3306125 | BC25: 138 | BD25: 573 | BE25: 677 | BF25: 726 | BG25: 786 | BH25: 832 | BI25: 501 | BJ25: 462 | BK25: 461 | BL25: 331 | BM25: 362 | BN25: 350 | BO25: 6199 | BP25: 394 | BQ25: 313 | BR25: 334 | BS25: 312 | BT25: 255 | BU25: 181 | BV25: 196 | BW25: 831 | BX25: 841 | BY25: 856 | BZ25: 820 | CA25: 859 | CB25: 6192 | CC25: 224 | CD25: 191 | CE25: 182 | CF25: 193 | CG25: 144 | CH25: 131 | CI25: 188 | CJ25: 190 | CK25: 282 | CL25: 350 | CM25: 532 | CN25: 480 | CO25: 3087
B26: Olomoucký kraj | C26: 0 | D26: 0 | E26: 0 | F26: 0 | G26: 0 | H26: 0 | I26: 0 | J26: 5 | K26: 3 | L26: 3 | M26: 3 | N26: 3 | O26: 17 | P26: 0 | Q26: 0 | R26: 0 | S26: 0 | T26: 0 | U26: 0 | V26: 0 | W26: 0 | X26: 0 | Y26: 0 | Z26: 0 | AA26: 0 | AB26: 0 | AC26: 0 | AD26: 0 | AE26: 0 | AF26: 0 | AG26: 0 | AH26: 0 | AI26: 0 | AJ26: 0 | AK26: 0 | AL26: 0 | AM26: 3 | AN26: 3 | AO26: 6 | AP26: 3 | AQ26: 3 | AR26: 4 | AS26: 2 | AT26: 2 | AU26: 5 | AV26: 5 | AW26: 4 | AX26: 4 | AY26: 4 | AZ26: 5 | BA26: 10 | BB26: 51 | BC26: 10 | BD26: 39 | BE26: 47 | BF26: 50 | BG26: 54 | BH26: 57 | BI26: 35 | BJ26: 32 | BK26: 32 | BL26: 23 | BM26: 25 | BN26: 24 | BO26: 428 | BP26: 27 | BQ26: 22 | BR26: 23 | BS26: 21 | BT26: 18 | BU26: 12 | BV26: 14 | BW26: 57 | BX26: 58 | BY26: 59 | BZ26: 56 | CA26: 59 | CB26: 426 | CC26: 15 | CD26: 13 | CE26: 13 | CF26: 13 | CG26: 10 | CH26: 9 | CI26: 13 | CJ26: 13 | CK26: 19 | CL26: 24 | CM26: 37 | CN26: 33 | CO26: 212
B27: Moravskoslezský kraj | C27: 0 | D27: 0 | E27: 0 | F27: 0 | G27: 0 | H27: 0 | I27: 0 | J27: 3 | K27: 3 | L27: 3 | M27: 3 | N27: 3 | O27: 15 | P27: 0 | Q27: 0 | R27: 0 | S27: 0 | T27: 0 | U27: 0 | V27: 0 | W27: 0 | X27: 0 | Y27: 0 | Z27: 0 | AA27: 0 | AB27: 0 | AC27: 0 | AD27: 0 | AE27: 0 | AF27: 0 | AG27: 0 | AH27: 0 | AI27: 0 | AJ27: 0 | AK27: 1 | AL27: 1 | AM27: 3 | AN27: 3 | AO27: 8 | AP27: 3 | AQ27: 3 | AR27: 4 | AS27: 2 | AT27: 2 | AU27: 6 | AV27: 5 | AW27: 4 | AX27: 5 | AY27: 5 | AZ27: 5 | BA27: 10 | BB27: 54 | BC27: 10 | BD27: 42 | BE27: 50 | BF27: 53 | BG27: 58 | BH27: 61 | BI27: 37 | BJ27: 34 | BK27: 34 | BL27: 24 | BM27: 27 | BN27: 26 | BO27: 456 | BP27: 29 | BQ27: 23 | BR27: 25 | BS27: 23 | BT27: 19 | BU27: 13 | BV27: 14 | BW27: 61 | BX27: 61 | BY27: 63 | BZ27: 60 | CA27: 63 | CB27: 454 | CC27: 16 | CD27: 14 | CE27: 13 | CF27: 14 | CG27: 11 | CH27: 10 | CI27: 14 | CJ27: 14 | CK27: 21 | CL27: 26 | CM27: 39 | CN27: 35 | CO27: 227
B28: Zlínský kraj | C28: 0 | D28: 0 | E28: 0 | F28: 0 | G28: 0 | H28: 0 | I28: 0 | J28: 2 | K28: 3 | L28: 3 | M28: 3 | N28: 3 | O28: 14 | P28: 0 | Q28: 0 | R28: 0 | S28: 0 | T28: 0 | U28: 0 | V28: 0 | W28: 0 | X28: 0 | Y28: 0 | Z28: 0 | AA28: 0 | AB28: 0 | AC28: 0 | AD28: 0 | AE28: 0 | AF28: 0 | AG28: 0 | AH28: 0 | AI28: 0 | AJ28: 0 | AK28: 1 | AL28: 1 | AM28: 3 | AN28: 3 | AO28: 8 | AP28: 3 | AQ28: 3 | AR28: 5 | AS28: 2 | AT28: 2 | AU28: 6 | AV28: 5 | AW28: 4 | AX28: 5 | AY28: 5 | AZ28: 5 | BA28: 10 | BB28: 55 | BC28: 10 | BD28: 44 | BE28: 51 | BF28: 55 | BG28: 60 | BH28: 63 | BI28: 38 | BJ28: 35 | BK28: 35 | BL28: 25 | BM28: 28 | BN28: 27 | BO28: 471 | BP28: 30 | BQ28: 24 | BR28: 25 | BS28: 24 | BT28: 19 | BU28: 14 | BV28: 15 | BW28: 63 | BX28: 64 | BY28: 65 | BZ28: 62 | CA28: 65 | CB28: 470 | CC28: 17 | CD28: 15 | CE28: 14 | CF28: 15 | CG28: 11 | CH28: 11 | CI28: 14 | CJ28: 14 | CK28: 21 | CL28: 27 | CM28: 40 | CN28: 36 | CO28: 235
B29: Liberecký kraj | C29: 0 | D29: 0 | E29: 0 | F29: 0 | G29: 0 | H29: 0 | I29: 0 | J29: 0 | K29: 0 | L29: 0 | M29: 0 | N29: 0 | O29: 0 | P29: 0 | Q29: 0 | R29: 0 | S29: 0 | T29: 0 | U29: 0 | V29: 0 | W29: 0 | X29: 0 | Y29: 0 | Z29: 0 | AA29: 0 | AB29: 0 | AC29: 0 | AD29: 0 | AE29: 0 | AF29: 0 | AG29: 0 | AH29: 0 | AI29: 0 | AJ29: 0 | AK29: 0 | AL29: 0 | AM29: 3 | AN29: 3 | AO29: 6 | AP29: 3 | AQ29: 3 | AR29: 4 | AS29: 2 | AT29: 2 | AU29: 5 | AV29: 5 | AW29: 4 | AX29: 4 | AY29: 4 | AZ29: 5 | BA29: 10 | BB29: 51 | BC29: 10 | BD29: 39 | BE29: 47 | BF29: 50 | BG29: 54 | BH29: 57 | BI29: 35 | BJ29: 32 | BK29: 32 | BL29: 23 | BM29: 25 | BN29: 24 | BO29: 428 | BP29: 27 | BQ29: 22 | BR29: 23 | BS29: 21 | BT29: 18 | BU29: 12 | BV29: 14 | BW29: 57 | BX29: 58 | BY29: 59 | BZ29: 56 | CA29: 59 | CB29: 426 | CC29: 15 | CD29: 13 | CE29: 13 | CF29: 13 | CG29: 10 | CH29: 9 | CI29: 13 | CJ29: 13 | CK29: 19 | CL29: 24 | CM29: 37 | CN29: 33 | CO29: 212
B30: Ústecký kraj | C30: 0 | D30: 0 | E30: 0 | F30: 0 | G30: 0 | H30: 0 | I30: 0 | J30: 0 | K30: 0 | L30: 0 | M30: 0 | N30: 0 | O30: 0 | P30: 0 | Q30: 0 | R30: 0 | S30: 0 | T30: 0 | U30: 0 | V30: 0 | W30: 0 | X30: 0 | Y30: 0 | Z30: 0 | AA30: 0 | AB30: 0 | AC30: 0 | AD30: 0 | AE30: 0 | AF30: 0 | AG30: 0 | AH30: 0 | AI30: 0 | AJ30: 0 | AK30: 0 | AL30: 0 | AM30: 3 | AN30: 3 | AO30: 6 | AP30: 3 | AQ30: 3 | AR30: 4 | AS30: 2 | AT30: 2 | AU30: 5 | AV30: 5 | AW30: 4 | AX30: 4 | AY30: 4 | AZ30: 4 | BA30: 9 | BB30: 49 | BC30: 9 | BD30: 37 | BE30: 43 | BF30: 47 | BG30: 50 | BH30: 53 | BI30: 32 | BJ30: 30 | BK30: 30 | BL30: 21 | BM30: 23 | BN30: 22 | BO30: 397 | BP30: 25 | BQ30: 20 | BR30: 21 | BS30: 20 | BT30: 16 | BU30: 12 | BV30: 13 | BW30: 52 | BX30: 54 | BY30: 55 | BZ30: 53 | CA30: 55 | CB30: 396 | CC30: 14 | CD30: 12 | CE30: 12 | CF30: 12 | CG30: 9 | CH30: 8 | CI30: 12 | CJ30: 12 | CK30: 18 | CL30: 22 | CM30: 34 | CN30: 32 | CO30: 197
B31: Karlovarský kraj | C31: 0 | D31: 0 | E31: 0 | F31: 0 | G31: 0 | H31: 0 | I31: 0 | J31: 0 | K31: 0 | L31: 0 | M31: 0 | N31: 0 | O31: 0 | P31: 0 | Q31: 0 | R31: 0 | S31: 0 | T31: 0 | U31: 0 | V31: 0 | W31: 2 | X31: 2 | Y31: 2 | Z31: 2 | AA31: 2 | AB31: 10 | AC31: 0 | AD31: 0 | AE31: 0 | AF31: 0 | AG31: 0 | AH31: 0 | AI31: 0 | AJ31: 0 | AK31: 0 | AL31: 0 | AM31: 3 | AN31: 3 | AO31: 6 | AP31: 3 | AQ31: 3 | AR31: 3 | AS31: 2 | AT31: 2 | AU31: 5 | AV31: 4 | AW31: 3 | AX31: 4 | AY31: 4 | AZ31: 4 | BA31: 8 | BB31: 45 | BC31: 8 | BD31: 33 | BE31: 39 | BF31: 41 | BG31: 45 | BH31: 47 | BI31: 29 | BJ31: 26 | BK31: 26 | BL31: 19 | BM31: 21 | BN31: 20 | BO31: 354 | BP31: 22 | BQ31: 18 | BR31: 19 | BS31: 18 | BT31: 15 | BU31: 10 | BV31: 11 | BW31: 44 | BX31: 48 | BY31: 49 | BZ31: 47 | CA31: 49 | CB31: 350 | CC31: 13 | CD31: 11 | CE31: 10 | CF31: 11 | CG31: 8 | CH31: 8 | CI31: 11 | CJ31: 11 | CK31: 17 | CL31: 20 | CM31: 30 | CN31: 27 | CO31: 177
B32: Plzeňský kraj | C32: 0 | D32: 0 | E32: 0 | F32: 0 | G32: 0 | H32: 0 | I32: 0 | J32: 2 | K32: 3 | L32: 4 | M32: 3 | N32: 3 | O32: 15 | P32: 0 | Q32: 0 | R32: 0 | S32: 0 | T32: 0 | U32: 0 | V32: 0 | W32: 0 | X32: 0 | Y32: 0 | Z32: 0 | AA32: 0 | AB32: 0 | AC32: 0 | AD32: 0 | AE32: 0 | AF32: 0 | AG32: 0 | AH32: 0 | AI32: 0 | AJ32: 0 | AK32: 1 | AL32: 1 | AM32: 3 | AN32: 3 | AO32: 8 | AP32: 3 | AQ32: 4 | AR32: 5 | AS32: 2 | AT32: 2 | AU32: 6 | AV32: 6 | AW32: 4 | AX32: 5 | AY32: 5 | AZ32: 5 | BA32: 11 | BB32: 58 | BC32: 11 | BD32: 45 | BE32: 53 | BF32: 57 | BG32: 62 | BH32: 65 | BI32: 39 | BJ32: 36 | BK32: 36 | BL32: 26 | BM32: 28 | BN32: 27 | BO32: 485 | BP32: 31 | BQ32: 25 | BR32: 26 | BS32: 24 | BT32: 20 | BU32: 14 | BV32: 15 | BW32: 65 | BX32: 66 | BY32: 67 | BZ32: 64 | CA32: 67 | CB32: 484 | CC32: 18 | CD32: 15 | CE32: 14 | CF32: 15 | CG32: 11 | CH32: 10 | CI32: 15 | CJ32: 15 | CK32: 22 | CL32: 27 | CM32: 42 | CN32: 38 | CO32: 242
B33: Jihočeský kraj | C33: 0 | D33: 0 | E33: 0 | F33: 0 | G33: 0 | H33: 0 | I33: 0 | J33: 4 | K33: 3 | L33: 3 | M33: 3 | N33: 3 | O33: 16 | P33: 0 | Q33: 0 | R33: 0 | S33: 0 | T33: 0 | U33: 0 | V33: 0 | W33: 2 | X33: 2 | Y33: 2 | Z33: 2 | AA33: 2 | AB33: 10 | AC33: 0 | AD33: 0 | AE33: 0 | AF33: 0 | AG33: 0 | AH33: 0 | AI33: 0 | AJ33: 0 | AK33: 1 | AL33: 1 | AM33: 3 | AN33: 3 | AO33: 8 | AP33: 3 | AQ33: 3 | AR33: 4 | AS33: 2 | AT33: 2 | AU33: 6 | AV33: 5 | AW33: 4 | AX33: 5 | AY33: 5 | AZ33: 5 | BA33: 10 | BB33: 54 | BC33: 10 | BD33: 42 | BE33: 50 | BF33: 53 | BG33: 58 | BH33: 61 | BI33: 37 | BJ33: 34 | BK33: 34 | BL33: 24 | BM33: 27 | BN33: 26 | BO33: 456 | BP33: 29 | BQ33: 23 | BR33: 25 | BS33: 23 | BT33: 19 | BU33: 13 | BV33: 14 | BW33: 61 | BX33: 62 | BY33: 63 | BZ33: 60 | CA33: 63 | CB33: 455 | CC33: 16 | CD33: 14 | CE33: 13 | CF33: 14 | CG33: 12 | CH33: 10 | CI33: 14 | CJ33: 14 | CK33: 21 | CL33: 26 | CM33: 39 | CN33: 35 | CO33: 228
B34: Jihomoravský kraj | C34: 0 | D34: 0 | E34: 0 | F34: 0 | G34: 0 | H34: 0 | I34: 0 | J34: 3 | K34: 3 | L34: 3 | M34: 3 | N34: 3 | O34: 15 | P34: 0 | Q34: 0 | R34: 0 | S34: 0 | T34: 0 | U34: 0 | V34: 0 | W34: 2 | X34: 0 | Y34: 2 | Z34: 2 | AA34: 2 | AB34: 8 | AC34: 0 | AD34: 0 | AE34: 0 | AF34: 0 | AG34: 0 | AH34: 0 | AI34: 0 | AJ34: 0 | AK34: 1 | AL34: 1 | AM34: 4 | AN34: 4 | AO34: 10 | AP34: 4 | AQ34: 4 | AR34: 5 | AS34: 2 | AT34: 2 | AU34: 7 | AV34: 6 | AW34: 5 | AX34: 5 | AY34: 5 | AZ34: 6 | BA34: 12 | BB34: 63 | BC34: 12 | BD34: 49 | BE34: 58 | BF34: 62 | BG34: 67 | BH34: 71 | BI34: 43 | BJ34: 40 | BK34: 39 | BL34: 28 | BM34: 31 | BN34: 30 | BO34: 530 | BP34: 34 | BQ34: 27 | BR34: 29 | BS34: 27 | BT34: 22 | BU34: 15 | BV34: 17 | BW34: 77 | BX34: 72 | BY34: 73 | BZ34: 70 | CA34: 73 | CB34: 536 | CC34: 20 | CD34: 16 | CE34: 16 | CF34: 17 | CG34: 12 | CH34: 11 | CI34: 16 | CJ34: 16 | CK34: 24 | CL34: 30 | CM34: 45 | CN34: 41 | CO34: 264
B35: Pardubický kraj | C35: 0 | D35: 0 | E35: 0 | F35: 0 | G35: 0 | H35: 0 | I35: 0 | J35: 2 | K35: 3 | L35: 3 | M35: 3 | N35: 3 | O35: 14 | P35: 0 | Q35: 0 | R35: 0 | S35: 0 | T35: 0 | U35: 0 | V35: 0 | W35: 1 | X35: 1 | Y35: 1 | Z35: 1 | AA35: 2 | AB35: 6 | AC35: 0 | AD35: 0 | AE35: 0 | AF35: 0 | AG35: 0 | AH35: 0 | AI35: 0 | AJ35: 0 | AK35: 0 | AL35: 0 | AM35: 3 | AN35: 3 | AO35: 6 | AP35: 3 | AQ35: 3 | AR35: 4 | AS35: 2 | AT35: 2 | AU35: 6 | AV35: 5 | AW35: 4 | AX35: 5 | AY35: 5 | AZ35: 5 | BA35: 10 | BB35: 54 | BC35: 10 | BD35: 41 | BE35: 48 | BF35: 52 | BG35: 56 | BH35: 59 | BI35: 36 | BJ35: 33 | BK35: 33 | BL35: 24 | BM35: 26 | BN35: 25 | BO35: 443 | BP35: 28 | BQ35: 22 | BR35: 24 | BS35: 22 | BT35: 18 | BU35: 13 | BV35: 14 | BW35: 59 | BX35: 60 | BY35: 61 | BZ35: 58 | CA35: 61 | CB35: 440 | CC35: 16 | CD35: 14 | CE35: 13 | CF35: 14 | CG35: 10 | CH35: 9 | CI35: 13 | CJ35: 14 | CK35: 20 | CL35: 25 | CM35: 38 | CN35: 34 | CO35: 220
B36: Královehradecký kraj | C36: 0 | D36: 0 | E36: 0 | F36: 0 | G36: 0 | H36: 0 | I36: 0 | J36: 3 | K36: 3 | L36: 3 | M36: 3 | N36: 3 | O36: 15 | P36: 0 | Q36: 0 | R36: 0 | S36: 0 | T36: 0 | U36: 0 | V36: 0 | W36: 2 | X36: 2 | Y36: 0 | Z36: 2 | AA36: 1 | AB36: 7 | AC36: 0 | AD36: 0 | AE36: 0 | AF36: 0 | AG36: 0 | AH36: 0 | AI36: 0 | AJ36: 0 | AK36: 1 | AL36: 1 | AM36: 3 | AN36: 3 | AO36: 8 | AP36: 3 | AQ36: 4 | AR36: 5 | AS36: 2 | AT36: 2 | AU36: 6 | AV36: 6 | AW36: 4 | AX36: 5 | AY36: 5 | AZ36: 5 | BA36: 11 | BB36: 58 | BC36: 11 | BD36: 45 | BE36: 53 | BF36: 57 | BG36: 62 | BH36: 65 | BI36: 39 | BJ36: 36 | BK36: 36 | BL36: 26 | BM36: 28 | BN36: 27 | BO36: 485 | BP36: 31 | BQ36: 25 | BR36: 26 | BS36: 24 | BT36: 20 | BU36: 14 | BV36: 15 | BW36: 65 | BX36: 66 | BY36: 67 | BZ36: 64 | CA36: 67 | CB36: 484 | CC36: 18 | CD36: 15 | CE36: 14 | CF36: 15 | CG36: 11 | CH36: 10 | CI36: 15 | CJ36: 15 | CK36: 22 | CL36: 27 | CM36: 42 | CN36: 38 | CO36: 242
B37: Kraj Vysočina | C37: 0 | D37: 0 | E37: 0 | F37: 0 | G37: 0 | H37: 0 | I37: 0 | J37: 3 | K37: 3 | L37: 3 | M37: 3 | N37: 3 | O37: 15 | P37: 0 | Q37: 0 | R37: 0 | S37: 0 | T37: 0 | U37: 0 | V37: 0 | W37: 1 | X37: 1 | Y37: 1 | Z37: 1 | AA37: 1 | AB37: 5 | AC37: 0 | AD37: 0 | AE37: 0 | AF37: 0 | AG37: 0 | AH37: 0 | AI37: 0 | AJ37: 0 | AK37: 0 | AL37: 0 | AM37: 3 | AN37: 3 | AO37: 6 | AP37: 3 | AQ37: 3 | AR37: 4 | AS37: 2 | AT37: 2 | AU37: 6 | AV37: 5 | AW37: 4 | AX37: 5 | AY37: 5 | AZ37: 5 | BA37: 10 | BB37: 54 | BC37: 10 | BD37: 41 | BE37: 48 | BF37: 52 | BG37: 56 | BH37: 59 | BI37: 36 | BJ37: 33 | BK37: 33 | BL37: 24 | BM37: 26 | BN37: 25 | BO37: 443 | BP37: 28 | BQ37: 22 | BR37: 24 | BS37: 22 | BT37: 18 | BU37: 13 | BV37: 14 | BW37: 59 | BX37: 60 | BY37: 61 | BZ37: 61 | CA37: 61 | CB37: 443 | CC37: 16 | CD37: 14 | CE37: 13 | CF37: 14 | CG37: 10 | CH37: 9 | CI37: 13 | CJ37: 14 | CK37: 20 | CL37: 25 | CM37: 38 | CN37: 34 | CO37: 220
B38: Středočeský kraj | C38: 0 | D38: 0 | E38: 0 | F38: 0 | G38: 0 | H38: 0 | I38: 0 | J38: 13 | K38: 13 | L38: 12 | M38: 13 | N38: 13 | O38: 64 | P38: 0 | Q38: 0 | R38: 0 | S38: 0 | T38: 0 | U38: 0 | V38: 0 | W38: 5 | X38: 7 | Y38: 7 | Z38: 5 | AA38: 5 | AB38: 29 | AC38: 0 | AD38: 0 | AE38: 0 | AF38: 0 | AG38: 0 | AH38: 0 | AI38: 0 | AJ38: 0 | AK38: 1 | AL38: 1 | AM38: 7 | AN38: 7 | AO38: 16 | AP38: 7 | AQ38: 6 | AR38: 10 | AS38: 4 | AT38: 4 | AU38: 10 | AV38: 9 | AW38: 7 | AX38: 8 | AY38: 8 | AZ38: 8 | BA38: 17 | BB38: 98 | BC38: 17 | BD38: 76 | BE38: 90 | BF38: 97 | BG38: 104 | BH38: 114 | BI38: 65 | BJ38: 61 | BK38: 61 | BL38: 44 | BM38: 47 | BN38: 47 | BO38: 823 | BP38: 53 | BQ38: 40 | BR38: 44 | BS38: 43 | BT38: 33 | BU38: 26 | BV38: 26 | BW38: 111 | BX38: 112 | BY38: 114 | BZ38: 109 | CA38: 117 | CB38: 828 | CC38: 30 | CD38: 25 | CE38: 24 | CF38: 26 | CG38: 19 | CH38: 17 | CI38: 25 | CJ38: 25 | CK38: 38 | CL38: 47 | CM38: 71 | CN38: 64 | CO38: 411
H114: 1 | I114: 0 | J114: 0 | K114: 0 | L114: 43.93358876 | M114: 155.4388361 | N114: 283.7926899 | O114: 203.6330537
H115: 2 | I115: 0 | J115: 0 | K115: 0 | L115: 37.03703704 | M115: 142.4388361 | N115: 292.2036853 | O115: 158.5408348
H116: 3 | I116: 0 | J116: 0 | K116: 0 | L116: 45.03703704 | M116: 572.7401623 | N116: 313.2036853 | O116: 129.167916
H117: 4 | I117: 0 | J117: 0 | K117: 0 | L117: 24 | M117: 622.3632238 | N117: 256.0585499 | O117: 181.799495
H118: 5 | I118: 0 | J118: 0 | K118: 0 | L118: 28 | M118: 655.5744039 | N118: 207.9695192 | O118: 117.3857019
H119: 6 | I119: 0 | J119: 0 | K119: 0 | L119: 28 | M119: 785.7245014 | N119: 144.6420016 | O119: 123.3627134
H120: 7 | I120: 0 | J120: 0 | K120: 0 | L120: 71.29565217 | M120: 384.0816847 | N120: 159.9947966 | O120: 98.08445251
H121: 8 | I121: 40 | J121: 15 | K121: 0 | L121: 55.29565217 | M121: 396.7498585 | N121: 175.6566101 | O121: 135.5978011
H122: 9 | I122: 40 | J122: 15 | K122: 6.896551724 | L122: 51.29565217 | M122: 359.0355728 | N122: 775.5212718 | O122: 178.1385783
H123: 10 | I123: 40 | J123: 15 | K123: 6.896551724 | L123: 64.29565217 | M123: 331.0952307 | N123: 794.0099127 | O123: 255.5127638
H124: 11 | I124: 40 | J124: 15 | K124: 13.79310345 | L124: 30.79310345 | M124: 284.6436178 | N124: 819.5082974 | O124: 342.5984781
H125: 12 | I125: 40 | J125: 15 | K125: 50.83014049 | L125: 232.3472375 | M125: 1487.169124 | N125: 2075.91878 | O125: 1011.867616

Sheet Analýza společnosti
AG1: Centrum Dluhopisů s.r.o. | AH1: Investiční centrum dluhopisů s.r.o. | AI1: STARTEEPO s.r.o. | AJ1: České dluhopisové tržiště s.r.o. | AK1: Invest Provider a.s. | AL1: Klub investorů a traderů s.r.o.
B2: Označení | C2: TEXT | D2: 2015 | E2: 2016 | F2: 2017 | J2: 2015 | K2: 2016 | L2: 2017 | M2: 2018 | O2: Aktiva | P2: 2015 | Q2: Pasiva | R2: 2015 | S2: Aktiva | T2: 2015 | U2: Pasiva | V2: 2015 | AF2: Vstup na trh | AG2: 2014-01-01 | AH2: 2019-08-01 | AI2: 2020-02-01 | AJ2: 2018-10-01 | AK2: 2017-12-01 | AL2: 2017-11-01
B3: I. | C3: Tržby z prodeje výrobků a služeb | D3: 206000 | E3: 1467000 | F3: 14386000 | H3: Aktiva | I3: Celková aktiva | J3: 996000 | K3: 1083000 | L3: 8996000 | M3: 13250000 | O3: Stálá aktiva | P3: =J4 -> 808000 | Q3: Vlastní kapitál | R3: =J8 -> 105000 | S3: Stálá aktiva | T3: =P3/(P3+P4) -> 0.8112449799 | U3: Vlastní kapitál | V3: =R3/(R3+R4) -> 0.1054216867
B4: II. | C4: Tržby za prodej zboží | D4: 271000 | E4: 14859000 | F4: 9762000 | I4: Stálá aktiva | J4: 808000 | K4: 954000 | L4: 3919000 | M4: 5402000 | O4: Oběžná aktiva | P4: =J5 -> 188000 | Q4: Cizí zdroje | R4: =J10 -> 891000 | S4: Oběžná aktiva | T4: =P4/(P3+P4) -> 0.1887550201 | U4: Cizí zdroje | V4: =R4/(R3+R4) -> 0.8945783133
B5: A. | C5: Výkonová spotřeba | D5: 306000 | E5: 15842000 | F5: 15397000 | I5: Oběžná aktiva | J5: 188000 | K5: 129000 | L5: 5076000 | M5: 7845000 | O5: Aktiva | P5: 2016 | Q5: Pasiva | R5: 2016 | S5: Aktiva | T5: 2016 | U5: Pasiva | V5: 2016
B6: B. | C6: Změna stavu zásob vlastní činnosti (+/-) | D6: 80000 | E6: 0 | F6: 0 | I6: Časové rozlišení aktiv | J6: 0 | K6: 0 | L6: 1000 | M6: 3000 | O6: Stálá aktiva | P6: =K4 -> 954000 | Q6: Vlastní kapitál | R6: =K8 -> 191000 | S6: Stálá aktiva | T6: =P6/(P6+P7) -> 0.8808864266 | U6: Vlastní kapitál | V6: =R6/(R6+R7) -> 0.1763619575
B7: C. | C7: Aktivace (-) | D7: 0 | E7: 0 | F7: 0 | H7: Pasiva | I7: Pasiva celkem | J7: 996000 | K7: 1083000 | L7: 8212000 | M7: 13250000 | O7: Oběžná aktiva | P7: =K5 -> 129000 | Q7: Cizí zdroje | R7: =K10 -> 892000 | S7: Oběžná aktiva | T7: =P7/(P6+P7) -> 0.1191135734 | U7: Cizí zdroje | V7: =R7/(R6+R7) -> 0.8236380425
B8: D. | C8: Osobní náklady | D8: 0 | E8: 335000 | F8: 2160000 | I8: Vlastní kapitál | J8: 105000 | K8: 191000 | L8: 5634000 | M8: 8450000 | O8: Aktiva | P8: 2017 | Q8: Pasiva | R8: 2017 | S8: Aktiva | T8: 2016 | U8: Pasiva | V8: 2016
B9: E. | C9: Úprava hodnot v provovzní oblasti | D9: -35000 | E9: 0 | F9: 770000 | I9: Základní kapitál | J9: 200000 | K9: 200000 | L9: 200000 | M9: 200000 | O9: Stálá aktiva | P9: =L4 -> 3919000 | Q9: Vlastní kapitál | R9: =L8 -> 5634000 | S9: Stálá aktiva | T9: =P9/(P9+P10) -> 0.4356864925 | U9: Vlastní kapitál | V9: =R9/(R9+R10) -> 0.6860691671
B10: III. | C10: Ostatní provozní výnosy | D10: 0 | E10: 0 | F10: 0 | I10: Cizí zdroje | J10: 891000 | K10: 892000 | L10: 2578000 | M10: 4800000 | O10: Oběžná aktiva | P10: =L5 -> 5076000 | Q10: Cizí zdroje | R10: =L10 -> 2578000 | S10: Oběžná aktiva | T10: =P10/(P9+P10) -> 0.5643135075 | U10: Cizí zdroje | V10: =R10/(R9+R10) -> 0.3139308329
B11: F. | C11: Ostatní provozní náklady | D11: 36000 | E11: 52000 | F11: 372000 | I11: Krátkodobé závazky | J11: 890000 | K11: 892000 | L11: 2578000 | M11: 4800000 | O11: Aktiva | P11: 2018 | Q11: Pasiva | R11: 2018 | S11: Aktiva | T11: 2016 | U11: Pasiva | V11: 2016
B12: * | C12: Provozní výsledek hospodaření | D12: 0 | E12: 87000 | F12: 5449000 | I12: Časové rozlišení pasiv | J12: 0 | K12: 0 | L12: 0 | M12: 0 | O12: Stálá aktiva | P12: =M4 -> 5402000 | Q12: Vlastní kapitál | R12: =M8 -> 8450000 | S12: Stálá aktiva | T12: =P12/(P12+P13) -> 0.4077904431 | U12: Vlastní kapitál | V12: =R12/(R12+R13) -> 0.6377358491
B13: IV. | C13: Výnosy z dlouhodobého finančního majetku | D13: 0 | E13: 0 | F13: 0 | O13: Oběžná aktiva | P13: =M5 -> 7845000 | Q13: Cizí zdroje | R13: =M10 -> 4800000 | S13: Oběžná aktiva | T13: =P13/(P12+P13) -> 0.5922095569 | U13: Cizí zdroje | V13: =R13/(R12+R13) -> 0.3622641509
B14: G. | C14: Náklady vynaložené na prodané díly | D14: 0 | E14: 0 | F14: 0
B15: V. | C15: Výnosy z ostatního dlouhodobého finančního majetku | D15: 0 | E15: 0 | F15: 0
B16: H. | C16: Náklady související s ostatním dlouhodobým finančním majetkem | D16: 0 | E16: 0 | F16: 0
B17: VI. | C17: Výnosové úroky a podobné výnosy | D17: 0 | E17: 0 | F17: 0
B18: I. | C18: Úpravy hodnot a rezervy ve finanční oblasti | D18: 0 | E18: 0 | F18: 0
B19: J. | C19: Nákladové úroky a podobné náklady | D19: 0 | E19: 0 | F19: 0
B20: VII. | C20: Ostatní finanční výnosy | D20: 0 | E20: 0 | F20: 0
B21: K. | C21: Ostatní finanční náklady | D21: 0 | E21: 0 | F21: 7
B22: * | C22: Finanční výsledek hospodaření | D22: -85000 | E22: 0 | F22: -7
B23: ** | C23: Výsledek hospodaření před zdaněním (+/-) | D23: -85000 | E23: 87000 | F23: 5442000
B24: L. | C24: Daň z příjmů | D24: 0 | E24: 0 | F24: 0
B25: ** | C25: Výsledek hospodaření po zdanění (+/-) | D25: -85000 | E25: 87000 | F25: 5442000
B26: M. | C26: Převod podílu na výsledku hospodaření společníkům (+/-) | D26: 0 | E26: 0 | F26: 0
B27: *** | C27: Výsledek hospodaření za účetní období (+/-) | D27: -85000 | E27: 87000 | F27: 5442000
C28: Čistý obrat za účetní období | D28: -85000 | E28: 16316000 | F28: 24148000
D29: =D11+D10+D9+D8+D7+D6+D5 -> 387000 | E29: =E11+E10+E9+E8+E7+E6+E5 -> 16229000 | F29: 18699000
C31: Ukazatele rentability | D31: 2015 | E31: 2016 | F31: 2017
C32: ROA | D32: =D23/'Analýza společnosti'!J3 -> -0.08534136546 | E32: =E23/'Analýza společnosti'!K3 -> 0.08033240997 | F32: =F23/'Analýza společnosti'!L3 -> 0.6049355269
C33: ROE | D33: =D25/'Analýza společnosti'!J8 -> -0.8095238095 | E33: =E25/'Analýza společnosti'!K8 -> 0.4554973822 | F33: =F25/'Analýza společnosti'!L8 -> 0.9659211928
C34: ROS | D34: =D23/(D3+D4) -> -0.178197065 | E34: =E23/(E3+E4) -> 0.00532892319 | F34: =F23/(F3+F4) -> 0.2253602783
C36: Ukazatele aktivity | D36: 2015 | E36: 2016 | F36: 2017
C37: Obrat aktiv | D37: =(D3+D4)/'Analýza společnosti'!J3 -> 0.4789156627 | E37: =(E3+E4)/'Analýza společnosti'!K3 -> 15.07479224 | F37: =(F3+F4)/'Analýza společnosti'!L3 -> 2.684304135
C38: Obrat oběžných aktiv | D38: =(D3+D4)/'Analýza společnosti'!J5 -> 2.537234043 | E38: =(E3+E4)/'Analýza společnosti'!K5 -> 126.5581395 | F38: =(F3+F4)/'Analýza společnosti'!L5 -> 4.757289204
C40: Ukazatele likvidity | D40: 2015 | E40: 2016 | F40: 2017 | G40: 2018
C41: Běžná likvidita | D41: ='Analýza společnosti'!J5/'Analýza společnosti'!J11 -> 0.2112359551 | E41: ='Analýza společnosti'!K5/'Analýza společnosti'!K11 -> 0.1446188341 | F41: ='Analýza společnosti'!L5/'Analýza společnosti'!L11 -> 1.968968192 | G41: ='Analýza společnosti'!M5/'Analýza společnosti'!M11 -> 1.634375
C43: Ukazatele zadluženosti | D43: 2015 | E43: 2016 | F43: 2017 | G43: 2018
C44: Celková zadluženost | D44: ='Analýza společnosti'!J10/'Analýza společnosti'!J3 -> 0.8945783133 | E44: ='Analýza společnosti'!K10/'Analýza společnosti'!K3 -> 0.8236380425 | F44: ='Analýza společnosti'!L10/'Analýza společnosti'!L3 -> 0.2865718097 | G44: ='Analýza společnosti'!M10/'Analýza společnosti'!M3 -> 0.3622641509
C45: Krátkodobá zadluženost | D45: ='Analýza společnosti'!J11/'Analýza společnosti'!J3 -> 0.8935742972 | E45: ='Analýza společnosti'!K11/'Analýza společnosti'!K3 -> 0.8236380425 | F45: ='Analýza společnosti'!L11/'Analýza společnosti'!L3 -> 0.2865718097 | G45: ='Analýza společnosti'!M11/'Analýza společnosti'!M3 -> 0.3622641509
C46: Finanční páka | D46: ='Analýza společnosti'!J3/'Analýza společnosti'!J8 -> 9.485714286 | E46: ='Analýza společnosti'!K3/'Analýza společnosti'!K8 -> 5.670157068 | F46: ='Analýza společnosti'!L3/'Analýza společnosti'!L8 -> 1.596734114 | G46: ='Analýza společnosti'!M3/'Analýza společnosti'!M8 -> 1.568047337
C48: Analýza finančních fondů | D48: 2015 | E48: 2016 | F48: 2017 | G48: 2018
C49: Čistý pracovní kapitál | D49: ='Analýza společnosti'!J5-'Analýza společnosti'!J11 -> -702000 | E49: ='Analýza společnosti'!K5-'Analýza společnosti'!K11 -> -763000 | F49: ='Analýza společnosti'!L5-'Analýza společnosti'!L11 -> 2498000 | G49: ='Analýza společnosti'!M5-'Analýza společnosti'!M11 -> 3045000
C50: Oběžná aktiva | D50: =J5 -> 188000 | E50: =K5 -> 129000 | F50: 5076000 | G50: 7845000
C51: Krátkodobé závazky | D51: =J11 -> 890000 | E51: =K11 -> 892000 | F51: 2578000 | G51: 4800000
C53: Ukazatel | D53: 2015 | E53: 2016 | F53: 2017 | G53: 2018
C54: Počet zaměstnanců | D54: 7 | E54: 9 | F54: 13 | G54: 18
C55: Výsledek hospodaření před zdaněním (+/-) | D55: =D23 -> -85000 | E55: =E23 -> 87000 | F55: 5442000 | G55: 0
C56: Celkové tržby | D56: =D3+D4 -> 477000 | E56: =E3+E4 -> 16326000 | F56: 24148000 | G56: 0
C57: Stálá aktiva | D57: =J4 -> 808000 | E57: =K4 -> 954000 | F57: 3919000 | G57: 5402000
C58: Oběžná aktiva | D58: =J5 -> 188000 | E58: 129000 | F58: 5076000 | G58: 7845000
C59: Vlastní kapitál | D59: =J8 -> 105000 | E59: =K8 -> 191000 | F59: 5634000 | G59: 8450000
C60: Cizí kapitál | D60: =J10 -> 891000 | E60: =K10 -> 892000 | F60: 2578000 | G60: 4800000

Sheet datový_list_zakázky
F1: Kraj | G1: Olomoucký kraj
F2: Číslo zakázek | G2: =ROUND(Z7,0) -> 24
F3: Měsíc | G3: srpen
A5: Pořadové číslo | B5: Název obce | C5: Počet obyvatel | D5: Pravděpdobnosti | E5: Počet výjezdů | F5: Kategorie | G5: Okres | H5: Kraj
A6: 6254 | B6: Praha | C6: 1246780 | D6: =Tabulka1[[#This Row],[Počet obyvatel]]/10516125 -> 0.1185588798 | E6: =CEILING((($Z$7*D6)*(RANDBETWEEN(10,15))),1) -> 41 | F6: statutární město | G6: Praha | H6: Středočeský kraj | AE6: leden | AF6: únor | AG6: březen | AH6: duben | AI6: květen | AJ6: červen | AK6: červenec | AL6: srpen | AM6: září | AN6: říjen | AO6: listopad | AP6: prosinec
A7: 368 | B7: Brno | C7: 378327 | D7: =Tabulka1[[#This Row],[Počet obyvatel]]/10516125 -> 0.03597589416 | E7: 12 | F7: statutární město | G7: Brno | H7: Jihomoravský kraj | Z7: =INDEX(AE7:AP19,Z9,Z8) -> 24.38871408 | AD7: ='Počet odeslaných zásilek'!AC28 -> Olomoucký kraj | AE7: ='Počet odeslaných zásilek'!DQ28 -> 20.31700249 | AF7: ='Počet odeslaných zásilek'!DR28 -> 20.64170521 | AG7: ='Počet odeslaných zásilek'!DS28 -> 20.27853528 | AH7: ='Počet odeslaných zásilek'!DT28 -> 19.48989148 | AI7: ='Počet odeslaných zásilek'!DU28 -> 19.44176421 | AJ7: ='Počet odeslaných zásilek'!DV28 -> 19.27393717 | AK7: ='Počet odeslaných zásilek'!DW28 -> 20.0400151 | AL7: ='Počet odeslaných zásilek'!DX28 -> 24.38871408 | AM7: ='Počet odeslaných zásilek'!DY28 -> 24.26430282 | AN7: ='Počet odeslaných zásilek'!DZ28 -> 24.08990898 | AO7: ='Počet odeslaných zásilek'!EA28 -> 24.11289939 | AP7: ='Počet odeslaných zásilek'!EB28 -> 24.1837999
A8: 3651 | B8: Ostrava | C8: 297421 | D8: =Tabulka1[[#This Row],[Počet obyvatel]]/10516125 -> 0.02828237588 | E8: 9 | F8: statutární město | G8: Ostrava | H8: Moravskoslezský kraj | Z8: =MATCH(G3,AE6:AP6,0) -> 8 | AD8: ='Počet odeslaných zásilek'!AC29 -> Moravskoslezský kraj | AE8: ='Počet odeslaných zásilek'!DQ29 -> 36.78744638 | AF8: ='Počet odeslaných zásilek'!DR29 -> 37.26813599 | AG8: ='Počet odeslaných zásilek'!DS29 -> 37.3589966 | AH8: ='Počet odeslaných zásilek'!DT29 -> 36.36149275 | AI8: ='Počet odeslaných zásilek'!DU29 -> 36.43417238 | AJ8: ='Počet odeslaných zásilek'!DV29 -> 36.33060133 | AK8: ='Počet odeslaných zásilek'!DW29 -> 37.15224613 | AL8: ='Počet odeslaných zásilek'!DX29 -> 42.33711132 | AM8: ='Počet odeslaných zásilek'!DY29 -> 42.89491178 | AN8: ='Počet odeslaných zásilek'!DZ29 -> 42.76211378 | AO8: ='Počet odeslaných zásilek'!EA29 -> 41.86369207 | AP8: ='Počet odeslaných zásilek'!EB29 -> 42.00445924
A9: 3860 | B9: Plzeň | C9: 167472 | D9: =Tabulka1[[#This Row],[Počet obyvatel]]/10516125 -> 0.01592525764 | E9: 5 | F9: statutární město | G9: Plzeň | H9: Plzeňský kraj | Z9: =MATCH(G1,AD7:AD19,0) -> 1 | AD9: ='Počet odeslaných zásilek'!AC30 -> Zlínský kraj | AE9: ='Počet odeslaných zásilek'!DQ30 -> 37.25605968 | AF9: ='Počet odeslaných zásilek'!DR30 -> 38.03877373 | AG9: ='Počet odeslaných zásilek'!DS30 -> 37.77785503 | AH9: ='Počet odeslaných zásilek'!DT30 -> 36.73384382 | AI9: ='Počet odeslaných zásilek'!DU30 -> 36.76055129 | AJ9: ='Počet odeslaných zásilek'!DV30 -> 36.52985893 | AK9: ='Počet odeslaných zásilek'!DW30 -> 37.54949517 | AL9: ='Počet odeslaných zásilek'!DX30 -> 43.84456151 | AM9: ='Počet odeslaných zásilek'!DY30 -> 44.26668201 | AN9: ='Počet odeslaných zásilek'!DZ30 -> 43.66167122 | AO9: ='Počet odeslaných zásilek'!EA30 -> 43.01589599 | AP9: ='Počet odeslaných zásilek'!EB30 -> 42.75029876
A10: 2627 | B10: Liberec | C10: 102113 | D10: =Tabulka1[[#This Row],[Počet obyvatel]]/10516125 -> 0.009710135625 | E10: 4 | F10: statutární město | G10: Liberec | H10: Liberecký kraj | AD10: ='Počet odeslaných zásilek'!AC31 -> Liberecký kraj | AE10: ='Počet odeslaných zásilek'!DQ31 -> 15.23156436 | AF10: ='Počet odeslaných zásilek'!DR31 -> 15.28195787 | AG10: ='Počet odeslaných zásilek'!DS31 -> 15.26979172 | AH10: ='Počet odeslaných zásilek'!DT31 -> 14.91096229 | AI10: ='Počet odeslaných zásilek'!DU31 -> 14.85637917 | AJ10: ='Počet odeslaných zásilek'!DV31 -> 14.67635714 | AK10: ='Počet odeslaných zásilek'!DW31 -> 14.77494932 | AL10: ='Počet odeslaných zásilek'!DX31 -> 19.37191135 | AM10: ='Počet odeslaných zásilek'!DY31 -> 19.87985966 | AN10: ='Počet odeslaných zásilek'!DZ31 -> 19.70172992 | AO10: ='Počet odeslaných zásilek'!EA31 -> 18.70894702 | AP10: ='Počet odeslaných zásilek'!EB31 -> 18.38722101
A11: 3566 | B11: Olomouc | C11: 99471 | D11: =Tabulka1[[#This Row],[Počet obyvatel]]/10516125 -> 0.0094589024 | E11: 3 | F11: statutární město | G11: Olomouc | H11: Olomoucký kraj | AD11: ='Počet odeslaných zásilek'!AC32 -> Ústecký kraj | AE11: ='Počet odeslaných zásilek'!DQ32 -> 27.5621039 | AF11: ='Počet odeslaných zásilek'!DR32 -> 27.89192417 | AG11: ='Počet odeslaných zásilek'!DS32 -> 28.22174443 | AH11: ='Počet odeslaných zásilek'!DT32 -> 28.5515647 | AI11: ='Počet odeslaných zásilek'!DU32 -> 28.88138496 | AJ11: ='Počet odeslaných zásilek'!DV32 -> 29.21120523 | AK11: ='Počet odeslaných zásilek'!DW32 -> 29.54102549 | AL11: ='Počet odeslaných zásilek'!DX32 -> 29.87084576 | AM11: ='Počet odeslaných zásilek'!DY32 -> 30.20066603 | AN11: ='Počet odeslaných zásilek'!DZ32 -> 30.53048629 | AO11: ='Počet odeslaných zásilek'!EA32 -> 30.86030656 | AP11: ='Počet odeslaných zásilek'!EB32 -> 31.19012682
A12: 5446 | B12: Ústí nad Labem | C12: 93747 | D12: =Tabulka1[[#This Row],[Počet obyvatel]]/10516125 -> 0.008914595443 | E12: 3 | F12: statutární město | G12: Ústí nad Labem | H12: Ústecký kraj | AD12: ='Počet odeslaných zásilek'!AC33 -> Karlovarský kraj | AE12: ='Počet odeslaných zásilek'!DQ33 -> 37.3238809 | AF12: ='Počet odeslaných zásilek'!DR33 -> 37.6477618 | AG12: ='Počet odeslaných zásilek'!DS33 -> 37.9716427 | AH12: ='Počet odeslaných zásilek'!DT33 -> 38.2955236 | AI12: ='Počet odeslaných zásilek'!DU33 -> 38.6194045 | AJ12: ='Počet odeslaných zásilek'!DV33 -> 38.9432854 | AK12: ='Počet odeslaných zásilek'!DW33 -> 39.2671663 | AL12: ='Počet odeslaných zásilek'!DX33 -> 39.59104721 | AM12: ='Počet odeslaných zásilek'!DY33 -> 39.91492811 | AN12: ='Počet odeslaných zásilek'!DZ33 -> 40.23880901 | AO12: ='Počet odeslaných zásilek'!EA33 -> 40.56268991 | AP12: ='Počet odeslaných zásilek'!EB33 -> 40.88657081
A13: 693 | B13: České Budějovice | C13: 93467 | D13: =Tabulka1[[#This Row],[Počet obyvatel]]/10516125 -> 0.008887969666 | E13: 4 | F13: statutární město | G13: České Budějovice | H13: Jihočeský kraj | AD13: ='Počet odeslaných zásilek'!AC34 -> Plzeňský kraj | AE13: ='Počet odeslaných zásilek'!DQ34 -> 46.77918075 | AF13: ='Počet odeslaných zásilek'!DR34 -> 47.19848849 | AG13: ='Počet odeslaných zásilek'!DS34 -> 47.61779623 | AH13: ='Počet odeslaných zásilek'!DT34 -> 48.03710397 | AI13: ='Počet odeslaných zásilek'!DU34 -> 48.45641171 | AJ13: ='Počet odeslaných zásilek'!DV34 -> 48.87571945 | AK13: ='Počet odeslaných zásilek'!DW34 -> 49.29502719 | AL13: ='Počet odeslaných zásilek'!DX34 -> 49.71433493 | AM13: ='Počet odeslaných zásilek'!DY34 -> 50.13364267 | AN13: ='Počet odeslaných zásilek'!DZ34 -> 50.55295041 | AO13: ='Počet odeslaných zásilek'!EA34 -> 50.97225815 | AP13: ='Počet odeslaných zásilek'!EB34 -> 51.39156589
A14: 1466 | B14: Hradec Králové | C14: 93035 | D14: =Tabulka1[[#This Row],[Počet obyvatel]]/10516125 -> 0.008846889895 | E14: 4 | F14: statutární město | G14: Hradec Králové | H14: Královéhradecký kraj | AD14: ='Počet odeslaných zásilek'!AC35 -> Jihočeský kraj | AE14: ='Počet odeslaných zásilek'!DQ35 -> 33.17283202 | AF14: ='Počet odeslaných zásilek'!DR35 -> 33.64276385 | AG14: ='Počet odeslaných zásilek'!DS35 -> 33.72392453 | AH14: ='Počet odeslaných zásilek'!DT35 -> 32.40488097 | AI14: ='Počet odeslaných zásilek'!DU35 -> 32.79525328 | AJ14: ='Počet odeslaných zásilek'!DV35 -> 32.66969664 | AK14: ='Počet odeslaných zásilek'!DW35 -> 33.13827215 | AL14: ='Počet odeslaných zásilek'!DX35 -> 38.34250915 | AM14: ='Počet odeslaných zásilek'!DY35 -> 38.85288946 | AN14: ='Počet odeslaných zásilek'!DZ35 -> 38.6924308 | AO14: ='Počet odeslaných zásilek'!EA35 -> 37.7510625 | AP14: ='Počet odeslaných zásilek'!EB35 -> 37.85852914
A15: 3722 | B15: Pardubice | C15: 89467 | D15: =Tabulka1[[#This Row],[Počet obyvatel]]/10516125 -> 0.008507601422 | E15: 4 | F15: statutární město | G15: Pardubice | H15: Pardubický kraj | AD15: ='Počet odeslaných zásilek'!AC36 -> Jihomoravský kraj | AE15: ='Počet odeslaných zásilek'!DQ36 -> 27.60486746 | AF15: ='Počet odeslaných zásilek'!DR36 -> 27.97317018 | AG15: ='Počet odeslaných zásilek'!DS36 -> 28.34147289 | AH15: ='Počet odeslaných zásilek'!DT36 -> 28.7097756 | AI15: ='Počet odeslaných zásilek'!DU36 -> 29.07807832 | AJ15: ='Počet odeslaných zásilek'!DV36 -> 29.44638103 | AK15: ='Počet odeslaných zásilek'!DW36 -> 29.81468375 | AL15: ='Počet odeslaných zásilek'!DX36 -> 30.18298646 | AM15: ='Počet odeslaných zásilek'!DY36 -> 30.55128917 | AN15: ='Počet odeslaných zásilek'!DZ36 -> 30.91959189 | AO15: ='Počet odeslaných zásilek'!EA36 -> 31.2878946 | AP15: ='Počet odeslaných zásilek'!EB36 -> 31.65619732
A16: 1164 | B16: Havířov | C16: 77371 | D16: =Tabulka1[[#This Row],[Počet obyvatel]]/10516125 -> 0.007357367852 | E16: 3 | F16: statutární město | G16: Karviná | H16: Moravskoslezský kraj | AD16: ='Počet odeslaných zásilek'!AC37 -> Pardubický kraj | AE16: ='Počet odeslaných zásilek'!DQ37 -> 46.80264576 | AF16: ='Počet odeslaných zásilek'!DR37 -> 47.24306939 | AG16: ='Počet odeslaných zásilek'!DS37 -> 47.68349302 | AH16: ='Počet odeslaných zásilek'!DT37 -> 48.12391665 | AI16: ='Počet odeslaných zásilek'!DU37 -> 48.56434028 | AJ16: ='Počet odeslaných zásilek'!DV37 -> 49.00476392 | AK16: ='Počet odeslaných zásilek'!DW37 -> 49.44518755 | AL16: ='Počet odeslaných zásilek'!DX37 -> 49.88561118 | AM16: ='Počet odeslaných zásilek'!DY37 -> 50.32603481 | AN16: ='Počet odeslaných zásilek'!DZ37 -> 50.76645844 | AO16: ='Počet odeslaných zásilek'!EA37 -> 51.20688208 | AP16: ='Počet odeslaných zásilek'!EB37 -> 51.64730571
A17: 6103 | B17: Zlín | C17: 75555 | D17: =Tabulka1[[#This Row],[Počet obyvatel]]/10516125 -> 0.007184680669 | E17: 3 | F17: statutární město | G17: Zlín | H17: Zlínský kraj | AD17: ='Počet odeslaných zásilek'!AC38 -> Královehradecký kraj | AE17: ='Počet odeslaných zásilek'!DQ38 -> 23.35660608 | AF17: ='Počet odeslaných zásilek'!DR38 -> 23.71321215 | AG17: ='Počet odeslaných zásilek'!DS38 -> 24.06981823 | AH17: ='Počet odeslaných zásilek'!DT38 -> 24.42642431 | AI17: ='Počet odeslaných zásilek'!DU38 -> 24.78303039 | AJ17: ='Počet odeslaných zásilek'!DV38 -> 25.13963646 | AK17: ='Počet odeslaných zásilek'!DW38 -> 25.49624254 | AL17: ='Počet odeslaných zásilek'!DX38 -> 25.85284862 | AM17: ='Počet odeslaných zásilek'!DY38 -> 26.20945469 | AN17: ='Počet odeslaných zásilek'!DZ38 -> 26.56606077 | AO17: ='Počet odeslaných zásilek'!EA38 -> 26.92266685 | AP17: ='Počet odeslaných zásilek'!EB38 -> 27.27927292
A18: 2032 | B18: Kladno | C18: 68551 | D18: =Tabulka1[[#This Row],[Počet obyvatel]]/10516125 -> 0.006518655874 | E18: 3 | F18: statutární město | G18: Kladno | H18: Středočeský kraj | AD18: ='Počet odeslaných zásilek'!AC39 -> Kraj Vysočina | AE18: ='Počet odeslaných zásilek'!DQ39 -> 41.83309253 | AF18: ='Počet odeslaných zásilek'!DR39 -> 42.28278582 | AG18: ='Počet odeslaných zásilek'!DS39 -> 42.73247911 | AH18: ='Počet odeslaných zásilek'!DT39 -> 43.1821724 | AI18: ='Počet odeslaných zásilek'!DU39 -> 43.63186569 | AJ18: ='Počet odeslaných zásilek'!DV39 -> 44.08155898 | AK18: ='Počet odeslaných zásilek'!DW39 -> 44.53125227 | AL18: ='Počet odeslaných zásilek'!DX39 -> 44.98094556 | AM18: ='Počet odeslaných zásilek'!DY39 -> 45.43063885 | AN18: ='Počet odeslaných zásilek'!DZ39 -> 45.88033214 | AO18: ='Počet odeslaných zásilek'!EA39 -> 46.33002542 | AP18: ='Počet odeslaných zásilek'!EB39 -> 46.77971871
A19: 3181 | B19: Most | C19: 67490 | D19: =Tabulka1[[#This Row],[Počet obyvatel]]/10516125 -> 0.006417763197 | E19: 3 | F19: statutární město | G19: Most | H19: Ústecký kraj | AD19: ='Počet odeslaných zásilek'!AC40 -> Středočeský kraj | AE19: ='Počet odeslaných zásilek'!DQ40 -> 60.53414963 | AF19: ='Počet odeslaných zásilek'!DR40 -> 61.4997585 | AG19: ='Počet odeslaných zásilek'!DS40 -> 62.46536738 | AH19: ='Počet odeslaných zásilek'!DT40 -> 63.43097626 | AI19: ='Počet odeslaných zásilek'!DU40 -> 64.39658514 | AJ19: ='Počet odeslaných zásilek'!DV40 -> 65.36219401 | AK19: ='Počet odeslaných zásilek'!DW40 -> 66.32780289 | AL19: ='Počet odeslaných zásilek'!DX40 -> 67.29341177 | AM19: ='Počet odeslaných zásilek'!DY40 -> 68.25902065 | AN19: ='Počet odeslaných zásilek'!DZ40 -> 69.22462952 | AO19: ='Počet odeslaných zásilek'!EA40 -> 70.1902384 | AP19: ='Počet odeslaných zásilek'!EB40 -> 71.15584728
A20: 3596 | B20: Opava | C20: 58054 | D20: =Tabulka1[[#This Row],[Počet obyvatel]]/10516125 -> 0.005520474509 | E20: 2 | F20: statutární město | G20: Opava | H20: Moravskoslezský kraj | AE20: =SUM(AE7:AE19) -> 454.5614319 | AF20: =SUM(AF7:AF19) -> 460.3235072 | AG20: 463.5129172 | AH20: 462.6585288 | AI20: 466.6992213 | AJ20: 469.5451957 | AK20: 476.3733659 | AL20: 505.6568389 | AM20: 511.1843207 | AN20: 513.5871732 | AO20: 513.7854589 | AP20: 517.1709135
A21: 1997 | B21: Karviná | C21: 57842 | D21: =Tabulka1[[#This Row],[Počet obyvatel]]/10516125 -> 0.005500314992 | E21: 2 | F21: statutární město | G21: Karviná | H21: Moravskoslezský kraj
A22: 1109 | B22: Frýdek-Místek | C22: 57523 | D22: =Tabulka1[[#This Row],[Počet obyvatel]]/10516125 -> 0.005469980625 | E22: 2 | F22: statutární město | G22: Frýdek-Místek | H22: Moravskoslezský kraj
A23: 1870 | B23: Jihlava | C23: 50598 | D23: =Tabulka1[[#This Row],[Počet obyvatel]]/10516125 -> 0.004811468103 | E23: 2 | F23: statutární město | G23: Jihlava | H23: Kraj Vysočina
A24: 5164 | B24: Teplice | C24: 50330 | D24: =Tabulka1[[#This Row],[Počet obyvatel]]/10516125 -> 0.00478598343 | E24: 2 | F24: statutární město | G24: Teplice | H24: Ústecký kraj
A25: 766 | B25: Děčín | C25: 50289 | D25: =Tabulka1[[#This Row],[Počet obyvatel]]/10516125 -> 0.004782084656 | E25: 2 | F25: statutární město | G25: Děčín | H25: Ústecký kraj
A26: 1993 | B26: Karlovy Vary | C26: 50172 | D26: =Tabulka1[[#This Row],[Počet obyvatel]]/10516125 -> 0.004770958885 | E26: 2 | F26: statutární město | G26: Karlovy Vary | H26: Karlovarský kraj
A27: 1642 | B27: Chomutov | C27: 49187 | D27: =Tabulka1[[#This Row],[Počet obyvatel]]/10516125 -> 0.004677293204 | E27: 2 | F27: statutární město | G27: Chomutov | H27: Ústecký kraj
A28: 1748 | B28: Jablonec nad Nisou | C28: 45305 | D28: =Tabulka1[[#This Row],[Počet obyvatel]]/10516125 -> 0.004308145824 | E28: 2 | F28: statutární město | G28: Jablonec nad Nisou | H28: Liberecký kraj
A29: 4082 | B29: Přerov | C29: 44824 | D29: =Tabulka1[[#This Row],[Počet obyvatel]]/10516125 -> 0.004262406542 | E29: 2 | F29: statutární město | G29: Přerov | H29: Olomoucký kraj
A30: 4033 | B30: Prostějov | C30: 44330 | D30: =Tabulka1[[#This Row],[Počet obyvatel]]/10516125 -> 0.004215431064 | E30: 2 | F30: statutární město | G30: Prostějov | H30: Olomoucký kraj
A31: 3092 | B31: Mladá Boleslav | C31: 44229 | D31: =Tabulka1[[#This Row],[Počet obyvatel]]/10516125 -> 0.004205826766 | E31: 2 | F31: statutární město | G31: Mladá Boleslav | H31: Středočeský kraj
A32: 5275 | B32: Třebíč | C32: 37324 | D32: =Tabulka1[[#This Row],[Počet obyvatel]]/10516125 -> 0.003549216085 | E32: 1 | F32: město | G32: Třebíč | H32: Kraj Vysočina
A33: 687 | B33: Česká Lípa | C33: 36957 | D33: =Tabulka1[[#This Row],[Počet obyvatel]]/10516125 -> 0.003514317298 | E33: 2 | F33: město | G33: Česká Lípa | H33: Liberecký kraj
A34: 5307 | B34: Třinec | C34: 36401 | D34: =Tabulka1[[#This Row],[Počet obyvatel]]/10516125 -> 0.003461446113 | E34: 1 | F34: město | G34: Frýdek-Místek | H34: Moravskoslezský kraj
A35: 5128 | B35: Tábor | C35: 35024 | D35: =Tabulka1[[#This Row],[Počet obyvatel]]/10516125 -> 0.003330504345 | E35: 1 | F35: město | G35: Tábor | H35: Jihočeský kraj
A36: 6112 | B36: Znojmo | C36: 33964 | D36: =Tabulka1[[#This Row],[Počet obyvatel]]/10516125 -> 0.00322970676 | E36: 2 | F36: město | G36: Znojmo | H36: Jihomoravský kraj
A37: 4100 | B37: Příbram | C37: 33553 | D37: =Tabulka1[[#This Row],[Počet obyvatel]]/10516125 -> 0.003190623923 | E37: 1 | F37: město | G37: Příbram | H37: Středočeský kraj
A38: 1588 | B38: Cheb | C38: 32823 | D38: =Tabulka1[[#This Row],[Počet obyvatel]]/10516125 -> 0.003121206718 | E38: 1 | F38: město | G38: Cheb | H38: Karlovarský kraj
A39: 2133 | B39: Kolín | C39: 31077 | D39: =Tabulka1[[#This Row],[Počet obyvatel]]/10516125 -> 0.00295517598 | E39: 1 | F39: město | G39: Kolín | H39: Středočeský kraj
A40: 5257 | B40: Trutnov | C40: 30860 | D40: =Tabulka1[[#This Row],[Počet obyvatel]]/10516125 -> 0.002934541003 | E40: 2 | F40: město | G40: Trutnov | H40: Královéhradecký kraj
A41: 3612 | B41: Orlová | C41: 30722 | D41: =Tabulka1[[#This Row],[Počet obyvatel]]/10516125 -> 0.002921418298 | E41: 1 | F41: město | G41: Karviná | H41: Moravskoslezský kraj
A42: 3820 | B42: Písek | C42: 29769 | D42: =Tabulka1[[#This Row],[Počet obyvatel]]/10516125 -> 0.002830795564 | E42: 1 | F42: město | G42: Písek | H42: Jihočeský kraj
A43: 2345 | B43: Kroměříž | C43: 28926 | D43: =Tabulka1[[#This Row],[Počet obyvatel]]/10516125 -> 0.002750632957 | E43: 1 | F43: město | G43: Kroměříž | H43: Zlínský kraj
A44: 5122 | B44: Šumperk | C44: 26870 | D44: =Tabulka1[[#This Row],[Počet obyvatel]]/10516125 -> 0.002555123679 | E44: 1 | F44: město | G44: Šumperk | H44: Olomoucký kraj
A45: 5873 | B45: Vsetín | C45: 26817 | D45: =Tabulka1[[#This Row],[Počet obyvatel]]/10516125 -> 0.0025500838 | E45: 1 | F45: město | G45: Vsetín | H45: Zlínský kraj
A46: 2747 | B46: Litvínov | C46: 25406 | D46: =Tabulka1[[#This Row],[Počet obyvatel]]/10516125 -> 0.002415908902 | E46: 1 | F46: město | G46: Most | H46: Ústecký kraj
A47: 5369 | B47: Uherské Hradiště | C47: 25343 | D47: =Tabulka1[[#This Row],[Počet obyvatel]]/10516125 -> 0.002409918102 | E47: 1 | F47: město | G47: Uherské Hradiště | H47: Zlínský kraj
A48: 706 | B48: Český Těšín | C48: 25106 | D48: =Tabulka1[[#This Row],[Počet obyvatel]]/10516125 -> 0.002387381284 | E48: 1 | F48: město | G48: Karviná | H48: Moravskoslezský kraj
A49: 1257 | B49: Hodonín | C49: 25094 | D49: =Tabulka1[[#This Row],[Počet obyvatel]]/10516125 -> 0.002386240179 | E49: 1 | F49: město | G49: Hodonín | H49: Jihomoravský kraj
A50: 396 | B50: Břeclav | C50: 24925 | D50: =Tabulka1[[#This Row],[Počet obyvatel]]/10516125 -> 0.00237016962 | E50: 1 | F50: město | G50: Břeclav | H50: Jihomoravský kraj
A51: 2342 | B51: Krnov | C51: 24518 | D51: =Tabulka1[[#This Row],[Počet obyvatel]]/10516125 -> 0.002331467152 | E51: 1 | F51: město | G51: Bruntál | H51: Moravskoslezský kraj
A52: 2740 | B52: Litoměřice | C52: 24316 | D52: =Tabulka1[[#This Row],[Počet obyvatel]]/10516125 -> 0.002312258555 | E52: 1 | F52: město | G52: Litoměřice | H52: Ústecký kraj
A53: 4699 | B53: Sokolov | C53: 23981 | D53: =Tabulka1[[#This Row],[Počet obyvatel]]/10516125 -> 0.002280402715 | E53: 1 | F53: město | G53: Sokolov | H53: Karlovarský kraj
A54: 3459 | B54: Nový Jičín | C54: 23731 | D54: =Tabulka1[[#This Row],[Počet obyvatel]]/10516125 -> 0.0022566297 | E54: 1 | F54: město | G54: Nový Jičín | H54: Moravskoslezský kraj
A55: 1166 | B55: Havlíčkův Brod | C55: 23483 | D55: =Tabulka1[[#This Row],[Počet obyvatel]]/10516125 -> 0.002233046868 | E55: 1 | F55: město | G55: Havlíčkův Brod | H55: Kraj Vysočina
A56: 1702 | B56: Chrudim | C56: 23182 | D56: =Tabulka1[[#This Row],[Počet obyvatel]]/10516125 -> 0.002204424158 | E56: 1 | F56: město | G56: Chrudim | H56: Pardubický kraj
A57: 4829 | B57: Strakonice | C57: 22961 | D57: =Tabulka1[[#This Row],[Počet obyvatel]]/10516125 -> 0.002183408813 | E57: 1 | F57: město | G57: Strakonice | H57: Jihočeský kraj
A58: 5480 | B58: Valašské Meziříčí | C58: 22926 | D58: =Tabulka1[[#This Row],[Počet obyvatel]]/10516125 -> 0.002180080591 | E58: 1 | F58: město | G58: Vsetín | H58: Zlínský kraj
A59: 2162 | B59: Kopřivnice | C59: 22649 | D59: =Tabulka1[[#This Row],[Počet obyvatel]]/10516125 -> 0.00215374009 | E59: 1 | F59: město | G59: Nový Jičín | H59: Moravskoslezský kraj
A60: 2049 | B60: Klatovy | C60: 22424 | D60: =Tabulka1[[#This Row],[Počet obyvatel]]/10516125 -> 0.002132344376 | E60: 1 | F60: město | G60: Klatovy | H60: Plzeňský kraj
A61: 6169 | B61: Žďár nad Sázavou | C61: 21845 | D61: =Tabulka1[[#This Row],[Počet obyvatel]]/10516125 -> 0.002077286073 | E61: 1 | F61: město | G61: Žďár nad Sázavou | H61: Kraj Vysočina
A62: 1892 | B62: Jindřichův Hradec | C62: 21824 | D62: =Tabulka1[[#This Row],[Počet obyvatel]]/10516125 -> 0.002075289139 | E62: 1 | F62: město | G62: Jindřichův Hradec | H62: Jihočeský kraj
A63: 223 | B63: Bohumín | C63: 21726 | D63: =Tabulka1[[#This Row],[Počet obyvatel]]/10516125 -> 0.002065970117 | E63: 1 | F63: město | G63: Karviná | H63: Moravskoslezský kraj
A64: 5947 | B64: Vyškov | C64: 21496 | D64: =Tabulka1[[#This Row],[Počet obyvatel]]/10516125 -> 0.002044098943 | E64: 1 | F64: město | G64: Vyškov | H64: Jihomoravský kraj
A65: 176 | B65: Blansko | C65: 20841 | D65: =Tabulka1[[#This Row],[Počet obyvatel]]/10516125 -> 0.001981813643 | E65: 1 | F65: město | G65: Blansko | H65: Jihomoravský kraj
A66: 2464 | B66: Kutná Hora | C66: 20470 | D66: =Tabulka1[[#This Row],[Počet obyvatel]]/10516125 -> 0.001946534489 | E66: 1 | F66: město | G66: Kutná Hora | H66: Středočeský kraj
A67: 3235 | B67: Náchod | C67: 20434 | D67: =Tabulka1[[#This Row],[Počet obyvatel]]/10516125 -> 0.001943111175 | E67: 1 | F67: město | G67: Náchod | H67: Královéhradecký kraj
A68: 1898 | B68: Jirkov | C68: 20230 | D68: =Tabulka1[[#This Row],[Počet obyvatel]]/10516125 -> 0.001923712394 | E68: 1 | F68: město | G68: Chomutov | H68: Ústecký kraj
A69: 2983 | B69: Mělník | C69: 19346 | D69: =Tabulka1[[#This Row],[Počet obyvatel]]/10516125 -> 0.001839651012 | E69: 1 | F69: město | G69: Mělník | H69: Středočeský kraj
A70: 6156 | B70: Žatec | C70: 19203 | D70: =Tabulka1[[#This Row],[Počet obyvatel]]/10516125 -> 0.001826052847 | E70: =CEILING((($Z$7*D70)*(RANDBETWEEN(10,15))),1) -> 1 | F70: město | G70: Louny | H70: Ústecký kraj
A71: 113 | B71: Beroun | C71: 18919 | D71: =Tabulka1[[#This Row],[Počet obyvatel]]/10516125 -> 0.001799046702 | E71: 1 | F71: město | G71: Beroun | H71: Středočeský kraj
A72: 1492 | B72: Hranice | C72: 18745 | D72: =Tabulka1[[#This Row],[Počet obyvatel]]/10516125 -> 0.001782500683 | E72: 1 | F72: město | G72: Přerov | H72: Olomoucký kraj
A73: 2801 | B73: Louny | C73: 18575 | D73: =Tabulka1[[#This Row],[Počet obyvatel]]/10516125 -> 0.001766335033 | E73: 1 | F73: město | G73: Louny | H73: Ústecký kraj
A74: 3694 | B74: Otrokovice | C74: 18327 | D74: =Tabulka1[[#This Row],[Počet obyvatel]]/10516125 -> 0.001742752202 | E74: 1 | F74: město | G74: Zlín | H74: Zlínský kraj
A75: 1931 | B75: Kadaň | C75: 18030 | D75: =Tabulka1[[#This Row],[Počet obyvatel]]/10516125 -> 0.00171450986 | E75: 1 | F75: město | G75: Chomutov | H75: Ústecký kraj
A76: 2292 | B76: Kralupy nad Vltavou | C76: 17855 | D76: =Tabulka1[[#This Row],[Počet obyvatel]]/10516125 -> 0.001697868749 | E76: 1 | F76: město | G76: Mělník | H76: Středočeský kraj
A77: 332 | B77: Brandýs nad Labem-Stará Boleslav | C77: 17503 | D77: =Tabulka1[[#This Row],[Počet obyvatel]]/10516125 -> 0.001664396344 | E77: 1 | F77: město | G77: Praha-východ | H77: Středočeský kraj
A78: 3655 | B78: Ostrov | C78: 17235 | D78: =Tabulka1[[#This Row],[Počet obyvatel]]/10516125 -> 0.001638911671 | E78: 1 | F78: město | G78: Karlovy Vary | H78: Karlovarský kraj
A79: 5007 | B79: Svitavy | C79: 17027 | D79: =Tabulka1[[#This Row],[Počet obyvatel]]/10516125 -> 0.001619132523 | E79: 1 | F79: město | G79: Svitavy | H79: Pardubický kraj
A80: 388 | B80: Bruntál | C80: 16925 | D80: =Tabulka1[[#This Row],[Počet obyvatel]]/10516125 -> 0.001609433132 | E80: 1 | F80: město | G80: Bruntál | H80: Moravskoslezský kraj
A81: 5371 | B81: Uherský Brod | C81: 16777 | D81: =Tabulka1[[#This Row],[Počet obyvatel]]/10516125 -> 0.001595359507 | E81: 1 | F81: město | G81: Uherské Hradiště | H81: Zlínský kraj
A82: 4365 | B82: Rožnov pod Radhoštěm | C82: 16750 | D82: =Tabulka1[[#This Row],[Počet obyvatel]]/10516125 -> 0.001592792022 | E82: 1 | F82: město | G82: Vsetín | H82: Zlínský kraj
A83: 99 | B83: Benešov | C83: 16541 | D83: =Tabulka1[[#This Row],[Počet obyvatel]]/10516125 -> 0.001572917781 | E83: 1 | F83: město | G83: Benešov | H83: Středočeský kraj
A84: 4243 | B84: Rakovník | C84: 16427 | D84: =Tabulka1[[#This Row],[Počet obyvatel]]/10516125 -> 0.001562077286 | E84: 1 | F84: město | G84: Rakovník | H84: Středočeský kraj
A85: 3322 | B85: Neratovice | C85: 16415 | D85: =Tabulka1[[#This Row],[Počet obyvatel]]/10516125 -> 0.001560936181 | E85: 1 | F85: město | G85: Mělník | H85: Středočeský kraj
A86: 1868 | B86: Jičín | C86: 16300 | D86: =Tabulka1[[#This Row],[Počet obyvatel]]/10516125 -> 0.001550000594 | E86: 1 | F86: město | G86: Jičín | H86: Královéhradecký kraj
A87: 3762 | B87: Pelhřimov | C87: 16269 | D87: =Tabulka1[[#This Row],[Počet obyvatel]]/10516125 -> 0.00154705274 | E87: 1 | F87: město | G87: Pelhřimov | H87: Kraj Vysočina
A88: 1087 | B88: Dvůr Králové nad Labem | C88: 16098 | D88: =Tabulka1[[#This Row],[Počet obyvatel]]/10516125 -> 0.001530791998 | E88: 1 | F88: město | G88: Trutnov | H88: Královéhradecký kraj
A89: 691 | B89: Česká Třebová | C89: 15892 | D89: =Tabulka1[[#This Row],[Počet obyvatel]]/10516125 -> 0.001511203033 | E89: 1 | F89: město | G89: Ústí nad Orlicí | H89: Pardubický kraj
A90: 147 | B90: Bílina | C90: 15852 | D90: =Tabulka1[[#This Row],[Počet obyvatel]]/10516125 -> 0.001507399351 | E90: 1 | F90: město | G90: Teplice | H90: Ústecký kraj
A91: 5502 | B91: Varnsdorf | C91: 15730 | D91: =Tabulka1[[#This Row],[Počet obyvatel]]/10516125 -> 0.00149579812 | E91: 1 | F91: město | G91: Děčín | H91: Ústecký kraj
A92: 4596 | B92: Slaný | C92: 15300 | D92: =Tabulka1[[#This Row],[Počet obyvatel]]/10516125 -> 0.001454908533 | E92: 1 | F92: město | G92: Kladno | H92: Středočeský kraj
A93: 2044 | B93: Klášterec nad Ohří | C93: 15027 | D93: =Tabulka1[[#This Row],[Počet obyvatel]]/10516125 -> 0.001428948401 | E93: 1 | F93: město | G93: Chomutov | H93: Ústecký kraj
A94: 3478 | B94: Nymburk | C94: 14871 | D94: =Tabulka1[[#This Row],[Počet obyvatel]]/10516125 -> 0.001414114039 | E94: 1 | F94: město | G94: Nymburk | H94: Středočeský kraj
A95: 5447 | B95: Ústí nad Orlicí | C95: 14472 | D95: =Tabulka1[[#This Row],[Počet obyvatel]]/10516125 -> 0.001376172307 | E95: 1 | F95: město | G95: Ústí nad Orlicí | H95: Pardubický kraj
A96: 5327 | B96: Turnov | C96: 14342 | D96: =Tabulka1[[#This Row],[Počet obyvatel]]/10516125 -> 0.001363810339 | E96: 1 | F96: město | G96: Semily | H96: Liberecký kraj
A97: 4440 | B97: Říčany | C97: 14116 | D97: =Tabulka1[[#This Row],[Počet obyvatel]]/10516125 -> 0.001342319533 | E97: 1 | F97: město | G97: Praha-východ | H97: Středočeský kraj
A98: 1630 | B98: Chodov | C98: 14110 | D98: =Tabulka1[[#This Row],[Počet obyvatel]]/10516125 -> 0.001341748981 | E98: 1 | F98: město | G98: Sokolov | H98: Karlovarský kraj
A99: 1232 | B99: Hlučín | C99: 14049 | D99: =Tabulka1[[#This Row],[Počet obyvatel]]/10516125 -> 0.001335948365 | E99: 1 | F99: město | G99: Opava | H99: Moravskoslezský kraj
A100: 4301 | B100: Rokycany | C100: 14013 | D100: =Tabulka1[[#This Row],[Počet obyvatel]]/10516125 -> 0.001332525051 | E100: 1 | F100: město | G100: Rokycany | H100: Plzeňský kraj
A101: 3880 | B101: Poděbrady | C101: 13986 | D101: =Tabulka1[[#This Row],[Počet obyvatel]]/10516125 -> 0.001329957565 | E101: 1 | F101: město | G101: Nymburk | H101: Středočeský kraj
A102: 5968 | B102: Zábřeh | C102: 13867 | D102: =Tabulka1[[#This Row],[Počet obyvatel]]/10516125 -> 0.00131864161 | E102: 1 | F102: město | G102: Šumperk | H102: Olomoucký kraj
A103: 5101 | B103: Šternberk | C103: 13548 | D103: =Tabulka1[[#This Row],[Počet obyvatel]]/10516125 -> 0.001288307242 | E103: 1 | F103: město | G103: Olomouc | H103: Olomoucký kraj
A104: 2360 | B104: Krupka | C104: 13390 | D104: =Tabulka1[[#This Row],[Počet obyvatel]]/10516125 -> 0.001273282697 | E104: 1 | F104: město | G104: Teplice | H104: Ústecký kraj
A105: 2935 | B105: Mariánské Lázně | C105: 13337 | D105: =Tabulka1[[#This Row],[Počet obyvatel]]/10516125 -> 0.001268242818 | E105: 1 | F105: město | G105: Cheb | H105: Karlovarský kraj
A106: 703 | B106: Český Krumlov | C106: 13290 | D106: =Tabulka1[[#This Row],[Počet obyvatel]]/10516125 -> 0.001263773491 | E106: 1 | F106: město | G106: Český Krumlov | H106: Jihočeský kraj
A107: 20 | B107: Aš | C107: 13076 | D107: =Tabulka1[[#This Row],[Počet obyvatel]]/10516125 -> 0.00124342379 | E107: 1 | F107: město | G107: Cheb | H107: Karlovarský kraj
A108: 4329 | B108: Roudnice nad Labem | C108: 13005 | D108: =Tabulka1[[#This Row],[Počet obyvatel]]/10516125 -> 0.001236672253 | E108: 1 | F108: město | G108: Litoměřice | H108: Ústecký kraj
A109: 1789 | B109: Jaroměř | C109: 12678 | D109: =Tabulka1[[#This Row],[Počet obyvatel]]/10516125 -> 0.001205577149 | E109: 1 | F109: město | G109: Náchod | H109: Královéhradecký kraj
A110: 5853 | B110: Vrchlabí | C110: 12676 | D110: =Tabulka1[[#This Row],[Počet obyvatel]]/10516125 -> 0.001205386965 | E110: 1 | F110: město | G110: Trutnov | H110: Královéhradecký kraj
A111: 5131 | B111: Tachov | C111: 12595 | D111: =Tabulka1[[#This Row],[Počet obyvatel]]/10516125 -> 0.001197684508 | E111: 1 | F111: město | G111: Tachov | H111: Plzeňský kraj
A112: 5931 | B112: Vysoké Mýto | C112: 12429 | D112: =Tabulka1[[#This Row],[Počet obyvatel]]/10516125 -> 0.001181899226 | E112: 1 | F112: město | G112: Ústí nad Orlicí | H112: Pardubický kraj
A113: 3452 | B113: Nový Bor | C113: 12004 | D113: =Tabulka1[[#This Row],[Počet obyvatel]]/10516125 -> 0.0011414851 | E113: 1 | F113: město | G113: Česká Lípa | H113: Liberecký kraj
A114: 1270 | B114: Holešov | C114: 11772 | D114: =Tabulka1[[#This Row],[Počet obyvatel]]/10516125 -> 0.001119423742 | E114: 1 | F114: město | G114: Kroměříž | H114: Zlínský kraj
A115: 5736 | B115: Vlašim | C115: 11769 | D115: =Tabulka1[[#This Row],[Počet obyvatel]]/10516125 -> 0.001119138466 | E115: 1 | F115: město | G115: Benešov | H115: Středočeský kraj
A116: 5576 | B116: Velké Meziříčí | C116: 11749 | D116: =Tabulka1[[#This Row],[Počet obyvatel]]/10516125 -> 0.001117236625 | E116: 1 | F116: město | G116: Žďár nad Sázavou | H116: Kraj Vysočina
A117: 1839 | B117: Jeseník | C117: 11711 | D117: =Tabulka1[[#This Row],[Počet obyvatel]]/10516125 -> 0.001113623126 | E117: 1 | F117: město | G117: Jeseník | H117: Olomoucký kraj
A118: 5429 | B118: Uničov | C118: 11638 | D118: =Tabulka1[[#This Row],[Počet obyvatel]]/10516125 -> 0.001106681406 | E118: 1 | F118: město | G118: Olomouc | H118: Olomoucký kraj
A119: 612 | B119: Čelákovice | C119: 11618 | D119: =Tabulka1[[#This Row],[Počet obyvatel]]/10516125 -> 0.001104779565 | E119: 1 | F119: město | G119: Praha-východ | H119: Středočeský kraj
A120: 2481 | B120: Kyjov | C120: 11483 | D120: =Tabulka1[[#This Row],[Počet obyvatel]]/10516125 -> 0.001091942136 | E120: 1 | F120: město | G120: Hodonín | H120: Jihomoravský kraj
A121: 5632 | B121: Veselí nad Moravou | C121: 11471 | D121: =Tabulka1[[#This Row],[Počet obyvatel]]/10516125 -> 0.001090801032 | E121: 1 | F121: město | G121: Hodonín | H121: Jihomoravský kraj
A122: 308 | B122: Boskovice | C122: 11446 | D122: =Tabulka1[[#This Row],[Počet obyvatel]]/10516125 -> 0.00108842373 | E122: 1 | F122: město | G122: Blansko | H122: Jihomoravský kraj
A123: 4962 | B123: Sušice | C123: 11270 | D123: =Tabulka1[[#This Row],[Počet obyvatel]]/10516125 -> 0.001071687527 | E123: 1 | F123: město | G123: Klatovy | H123: Plzeňský kraj
A124: 4406 | B124: Rychnov nad Kněžnou | C124: 11247 | D124: =Tabulka1[[#This Row],[Počet obyvatel]]/10516125 -> 0.00106950041 | E124: 1 | F124: město | G124: Rychnov nad Kněžnou | H124: Královéhradecký kraj
A125: 4001 | B125: Prachatice | C125: 11219 | D125: =Tabulka1[[#This Row],[Počet obyvatel]]/10516125 -> 0.001066837832 | E125: 1 | F125: město | G125: Prachatice | H125: Jihočeský kraj
A126: 4385 | B126: Rumburk | C126: 11147 | D126: =Tabulka1[[#This Row],[Počet obyvatel]]/10516125 -> 0.001059991204 | E126: 1 | F126: město | G126: Děčín | H126: Ústecký kraj
A127: 971 | B127: Domažlice | C127: 11104 | D127: =Tabulka1[[#This Row],[Počet obyvatel]]/10516125 -> 0.001055902245 | E127: 1 | F127: město | G127: Domažlice | H127: Plzeňský kraj
A128: 1107 | B128: Frenštát pod Radhoštěm | C128: 10958 | D128: =Tabulka1[[#This Row],[Počet obyvatel]]/10516125 -> 0.001042018804 | E128: 1 | F128: město | G128: Nový Jičín | H128: Moravskoslezský kraj
A129: 1547 | B129: Humpolec | C129: 10917 | D129: =Tabulka1[[#This Row],[Počet obyvatel]]/10516125 -> 0.00103812003 | E129: 1 | F129: město | G129: Pelhřimov | H129: Kraj Vysočina
A130: 2460 | B130: Kuřim | C130: 10814 | D130: =Tabulka1[[#This Row],[Počet obyvatel]]/10516125 -> 0.001028325548 | E130: 1 | F130: město | G130: Brno-venkov | H130: Jihomoravský kraj
A131: 3165 | B131: Moravská Třebová | C131: 10491 | D131: =Tabulka1[[#This Row],[Počet obyvatel]]/10516125 -> 0.000997610812 | E131: 1 | F131: město | G131: Svitavy | H131: Pardubický kraj
A132: 3435 | B132: Nové Město na Moravě | C132: 10200 | D132: =Tabulka1[[#This Row],[Počet obyvatel]]/10516125 -> 0.0009699390222 | E132: 1 | F132: město | G132: Žďár nad Sázavou | H132: Kraj Vysočina
A133: 2741 | B133: Litomyšl | C133: 10178 | D133: =Tabulka1[[#This Row],[Počet obyvatel]]/10516125 -> 0.0009678469969 | E133: 1 | F133: město | G133: Svitavy | H133: Pardubický kraj
A134: 583 | B134: Čáslav | C134: 10138 | D134: =Tabulka1[[#This Row],[Počet obyvatel]]/10516125 -> 0.0009640433144 | E134: =CEILING((($Z$7*D134)*(RANDBETWEEN(10,15))),1) -> 1 | F134: město | G134: Kutná Hora | H134: Středočeský kraj
A135: 2504 | B135: Lanškroun | C135: 10124 | D135: =Tabulka1[[#This Row],[Počet obyvatel]]/10516125 -> 0.0009627120256 | E135: 1 | F135: město | G135: Ústí nad Orlicí | H135: Pardubický kraj
A136: 3063 | B136: Milovice | C136: 10042 | D136: =Tabulka1[[#This Row],[Počet obyvatel]]/10516125 -> 0.0009549144766 | E136: 1 | F136: město | G136: Nymburk | H136: Středočeský kraj
A137: 1216 | B137: Hlinsko | C137: 9972 | D137: =Tabulka1[[#This Row],[Počet obyvatel]]/10516125 -> 0.0009482580323 | E137: 1 | F137: město | G137: Chrudim | H137: Pardubický kraj
A138: 4915 | B138: Studénka | C138: 9928 | D138: =Tabulka1[[#This Row],[Počet obyvatel]]/10516125 -> 0.0009440739816 | E138: 1 | F138: město | G138: Nový Jičín | H138: Moravskoslezský kraj
A139: 2745 | B139: Litovel | C139: 9874 | D139: =Tabulka1[[#This Row],[Počet obyvatel]]/10516125 -> 0.0009389390103 | E139: 1 | F139: město | G139: Olomouc | H139: Olomoucký kraj
A140: 1111 | B140: Frýdlant nad Ostravicí | C140: 9808 | D140: =Tabulka1[[#This Row],[Počet obyvatel]]/10516125 -> 0.0009326629343 | E140: 1 | F140: město | G140: Frýdek-Místek | H140: Moravskoslezský kraj
A141: 3436 | B141: Nové Město nad Metují | C141: 9749 | D141: =Tabulka1[[#This Row],[Počet obyvatel]]/10516125 -> 0.0009270525027 | E141: 1 | F141: město | G141: Náchod | H141: Královéhradecký kraj
A142: 1743 | B142: Ivančice | C142: 9604 | D142: =Tabulka1[[#This Row],[Počet obyvatel]]/10516125 -> 0.0009132641539 | E142: 1 | F142: město | G142: Brno-venkov | H142: Jihomoravský kraj
A143: 1649 | B143: Chotěboř | C143: 9506 | D143: =Tabulka1[[#This Row],[Počet obyvatel]]/10516125 -> 0.0009039451319 | E143: 1 | F143: město | G143: Havlíčkův Brod | H143: Kraj Vysočina
A144: 3135 | B144: Mohelnice | C144: 9460 | D144: =Tabulka1[[#This Row],[Počet obyvatel]]/10516125 -> 0.0008995708971 | E144: 1 | F144: město | G144: Šumperk | H144: Olomoucký kraj
A145: 3387 | B145: Nová Paka | C145: 9292 | D145: =Tabulka1[[#This Row],[Počet obyvatel]]/10516125 -> 0.0008835954308 | E145: 1 | F145: město | G145: Jičín | H145: Královéhradecký kraj
A146: 4075 | B146: Přelouč | C146: 9057 | D146: =Tabulka1[[#This Row],[Počet obyvatel]]/10516125 -> 0.0008612487965 | E146: 1 | F146: město | G146: Pardubice | H146: Pardubický kraj
A147: 2872 | B147: Lysá nad Labem | C147: 8988 | D147: =Tabulka1[[#This Row],[Počet obyvatel]]/10516125 -> 0.0008546874443 | E147: 1 | F147: město | G147: Nymburk | H147: Středočeský kraj
A148: 3945 | B148: Polička | C148: 8903 | D148: =Tabulka1[[#This Row],[Počet obyvatel]]/10516125 -> 0.0008466046191 | E148: 1 | F148: město | G148: Svitavy | H148: Pardubický kraj
A149: 5102 | B149: Štětí | C149: 8887 | D149: =Tabulka1[[#This Row],[Počet obyvatel]]/10516125 -> 0.0008450831461 | E149: 1 | F149: město | G149: Litoměřice | H149: Ústecký kraj
A150: 5198 | B150: Tišnov | C150: 8849 | D150: =Tabulka1[[#This Row],[Počet obyvatel]]/10516125 -> 0.0008414696478 | E150: 1 | F150: město | G150: Brno-venkov | H150: Jihomoravský kraj
A151: 1623 | B151: Choceň | C151: 8840 | D151: =Tabulka1[[#This Row],[Počet obyvatel]]/10516125 -> 0.0008406138193 | E151: 1 | F151: město | G151: Ústí nad Orlicí | H151: Pardubický kraj
A152: 863 | B152: Dobříš | C152: 8755 | D152: =Tabulka1[[#This Row],[Počet obyvatel]]/10516125 -> 0.0008325309941 | E152: 1 | F152: město | G152: Příbram | H152: Středočeský kraj
A153: 2808 | B153: Lovosice | C153: 8742 | D153: =Tabulka1[[#This Row],[Počet obyvatel]]/10516125 -> 0.0008312947973 | E153: 1 | F153: město | G153: Litoměřice | H153: Ústecký kraj
A154: 1409 | B154: Hořice | C154: 8733 | D154: =Tabulka1[[#This Row],[Počet obyvatel]]/10516125 -> 0.0008304389687 | E154: 1 | F154: město | G154: Jičín | H154: Královéhradecký kraj
A155: 3046 | B155: Milevsko | C155: 8724 | D155: =Tabulka1[[#This Row],[Počet obyvatel]]/10516125 -> 0.0008295831402 | E155: 1 | F155: město | G155: Písek | H155: Jihočeský kraj
A156: 1074 | B156: Duchcov | C156: 8646 | D156: =Tabulka1[[#This Row],[Počet obyvatel]]/10516125 -> 0.0008221659594 | E156: 1 | F156: město | G156: Teplice | H156: Ústecký kraj
A157: 4515 | B157: Semily | C157: 8630 | D157: =Tabulka1[[#This Row],[Počet obyvatel]]/10516125 -> 0.0008206444864 | E157: 1 | F157: město | G157: Semily | H157: Liberecký kraj
A158: 5284 | B158: Třeboň | C158: 8588 | D158: =Tabulka1[[#This Row],[Počet obyvatel]]/10516125 -> 0.0008166506199 | E158: 1 | F158: město | G158: Jindřichův Hradec | H158: Jihočeský kraj
A159: 4411 | B159: Rýmařov | C159: 8560 | D159: =Tabulka1[[#This Row],[Počet obyvatel]]/10516125 -> 0.0008139880422 | E159: 1 | F159: město | G159: Bruntál | H159: Moravskoslezský kraj
A160: 4099 | B160: Příbor | C160: 8541 | D160: =Tabulka1[[#This Row],[Počet obyvatel]]/10516125 -> 0.000812181293 | E160: 1 | F160: město | G160: Nový Jičín | H160: Moravskoslezský kraj
A161: 678 | B161: Červený Kostelec | C161: 8510 | D161: =Tabulka1[[#This Row],[Počet obyvatel]]/10516125 -> 0.0008092334391 | E161: 1 | F161: město | G161: Náchod | H161: Královéhradecký kraj
A162: 525 | B162: Bystřice nad Pernštejnem | C162: 8485 | D162: =Tabulka1[[#This Row],[Počet obyvatel]]/10516125 -> 0.0008068561376 | E162: 1 | F162: město | G162: Žďár nad Sázavou | H162: Kraj Vysočina
A163: 526 | B163: Bystřice pod Hostýnem | C163: 8398 | D163: =Tabulka1[[#This Row],[Počet obyvatel]]/10516125 -> 0.0007985831283 | E163: 1 | F163: město | G163: Kroměříž | H163: Zlínský kraj
A164: 3120 | B164: Mnichovo Hradiště | C164: 8384 | D164: =Tabulka1[[#This Row],[Počet obyvatel]]/10516125 -> 0.0007972518394 | E164: 1 | F164: město | G164: Mladá Boleslav | H164: Středočeský kraj
A165: 2693 | B165: Lipník nad Bečvou | C165: 8240 | D165: =Tabulka1[[#This Row],[Počet obyvatel]]/10516125 -> 0.0007835585827 | E165: 1 | F165: město | G165: Přerov | H165: Olomoucký kraj
A166: 3277 | B166: Nejdek | C166: 8221 | D166: =Tabulka1[[#This Row],[Počet obyvatel]]/10516125 -> 0.0007817518335 | E166: 1 | F166: město | G166: Karlovy Vary | H166: Karlovarský kraj
A167: 5348 | B167: Týn nad Vltavou | C167: 8158 | D167: =Tabulka1[[#This Row],[Počet obyvatel]]/10516125 -> 0.0007757610337 | E167: 1 | F167: město | G167: České Budějovice | H167: Jihočeský kraj
A168: 1064 | B168: Dubí | C168: 8098 | D168: =Tabulka1[[#This Row],[Počet obyvatel]]/10516125 -> 0.00077005551 | E168: 1 | F168: město | G168: Teplice | H168: Ústecký kraj
A169: 4354 | B169: Roztoky | C169: 7918 | D169: =Tabulka1[[#This Row],[Počet obyvatel]]/10516125 -> 0.000752938939 | E169: 1 | F169: město | G169: Praha-západ | H169: Středočeský kraj
A170: 4892 | B170: Stříbro | C170: 7830 | D170: =Tabulka1[[#This Row],[Počet obyvatel]]/10516125 -> 0.0007445708376 | E170: 1 | F170: město | G170: Tachov | H170: Plzeňský kraj
A171: 378 | B171: Broumov | C171: 7793 | D171: =Tabulka1[[#This Row],[Počet obyvatel]]/10516125 -> 0.0007410524314 | E171: 1 | F171: město | G171: Náchod | H171: Královéhradecký kraj
A172: 1432 | B172: Hostivice | C172: 7647 | D172: =Tabulka1[[#This Row],[Počet obyvatel]]/10516125 -> 0.0007271689905 | E172: 1 | F172: město | G172: Praha-západ | H172: Středočeský kraj
A173: 5688 | B173: Vimperk | C173: 7644 | D173: =Tabulka1[[#This Row],[Počet obyvatel]]/10516125 -> 0.0007268837143 | E173: 1 | F173: město | G173: Prachatice | H173: Jihočeský kraj
A174: 747 | B174: Dačice | C174: 7642 | D174: =Tabulka1[[#This Row],[Počet obyvatel]]/10516125 -> 0.0007266935302 | E174: 1 | F174: město | G174: Jindřichův Hradec | H174: Jihočeský kraj
A175: 1477 | B175: Hrádek nad Nisou | C175: 7642 | D175: =Tabulka1[[#This Row],[Počet obyvatel]]/10516125 -> 0.0007266935302 | E175: 1 | F175: město | G175: Liberec | H175: Liberecký kraj
A176: 3167 | B176: Moravské Budějovice | C176: 7580 | D176: =Tabulka1[[#This Row],[Počet obyvatel]]/10516125 -> 0.0007207978224 | E176: 1 | F176: město | G176: Třebíč | H176: Kraj Vysočina
A177: 1110 | B177: Frýdlant | C177: 7565 | D177: =Tabulka1[[#This Row],[Počet obyvatel]]/10516125 -> 0.0007193714415 | E177: 1 | F177: město | G177: Liberec | H177: Liberecký kraj
A178: 151 | B178: Bílovec | C178: 7551 | D178: =Tabulka1[[#This Row],[Počet obyvatel]]/10516125 -> 0.0007180401526 | E178: 1 | F178: město | G178: Nový Jičín | H178: Moravskoslezský kraj
A179: 1836 | B179: Jesenice | C179: 7516 | D179: =Tabulka1[[#This Row],[Počet obyvatel]]/10516125 -> 0.0007147119305 | E179: 1 | F179: obec | G179: Praha-západ | H179: Středočeský kraj
A180: 4484 | B180: Sedlčany | C180: 7452 | D180: =Tabulka1[[#This Row],[Počet obyvatel]]/10516125 -> 0.0007086260386 | E180: 1 | F180: město | G180: Příbram | H180: Středočeský kraj
A181: 3029 | B181: Mikulov | C181: 7410 | D181: =Tabulka1[[#This Row],[Počet obyvatel]]/10516125 -> 0.000704632172 | E181: 1 | F181: město | G181: Břeclav | H181: Jihomoravský kraj
A182: 97 | B182: Benátky nad Jizerou | C182: 7395 | D182: =Tabulka1[[#This Row],[Počet obyvatel]]/10516125 -> 0.0007032057911 | E182: 1 | F182: město | G182: Mladá Boleslav | H182: Středočeský kraj
A183: 3506 | B183: Odry | C183: 7358 | D183: =Tabulka1[[#This Row],[Počet obyvatel]]/10516125 -> 0.0006996873848 | E183: 1 | F183: město | G183: Nový Jičín | H183: Moravskoslezský kraj
A184: 3243 | B184: Napajedla | C184: 7343 | D184: =Tabulka1[[#This Row],[Počet obyvatel]]/10516125 -> 0.0006982610039 | E184: 1 | F184: město | G184: Zlín | H184: Zlínský kraj
A185: 4535 | B185: Sezimovo Ústí | C185: 7299 | D185: =Tabulka1[[#This Row],[Počet obyvatel]]/10516125 -> 0.0006940769533 | E185: 1 | F185: město | G185: Tábor | H185: Jihočeský kraj
A186: 2293 | B186: Králův Dvůr | C186: 7266 | D186: =Tabulka1[[#This Row],[Počet obyvatel]]/10516125 -> 0.0006909389152 | E186: 1 | F186: město | G186: Beroun | H186: Středočeský kraj
A187: 1980 | B187: Kaplice | C187: 7219 | D187: =Tabulka1[[#This Row],[Počet obyvatel]]/10516125 -> 0.0006864695884 | E187: 1 | F187: město | G187: Český Krumlov | H187: Jihočeský kraj
A188: 4409 | B188: Rychvald | C188: 7216 | D188: =Tabulka1[[#This Row],[Počet obyvatel]]/10516125 -> 0.0006861843122 | E188: 1 | F188: město | G188: Karviná | H188: Moravskoslezský kraj
A189: 4094 | B189: Přeštice | C189: 7214 | D189: =Tabulka1[[#This Row],[Počet obyvatel]]/10516125 -> 0.0006859941281 | E189: 1 | F189: město | G189: Plzeň-jih | H189: Plzeňský kraj
A190: 4682 | B190: Soběslav | C190: 7201 | D190: =Tabulka1[[#This Row],[Počet obyvatel]]/10516125 -> 0.0006847579313 | E190: 1 | F190: město | G190: Tábor | H190: Jihočeský kraj
A191: 3481 | B191: Nýřany | C191: 7126 | D191: =Tabulka1[[#This Row],[Počet obyvatel]]/10516125 -> 0.0006776260267 | E191: 1 | F191: město | G191: Plzeň-sever | H191: Plzeňský kraj
A192: 1545 | B192: Hulín | C192: 7121 | D192: =Tabulka1[[#This Row],[Počet obyvatel]]/10516125 -> 0.0006771505664 | E192: 1 | F192: město | G192: Kroměříž | H192: Zlínský kraj
A193: 3453 | B193: Nový Bydžov | C193: 7098 | D193: =Tabulka1[[#This Row],[Počet obyvatel]]/10516125 -> 0.000674963449 | E193: 1 | F193: město | G193: Hradec Králové | H193: Královéhradecký kraj
A194: 3807 | B194: Petřvald | C194: 7094 | D194: =Tabulka1[[#This Row],[Počet obyvatel]]/10516125 -> 0.0006745830807 | E194: 1 | F194: město | G194: Karviná | H194: Moravskoslezský kraj
A195: 5076 | B195: Šlapanice | C195: 7076 | D195: =Tabulka1[[#This Row],[Počet obyvatel]]/10516125 -> 0.0006728714236 | E195: 1 | F195: město | G195: Brno-venkov | H195: Jihomoravský kraj
A196: 850 | B196: Dobruška | C196: 6989 | D196: =Tabulka1[[#This Row],[Počet obyvatel]]/10516125 -> 0.0006645984143 | E196: 1 | F196: město | G196: Rychnov nad Kněžnou | H196: Královéhradecký kraj
A197: 5822 | B197: Vratimov | C197: 6966 | D197: =Tabulka1[[#This Row],[Počet obyvatel]]/10516125 -> 0.0006624112969 | E197: 1 | F197: město | G197: Ostrava | H197: Moravskoslezský kraj
A198: 5768 | B198: Vodňany | C198: 6942 | D198: =Tabulka1[[#This Row],[Počet obyvatel]]/10516125 -> 0.0006601290875 | E198: =CEILING((($Z$7*D198)*(RANDBETWEEN(10,15))),1) -> 1 | F198: město | G198: Strakonice | H198: Jihočeský kraj
A199: 2301 | B199: Kraslice | C199: 6932 | D199: =Tabulka1[[#This Row],[Počet obyvatel]]/10516125 -> 0.0006591781669 | E199: 1 | F199: město | G199: Sokolov | H199: Karlovarský kraj
A200: 700 | B200: Český Brod | C200: 6839 | D200: =Tabulka1[[#This Row],[Počet obyvatel]]/10516125 -> 0.0006503346052 | E200: 1 | F200: město | G200: Kolín | H200: Středočeský kraj
A201: 1414 | B201: Hořovice | C201: 6835 | D201: =Tabulka1[[#This Row],[Počet obyvatel]]/10516125 -> 0.0006499542369 | E201: 1 | F201: město | G201: Beroun | H201: Středočeský kraj
... 6057 more rows

Sheet Kontigneční tabulka_prodejů
C3: Celkový objem upisované emise | D3: Počet úpisů investorů
B4: 2012 | C4: 40000000 | D4: 200
B5: 10 | C5: 40000000 | D5: 200
B6: 2014 | C6: 15000000 | D6: 75
B7: 10 | C7: 15000000 | D7: 75
B8: 2015 | C8: 5000000 | D8: 34.48275862
B9: 11 | C9: 5000000 | D9: 34.48275862
B10: 2016 | C10: 141000000 | D10: 735.6289633
B11: 1 | C11: 25000000 | D11: 185.1851852
B12: 4 | C12: 10000000 | D12: 40
B13: 5 | C13: 20000000 | D13: 80
B14: 6 | C14: 4000000 | D14: 20
B15: 8 | C15: 52000000 | D15: 256.4782609
B16: 11 | C16: 15000000 | D16: 65
B17: 12 | C17: 15000000 | D17: 88.96551724
B18: 2017 | C18: 805000000 | D18: 6207.327324
B19: 1 | C19: 35000000 | D19: 272.1417069
B20: 2 | C20: 51000000 | D20: 351.0869565
B21: 4 | C21: 312000000 | D21: 2240.472148
B22: 5 | C22: 74000000 | D22: 520.2570143
B23: 6 | C23: 52000000 | D23: 517.1428571
B24: 7 | C24: 62000000 | D24: 650.7504873
B25: 8 | C25: 36000000 | D25: 232.2580645
B26: 9 | C26: 75000000 | D26: 583.5978836
B27: 10 | C27: 41000000 | D27: 328.5714286
B28: 11 | C28: 67000000 | D28: 511.0487767
B29: 2018 | C29: 721500000 | D29: 6463.533896
B30: 1 | C30: 47000000 | D30: 388.8980906
B31: 2 | C31: 73000000 | D31: 519.0165819
B32: 3 | C32: 66000000 | D32: 553.1037537
B33: 4 | C33: 11000000 | D33: 105
B34: 5 | C34: 20000000 | D34: 103.1724138
B35: 6 | C35: 45000000 | D35: 278.5714286
B36: 7 | C36: 26000000 | D36: 236.4661654
B37: 8 | C37: 23000000 | D37: 181.7639752
B38: 9 | C38: 24500000 | D38: 181.4814815
B39: 10 | C39: 309000000 | D39: 3277.894737
B40: 11 | C40: 39000000 | D40: 328.9093702
B41: 12 | C41: 38000000 | D41: 309.2558984
B42: 2019 | C42: 324150000 | D42: 2849.254233
B43: 2 | C43: 39000000 | D43: 380
B44: 3 | C44: 15000000 | D44: 103.4482759
B45: 4 | C45: 29300000 | D45: 162.3913043
B46: 5 | C46: 25000000 | D46: 263.1578947
B47: 6 | C47: 8400000 | D47: 57.93103448
B48: 7 | C48: 10000000 | D48: 133.3333333
B49: 8 | C49: 9000000 | D49: 36
B50: 9 | C50: 38500000 | D50: 450.7246377
B51: 10 | C51: 33750000 | D51: 270.6349206
B52: 11 | C52: 60700000 | D52: 520.2042607
B53: 12 | C53: 55500000 | D53: 471.4285714
B54: 2020 | C54: 239100000 | D54: 1138.292282
B55: 1 | C55: 219100000 | D55: 947.816092
B56: 2 | C56: 20000000 | D56: 190.4761905
B57: (prázdné)
B58: Celkový součet | C58: 2290750000 | D58: 17703.51946

Sheet Počet odeslaných zásilek
C3: Volba varianty prognózování roku 2020 | J3: Pesimistická
J4: Realistická
J5: Optimistická
C6: Realistická | J6: Koronavirus
C7: =IF(J3=C6,"0,8",IF(J4=C6,"1",IF(J5=C6,"1,2",IF(J6=C6,"DINAMICKÉ","")))) -> 1
C9: Od | D9: 2012-02-01
C10: Do | D10: 2020-12-01
E14: TRUE
E15: TRUE
E16: TRUE
E17: TRUE
E18: TRUE
E19: TRUE
E20: TRUE
E21: TRUE
E22: TRUE
E23: TRUE
E24: TRUE
AC26: Kraj | AD26: 1 | AE26: 2 | AF26: 3 | AG26: 4 | AH26: 5 | AI26: 6 | AJ26: 7 | AK26: 8 | AL26: 9 | AM26: 10 | AN26: 11 | AO26: 12 | AP26: 2012 | AQ26: 1 | AR26: 2 | AS26: 3 | AT26: 4 | AU26: 5 | AV26: 6 | AW26: 7 | AX26: 8 | AY26: 9 | AZ26: 10 | BA26: 11 | BB26: 12 | BC26: 2014 | BD26: 1 | BE26: 2 | BF26: 3 | BG26: 4 | BH26: 5 | BI26: 6 | BJ26: 7 | BK26: 8 | BL26: 9 | BM26: 10 | BN26: 11 | BO26: 12 | BP26: 2015 | BQ26: 1 | BR26: 2 | BS26: 3 | BT26: 4 | BU26: 5 | BV26: 6 | BW26: 7 | BX26: 8 | BY26: 9 | BZ26: 10 | CA26: 11 | CB26: 12 | CC26: 2016 | CD26: 1 | CE26: 2 | CF26: 3 | CG26: 4 | CH26: 5 | CI26: 6 | CJ26: 7 | CK26: 8 | CL26: 9 | CM26: 10 | CN26: 11 | CO26: 12 | CP26: 2017 | CQ26: 1 | CR26: 2 | CS26: 3 | CT26: 4 | CU26: 5 | CV26: 6 | CW26: 7 | CX26: 8 | CY26: 9 | CZ26: 10 | DA26: 11 | DB26: 12 | DC26: 2018 | DD26: 1 | DE26: 2 | DF26: 3 | DG26: 4 | DH26: 5 | DI26: 6 | DJ26: 7 | DK26: 8 | DL26: 9 | DM26: 10 | DN26: 11 | DO26: 12 | DP26: 2019 | DQ26: 1 | DR26: 2 | DS26: 3 | DT26: 4 | DU26: 5 | DV26: 6 | DW26: 7 | DX26: 8 | DY26: 9 | DZ26: 10 | EA26: 11 | EB26: 12 | EC26: 2020 | ED26: 2012-01-01 | EE26: 2014-01-01 | EF26: 2015-01-01 | EG26: 2016-01-01 | EH26: 2017-01-01 | EI26: 2018-01-01 | EJ26: 2019-01-01 | EK26: 2020-01-01 | EL26: 1 | EM26: 2 | EN26: 3 | EO26: 4 | EP26: 5 | EQ26: 6 | ER26: 7 | ES26: 8 | ET26: 9 | EU26: 10 | EV26: 11 | EW26: 12 | EX26: 2021 | EY26: 2012-01-01 | EZ26: 2014-01-01 | FA26: 2015-01-01 | FB26: 2016-01-01 | FC26: 2017-01-01 | FD26: 2018-01-01 | FE26: 2019-01-01 | FF26: 2020-01-01 | FG26: 2021-01-01 | FH26: 1 | FI26: 2 | FJ26: 3 | FK26: 4 | FL26: 5 | FM26: 6 | FN26: 7 | FO26: 8 | FP26: 9 | FQ26: 10 | FR26: 11 | FS26: 12 | FT26: 2022 | FU26: =EY26 -> 2012-01-01 | FV26: =EZ26 -> 2014-01-01 | FW26: 2015-01-01 | FX26: 2016-01-01 | FY26: 2017-01-01 | FZ26: 2018-01-01 | GA26: 2019-01-01 | GB26: 2020-01-01 | GC26: 2021-01-01 | GD26: 2022-01-01
C27: Predikce Koronavirus | AC27: Celá ČR | AD27: =SUM(AD28:AD40) -> 0 | AE27: =SUM(AE28:AE40) -> 0 | AF27: 0 | AG27: 0 | AH27: 0 | AI27: 0 | AJ27: 0 | AK27: 35 | AL27: 61 | AM27: 55 | AN27: 20 | AO27: 13 | AP27: =SUM(AD27:AO27) -> 184 | AQ27: =SUM(AQ28:AQ40) -> 0 | AR27: =SUM(AR28:AR40) -> 0 | AS27: =SUM(AS28:AS40) -> 0 | AT27: =SUM(AT28:AT40) -> 0 | AU27: =SUM(AU28:AU40) -> 0 | AV27: =SUM(AV28:AV40) -> 0 | AW27: =SUM(AW28:AW40) -> 0 | AX27: =SUM(AX28:AX40) -> 0 | AY27: =SUM(AY28:AY40) -> 17 | AZ27: =SUM(AZ28:AZ40) -> 34 | BA27: =SUM(BA28:BA40) -> 26 | BB27: =SUM(BB28:BB40) -> 0 | BC27: =SUM(AQ27:BB27) -> 77 | BD27: =SUM(BD28:BD40) -> 0 | BE27: =SUM(BE28:BE40) -> 0 | BF27: =SUM(BF28:BF40) -> 0 | BG27: =SUM(BG28:BG40) -> 0 | BH27: =SUM(BH28:BH40) -> 0 | BI27: =SUM(BI28:BI40) -> 0 | BJ27: =SUM(BJ28:BJ40) -> 0 | BK27: =SUM(BK28:BK40) -> 0 | BL27: =SUM(BL28:BL40) -> 17 | BM27: =SUM(BM28:BM40) -> 32 | BN27: =SUM(BN28:BN40) -> 26 | BO27: =SUM(BO28:BO40) -> 0 | BP27: =SUM(BD27:BO27) -> 75 | BQ27: =SUM(BQ28:BQ40) -> 43 | BR27: =SUM(BR28:BR40) -> 38 | BS27: =SUM(BS28:BS40) -> 43 | BT27: =SUM(BT28:BT40) -> 26 | BU27: =SUM(BU28:BU40) -> 28 | BV27: =SUM(BV28:BV40) -> 28 | BW27: =SUM(BW28:BW40) -> 73 | BX27: =SUM(BX28:BX40) -> 55 | BY27: =SUM(BY28:BY40) -> 53 | BZ27: =SUM(BZ28:BZ40) -> 62 | CA27: =SUM(CA28:CA40) -> 29 | CB27: =SUM(CB28:CB40) -> 231 | CC27: =SUM(BQ27:CB27) -> 709 | CD27: =SUM(CD28:CD40) -> 139 | CE27: =SUM(CE28:CE40) -> 573 | CF27: =SUM(CF28:CF40) -> 679 | CG27: =SUM(CG28:CG40) -> 725 | CH27: =SUM(CH28:CH40) -> 786 | CI27: =SUM(CI28:CI40) -> 833 | CJ27: =SUM(CJ28:CJ40) -> 503 | CK27: =SUM(CK28:CK40) -> 464 | CL27: =SUM(CL28:CL40) -> 460 | CM27: =SUM(CM28:CM40) -> 332 | CN27: =SUM(CN28:CN40) -> 363 | CO27: =SUM(CO28:CO40) -> 350 | CP27: =SUM(CD27:CO27) -> 6207 | CQ27: =SUM(CQ28:CQ40) -> 394 | CR27: =SUM(CR28:CR40) -> 314 | CS27: =SUM(CS28:CS40) -> 334 | CT27: =SUM(CT28:CT40) -> 314 | CU27: =SUM(CU28:CU40) -> 253 | CV27: =SUM(CV28:CV40) -> 183 | CW27: =SUM(CW28:CW40) -> 196 | CX27: =SUM(CX28:CX40) -> 830 | CY27: =SUM(CY28:CY40) -> 840 | CZ27: =SUM(CZ28:CZ40) -> 858 | DA27: =SUM(DA28:DA40) -> 821 | DB27: =SUM(DB28:DB40) -> 859 | DC27: =SUM(CQ27:DB27) -> 6196 | DD27: =SUM(DD28:DD40) -> 224 | DE27: =SUM(DE28:DE40) -> 190 | DF27: =SUM(DF28:DF40) -> 182 | DG27: =SUM(DG28:DG40) -> 192 | DH27: =SUM(DH28:DH40) -> 144 | DI27: =SUM(DI28:DI40) -> 127 | DJ27: =SUM(DJ28:DJ40) -> 188 | DK27: =SUM(DK28:DK40) -> 189 | DL27: =SUM(DL28:DL40) -> 281 | DM27: =SUM(DM28:DM40) -> 349 | DN27: =SUM(DN28:DN40) -> 533 | DO27: =SUM(DO28:DO40) -> 480 | DP27: =SUM(DD27:DO27) -> 3079 | DQ27: =SUM(DQ28:DQ40) -> 454.5614319 | DR27: =SUM(DR28:DR40) -> 460.3235072 | DS27: =SUM(DS28:DS40) -> 463.5129172 | DT27: =SUM(DT28:DT40) -> 462.6585288 | DU27: =SUM(DU28:DU40) -> 466.6992213 | DV27: =SUM(DV28:DV40) -> 469.5451957 | DW27: =SUM(DW28:DW40) -> 476.3733659 | DX27: =SUM(DX28:DX40) -> 505.6568389 | DY27: =SUM(DY28:DY40) -> 511.1843207 | DZ27: =SUM(DZ28:DZ40) -> 513.5871732 | EA27: =SUM(EA28:EA40) -> 513.7854589 | EB27: =SUM(EB28:EB40) -> 517.1709135 | EC27: =SUM(DQ27:EB27) -> 5815.058873 | ED27: =AP27 -> 184 | EE27: =BC27 -> 77 | EF27: =BP27 -> 75 | EG27: =CC27 -> 709 | EH27: =CP27 -> 6207 | EI27: =DC27 -> 6196 | EJ27: =DP27 -> 3079 | EK27: =EC27 -> 5815.058873 | EL27: =SUM(EL28:EL40) -> 523.0372172 | EM27: =SUM(EM28:EM40) -> 529.4577712 | EN27: 532.5879021 | EO27: 534.0653697 | EP27: 543.7919944 | EQ27: 549.5540696 | ER27: 552.7434796 | ES27: 551.8890912 | ET27: 555.9297837 | EU27: 558.7757581 | EV27: 565.6039283 | EW27: 594.8874013 | EX27: =SUM(EL27:EW27) -> 6592.323766 | EY27: =ED27 -> 184 | EZ27: =EE27 -> 77 | FA27: 75 | FB27: 709 | FC27: 6207 | FD27: 6196 | FE27: 3079 | FF27: 5815.058873 | FG27: =EX27 -> 6592.323766 | FH27: =SUM(FH28:FH40) -> 600.4148831 | FI27: =SUM(FI28:FI40) -> 602.8177356 | FJ27: 603.0160214 | FK27: 606.4014759 | FL27: 612.2677796 | FM27: 618.6883336 | FN27: 621.8184645 | FO27: 623.2959321 | FP27: 633.0225568 | FQ27: 638.784632 | FR27: 641.974042 | FS27: 641.1196536 | FT27: =SUM(FH27:FS27) -> 7443.62151 | FU27: =EY27 -> 184 | FV27: =EZ27 -> 77 | FW27: =FA27 -> 75 | FX27: =FB27 -> 709 | FY27: =FC27 -> 6207 | FZ27: =FD27 -> 6196 | GA27: =FE27 -> 3079 | GB27: =FF27 -> 5815.058873 | GC27: =FG27 -> 6592.323766 | GD27: =FT27 -> 7443.62151 | GV27: 2012-01-01 | GW27: =EOMONTH(GV27,0)+1 -> 2012-02-01 | GX27: =EOMONTH(GW27,0)+1 -> 2012-03-01 | GY27: 2012-04-01 | GZ27: =EOMONTH(GY27,0)+1 -> 2012-05-01 | HA27: 2012-06-01 | HB27: 2012-07-01 | HC27: 2012-08-01 | HD27: 2012-09-01 | HE27: 2012-10-01 | HF27: 2012-11-01 | HG27: 2012-12-01 | HH27: 2014-01-01 | HI27: =EOMONTH(HH27,0)+1 -> 2014-02-01 | HJ27: =EOMONTH(HI27,0)+1 -> 2014-03-01 | HK27: 2014-04-01 | HL27: 2014-05-01 | HM27: 2014-06-01 | HN27: 2014-07-01 | HO27: 2014-08-01 | HP27: 2014-09-01 | HQ27: 2014-10-01 | HR27: 2014-11-01 | HS27: 2014-12-01 | HT27: 2015-01-01 | HU27: 2015-02-01 | HV27: 2015-03-01 | HW27: 2015-04-01 | HX27: 2015-05-01 | HY27: 2015-06-01 | HZ27: 2015-07-01 | IA27: 2015-08-01 | IB27: 2015-09-01 | IC27: 2015-10-01 | ID27: 2015-11-01 | IE27: 2015-12-01 | IF27: 2016-01-01 | IG27: 2016-02-01 | IH27: 2016-03-01 | II27: 2016-04-01 | IJ27: 2016-05-01 | IK27: 2016-06-01 | IL27: 2016-07-01 | IM27: 2016-08-01 | IN27: 2016-09-01 | IO27: 2016-10-01 | IP27: 2016-11-01 | IQ27: 2016-12-01 | IR27: 2017-01-01 | IS27: 2017-02-01 | IT27: 2017-03-01 | IU27: 2017-04-01 | IV27: 2017-05-01 | IW27: 2017-06-01 | IX27: 2017-07-01 | IY27: 2017-08-01 | IZ27: 2017-09-01 | JA27: 2017-10-01 | JB27: 2017-11-01 | JC27: 2017-12-01 | JD27: 2018-01-01 | JE27: 2018-02-01 | JF27: 2018-03-01 | JG27: 2018-04-01 | JH27: 2018-05-01 | JI27: 2018-06-01 | JJ27: 2018-07-01 | JK27: 2018-08-01 | JL27: 2018-09-01 | JM27: 2018-10-01 | JN27: 2018-11-01 | JO27: 2018-12-01 | JP27: 2019-01-01 | JQ27: 2019-02-01 | JR27: 2019-03-01 | JS27: 2019-04-01 | JT27: 2019-05-01 | JU27: 2019-06-01 | JV27: =EOMONTH(JU27,0)+1 -> 2019-07-01 | JW27: 2019-08-01 | JX27: 2019-09-01 | JY27: 2019-10-01 | JZ27: 2019-11-01 | KA27: 2019-12-01 | KB27: 2020-01-01 | KC27: 2020-02-01 | KD27: 2020-03-01 | KE27: 2020-04-01 | KF27: 2020-05-01 | KG27: 2020-06-01 | KH27: 2020-07-01 | KI27: 2020-08-01 | KJ27: 2020-09-01 | KK27: 2020-10-01 | KL27: 2020-11-01 | KM27: 2020-12-01 | KN27: =EOMONTH(KM27,0)+1 -> 2021-01-01 | KO27: =EOMONTH(KN27,0)+1 -> 2021-02-01 | KP27: =EOMONTH(KO27,0)+1 -> 2021-03-01 | KQ27: =EOMONTH(KP27,0)+1 -> 2021-04-01 | KR27: =EOMONTH(KQ27,0)+1 -> 2021-05-01 | KS27: =EOMONTH(KR27,0)+1 -> 2021-06-01 | KT27: =EOMONTH(KS27,0)+1 -> 2021-07-01 | KU27: =EOMONTH(KT27,0)+1 -> 2021-08-01 | KV27: =EOMONTH(KU27,0)+1 -> 2021-09-01 | KW27: =EOMONTH(KV27,0)+1 -> 2021-10-01 | KX27: =EOMONTH(KW27,0)+1 -> 2021-11-01 | KY27: =EOMONTH(KX27,0)+1 -> 2021-12-01 | KZ27: =EOMONTH(KY27,0)+1 -> 2022-01-01 | LA27: =EOMONTH(KZ27,0)+1 -> 2022-02-01 | LB27: =EOMONTH(LA27,0)+1 -> 2022-03-01 | LC27: =EOMONTH(LB27,0)+1 -> 2022-04-01 | LD27: =EOMONTH(LC27,0)+1 -> 2022-05-01 | LE27: =EOMONTH(LD27,0)+1 -> 2022-06-01 | LF27: =EOMONTH(LE27,0)+1 -> 2022-07-01 | LG27: =EOMONTH(LF27,0)+1 -> 2022-08-01 | LH27: =EOMONTH(LG27,0)+1 -> 2022-09-01 | LI27: =EOMONTH(LH27,0)+1 -> 2022-10-01 | LJ27: =EOMONTH(LI27,0)+1 -> 2022-11-01 | LK27: =EOMONTH(LJ27,0)+1 -> 2022-12-01
C28: Leden | D28: 1 | AC28: Olomoucký kraj | AD28: 0 | AE28: 0 | AF28: 0 | AG28: 0 | AH28: 0 | AI28: 0 | AJ28: 0 | AK28: 0 | AL28: 0 | AM28: 0 | AN28: 0 | AO28: 0 | AP28: =SUM(AD28:AO28) -> 0 | AQ28: 0 | AR28: 0 | AS28: 0 | AT28: 0 | AU28: 0 | AV28: 0 | AW28: 0 | AX28: 0 | AY28: 1 | AZ28: 2 | BA28: 1 | BB28: 0 | BC28: =SUM(AQ28:BB28) -> 4 | BD28: 0 | BE28: 0 | BF28: 0 | BG28: 0 | BH28: 0 | BI28: 0 | BJ28: 0 | BK28: 0 | BL28: 1 | BM28: 1 | BN28: 1 | BO28: 0 | BP28: =SUM(BD28:BO28) -> 3 | BQ28: 3 | BR28: 3 | BS28: 3 | BT28: 2 | BU28: 2 | BV28: 2 | BW28: 5 | BX28: 4 | BY28: 4 | BZ28: 4 | CA28: 2 | CB28: 16 | CC28: =SUM(BQ28:CB28) -> 50 | CD28: 8 | CE28: 33 | CF28: 39 | CG28: 41 | CH28: 45 | CI28: 47 | CJ28: 29 | CK28: 26 | CL28: 26 | CM28: 19 | CN28: 21 | CO28: 20 | CP28: =SUM(CD28:CO28) -> 354 | CQ28: 36 | CR28: 29 | CS28: 31 | CT28: 29 | CU28: 23 | CV28: 17 | CW28: 18 | CX28: 76 | CY28: 77 | CZ28: 79 | DA28: 75 | DB28: 79 | DC28: =SUM(CQ28:DB28) -> 569 | DD28: 11 | DE28: 9 | DF28: 9 | DG28: 9 | DH28: 7 | DI28: 6 | DJ28: 9 | DK28: 9 | DL28: 13 | DM28: 17 | DN28: 25 | DO28: 23 | DP28: =SUM(DD28:DO28) -> 147 | DQ28: =IF($J$3=$C$6,$C$7,IF($J$4=$C$6,$C$7,IF($J$5=$C$6,$C$7,IF($J$6=$C$6,$D$28,""))))*KB28 -> 20.31700249 | DR28: =IF($J$3=$C$6,$C$7,IF($J$4=$C$6,$C$7,IF($J$5=$C$6,$C$7,IF($J$6=$C$6,$D$29,""))))*KC28 -> 20.64170521 | DS28: =IF($J$3=$C$6,$C$7,IF($J$4=$C$6,$C$7,IF($J$5=$C$6,$C$7,IF($J$6=$C$6,$D$30,""))))*KD28 -> 20.27853528 | DT28: =IF($J$3=$C$6,$C$7,IF($J$4=$C$6,$C$7,IF($J$5=$C$6,$C$7,IF($J$6=$C$6,$D$31,""))))*KE28 -> 19.48989148 | DU28: =IF($J$3=$C$6,$C$7,IF($J$4=$C$6,$C$7,IF($J$5=$C$6,$C$7,IF($J$6=$C$6,$D$32,""))))*KF28 -> 19.44176421 | DV28: =IF($J$3=$C$6,$C$7,IF($J$4=$C$6,$C$7,IF($J$5=$C$6,$C$7,IF($J$6=$C$6,$D$33,""))))*KG28 -> 19.27393717 | DW28: =IF($J$3=$C$6,$C$7,IF($J$4=$C$6,$C$7,IF($J$5=$C$6,$C$7,IF($J$6=$C$6,$D$34,""))))*KH28 -> 20.0400151 | DX28: =IF($J$3=$C$6,$C$7,IF($J$4=$C$6,$C$7,IF($J$5=$C$6,$C$7,IF($J$6=$C$6,$D$35,""))))*KI28 -> 24.38871408 | DY28: =IF($J$3=$C$6,$C$7,IF($J$4=$C$6,$C$7,IF($J$5=$C$6,$C$7,IF($J$6=$C$6,$D$36,""))))*KJ28 -> 24.26430282 | DZ28: =IF($J$3=$C$6,$C$7,IF($J$4=$C$6,$C$7,IF($J$5=$C$6,$C$7,IF($J$6=$C$6,$D$37,""))))*KK28 -> 24.08990898 | EA28: =IF($J$3=$C$6,$C$7,IF($J$4=$C$6,$C$7,IF($J$5=$C$6,$C$7,IF($J$6=$C$6,$D$38,""))))*KL28 -> 24.11289939 | EB28: =IF($J$3=$C$6,$C$7,IF($J$4=$C$6,$C$7,IF($J$5=$C$6,$C$7,IF($J$6=$C$6,$D$39,""))))*KM28 -> 24.1837999 | EC28: =SUM(DQ28:EB28) -> 260.5224761 | ED28: 0 | EE28: 4 | EF28: 3 | EG28: 50 | EH28: 354 | EI28: 569 | EJ28: 147 | EK28: 260.5224761 | EL28: =IF($J$3=$C$6,$C$7,IF($J$4=$C$6,$C$7,IF($J$5=$C$6,$C$7,IF($J$6=$C$6,$D28,""))))*KN28 -> 24.56102773 | EM28: =IF($J$3=$C$6,$C$7,IF($J$4=$C$6,$C$7,IF($J$5=$C$6,$C$7,IF($J$6=$C$6,$D28,""))))*KO28 -> 24.71405327 | EN28: =IF($J$3=$C$6,$C$7,IF($J$4=$C$6,$C$7,IF($J$5=$C$6,$C$7,IF($J$6=$C$6,$D28,""))))*KP28 -> 24.80096018 | EO28: =IF($J$3=$C$6,$C$7,IF($J$4=$C$6,$C$7,IF($J$5=$C$6,$C$7,IF($J$6=$C$6,$D28,""))))*KQ28 -> 24.61631434 | EP28: =IF($J$3=$C$6,$C$7,IF($J$4=$C$6,$C$7,IF($J$5=$C$6,$C$7,IF($J$6=$C$6,$D28,""))))*KR28 -> 25.85885027 | EQ28: =IF($J$3=$C$6,$C$7,IF($J$4=$C$6,$C$7,IF($J$5=$C$6,$C$7,IF($J$6=$C$6,$D28,""))))*KS28 -> 26.18355299 | ER28: =IF($J$3=$C$6,$C$7,IF($J$4=$C$6,$C$7,IF($J$5=$C$6,$C$7,IF($J$6=$C$6,$D28,""))))*KT28 -> 25.82038306 | ES28: =IF($J$3=$C$6,$C$7,IF($J$4=$C$6,$C$7,IF($J$5=$C$6,$C$7,IF($J$6=$C$6,$D28,""))))*KU28 -> 25.03173926 | ET28: =IF($J$3=$C$6,$C$7,IF($J$4=$C$6,$C$7,IF($J$5=$C$6,$C$7,IF($J$6=$C$6,$D28,""))))*KV28 -> 24.98361199 | EU28: =IF($J$3=$C$6,$C$7,IF($J$4=$C$6,$C$7,IF($J$5=$C$6,$C$7,IF($J$6=$C$6,$D28,""))))*KW28 -> 24.81578496 | EV28: =IF($J$3=$C$6,$C$7,IF($J$4=$C$6,$C$7,IF($J$5=$C$6,$C$7,IF($J$6=$C$6,$D28,""))))*KX28 -> 25.58186288 | EW28: =IF($J$3=$C$6,$C$7,IF($J$4=$C$6,$C$7,IF($J$5=$C$6,$C$7,IF($J$6=$C$6,$D28,""))))*KY28 -> 29.93056186 | EX28: =SUM(EL28:EW28) -> 306.8987028 | EY28: =ED28 -> 0 | EZ28: =EE28 -> 4 | FA28: =EF28 -> 3 | FB28: =EG28 -> 50 | FC28: =EH28 -> 354 | FD28: =EI28 -> 569 | FE28: =EJ28 -> 147 | FF28: =EK28 -> 260.5224761 | FG28: =EX28 -> 306.8987028 | FH28: =IF($J$3=$C$6,$C$7,IF($J$4=$C$6,$C$7,IF($J$5=$C$6,$C$7,IF($J$6=$C$6,$D28,""))))*KZ28 -> 29.8061506 | FI28: =IF($J$3=$C$6,$C$7,IF($J$4=$C$6,$C$7,IF($J$5=$C$6,$C$7,IF($J$6=$C$6,$D28,""))))*LA28 -> 29.63175676 | FJ28: =IF($J$3=$C$6,$C$7,IF($J$4=$C$6,$C$7,IF($J$5=$C$6,$C$7,IF($J$6=$C$6,$D28,""))))*LB28 -> 29.65474718 | FK28: =IF($J$3=$C$6,$C$7,IF($J$4=$C$6,$C$7,IF($J$5=$C$6,$C$7,IF($J$6=$C$6,$D28,""))))*LC28 -> 29.72564769 | FL28: =IF($J$3=$C$6,$C$7,IF($J$4=$C$6,$C$7,IF($J$5=$C$6,$C$7,IF($J$6=$C$6,$D28,""))))*LD28 -> 30.10287551 | FM28: =IF($J$3=$C$6,$C$7,IF($J$4=$C$6,$C$7,IF($J$5=$C$6,$C$7,IF($J$6=$C$6,$D28,""))))*LE28 -> 30.25590105 | FN28: =IF($J$3=$C$6,$C$7,IF($J$4=$C$6,$C$7,IF($J$5=$C$6,$C$7,IF($J$6=$C$6,$D28,""))))*LF28 -> 30.34280797 | FO28: =IF($J$3=$C$6,$C$7,IF($J$4=$C$6,$C$7,IF($J$5=$C$6,$C$7,IF($J$6=$C$6,$D28,""))))*LG28 -> 30.15816212 | FP28: =IF($J$3=$C$6,$C$7,IF($J$4=$C$6,$C$7,IF($J$5=$C$6,$C$7,IF($J$6=$C$6,$D28,""))))*LH28 -> 31.40069805 | FQ28: =IF($J$3=$C$6,$C$7,IF($J$4=$C$6,$C$7,IF($J$5=$C$6,$C$7,IF($J$6=$C$6,$D28,""))))*LI28 -> 31.72540078 | FR28: =IF($J$3=$C$6,$C$7,IF($J$4=$C$6,$C$7,IF($J$5=$C$6,$C$7,IF($J$6=$C$6,$D28,""))))*LJ28 -> 31.36223085 | FS28: =IF($J$3=$C$6,$C$7,IF($J$4=$C$6,$C$7,IF($J$5=$C$6,$C$7,IF($J$6=$C$6,$D28,""))))*LK28 -> 30.57358704 | FT28: =SUM(FH28:FS28) -> 364.7399656 | FU28: 0 | FV28: 4 | FW28: 3 | FX28: 50 | FY28: 354 | FZ28: 569 | GA28: 147 | GB28: 260.5224761 | GC28: 306.8987028 | GD28: =FT28 -> 364.7399656 | GU28: Olomoucký kraj | GV28: =AD28 -> 0 | GW28: =AE28 -> 0 | GX28: =AF28 -> 0 | GY28: =AG28 -> 0 | GZ28: =AH28 -> 0 | HA28: =AI28 -> 0 | HB28: =AJ28 -> 0 | HC28: =AK28 -> 0 | HD28: =AL28 -> 0 | HE28: =AM28 -> 0 | HF28: =AN28 -> 0 | HG28: =AO28 -> 0 | HH28: =AQ28 -> 0 | HI28: =AR28 -> 0 | HJ28: =AS28 -> 0 | HK28: =AT28 -> 0 | HL28: =AU28 -> 0 | HM28: =AV28 -> 0 | HN28: =AW28 -> 0 | HO28: =AX28 -> 0 | HP28: =AY28 -> 1 | HQ28: =AZ28 -> 2 | HR28: =BA28 -> 1 | HS28: =BB28 -> 0 | HT28: =BD28 -> 0 | HU28: =BE28 -> 0 | HV28: =BF28 -> 0 | HW28: =BG28 -> 0 | HX28: =BH28 -> 0 | HY28: =BI28 -> 0 | HZ28: =BJ28 -> 0 | IA28: =BK28 -> 0 | IB28: =BL28 -> 1 | IC28: =BM28 -> 1 | ID28: =BN28 -> 1 | IE28: =BO28 -> 0 | IF28: =BQ28 -> 3 | IG28: =BR28 -> 3 | IH28: =BS28 -> 3 | II28: =BT28 -> 2 | IJ28: =BU28 -> 2 | IK28: =BV28 -> 2 | IL28: =BW28 -> 5 | IM28: =BX28 -> 4 | IN28: =BY28 -> 4 | IO28: =BZ28 -> 4 | IP28: =CA28 -> 2 | IQ28: =CB28 -> 16 | IR28: =CD28 -> 8 | IS28: =CE28 -> 33 | IT28: =CF28 -> 39 | IU28: =CG28 -> 41 | IV28: =CH28 -> 45 | IW28: =CI28 -> 47 | IX28: =CJ28 -> 29 | IY28: =CK28 -> 26 | IZ28: =CL28 -> 26 | JA28: =CM28 -> 19 | JB28: =CN28 -> 21 | JC28: =CO28 -> 20 | JD28: =CQ28 -> 36 | JE28: =CR28 -> 29 | JF28: =CS28 -> 31 | JG28: =CT28 -> 29 | JH28: =CU28 -> 23 | JI28: =CV28 -> 17 | JJ28: =CW28 -> 18 | JK28: =CX28 -> 76 | JL28: =CY28 -> 77 | JM28: =CZ28 -> 79 | JN28: =DA28 -> 75 | JO28: =DB28 -> 79 | JP28: =DD28 -> 11 | JQ28: =DE28 -> 9 | JR28: =DF28 -> 9 | JS28: =DG28 -> 9 | JT28: =DH28 -> 7 | JU28: =DI28 -> 6 | JV28: =DJ28 -> 9 | JW28: =DK28 -> 9 | JX28: =DL28 -> 13 | JY28: =DM28 -> 17 | JZ28: =DN28 -> 25 | KA28: =DO28 -> 23 | KB28: =_xlfn.FORECAST.ETS(KB$27,$GV28:$KA28,$GV$27:$KA$27) -> 20.31700249 | KC28: =_xlfn.FORECAST.ETS(KC$27,$GV28:$KA28,$GV$27:$KA$27) -> 20.64170521 | KD28: 20.27853528 | KE28: 19.48989148 | KF28: 19.44176421 | KG28: 19.27393717 | KH28: 20.0400151 | KI28: 24.38871408 | KJ28: 24.26430282 | KK28: 24.08990898 | KL28: 24.11289939 | KM28: 24.1837999 | KN28: 24.56102773 | KO28: 24.71405327 | KP28: 24.80096018 | KQ28: 24.61631434 | KR28: 25.85885027 | KS28: 26.18355299 | KT28: 25.82038306 | KU28: 25.03173926 | KV28: 24.98361199 | KW28: 24.81578496 | KX28: 25.58186288 | KY28: 29.93056186 | KZ28: 29.8061506 | LA28: 29.63175676 | LB28: 29.65474718 | LC28: 29.72564769 | LD28: 30.10287551 | LE28: 30.25590105 | LF28: 30.34280797 | LG28: 30.15816212 | LH28: 31.40069805 | LI28: 31.72540078 | LJ28: =_xlfn.FORECAST.ETS(LJ$27,$GV28:$KA28,$GV$27:$KA$27) -> 31.36223085 | LK28: 30.57358704
C29: Únor | D29: 0.35 | AC29: Moravskoslezský kraj | AD29: 0 | AE29: 0 | AF29: 0 | AG29: 0 | AH29: 0 | AI29: 0 | AJ29: 0 | AK29: 2 | AL29: 4 | AM29: 4 | AN29: 1 | AO29: 1 | AP29: 12 | AQ29: 0 | AR29: 0 | AS29: 0 | AT29: 0 | AU29: 0 | AV29: 0 | AW29: 0 | AX29: 0 | AY29: 1 | AZ29: 2 | BA29: 2 | BB29: 0 | BC29: 5 | BD29: 0 | BE29: 0 | BF29: 0 | BG29: 0 | BH29: 0 | BI29: 0 | BJ29: 0 | BK29: 0 | BL29: 2 | BM29: 3 | BN29: 3 | BO29: 0 | BP29: =SUM(BD29:BO29) -> 8 | BQ29: 3 | BR29: 3 | BS29: 3 | BT29: 2 | BU29: 2 | BV29: 2 | BW29: 5 | BX29: 4 | BY29: 4 | BZ29: 4 | CA29: 2 | CB29: 16 | CC29: 50 | CD29: 9 | CE29: 37 | CF29: 44 | CG29: 47 | CH29: 51 | CI29: 54 | CJ29: 33 | CK29: 30 | CL29: 30 | CM29: 22 | CN29: 24 | CO29: 23 | CP29: 404 | CQ29: 33 | CR29: 26 | CS29: 28 | CT29: 26 | CU29: 21 | CV29: 15 | CW29: 16 | CX29: 69 | CY29: 69 | CZ29: 71 | DA29: 68 | DB29: 71 | DC29: 513 | DD29: 21 | DE29: 18 | DF29: 17 | DG29: 18 | DH29: 14 | DI29: 12 | DJ29: 18 | DK29: 18 | DL29: 27 | DM29: 33 | DN29: 51 | DO29: 46 | DP29: 293 | DQ29: =IF($J$3=$C$6,$C$7,IF($J$4=$C$6,$C$7,IF($J$5=$C$6,$C$7,IF($J$6=$C$6,$D$28,""))))*KB29 -> 36.78744638 | DR29: 37.26813599 | DS29: 37.3589966 | DT29: 36.36149275 | DU29: 36.43417238 | DV29: 36.33060133 | DW29: 37.15224613 | DX29: 42.33711132 | DY29: 42.89491178 | DZ29: 42.76211378 | EA29: 41.86369207 | EB29: 42.00445924 | EC29: 469.5553797 | ED29: 12 | EE29: 5 | EF29: 8 | EG29: 50 | EH29: 404 | EI29: 513 | EJ29: 293 | EK29: 469.5553797 | EL29: 42.76458879 | EM29: 43.30658634 | EN29: 43.45474098 | EO29: 42.66637437 | EP29: 44.05376273 | EQ29: 44.53445234 | ER29: 44.62531295 | ES29: 43.6278091 | ET29: 43.70048873 | EU29: 43.59691768 | EV29: 44.41856248 | EW29: 49.60342767 | EX29: =SUM(EL29:EW29) -> 530.3530242 | EY29: 12 | EZ29: 5 | FA29: 8 | FB29: 50 | FC29: 404 | FD29: 513 | FE29: 293 | FF29: 469.5553797 | FG29: 530.3530242 | FH29: 50.16122813 | FI29: 50.02843013 | FJ29: 49.13000842 | FK29: 49.27077559 | FL29: 50.03090514 | FM29: 50.57290269 | FN29: 50.72105733 | FO29: 49.93269072 | FP29: 51.32007908 | FQ29: 51.80076869 | FR29: 51.8916293 | FS29: 50.89412545 | FT29: =SUM(FH29:FS29) -> 605.7546007 | FU29: 12 | FV29: 5 | FW29: 8 | FX29: 50 | FY29: 404 | FZ29: 513 | GA29: 293 | GB29: 469.5553797 | GC29: 530.3530242 | GD29: 605.7546007 | GU29: Moravskoslezský kraj | GV29: 0 | GW29: 0 | GX29: 0 | GY29: 0 | GZ29: 0 | HA29: 0 | HB29: 0 | HC29: 2 | HD29: 4 | HE29: 4 | HF29: 1 | HG29: 1 | HH29: 0 | HI29: 0 | HJ29: 0 | HK29: 0 | HL29: 0 | HM29: 0 | HN29: 0 | HO29: 0 | HP29: 1 | HQ29: 2 | HR29: 2 | HS29: 0 | HT29: 0 | HU29: 0 | HV29: 0 | HW29: 0 | HX29: 0 | HY29: 0 | HZ29: 0 | IA29: 0 | IB29: 2 | IC29: 3 | ID29: 3 | IE29: 0 | IF29: 3 | IG29: 3 | IH29: 3 | II29: 2 | IJ29: 2 | IK29: 2 | IL29: 5 | IM29: 4 | IN29: 4 | IO29: 4 | IP29: 2 | IQ29: 16 | IR29: 9 | IS29: 37 | IT29: 44 | IU29: 47 | IV29: 51 | IW29: 54 | IX29: 33 | IY29: 30 | IZ29: 30 | JA29: 22 | JB29: 24 | JC29: 23 | JD29: 33 | JE29: 26 | JF29: 28 | JG29: 26 | JH29: 21 | JI29: 15 | JJ29: 16 | JK29: 69 | JL29: 69 | JM29: 71 | JN29: 68 | JO29: 71 | JP29: 21 | JQ29: 18 | JR29: 17 | JS29: 18 | JT29: 14 | JU29: 12 | JV29: 18 | JW29: 18 | JX29: 27 | JY29: 33 | JZ29: 51 | KA29: 46 | KB29: =_xlfn.FORECAST.ETS(KB$27,$GV29:$KA29,$GV$27:$KA$27) -> 36.78744638 | KC29: 37.26813599 | KD29: 37.3589966 | KE29: 36.36149275 | KF29: 36.43417238 | KG29: 36.33060133 | KH29: 37.15224613 | KI29: 42.33711132 | KJ29: 42.89491178 | KK29: 42.76211378 | KL29: 41.86369207 | KM29: 42.00445924 | KN29: 42.76458879 | KO29: 43.30658634 | KP29: 43.45474098 | KQ29: 42.66637437 | KR29: 44.05376273 | KS29: 44.53445234 | KT29: 44.62531295 | KU29: 43.6278091 | KV29: 43.70048873 | KW29: 43.59691768 | KX29: 44.41856248 | KY29: 49.60342767 | KZ29: 50.16122813 | LA29: 50.02843013 | LB29: 49.13000842 | LC29: 49.27077559 | LD29: 50.03090514 | LE29: 50.57290269 | LF29: 50.72105733 | LG29: 49.93269072 | LH29: 51.32007908 | LI29: 51.80076869 | LJ29: 51.8916293 | LK29: 50.89412545
C30: Březen | D30: 0.3 | AC30: Zlínský kraj | AD30: 0 | AE30: 0 | AF30: 0 | AG30: 0 | AH30: 0 | AI30: 0 | AJ30: 0 | AK30: 3 | AL30: 5 | AM30: 4 | AN30: 2 | AO30: 1 | AP30: 15 | AQ30: 0 | AR30: 0 | AS30: 0 | AT30: 0 | AU30: 0 | AV30: 0 | AW30: 0 | AX30: 0 | AY30: 1 | AZ30: 3 | BA30: 2 | BB30: 0 | BC30: 6 | BD30: 0 | BE30: 0 | BF30: 0 | BG30: 0 | BH30: 0 | BI30: 0 | BJ30: 0 | BK30: 0 | BL30: 1 | BM30: 3 | BN30: 2 | BO30: 0 | BP30: 6 | BQ30: 3 | BR30: 3 | BS30: 3 | BT30: 2 | BU30: 2 | BV30: 2 | BW30: 6 | BX30: 4 | BY30: 4 | BZ30: 5 | CA30: 2 | CB30: 18 | CC30: 54 | CD30: 11 | CE30: 47 | CF30: 55 | CG30: 59 | CH30: 64 | CI30: 68 | CJ30: 41 | CK30: 38 | CL30: 37 | CM30: 27 | CN30: 29 | CO30: 28 | CP30: 504 | CQ30: 36 | CR30: 29 | CS30: 31 | CT30: 29 | CU30: 23 | CV30: 17 | CW30: 18 | CX30: 76 | CY30: 77 | CZ30: 79 | DA30: 75 | DB30: 79 | DC30: 569 | DD30: 21 | DE30: 18 | DF30: 17 | DG30: 18 | DH30: 14 | DI30: 12 | DJ30: 18 | DK30: 18 | DL30: 27 | DM30: 33 | DN30: 51 | DO30: 46 | DP30: 293 | DQ30: 37.25605968 | DR30: 38.03877373 | DS30: 37.77785503 | DT30: 36.73384382 | DU30: 36.76055129 | DV30: 36.52985893 | DW30: 37.54949517 | DX30: 43.84456151 | DY30: 44.26668201 | DZ30: 43.66167122 | EA30: 43.01589599 | EB30: 42.75029876 | EC30: 478.1855471 | ED30: 15 | EE30: 6 | EF30: 6 | EG30: 54 | EH30: 504 | EI30: 569 | EJ30: 293 | EK30: 478.1855471 | EL30: 43.11290238 | EM30: 43.95081315 | EN30: 43.71526529 | EO30: 43.23533069 | EP30: 44.61998336 | EQ30: 45.40269741 | ER30: 45.14177871 | ES30: 44.0977675 | ET30: 44.12447497 | EU30: 43.89378261 | EV30: 44.91341885 | EW30: 51.20848519 | EX30: 537.4167001 | EY30: 15 | EZ30: 6 | FA30: 6 | FB30: 54 | FC30: 504 | FD30: 569 | FE30: 293 | FF30: 478.1855471 | FG30: 537.4167001 | FH30: 51.63060569 | FI30: 51.0255949 | FJ30: 50.37981967 | FK30: 50.11422245 | FL30: 50.47682606 | FM30: 51.31473683 | FN30: 51.07918897 | FO30: 50.59925438 | FP30: 51.98390704 | FQ30: 52.76662109 | FR30: 52.50570239 | FS30: 51.46169118 | FT30: 615.3381706 | FU30: 15 | FV30: 6 | FW30: 6 | FX30: 54 | FY30: 504 | FZ30: 569 | GA30: 293 | GB30: 478.1855471 | GC30: 537.4167001 | GD30: 615.3381706 | GU30: Zlínský kraj | GV30: 0 | GW30: 0 | GX30: 0 | GY30: 0 | GZ30: 0 | HA30: 0 | HB30: 0 | HC30: 3 | HD30: 5 | HE30: 4 | HF30: 2 | HG30: 1 | HH30: 0 | HI30: 0 | HJ30: 0 | HK30: 0 | HL30: 0 | HM30: 0 | HN30: 0 | HO30: 0 | HP30: 1 | HQ30: 3 | HR30: 2 | HS30: 0 | HT30: 0 | HU30: 0 | HV30: 0 | HW30: 0 | HX30: 0 | HY30: 0 | HZ30: 0 | IA30: 0 | IB30: 1 | IC30: 3 | ID30: 2 | IE30: 0 | IF30: 3 | IG30: 3 | IH30: 3 | II30: 2 | IJ30: 2 | IK30: 2 | IL30: 6 | IM30: 4 | IN30: 4 | IO30: 5 | IP30: 2 | IQ30: 18 | IR30: 11 | IS30: 47 | IT30: 55 | IU30: 59 | IV30: 64 | IW30: 68 | IX30: 41 | IY30: 38 | IZ30: 37 | JA30: 27 | JB30: 29 | JC30: 28 | JD30: 36 | JE30: 29 | JF30: 31 | JG30: 29 | JH30: 23 | JI30: 17 | JJ30: 18 | JK30: 76 | JL30: 77 | JM30: 79 | JN30: 75 | JO30: 79 | JP30: 21 | JQ30: 18 | JR30: 17 | JS30: 18 | JT30: 14 | JU30: 12 | JV30: 18 | JW30: 18 | JX30: 27 | JY30: 33 | JZ30: 51 | KA30: 46 | KB30: 37.25605968 | KC30: 38.03877373 | KD30: 37.77785503 | KE30: 36.73384382 | KF30: 36.76055129 | KG30: 36.52985893 | KH30: 37.54949517 | KI30: 43.84456151 | KJ30: 44.26668201 | KK30: 43.66167122 | KL30: 43.01589599 | KM30: 42.75029876 | KN30: 43.11290238 | KO30: 43.95081315 | KP30: 43.71526529 | KQ30: 43.23533069 | KR30: 44.61998336 | KS30: 45.40269741 | KT30: 45.14177871 | KU30: 44.0977675 | KV30: 44.12447497 | KW30: 43.89378261 | KX30: 44.91341885 | KY30: 51.20848519 | KZ30: 51.63060569 | LA30: 51.0255949 | LB30: 50.37981967 | LC30: 50.11422245 | LD30: 50.47682606 | LE30: 51.31473683 | LF30: 51.07918897 | LG30: 50.59925438 | LH30: 51.98390704 | LI30: 52.76662109 | LJ30: 52.50570239 | LK30: 51.46169118
C31: Duben | D31: 0.3 | AC31: Liberecký kraj | AD31: 0 | AE31: 0 | AF31: 0 | AG31: 0 | AH31: 0 | AI31: 0 | AJ31: 0 | AK31: 3 | AL31: 5 | AM31: 5 | AN31: 2 | AO31: 1 | AP31: 16 | AQ31: 0 | AR31: 0 | AS31: 0 | AT31: 0 | AU31: 0 | AV31: 0 | AW31: 0 | AX31: 0 | AY31: 1 | AZ31: 1 | BA31: 1 | BB31: 0 | BC31: 3 | BD31: 0 | BE31: 0 | BF31: 0 | BG31: 0 | BH31: 0 | BI31: 0 | BJ31: 0 | BK31: 0 | BL31: 1 | BM31: 2 | BN31: 1 | BO31: 0 | BP31: 4 | BQ31: 1 | BR31: 1 | BS31: 1 | BT31: 1 | BU31: 1 | BV31: 1 | BW31: 2 | BX31: 1 | BY31: 1 | BZ31: 1 | CA31: 1 | CB31: 5 | CC31: 17 | CD31: 7 | CE31: 28 | CF31: 33 | CG31: 35 | CH31: 38 | CI31: 41 | CJ31: 24 | CK31: 23 | CL31: 22 | CM31: 16 | CN31: 18 | CO31: 17 | CP31: 302 | CQ31: 25 | CR31: 20 | CS31: 21 | CT31: 20 | CU31: 16 | CV31: 12 | CW31: 13 | CX31: 53 | CY31: 54 | CZ31: 55 | DA31: 53 | DB31: 55 | DC31: 397 | DD31: 9 | DE31: 7 | DF31: 7 | DG31: 7 | DH31: 5 | DI31: 5 | DJ31: 7 | DK31: 7 | DL31: 11 | DM31: 13 | DN31: 20 | DO31: 18 | DP31: 116 | DQ31: 15.23156436 | DR31: 15.28195787 | DS31: 15.26979172 | DT31: 14.91096229 | DU31: 14.85637917 | DV31: 14.67635714 | DW31: 14.77494932 | DX31: 19.37191135 | DY31: 19.87985966 | DZ31: 19.70172992 | EA31: 18.70894702 | EB31: 18.38722101 | EC31: 201.0516308 | ED31: 16 | EE31: 3 | EF31: 4 | EG31: 17 | EH31: 302 | EI31: 397 | EJ31: 116 | EK31: 201.0516308 | EL31: 18.71130783 | EM31: 19.11303576 | EN31: 18.80759945 | EO31: 18.5775461 | EP31: 19.23420898 | EQ31: 19.28460249 | ER31: 19.27243634 | ES31: 18.91360691 | ET31: 18.85902379 | EU31: 18.67900177 | EV31: 18.77759394 | EW31: 23.37455597 | EX31: 231.6045193 | EY31: 16 | EZ31: 3 | FA31: 4 | FB31: 17 | FC31: 302 | FD31: 397 | FE31: 116 | FF31: 201.0516308 | FG31: 231.6045193 | FH31: 23.88250428 | FI31: 23.70437454 | FJ31: 22.71159164 | FK31: 22.38986563 | FL31: 22.71395245 | FM31: 23.11568038 | FN31: 22.81024407 | FO31: 22.58019072 | FP31: 23.23685361 | FQ31: 23.28724711 | FR31: 23.27508096 | FS31: 22.91625153 | FT31: 276.6238369 | FU31: 16 | FV31: 3 | FW31: 4 | FX31: 17 | FY31: 302 | FZ31: 397 | GA31: 116 | GB31: 201.0516308 | GC31: 231.6045193 | GD31: 276.6238369 | GU31: Liberecký kraj | GV31: 0 | GW31: 0 | GX31: 0 | GY31: 0 | GZ31: 0 | HA31: 0 | HB31: 0 | HC31: 3 | HD31: 5 | HE31: 5 | HF31: 2 | HG31: 1 | HH31: 0 | HI31: 0 | HJ31: 0 | HK31: 0 | HL31: 0 | HM31: 0 | HN31: 0 | HO31: 0 | HP31: 1 | HQ31: 1 | HR31: 1 | HS31: 0 | HT31: 0 | HU31: 0 | HV31: 0 | HW31: 0 | HX31: 0 | HY31: 0 | HZ31: 0 | IA31: 0 | IB31: 1 | IC31: 2 | ID31: 1 | IE31: 0 | IF31: 1 | IG31: 1 | IH31: 1 | II31: 1 | IJ31: 1 | IK31: 1 | IL31: 2 | IM31: 1 | IN31: 1 | IO31: 1 | IP31: 1 | IQ31: 5 | IR31: 7 | IS31: 28 | IT31: 33 | IU31: 35 | IV31: 38 | IW31: 41 | IX31: 24 | IY31: 23 | IZ31: 22 | JA31: 16 | JB31: 18 | JC31: 17 | JD31: 25 | JE31: 20 | JF31: 21 | JG31: 20 | JH31: 16 | JI31: 12 | JJ31: 13 | JK31: 53 | JL31: 54 | JM31: 55 | JN31: 53 | JO31: 55 | JP31: 9 | JQ31: 7 | JR31: 7 | JS31: 7 | JT31: 5 | JU31: 5 | JV31: 7 | JW31: 7 | JX31: 11 | JY31: 13 | JZ31: 20 | KA31: 18 | KB31: 15.23156436 | KC31: 15.28195787 | KD31: 15.26979172 | KE31: 14.91096229 | KF31: 14.85637917 | KG31: 14.67635714 | KH31: 14.77494932 | KI31: 19.37191135 | KJ31: 19.87985966 | KK31: 19.70172992 | KL31: 18.70894702 | KM31: 18.38722101 | KN31: 18.71130783 | KO31: 19.11303576 | KP31: 18.80759945 | KQ31: 18.5775461 | KR31: 19.23420898 | KS31: 19.28460249 | KT31: 19.27243634 | KU31: 18.91360691 | KV31: 18.85902379 | KW31: 18.67900177 | KX31: 18.77759394 | KY31: 23.37455597 | KZ31: 23.88250428 | LA31: 23.70437454 | LB31: 22.71159164 | LC31: 22.38986563 | LD31: 22.71395245 | LE31: 23.11568038 | LF31: 22.81024407 | LG31: 22.58019072 | LH31: 23.23685361 | LI31: 23.28724711 | LJ31: 23.27508096 | LK31: 22.91625153
C32: Květen | D32: 0.4 | AC32: Ústecký kraj | AD32: 0 | AE32: 0 | AF32: 0 | AG32: 0 | AH32: 0 | AI32: 0 | AJ32: 0 | AK32: 1 | AL32: 2 | AM32: 1 | AN32: 1 | AO32: 0 | AP32: 5 | AQ32: 0 | AR32: 0 | AS32: 0 | AT32: 0 | AU32: 0 | AV32: 0 | AW32: 0 | AX32: 0 | AY32: 1 | AZ32: 2 | BA32: 2 | BB32: 0 | BC32: 5 | BD32: 0 | BE32: 0 | BF32: 0 | BG32: 0 | BH32: 0 | BI32: 0 | BJ32: 0 | BK32: 0 | BL32: 0 | BM32: 0 | BN32: 0 | BO32: 0 | BP32: 0 | BQ32: 3 | BR32: 3 | BS32: 3 | BT32: 2 | BU32: 2 | BV32: 2 | BW32: 6 | BX32: 4 | BY32: 4 | BZ32: 5 | CA32: 2 | CB32: 18 | CC32: 54 | CD32: 10 | CE32: 42 | CF32: 50 | CG32: 53 | CH32: 58 | CI32: 61 | CJ32: 37 | CK32: 34 | CL32: 34 | CM32: 24 | CN32: 26 | CO32: 26 | CP32: 455 | CQ32: 18 | CR32: 14 | CS32: 15 | CT32: 14 | CU32: 12 | CV32: 8 | CW32: 9 | CX32: 38 | CY32: 39 | CZ32: 39 | DA32: 38 | DB32: 39 | DC32: 283 | DD32: 13 | DE32: 11 | DF32: 10 | DG32: 11 | DH32: 8 | DI32: 7 | DJ32: 11 | DK32: 11 | DL32: 16 | DM32: 20 | DN32: 30 | DO32: 27 | DP32: 175 | DQ32: 27.5621039 | DR32: 27.89192417 | DS32: 28.22174443 | DT32: 28.5515647 | DU32: 28.88138496 | DV32: 29.21120523 | DW32: 29.54102549 | DX32: 29.87084576 | DY32: 30.20066603 | DZ32: 30.53048629 | EA32: 30.86030656 | EB32: 31.19012682 | EC32: 352.5133843 | ED32: 5 | EE32: 5 | EF32: 0 | EG32: 54 | EH32: 455 | EI32: 283 | EJ32: 175 | EK32: 352.5133843 | EL32: 31.51994709 | EM32: 31.84976735 | EN32: 32.17958762 | EO32: 32.50940788 | EP32: 32.83922815 | EQ32: 33.16904842 | ER32: 33.49886868 | ES32: 33.82868895 | ET32: 34.15850921 | EU32: 34.48832948 | EV32: 34.81814974 | EW32: 35.14797001 | EX32: 400.0075026 | EY32: 5 | EZ32: 5 | FA32: 0 | FB32: 54 | FC32: 455 | FD32: 283 | FE32: 175 | FF32: 352.5133843 | FG32: 400.0075026 | FH32: 35.47779028 | FI32: 35.80761054 | FJ32: 36.13743081 | FK32: 36.46725107 | FL32: 36.79707134 | FM32: 37.1268916 | FN32: 37.45671187 | FO32: 37.78653213 | FP32: 38.1163524 | FQ32: 38.44617267 | FR32: 38.77599293 | FS32: 39.1058132 | FT32: 447.5016208 | FU32: 5 | FV32: 5 | FW32: 0 | FX32: 54 | FY32: 455 | FZ32: 283 | GA32: 175 | GB32: 352.5133843 | GC32: 400.0075026 | GD32: 447.5016208 | GU32: Ústecký kraj | GV32: 0 | GW32: 0 | GX32: 0 | GY32: 0 | GZ32: 0 | HA32: 0 | HB32: 0 | HC32: 1 | HD32: 2 | HE32: 1 | HF32: 1 | HG32: 0 | HH32: 0 | HI32: 0 | HJ32: 0 | HK32: 0 | HL32: 0 | HM32: 0 | HN32: 0 | HO32: 0 | HP32: 1 | HQ32: 2 | HR32: 2 | HS32: 0 | HT32: 0 | HU32: 0 | HV32: 0 | HW32: 0 | HX32: 0 | HY32: 0 | HZ32: 0 | IA32: 0 | IB32: 0 | IC32: 0 | ID32: 0 | IE32: 0 | IF32: 3 | IG32: 3 | IH32: 3 | II32: 2 | IJ32: 2 | IK32: 2 | IL32: 6 | IM32: 4 | IN32: 4 | IO32: 5 | IP32: 2 | IQ32: 18 | IR32: 10 | IS32: 42 | IT32: 50 | IU32: 53 | IV32: 58 | IW32: 61 | IX32: 37 | IY32: 34 | IZ32: 34 | JA32: 24 | JB32: 26 | JC32: 26 | JD32: 18 | JE32: 14 | JF32: 15 | JG32: 14 | JH32: 12 | JI32: 8 | JJ32: 9 | JK32: 38 | JL32: 39 | JM32: 39 | JN32: 38 | JO32: 39 | JP32: 13 | JQ32: 11 | JR32: 10 | JS32: 11 | JT32: 8 | JU32: 7 | JV32: 11 | JW32: 11 | JX32: 16 | JY32: 20 | JZ32: 30 | KA32: 27 | KB32: 27.5621039 | KC32: 27.89192417 | KD32: 28.22174443 | KE32: 28.5515647 | KF32: 28.88138496 | KG32: 29.21120523 | KH32: 29.54102549 | KI32: 29.87084576 | KJ32: 30.20066603 | KK32: 30.53048629 | KL32: 30.86030656 | KM32: 31.19012682 | KN32: 31.51994709 | KO32: 31.84976735 | KP32: 32.17958762 | KQ32: 32.50940788 | KR32: 32.83922815 | KS32: 33.16904842 | KT32: 33.49886868 | KU32: 33.82868895 | KV32: 34.15850921 | KW32: 34.48832948 | KX32: 34.81814974 | KY32: 35.14797001 | KZ32: 35.47779028 | LA32: 35.80761054 | LB32: 36.13743081 | LC32: 36.46725107 | LD32: 36.79707134 | LE32: 37.1268916 | LF32: 37.45671187 | LG32: 37.78653213 | LH32: 38.1163524 | LI32: 38.44617267 | LJ32: 38.77599293 | LK32: 39.1058132
C33: Červen | D33: 0.75 | AC33: Karlovarský kraj | AD33: 0 | AE33: 0 | AF33: 0 | AG33: 0 | AH33: 0 | AI33: 0 | AJ33: 0 | AK33: 3 | AL33: 5 | AM33: 4 | AN33: 2 | AO33: 1 | AP33: 15 | AQ33: 0 | AR33: 0 | AS33: 0 | AT33: 0 | AU33: 0 | AV33: 0 | AW33: 0 | AX33: 0 | AY33: 1 | AZ33: 3 | BA33: 2 | BB33: 0 | BC33: 6 | BD33: 0 | BE33: 0 | BF33: 0 | BG33: 0 | BH33: 0 | BI33: 0 | BJ33: 0 | BK33: 0 | BL33: 0 | BM33: 0 | BN33: 0 | BO33: 0 | BP33: 0 | BQ33: 2 | BR33: 2 | BS33: 2 | BT33: 1 | BU33: 1 | BV33: 1 | BW33: 3 | BX33: 3 | BY33: 2 | BZ33: 3 | CA33: 1 | CB33: 11 | CC33: 32 | CD33: 11 | CE33: 47 | CF33: 55 | CG33: 59 | CH33: 64 | CI33: 68 | CJ33: 41 | CK33: 38 | CL33: 37 | CM33: 27 | CN33: 29 | CO33: 28 | CP33: 504 | CQ33: 11 | CR33: 9 | CS33: 9 | CT33: 9 | CU33: 7 | CV33: 5 | CW33: 5 | CX33: 23 | CY33: 23 | CZ33: 24 | DA33: 23 | DB33: 24 | DC33: 172 | DD33: 17 | DE33: 15 | DF33: 14 | DG33: 15 | DH33: 11 | DI33: 10 | DJ33: 14 | DK33: 14 | DL33: 21 | DM33: 27 | DN33: 41 | DO33: 37 | DP33: 236 | DQ33: 37.3238809 | DR33: 37.6477618 | DS33: 37.9716427 | DT33: 38.2955236 | DU33: 38.6194045 | DV33: 38.9432854 | DW33: 39.2671663 | DX33: 39.59104721 | DY33: 39.91492811 | DZ33: 40.23880901 | EA33: 40.56268991 | EB33: 40.88657081 | EC33: 469.2627103 | ED33: 15 | EE33: 6 | EF33: 0 | EG33: 32 | EH33: 504 | EI33: 172 | EJ33: 236 | EK33: 469.2627103 | EL33: 41.21045171 | EM33: 41.53433261 | EN33: 41.85821351 | EO33: 42.18209441 | EP33: 42.50597531 | EQ33: 42.82985621 | ER33: 43.15373711 | ES33: 43.47761801 | ET33: 43.80149891 | EU33: 44.12537982 | EV33: 44.44926072 | EW33: 44.77314162 | EX33: 515.90156 | EY33: 15 | EZ33: 6 | FA33: 0 | FB33: 32 | FC33: 504 | FD33: 172 | FE33: 236 | FF33: 469.2627103 | FG33: 515.90156 | FH33: 45.09702252 | FI33: 45.42090342 | FJ33: 45.74478432 | FK33: 46.06866522 | FL33: 46.39254612 | FM33: 46.71642702 | FN33: 47.04030792 | FO33: 47.36418882 | FP33: 47.68806972 | FQ33: 48.01195062 | FR33: 48.33583152 | FS33: 48.65971243 | FT33: 562.5404097 | FU33: 15 | FV33: 6 | FW33: 0 | FX33: 32 | FY33: 504 | FZ33: 172 | GA33: 236 | GB33: 469.2627103 | GC33: 515.90156 | GD33: 562.5404097 | GU33: Karlovarský kraj | GV33: 0 | GW33: 0 | GX33: 0 | GY33: 0 | GZ33: 0 | HA33: 0 | HB33: 0 | HC33: 3 | HD33: 5 | HE33: 4 | HF33: 2 | HG33: 1 | HH33: 0 | HI33: 0 | HJ33: 0 | HK33: 0 | HL33: 0 | HM33: 0 | HN33: 0 | HO33: 0 | HP33: 1 | HQ33: 3 | HR33: 2 | HS33: 0 | HT33: 0 | HU33: 0 | HV33: 0 | HW33: 0 | HX33: 0 | HY33: 0 | HZ33: 0 | IA33: 0 | IB33: 0 | IC33: 0 | ID33: 0 | IE33: 0 | IF33: 2 | IG33: 2 | IH33: 2 | II33: 1 | IJ33: 1 | IK33: 1 | IL33: 3 | IM33: 3 | IN33: 2 | IO33: 3 | IP33: 1 | IQ33: 11 | IR33: 11 | IS33: 47 | IT33: 55 | IU33: 59 | IV33: 64 | IW33: 68 | IX33: 41 | IY33: 38 | IZ33: 37 | JA33: 27 | JB33: 29 | JC33: 28 | JD33: 11 | JE33: 9 | JF33: 9 | JG33: 9 | JH33: 7 | JI33: 5 | JJ33: 5 | JK33: 23 | JL33: 23 | JM33: 24 | JN33: 23 | JO33: 24 | JP33: 17 | JQ33: 15 | JR33: 14 | JS33: 15 | JT33: 11 | JU33: 10 | JV33: 14 | JW33: 14 | JX33: 21 | JY33: 27 | JZ33: 41 | KA33: 37 | KB33: 37.3238809 | KC33: 37.6477618 | KD33: 37.9716427 | KE33: 38.2955236 | KF33: 38.6194045 | KG33: 38.9432854 | KH33: 39.2671663 | KI33: 39.59104721 | KJ33: 39.91492811 | KK33: 40.23880901 | KL33: 40.56268991 | KM33: 40.88657081 | KN33: 41.21045171 | KO33: 41.53433261 | KP33: 41.85821351 | KQ33: 42.18209441 | KR33: 42.50597531 | KS33: 42.82985621 | KT33: 43.15373711 | KU33: 43.47761801 | KV33: 43.80149891 | KW33: 44.12537982 | KX33: 44.44926072 | KY33: 44.77314162 | KZ33: 45.09702252 | LA33: 45.42090342 | LB33: 45.74478432 | LC33: 46.06866522 | LD33: 46.39254612 | LE33: 46.71642702 | LF33: 47.04030792 | LG33: 47.36418882 | LH33: 47.68806972 | LI33: 48.01195062 | LJ33: 48.33583152 | LK33: 48.65971243
C34: Červenec | D34: 0.75 | AC34: Plzeňský kraj | AD34: 0 | AE34: 0 | AF34: 0 | AG34: 0 | AH34: 0 | AI34: 0 | AJ34: 0 | AK34: 2 | AL34: 3 | AM34: 3 | AN34: 1 | AO34: 1 | AP34: 10 | AQ34: 0 | AR34: 0 | AS34: 0 | AT34: 0 | AU34: 0 | AV34: 0 | AW34: 0 | AX34: 0 | AY34: 1 | AZ34: 1 | BA34: 1 | BB34: 0 | BC34: 3 | BD34: 0 | BE34: 0 | BF34: 0 | BG34: 0 | BH34: 0 | BI34: 0 | BJ34: 0 | BK34: 0 | BL34: 1 | BM34: 2 | BN34: 2 | BO34: 0 | BP34: 5 | BQ34: 3 | BR34: 3 | BS34: 3 | BT34: 2 | BU34: 2 | BV34: 2 | BW34: 5 | BX34: 4 | BY34: 4 | BZ34: 4 | CA34: 2 | CB34: 16 | CC34: 50 | CD34: 9 | CE34: 37 | CF34: 44 | CG34: 47 | CH34: 51 | CI34: 54 | CJ34: 33 | CK34: 30 | CL34: 30 | CM34: 22 | CN34: 24 | CO34: 23 | CP34: 404 | CQ34: 22 | CR34: 17 | CS34: 18 | CT34: 17 | CU34: 14 | CV34: 10 | CW34: 11 | CX34: 46 | CY34: 46 | CZ34: 47 | DA34: 45 | DB34: 47 | DC34: 340 | DD34: 21 | DE34: 18 | DF34: 17 | DG34: 18 | DH34: 14 | DI34: 12 | DJ34: 18 | DK34: 18 | DL34: 27 | DM34: 33 | DN34: 51 | DO34: 46 | DP34: 293 | DQ34: 46.77918075 | DR34: 47.19848849 | DS34: 47.61779623 | DT34: 48.03710397 | DU34: 48.45641171 | DV34: 48.87571945 | DW34: 49.29502719 | DX34: 49.71433493 | DY34: 50.13364267 | DZ34: 50.55295041 | EA34: 50.97225815 | EB34: 51.39156589 | EC34: 589.0244799 | ED34: 10 | EE34: 3 | EF34: 5 | EG34: 50 | EH34: 404 | EI34: 340 | EJ34: 293 | EK34: 589.0244799 | EL34: 51.81087363 | EM34: 52.23018138 | EN34: 52.64948912 | EO34: 53.06879686 | EP34: 53.4881046 | EQ34: 53.90741234 | ER34: 54.32672008 | ES34: 54.74602782 | ET34: 55.16533556 | EU34: 55.5846433 | EV34: 56.00395104 | EW34: 56.42325878 | EX34: 649.4047945 | EY34: 10 | EZ34: 3 | FA34: 5 | FB34: 50 | FC34: 404 | FD34: 340 | FE34: 293 | FF34: 589.0244799 | FG34: 649.4047945 | FH34: 56.84256652 | FI34: 57.26187426 | FJ34: 57.681182 | FK34: 58.10048974 | FL34: 58.51979748 | FM34: 58.93910522 | FN34: 59.35841296 | FO34: 59.7777207 | FP34: 60.19702844 | FQ34: 60.61633618 | FR34: 61.03564392 | FS34: 61.45495166 | FT34: 709.7851091 | FU34: 10 | FV34: 3 | FW34: 5 | FX34: 50 | FY34: 404 | FZ34: 340 | GA34: 293 | GB34: 589.0244799 | GC34: 649.4047945 | GD34: 709.7851091 | GU34: Plzeňský kraj | GV34: 0 | GW34: 0 | GX34: 0 | GY34: 0 | GZ34: 0 | HA34: 0 | HB34: 0 | HC34: 2 | HD34: 3 | HE34: 3 | HF34: 1 | HG34: 1 | HH34: 0 | HI34: 0 | HJ34: 0 | HK34: 0 | HL34: 0 | HM34: 0 | HN34: 0 | HO34: 0 | HP34: 1 | HQ34: 1 | HR34: 1 | HS34: 0 | HT34: 0 | HU34: 0 | HV34: 0 | HW34: 0 | HX34: 0 | HY34: 0 | HZ34: 0 | IA34: 0 | IB34: 1 | IC34: 2 | ID34: 2 | IE34: 0 | IF34: 3 | IG34: 3 | IH34: 3 | II34: 2 | IJ34: 2 | IK34: 2 | IL34: 5 | IM34: 4 | IN34: 4 | IO34: 4 | IP34: 2 | IQ34: 16 | IR34: 9 | IS34: 37 | IT34: 44 | IU34: 47 | IV34: 51 | IW34: 54 | IX34: 33 | IY34: 30 | IZ34: 30 | JA34: 22 | JB34: 24 | JC34: 23 | JD34: 22 | JE34: 17 | JF34: 18 | JG34: 17 | JH34: 14 | JI34: 10 | JJ34: 11 | JK34: 46 | JL34: 46 | JM34: 47 | JN34: 45 | JO34: 47 | JP34: 21 | JQ34: 18 | JR34: 17 | JS34: 18 | JT34: 14 | JU34: 12 | JV34: 18 | JW34: 18 | JX34: 27 | JY34: 33 | JZ34: 51 | KA34: 46 | KB34: 46.77918075 | KC34: 47.19848849 | KD34: 47.61779623 | KE34: 48.03710397 | KF34: 48.45641171 | KG34: 48.87571945 | KH34: 49.29502719 | KI34: 49.71433493 | KJ34: 50.13364267 | KK34: 50.55295041 | KL34: 50.97225815 | KM34: 51.39156589 | KN34: 51.81087363 | KO34: 52.23018138 | KP34: 52.64948912 | KQ34: 53.06879686 | KR34: 53.4881046 | KS34: 53.90741234 | KT34: 54.32672008 | KU34: 54.74602782 | KV34: 55.16533556 | KW34: 55.5846433 | KX34: 56.00395104 | KY34: 56.42325878 | KZ34: 56.84256652 | LA34: 57.26187426 | LB34: 57.681182 | LC34: 58.10048974 | LD34: 58.51979748 | LE34: 58.93910522 | LF34: 59.35841296 | LG34: 59.7777207 | LH34: 60.19702844 | LI34: 60.61633618 | LJ34: 61.03564392 | LK34: 61.45495166
C35: Srpen | D35: 0.75 | AC35: Jihočeský kraj | AD35: 0 | AE35: 0 | AF35: 0 | AG35: 0 | AH35: 0 | AI35: 0 | AJ35: 0 | AK35: 2 | AL35: 4 | AM35: 4 | AN35: 1 | AO35: 1 | AP35: 12 | AQ35: 0 | AR35: 0 | AS35: 0 | AT35: 0 | AU35: 0 | AV35: 0 | AW35: 0 | AX35: 0 | AY35: 1 | AZ35: 3 | BA35: 2 | BB35: 0 | BC35: 6 | BD35: 0 | BE35: 0 | BF35: 0 | BG35: 0 | BH35: 0 | BI35: 0 | BJ35: 0 | BK35: 0 | BL35: 1 | BM35: 3 | BN35: 2 | BO35: 0 | BP35: 6 | BQ35: 3 | BR35: 2 | BS35: 3 | BT35: 1 | BU35: 2 | BV35: 2 | BW35: 4 | BX35: 3 | BY35: 3 | BZ35: 4 | CA35: 2 | CB35: 14 | CC35: 43 | CD35: 9 | CE35: 37 | CF35: 44 | CG35: 47 | CH35: 51 | CI35: 54 | CJ35: 33 | CK35: 30 | CL35: 30 | CM35: 22 | CN35: 24 | CO35: 23 | CP35: 404 | CQ35: 29 | CR35: 23 | CS35: 25 | CT35: 23 | CU35: 19 | CV35: 13 | CW35: 14 | CX35: 61 | CY35: 62 | CZ35: 63 | DA35: 60 | DB35: 63 | DC35: 455 | DD35: 19 | DE35: 16 | DF35: 16 | DG35: 17 | DH35: 12 | DI35: 11 | DJ35: 16 | DK35: 16 | DL35: 24 | DM35: 30 | DN35: 46 | DO35: 41 | DP35: 264 | DQ35: 33.17283202 | DR35: 33.64276385 | DS35: 33.72392453 | DT35: 32.40488097 | DU35: 32.79525328 | DV35: 32.66969664 | DW35: 33.13827215 | DX35: 38.34250915 | DY35: 38.85288946 | DZ35: 38.6924308 | EA35: 37.7510625 | EB35: 37.85852914 | EC35: 423.0450445 | ED35: 12 | EE35: 6 | EF35: 6 | EG35: 43 | EH35: 404 | EI35: 455 | EJ35: 264 | EK35: 423.0450445 | EL35: 38.24714155 | EM35: 39.07939023 | EN35: 38.86180028 | EO35: 38.36862471 | EP35: 39.77036606 | EQ35: 40.2402979 | ER35: 40.32145858 | ES35: 39.00241501 | ET35: 39.39278732 | EU35: 39.26723068 | EV35: 39.73580619 | EW35: 44.94004319 | EX35: 477.2273617 | EY35: 12 | EZ35: 6 | FA35: 6 | FB35: 43 | FC35: 404 | FD35: 455 | FE35: 264 | FF35: 423.0450445 | FG35: 477.2273617 | FH35: 45.4504235 | FI35: 45.28996485 | FJ35: 44.34859654 | FK35: 44.45606318 | FL35: 44.84467559 | FM35: 45.67692427 | FN35: 45.45933432 | FO35: 44.96615875 | FP35: 46.3679001 | FQ35: 46.83783194 | FR35: 46.91899262 | FS35: 45.59994905 | FT35: 546.2168147 | FU35: 12 | FV35: 6 | FW35: 6 | FX35: 43 | FY35: 404 | FZ35: 455 | GA35: 264 | GB35: 423.0450445 | GC35: 477.2273617 | GD35: 546.2168147 | GU35: Jihočeský kraj | GV35: 0 | GW35: 0 | GX35: 0 | GY35: 0 | GZ35: 0 | HA35: 0 | HB35: 0 | HC35: 2 | HD35: 4 | HE35: 4 | HF35: 1 | HG35: 1 | HH35: 0 | HI35: 0 | HJ35: 0 | HK35: 0 | HL35: 0 | HM35: 0 | HN35: 0 | HO35: 0 | HP35: 1 | HQ35: 3 | HR35: 2 | HS35: 0 | HT35: 0 | HU35: 0 | HV35: 0 | HW35: 0 | HX35: 0 | HY35: 0 | HZ35: 0 | IA35: 0 | IB35: 1 | IC35: 3 | ID35: 2 | IE35: 0 | IF35: 3 | IG35: 2 | IH35: 3 | II35: 1 | IJ35: 2 | IK35: 2 | IL35: 4 | IM35: 3 | IN35: 3 | IO35: 4 | IP35: 2 | IQ35: 14 | IR35: 9 | IS35: 37 | IT35: 44 | IU35: 47 | IV35: 51 | IW35: 54 | IX35: 33 | IY35: 30 | IZ35: 30 | JA35: 22 | JB35: 24 | JC35: 23 | JD35: 29 | JE35: 23 | JF35: 25 | JG35: 23 | JH35: 19 | JI35: 13 | JJ35: 14 | JK35: 61 | JL35: 62 | JM35: 63 | JN35: 60 | JO35: 63 | JP35: 19 | JQ35: 16 | JR35: 16 | JS35: 17 | JT35: 12 | JU35: 11 | JV35: 16 | JW35: 16 | JX35: 24 | JY35: 30 | JZ35: 46 | KA35: 41 | KB35: 33.17283202 | KC35: 33.64276385 | KD35: 33.72392453 | KE35: 32.40488097 | KF35: 32.79525328 | KG35: 32.66969664 | KH35: 33.13827215 | KI35: 38.34250915 | KJ35: 38.85288946 | KK35: 38.6924308 | KL35: 37.7510625 | KM35: 37.85852914 | KN35: 38.24714155 | KO35: 39.07939023 | KP35: 38.86180028 | KQ35: 38.36862471 | KR35: 39.77036606 | KS35: 40.2402979 | KT35: 40.32145858 | KU35: 39.00241501 | KV35: 39.39278732 | KW35: 39.26723068 | KX35: 39.73580619 | KY35: 44.94004319 | KZ35: 45.4504235 | LA35: 45.28996485 | LB35: 44.34859654 | LC35: 44.45606318 | LD35: 44.84467559 | LE35: 45.67692427 | LF35: 45.45933432 | LG35: 44.96615875 | LH35: 46.3679001 | LI35: 46.83783194 | LJ35: 46.91899262 | LK35: 45.59994905
C36: Září | D36: 0.75 | AC36: Jihomoravský kraj | AD36: 0 | AE36: 0 | AF36: 0 | AG36: 0 | AH36: 0 | AI36: 0 | AJ36: 0 | AK36: 6 | AL36: 10 | AM36: 9 | AN36: 3 | AO36: 2 | AP36: 30 | AQ36: 0 | AR36: 0 | AS36: 0 | AT36: 0 | AU36: 0 | AV36: 0 | AW36: 0 | AX36: 0 | AY36: 2 | AZ36: 4 | BA36: 3 | BB36: 0 | BC36: 9 | BD36: 0 | BE36: 0 | BF36: 0 | BG36: 0 | BH36: 0 | BI36: 0 | BJ36: 0 | BK36: 0 | BL36: 3 | BM36: 5 | BN36: 4 | BO36: 0 | BP36: 12 | BQ36: 5 | BR36: 4 | BS36: 5 | BT36: 3 | BU36: 3 | BV36: 3 | BW36: 8 | BX36: 6 | BY36: 6 | BZ36: 7 | CA36: 3 | CB36: 25 | CC36: 78 | CD36: 11 | CE36: 47 | CF36: 55 | CG36: 59 | CH36: 64 | CI36: 68 | CJ36: 41 | CK36: 38 | CL36: 37 | CM36: 27 | CN36: 29 | CO36: 28 | CP36: 504 | CQ36: 25 | CR36: 20 | CS36: 21 | CT36: 20 | CU36: 16 | CV36: 12 | CW36: 13 | CX36: 53 | CY36: 54 | CZ36: 55 | DA36: 53 | DB36: 55 | DC36: 397 | DD36: 13 | DE36: 11 | DF36: 10 | DG36: 11 | DH36: 8 | DI36: 7 | DJ36: 11 | DK36: 11 | DL36: 16 | DM36: 20 | DN36: 30 | DO36: 27 | DP36: 175 | DQ36: 27.60486746 | DR36: 27.97317018 | DS36: 28.34147289 | DT36: 28.7097756 | DU36: 29.07807832 | DV36: 29.44638103 | DW36: 29.81468375 | DX36: 30.18298646 | DY36: 30.55128917 | DZ36: 30.91959189 | EA36: 31.2878946 | EB36: 31.65619732 | EC36: 355.5663887 | ED36: 30 | EE36: 9 | EF36: 12 | EG36: 78 | EH36: 504 | EI36: 397 | EJ36: 175 | EK36: 355.5663887 | EL36: 32.02450003 | EM36: 32.39280274 | EN36: 32.76110546 | EO36: 33.12940817 | EP36: 33.49771089 | EQ36: 33.8660136 | ER36: 34.23431631 | ES36: 34.60261903 | ET36: 34.97092174 | EU36: 35.33922445 | EV36: 35.70752717 | EW36: 36.07582988 | EX36: 408.6019795 | EY36: 30 | EZ36: 9 | FA36: 12 | FB36: 78 | FC36: 504 | FD36: 397 | FE36: 175 | FF36: 355.5663887 | FG36: 408.6019795 | FH36: 36.4441326 | FI36: 36.81243531 | FJ36: 37.18073802 | FK36: 37.54904074 | FL36: 37.91734345 | FM36: 38.28564617 | FN36: 38.65394888 | FO36: 39.02225159 | FP36: 39.39055431 | FQ36: 39.75885702 | FR36: 40.12715974 | FS36: 40.49546245 | FT36: 461.6375703 | FU36: 30 | FV36: 9 | FW36: 12 | FX36: 78 | FY36: 504 | FZ36: 397 | GA36: 175 | GB36: 355.5663887 | GC36: 408.6019795 | GD36: 461.6375703 | GU36: Jihomoravský kraj | GV36: 0 | GW36: 0 | GX36: 0 | GY36: 0 | GZ36: 0 | HA36: 0 | HB36: 0 | HC36: 6 | HD36: 10 | HE36: 9 | HF36: 3 | HG36: 2 | HH36: 0 | HI36: 0 | HJ36: 0 | HK36: 0 | HL36: 0 | HM36: 0 | HN36: 0 | HO36: 0 | HP36: 2 | HQ36: 4 | HR36: 3 | HS36: 0 | HT36: 0 | HU36: 0 | HV36: 0 | HW36: 0 | HX36: 0 | HY36: 0 | HZ36: 0 | IA36: 0 | IB36: 3 | IC36: 5 | ID36: 4 | IE36: 0 | IF36: 5 | IG36: 4 | IH36: 5 | II36: 3 | IJ36: 3 | IK36: 3 | IL36: 8 | IM36: 6 | IN36: 6 | IO36: 7 | IP36: 3 | IQ36: 25 | IR36: 11 | IS36: 47 | IT36: 55 | IU36: 59 | IV36: 64 | IW36: 68 | IX36: 41 | IY36: 38 | IZ36: 37 | JA36: 27 | JB36: 29 | JC36: 28 | JD36: 25 | JE36: 20 | JF36: 21 | JG36: 20 | JH36: 16 | JI36: 12 | JJ36: 13 | JK36: 53 | JL36: 54 | JM36: 55 | JN36: 53 | JO36: 55 | JP36: 13 | JQ36: 11 | JR36: 10 | JS36: 11 | JT36: 8 | JU36: 7 | JV36: 11 | JW36: 11 | JX36: 16 | JY36: 20 | JZ36: 30 | KA36: 27 | KB36: 27.60486746 | KC36: 27.97317018 | KD36: 28.34147289 | KE36: 28.7097756 | KF36: 29.07807832 | KG36: 29.44638103 | KH36: 29.81468375 | KI36: 30.18298646 | KJ36: 30.55128917 | KK36: 30.91959189 | KL36: 31.2878946 | KM36: 31.65619732 | KN36: 32.02450003 | KO36: 32.39280274 | KP36: 32.76110546 | KQ36: 33.12940817 | KR36: 33.49771089 | KS36: 33.8660136 | KT36: 34.23431631 | KU36: 34.60261903 | KV36: 34.97092174 | KW36: 35.33922445 | KX36: 35.70752717 | KY36: 36.07582988 | KZ36: 36.4441326 | LA36: 36.81243531 | LB36: 37.18073802 | LC36: 37.54904074 | LD36: 37.91734345 | LE36: 38.28564617 | LF36: 38.65394888 | LG36: 39.02225159 | LH36: 39.39055431 | LI36: 39.75885702 | LJ36: 40.12715974 | LK36: 40.49546245
C37: Říjen | D37: 0.9 | AC37: Pardubický kraj | AD37: 0 | AE37: 0 | AF37: 0 | AG37: 0 | AH37: 0 | AI37: 0 | AJ37: 0 | AK37: 2 | AL37: 4 | AM37: 4 | AN37: 1 | AO37: 1 | AP37: 12 | AQ37: 0 | AR37: 0 | AS37: 0 | AT37: 0 | AU37: 0 | AV37: 0 | AW37: 0 | AX37: 0 | AY37: 1 | AZ37: 2 | BA37: 1 | BB37: 0 | BC37: 4 | BD37: 0 | BE37: 0 | BF37: 0 | BG37: 0 | BH37: 0 | BI37: 0 | BJ37: 0 | BK37: 0 | BL37: 2 | BM37: 3 | BN37: 3 | BO37: 0 | BP37: 8 | BQ37: 3 | BR37: 3 | BS37: 3 | BT37: 2 | BU37: 2 | BV37: 2 | BW37: 6 | BX37: 4 | BY37: 4 | BZ37: 5 | CA37: 2 | CB37: 18 | CC37: 54 | CD37: 9 | CE37: 37 | CF37: 44 | CG37: 47 | CH37: 51 | CI37: 54 | CJ37: 33 | CK37: 30 | CL37: 30 | CM37: 22 | CN37: 24 | CO37: 23 | CP37: 404 | CQ37: 25 | CR37: 20 | CS37: 21 | CT37: 20 | CU37: 16 | CV37: 12 | CW37: 13 | CX37: 53 | CY37: 54 | CZ37: 55 | DA37: 53 | DB37: 55 | DC37: 397 | DD37: 21 | DE37: 18 | DF37: 17 | DG37: 18 | DH37: 14 | DI37: 12 | DJ37: 18 | DK37: 18 | DL37: 27 | DM37: 33 | DN37: 51 | DO37: 46 | DP37: 293 | DQ37: 46.80264576 | DR37: 47.24306939 | DS37: 47.68349302 | DT37: 48.12391665 | DU37: 48.56434028 | DV37: 49.00476392 | DW37: 49.44518755 | DX37: 49.88561118 | DY37: 50.32603481 | DZ37: 50.76645844 | EA37: 51.20688208 | EB37: 51.64730571 | EC37: 590.6997088 | ED37: 12 | EE37: 4 | EF37: 8 | EG37: 54 | EH37: 404 | EI37: 397 | EJ37: 293 | EK37: 590.6997088 | EL37: 52.08772934 | EM37: 52.52815297 | EN37: 52.96857661 | EO37: 53.40900024 | EP37: 53.84942387 | EQ37: 54.2898475 | ER37: 54.73027113 | ES37: 55.17069477 | ET37: 55.6111184 | EU37: 56.05154203 | EV37: 56.49196566 | EW37: 56.93238929 | EX37: 654.1207118 | EY37: 12 | EZ37: 4 | FA37: 8 | FB37: 54 | FC37: 404 | FD37: 397 | FE37: 293 | FF37: 590.6997088 | FG37: 654.1207118 | FH37: 57.37281293 | FI37: 57.81323656 | FJ37: 58.25366019 | FK37: 58.69408382 | FL37: 59.13450745 | FM37: 59.57493109 | FN37: 60.01535472 | FO37: 60.45577835 | FP37: 60.89620198 | FQ37: 61.33662562 | FR37: 61.77704925 | FS37: 62.21747288 | FT37: 717.5417148 | FU37: 12 | FV37: 4 | FW37: 8 | FX37: 54 | FY37: 404 | FZ37: 397 | GA37: 293 | GB37: 590.6997088 | GC37: 654.1207118 | GD37: 717.5417148 | GU37: Pardubický kraj | GV37: 0 | GW37: 0 | GX37: 0 | GY37: 0 | GZ37: 0 | HA37: 0 | HB37: 0 | HC37: 2 | HD37: 4 | HE37: 4 | HF37: 1 | HG37: 1 | HH37: 0 | HI37: 0 | HJ37: 0 | HK37: 0 | HL37: 0 | HM37: 0 | HN37: 0 | HO37: 0 | HP37: 1 | HQ37: 2 | HR37: 1 | HS37: 0 | HT37: 0 | HU37: 0 | HV37: 0 | HW37: 0 | HX37: 0 | HY37: 0 | HZ37: 0 | IA37: 0 | IB37: 2 | IC37: 3 | ID37: 3 | IE37: 0 | IF37: 3 | IG37: 3 | IH37: 3 | II37: 2 | IJ37: 2 | IK37: 2 | IL37: 6 | IM37: 4 | IN37: 4 | IO37: 5 | IP37: 2 | IQ37: 18 | IR37: 9 | IS37: 37 | IT37: 44 | IU37: 47 | IV37: 51 | IW37: 54 | IX37: 33 | IY37: 30 | IZ37: 30 | JA37: 22 | JB37: 24 | JC37: 23 | JD37: 25 | JE37: 20 | JF37: 21 | JG37: 20 | JH37: 16 | JI37: 12 | JJ37: 13 | JK37: 53 | JL37: 54 | JM37: 55 | JN37: 53 | JO37: 55 | JP37: 21 | JQ37: 18 | JR37: 17 | JS37: 18 | JT37: 14 | JU37: 12 | JV37: 18 | JW37: 18 | JX37: 27 | JY37: 33 | JZ37: 51 | KA37: 46 | KB37: 46.80264576 | KC37: 47.24306939 | KD37: 47.68349302 | KE37: 48.12391665 | KF37: 48.56434028 | KG37: 49.00476392 | KH37: 49.44518755 | KI37: 49.88561118 | KJ37: 50.32603481 | KK37: 50.76645844 | KL37: 51.20688208 | KM37: 51.64730571 | KN37: 52.08772934 | KO37: 52.52815297 | KP37: 52.96857661 | KQ37: 53.40900024 | KR37: 53.84942387 | KS37: 54.2898475 | KT37: 54.73027113 | KU37: 55.17069477 | KV37: 55.6111184 | KW37: 56.05154203 | KX37: 56.49196566 | KY37: 56.93238929 | KZ37: 57.37281293 | LA37: 57.81323656 | LB37: 58.25366019 | LC37: 58.69408382 | LD37: 59.13450745 | LE37: 59.57493109 | LF37: 60.01535472 | LG37: 60.45577835 | LH37: 60.89620198 | LI37: 61.33662562 | LJ37: 61.77704925 | LK37: 62.21747288
C38: Listopad | D38: 1 | AC38: Královehradecký kraj | AD38: 0 | AE38: 0 | AF38: 0 | AG38: 0 | AH38: 0 | AI38: 0 | AJ38: 0 | AK38: 3 | AL38: 5 | AM38: 4 | AN38: 2 | AO38: 1 | AP38: 15 | AQ38: 0 | AR38: 0 | AS38: 0 | AT38: 0 | AU38: 0 | AV38: 0 | AW38: 0 | AX38: 0 | AY38: 1 | AZ38: 2 | BA38: 1 | BB38: 0 | BC38: 4 | BD38: 0 | BE38: 0 | BF38: 0 | BG38: 0 | BH38: 0 | BI38: 0 | BJ38: 0 | BK38: 0 | BL38: 1 | BM38: 2 | BN38: 2 | BO38: 0 | BP38: 5 | BQ38: 2 | BR38: 1 | BS38: 2 | BT38: 1 | BU38: 1 | BV38: 1 | BW38: 3 | BX38: 2 | BY38: 2 | BZ38: 2 | CA38: 1 | CB38: 9 | CC38: 27 | CD38: 6 | CE38: 23 | CF38: 28 | CG38: 30 | CH38: 32 | CI38: 34 | CJ38: 20 | CK38: 19 | CL38: 19 | CM38: 13 | CN38: 15 | CO38: 14 | CP38: 253 | CQ38: 33 | CR38: 26 | CS38: 28 | CT38: 26 | CU38: 21 | CV38: 15 | CW38: 16 | CX38: 69 | CY38: 69 | CZ38: 71 | DA38: 68 | DB38: 71 | DC38: 513 | DD38: 11 | DE38: 9 | DF38: 9 | DG38: 9 | DH38: 7 | DI38: 6 | DJ38: 9 | DK38: 9 | DL38: 13 | DM38: 17 | DN38: 25 | DO38: 23 | DP38: 147 | DQ38: 23.35660608 | DR38: 23.71321215 | DS38: 24.06981823 | DT38: 24.42642431 | DU38: 24.78303039 | DV38: 25.13963646 | DW38: 25.49624254 | DX38: 25.85284862 | DY38: 26.20945469 | DZ38: 26.56606077 | EA38: 26.92266685 | EB38: 27.27927292 | EC38: 303.815274 | ED38: 15 | EE38: 4 | EF38: 5 | EG38: 27 | EH38: 253 | EI38: 513 | EJ38: 147 | EK38: 303.815274 | EL38: 27.635879 | EM38: 27.99248508 | EN38: 28.34909116 | EO38: 28.70569723 | EP38: 29.06230331 | EQ38: 29.41890939 | ER38: 29.77551546 | ES38: 30.13212154 | ET38: 30.48872762 | EU38: 30.8453337 | EV38: 31.20193977 | EW38: 31.55854585 | EX38: 355.1665491 | EY38: 15 | EZ38: 4 | FA38: 5 | FB38: 27 | FC38: 253 | FD38: 513 | FE38: 147 | FF38: 303.815274 | FG38: 355.1665491 | FH38: 31.91515193 | FI38: 32.271758 | FJ38: 32.62836408 | FK38: 32.98497016 | FL38: 33.34157623 | FM38: 33.69818231 | FN38: 34.05478839 | FO38: 34.41139447 | FP38: 34.76800054 | FQ38: 35.12460662 | FR38: 35.4812127 | FS38: 35.83781877 | FT38: 406.5178242 | FU38: 15 | FV38: 4 | FW38: 5 | FX38: 27 | FY38: 253 | FZ38: 513 | GA38: 147 | GB38: 303.815274 | GC38: 355.1665491 | GD38: 406.5178242 | GU38: Královehradecký kraj | GV38: 0 | GW38: 0 | GX38: 0 | GY38: 0 | GZ38: 0 | HA38: 0 | HB38: 0 | HC38: 3 | HD38: 5 | HE38: 4 | HF38: 2 | HG38: 1 | HH38: 0 | HI38: 0 | HJ38: 0 | HK38: 0 | HL38: 0 | HM38: 0 | HN38: 0 | HO38: 0 | HP38: 1 | HQ38: 2 | HR38: 1 | HS38: 0 | HT38: 0 | HU38: 0 | HV38: 0 | HW38: 0 | HX38: 0 | HY38: 0 | HZ38: 0 | IA38: 0 | IB38: 1 | IC38: 2 | ID38: 2 | IE38: 0 | IF38: 2 | IG38: 1 | IH38: 2 | II38: 1 | IJ38: 1 | IK38: 1 | IL38: 3 | IM38: 2 | IN38: 2 | IO38: 2 | IP38: 1 | IQ38: 9 | IR38: 6 | IS38: 23 | IT38: 28 | IU38: 30 | IV38: 32 | IW38: 34 | IX38: 20 | IY38: 19 | IZ38: 19 | JA38: 13 | JB38: 15 | JC38: 14 | JD38: 33 | JE38: 26 | JF38: 28 | JG38: 26 | JH38: 21 | JI38: 15 | JJ38: 16 | JK38: 69 | JL38: 69 | JM38: 71 | JN38: 68 | JO38: 71 | JP38: 11 | JQ38: 9 | JR38: 9 | JS38: 9 | JT38: 7 | JU38: 6 | JV38: 9 | JW38: 9 | JX38: 13 | JY38: 17 | JZ38: 25 | KA38: 23 | KB38: 23.35660608 | KC38: 23.71321215 | KD38: 24.06981823 | KE38: 24.42642431 | KF38: 24.78303039 | KG38: 25.13963646 | KH38: 25.49624254 | KI38: 25.85284862 | KJ38: 26.20945469 | KK38: 26.56606077 | KL38: 26.92266685 | KM38: 27.27927292 | KN38: 27.635879 | KO38: 27.99248508 | KP38: 28.34909116 | KQ38: 28.70569723 | KR38: 29.06230331 | KS38: 29.41890939 | KT38: 29.77551546 | KU38: 30.13212154 | KV38: 30.48872762 | KW38: 30.8453337 | KX38: 31.20193977 | KY38: 31.55854585 | KZ38: 31.91515193 | LA38: 32.271758 | LB38: 32.62836408 | LC38: 32.98497016 | LD38: 33.34157623 | LE38: 33.69818231 | LF38: 34.05478839 | LG38: 34.41139447 | LH38: 34.76800054 | LI38: 35.12460662 | LJ38: 35.4812127 | LK38: 35.83781877
C39: Prosinec | D39: 1 | AC39: Kraj Vysočina | AD39: 0 | AE39: 0 | AF39: 0 | AG39: 0 | AH39: 0 | AI39: 0 | AJ39: 0 | AK39: 2 | AL39: 4 | AM39: 4 | AN39: 1 | AO39: 1 | AP39: 12 | AQ39: 0 | AR39: 0 | AS39: 0 | AT39: 0 | AU39: 0 | AV39: 0 | AW39: 0 | AX39: 0 | AY39: 1 | AZ39: 2 | BA39: 2 | BB39: 0 | BC39: 5 | BD39: 0 | BE39: 0 | BF39: 0 | BG39: 0 | BH39: 0 | BI39: 0 | BJ39: 0 | BK39: 0 | BL39: 1 | BM39: 3 | BN39: 2 | BO39: 0 | BP39: 6 | BQ39: 1 | BR39: 1 | BS39: 1 | BT39: 1 | BU39: 1 | BV39: 1 | BW39: 2 | BX39: 2 | BY39: 2 | BZ39: 2 | CA39: 1 | CB39: 7 | CC39: 22 | CD39: 6 | CE39: 23 | CF39: 28 | CG39: 30 | CH39: 32 | CI39: 34 | CJ39: 20 | CK39: 19 | CL39: 19 | CM39: 13 | CN39: 15 | CO39: 14 | CP39: 253 | CQ39: 36 | CR39: 29 | CS39: 31 | CT39: 29 | CU39: 23 | CV39: 17 | CW39: 18 | CX39: 76 | CY39: 77 | CZ39: 79 | DA39: 75 | DB39: 79 | DC39: 569 | DD39: 19 | DE39: 16 | DF39: 16 | DG39: 17 | DH39: 12 | DI39: 11 | DJ39: 16 | DK39: 16 | DL39: 24 | DM39: 30 | DN39: 46 | DO39: 41 | DP39: 264 | DQ39: 41.83309253 | DR39: 42.28278582 | DS39: 42.73247911 | DT39: 43.1821724 | DU39: 43.63186569 | DV39: 44.08155898 | DW39: 44.53125227 | DX39: 44.98094556 | DY39: 45.43063885 | DZ39: 45.88033214 | EA39: 46.33002542 | EB39: 46.77971871 | EC39: 531.6768675 | ED39: 12 | EE39: 5 | EF39: 6 | EG39: 22 | EH39: 253 | EI39: 569 | EJ39: 264 | EK39: 531.6768675 | EL39: 47.229412 | EM39: 47.67910529 | EN39: 48.12879858 | EO39: 48.57849187 | EP39: 49.02818516 | EQ39: 49.47787845 | ER39: 49.92757174 | ES39: 50.37726503 | ET39: 50.82695831 | EU39: 51.2766516 | EV39: 51.72634489 | EW39: 52.17603818 | EX39: 596.4327011 | EY39: 12 | EZ39: 5 | FA39: 6 | FB39: 22 | FC39: 253 | FD39: 569 | FE39: 264 | FF39: 531.6768675 | FG39: 596.4327011 | FH39: 52.62573147 | FI39: 53.07542476 | FJ39: 53.52511805 | FK39: 53.97481134 | FL39: 54.42450463 | FM39: 54.87419792 | FN39: 55.32389121 | FO39: 55.77358449 | FP39: 56.22327778 | FQ39: 56.67297107 | FR39: 57.12266436 | FS39: 57.57235765 | FT39: 661.1885347 | FU39: 12 | FV39: 5 | FW39: 6 | FX39: 22 | FY39: 253 | FZ39: 569 | GA39: 264 | GB39: 531.6768675 | GC39: 596.4327011 | GD39: 661.1885347 | GU39: Kraj Vysočina | GV39: 0 | GW39: 0 | GX39: 0 | GY39: 0 | GZ39: 0 | HA39: 0 | HB39: 0 | HC39: 2 | HD39: 4 | HE39: 4 | HF39: 1 | HG39: 1 | HH39: 0 | HI39: 0 | HJ39: 0 | HK39: 0 | HL39: 0 | HM39: 0 | HN39: 0 | HO39: 0 | HP39: 1 | HQ39: 2 | HR39: 2 | HS39: 0 | HT39: 0 | HU39: 0 | HV39: 0 | HW39: 0 | HX39: 0 | HY39: 0 | HZ39: 0 | IA39: 0 | IB39: 1 | IC39: 3 | ID39: 2 | IE39: 0 | IF39: 1 | IG39: 1 | IH39: 1 | II39: 1 | IJ39: 1 | IK39: 1 | IL39: 2 | IM39: 2 | IN39: 2 | IO39: 2 | IP39: 1 | IQ39: 7 | IR39: 6 | IS39: 23 | IT39: 28 | IU39: 30 | IV39: 32 | IW39: 34 | IX39: 20 | IY39: 19 | IZ39: 19 | JA39: 13 | JB39: 15 | JC39: 14 | JD39: 36 | JE39: 29 | JF39: 31 | JG39: 29 | JH39: 23 | JI39: 17 | JJ39: 18 | JK39: 76 | JL39: 77 | JM39: 79 | JN39: 75 | JO39: 79 | JP39: 19 | JQ39: 16 | JR39: 16 | JS39: 17 | JT39: 12 | JU39: 11 | JV39: 16 | JW39: 16 | JX39: 24 | JY39: 30 | JZ39: 46 | KA39: 41 | KB39: 41.83309253 | KC39: 42.28278582 | KD39: 42.73247911 | KE39: 43.1821724 | KF39: 43.63186569 | KG39: 44.08155898 | KH39: 44.53125227 | KI39: 44.98094556 | KJ39: 45.43063885 | KK39: 45.88033214 | KL39: 46.33002542 | KM39: 46.77971871 | KN39: 47.229412 | KO39: 47.67910529 | KP39: 48.12879858 | KQ39: 48.57849187 | KR39: 49.02818516 | KS39: 49.47787845 | KT39: =_xlfn.FORECAST.ETS(KT$27,$GV39:$KA39,$GV$27:$KA$27) -> 49.92757174 | KU39: 50.37726503 | KV39: 50.82695831 | KW39: 51.2766516 | KX39: 51.72634489 | KY39: 52.17603818 | KZ39: 52.62573147 | LA39: 53.07542476 | LB39: 53.52511805 | LC39: 53.97481134 | LD39: 54.42450463 | LE39: 54.87419792 | LF39: 55.32389121 | LG39: 55.77358449 | LH39: 56.22327778 | LI39: 56.67297107 | LJ39: 57.12266436 | LK39: 57.57235765
C40: Průměr | D40: =AVERAGE(D28:D39) -> 0.6875 | AC40: Středočeský kraj | AD40: 0 | AE40: 0 | AF40: 0 | AG40: 0 | AH40: 0 | AI40: 0 | AJ40: 0 | AK40: 6 | AL40: 10 | AM40: 9 | AN40: 3 | AO40: 2 | AP40: 30 | AQ40: 0 | AR40: 0 | AS40: 0 | AT40: 0 | AU40: 0 | AV40: 0 | AW40: 0 | AX40: 0 | AY40: 4 | AZ40: 7 | BA40: 6 | BB40: 0 | BC40: 17 | BD40: 0 | BE40: 0 | BF40: 0 | BG40: 0 | BH40: 0 | BI40: 0 | BJ40: 0 | BK40: 0 | BL40: 3 | BM40: 5 | BN40: 4 | BO40: 0 | BP40: 12 | BQ40: 11 | BR40: 9 | BS40: 11 | BT40: 6 | BU40: 7 | BV40: 7 | BW40: 18 | BX40: 14 | BY40: 13 | BZ40: 16 | CA40: 8 | CB40: 58 | CC40: 178 | CD40: 33 | CE40: 135 | CF40: 160 | CG40: 171 | CH40: 185 | CI40: 196 | CJ40: 118 | CK40: 109 | CL40: 109 | CM40: 78 | CN40: 85 | CO40: 83 | CP40: 1462 | CQ40: 65 | CR40: 52 | CS40: 55 | CT40: 52 | CU40: 42 | CV40: 30 | CW40: 32 | CX40: 137 | CY40: 139 | CZ40: 141 | DA40: 135 | DB40: 142 | DC40: 1022 | DD40: 28 | DE40: 24 | DF40: 23 | DG40: 24 | DH40: 18 | DI40: 16 | DJ40: 23 | DK40: 24 | DL40: 35 | DM40: 43 | DN40: 66 | DO40: 59 | DP40: 383 | DQ40: 60.53414963 | DR40: 61.4997585 | DS40: 62.46536738 | DT40: 63.43097626 | DU40: 64.39658514 | DV40: 65.36219401 | DW40: 66.32780289 | DX40: 67.29341177 | DY40: 68.25902065 | DZ40: 69.22462952 | EA40: 70.1902384 | EB40: 71.15584728 | EC40: 790.1399814 | ED40: 30 | EE40: 17 | EF40: 12 | EG40: 178 | EH40: 1462 | EI40: 1022 | EJ40: 383 | EK40: 790.1399814 | EL40: 72.12145616 | EM40: 73.08706503 | EN40: 74.05267391 | EO40: 75.01828279 | EP40: 75.98389166 | EQ40: 76.94950054 | ER40: 77.91510942 | ES40: 78.8807183 | ET40: 79.84632717 | EU40: 80.81193605 | EV40: 81.77754493 | EW40: 82.74315381 | EX40: 929.1876598 | EY40: 30 | EZ40: 17 | FA40: 12 | FB40: 178 | FC40: 1462 | FD40: 1022 | FE40: 383 | FF40: 790.1399814 | FG40: 929.1876598 | FH40: 83.70876268 | FI40: 84.67437156 | FJ40: 85.63998044 | FK40: 86.60558932 | FL40: 87.57119819 | FM40: 88.53680707 | FN40: 89.50241595 | FO40: 90.46802482 | FP40: 91.4336337 | FQ40: 92.39924258 | FR40: 93.36485146 | FS40: 94.33046033 | FT40: 1068.235338 | FU40: 30 | FV40: 17 | FW40: 12 | FX40: 178 | FY40: 1462 | FZ40: 1022 | GA40: 383 | GB40: 790.1399814 | GC40: 929.1876598 | GD40: 1068.235338 | GU40: Středočeský kraj | GV40: 0 | GW40: 0 | GX40: 0 | GY40: 0 | GZ40: 0 | HA40: 0 | HB40: 0 | HC40: 6 | HD40: 10 | HE40: 9 | HF40: 3 | HG40: 2 | HH40: 0 | HI40: 0 | HJ40: 0 | HK40: 0 | HL40: 0 | HM40: 0 | HN40: 0 | HO40: 0 | HP40: 4 | HQ40: 7 | HR40: 6 | HS40: 0 | HT40: 0 | HU40: 0 | HV40: 0 | HW40: 0 | HX40: 0 | HY40: 0 | HZ40: 0 | IA40: 0 | IB40: 3 | IC40: 5 | ID40: 4 | IE40: 0 | IF40: 11 | IG40: 9 | IH40: 11 | II40: 6 | IJ40: 7 | IK40: 7 | IL40: 18 | IM40: 14 | IN40: 13 | IO40: 16 | IP40: 8 | IQ40: 58 | IR40: 33 | IS40: 135 | IT40: 160 | IU40: 171 | IV40: 185 | IW40: 196 | IX40: 118 | IY40: 109 | IZ40: 109 | JA40: 78 | JB40: 85 | JC40: 83 | JD40: 65 | JE40: 52 | JF40: 55 | JG40: 52 | JH40: 42 | JI40: 30 | JJ40: 32 | JK40: 137 | JL40: 139 | JM40: 141 | JN40: 135 | JO40: 142 | JP40: 28 | JQ40: 24 | JR40: 23 | JS40: 24 | JT40: 18 | JU40: 16 | JV40: 23 | JW40: 24 | JX40: 35 | JY40: 43 | JZ40: 66 | KA40: 59 | KB40: 60.53414963 | KC40: 61.4997585 | KD40: 62.46536738 | KE40: 63.43097626 | KF40: 64.39658514 | KG40: 65.36219401 | KH40: 66.32780289 | KI40: 67.29341177 | KJ40: 68.25902065 | KK40: 69.22462952 | KL40: 70.1902384 | KM40: 71.15584728 | KN40: 72.12145616 | KO40: 73.08706503 | KP40: 74.05267391 | KQ40: 75.01828279 | KR40: 75.98389166 | KS40: 76.94950054 | KT40: 77.91510942 | KU40: 78.8807183 | KV40: 79.84632717 | KW40: 80.81193605 | KX40: 81.77754493 | KY40: 82.74315381 | KZ40: 83.70876268 | LA40: 84.67437156 | LB40: 85.63998044 | LC40: 86.60558932 | LD40: 87.57119819 | LE40: 88.53680707 | LF40: 89.50241595 | LG40: 90.46802482 | LH40: 91.4336337 | LI40: 92.39924258 | LJ40: 93.36485146 | LK40: 94.33046033
KB41: =SUM(KB28:KB40) -> 454.5614319 | KC41: =SUM(KC28:KC40) -> 460.3235072 | KD41: 463.5129172 | KE41: 462.6585288 | KF41: 466.6992213 | KG41: 469.5451957 | KH41: 476.3733659 | KI41: 505.6568389 | KJ41: 511.1843207 | KK41: 513.5871732 | KL41: 513.7854589 | KM41: 517.1709135
GV42: 2012-01-31 | GW42: 2014-01-31 | GX42: 2015-01-31 | GY42: 2016-01-31 | GZ42: 2017-01-31 | HA42: 2018-01-31 | HB42: 2019-01-31 | HO42: 2012-07-31 | HP42: 2014-07-31 | HQ42: 2015-07-31 | HR42: 2016-07-31 | HS42: 2017-07-31 | HT42: 2018-07-31 | HU42: 2019-07-31 | IA42: 2012-12-31 | IB42: 2014-12-31 | IC42: 2015-12-31 | ID42: 2016-12-31 | IE42: 2017-12-31 | IF42: 2018-12-31 | IG42: 2019-12-31
GU43: Olomoucký kraj | GV43: =GV28 -> 0 | GW43: =HH28 -> 0 | GX43: =HT28 -> 0 | GY43: =IF28 -> 3 | GZ43: =IR28 -> 8 | HA43: =JD28 -> 36 | HB43: =JP28 -> 11 | HO43: =HB28 -> 0 | HP43: =HN28 -> 0 | HQ43: =HZ28 -> 0 | HR43: =IL28 -> 5 | HS43: =IX28 -> 29 | HT43: =JJ28 -> 18 | HU43: =JV28 -> 9 | IA43: =SUM(IA44:IA56) -> 184 | IB43: 77 | IC43: 75 | ID43: 709 | IE43: 6207 | IF43: 6196 | IG43: 3079
GU44: Moravskoslezský kraj | GV44: =GV29 -> 0 | GW44: =HH29 -> 0 | GX44: =HT29 -> 0 | GY44: 3 | GZ44: =IR29 -> 9 | HA44: =JD29 -> 33 | HB44: =JP29 -> 21 | HO44: 0 | HP44: 0 | HQ44: 0 | HR44: 5 | HS44: 33 | HT44: 16 | HU44: 18 | IA44: =AP28 -> 0 | IB44: =BC28 -> 4 | IC44: =BP28 -> 3 | ID44: =CC28 -> 50 | IE44: =CP28 -> 354 | IF44: =DC28 -> 569 | IG44: =DP28 -> 147
GU45: Zlínský kraj | GV45: 0 | GW45: 0 | GX45: 0 | GY45: 3 | GZ45: 11 | HA45: 36 | HB45: 21 | HO45: 0 | HP45: 0 | HQ45: 0 | HR45: 6 | HS45: 41 | HT45: 18 | HU45: 18 | IA45: 12 | IB45: 5 | IC45: 8 | ID45: 50 | IE45: 404 | IF45: 513 | IG45: 293
GU46: Liberecký kraj | GV46: 0 | GW46: 0 | GX46: 0 | GY46: 1 | GZ46: 7 | HA46: 25 | HB46: 9 | HO46: 0 | HP46: 0 | HQ46: 0 | HR46: 2 | HS46: 24 | HT46: 13 | HU46: 7 | IA46: 15 | IB46: 6 | IC46: 6 | ID46: 54 | IE46: 504 | IF46: 569 | IG46: 293
GU47: Ústecký kraj | GV47: 0 | GW47: 0 | GX47: 0 | GY47: 3 | GZ47: 10 | HA47: 18 | HB47: 13 | HO47: 0 | HP47: 0 | HQ47: 0 | HR47: 6 | HS47: 37 | HT47: 9 | HU47: 11 | IA47: 16 | IB47: 3 | IC47: 4 | ID47: 17 | IE47: 302 | IF47: 397 | IG47: 116
GU48: Karlovarský kraj | GV48: 0 | GW48: 0 | GX48: 0 | GY48: 2 | GZ48: 11 | HA48: 11 | HB48: 17 | HO48: 0 | HP48: 0 | HQ48: 0 | HR48: 3 | HS48: 41 | HT48: 5 | HU48: 14 | IA48: 5 | IB48: 5 | IC48: 0 | ID48: 54 | IE48: 455 | IF48: 283 | IG48: 175
GU49: Plzeňský kraj | GV49: 0 | GW49: 0 | GX49: 0 | GY49: 3 | GZ49: 9 | HA49: 22 | HB49: 21 | HO49: 0 | HP49: 0 | HQ49: 0 | HR49: 5 | HS49: 33 | HT49: 11 | HU49: 18 | IA49: 15 | IB49: 6 | IC49: 0 | ID49: 32 | IE49: 504 | IF49: 172 | IG49: 236
GU50: Jihočeský kraj | GV50: 0 | GW50: 0 | GX50: 0 | GY50: 3 | GZ50: 9 | HA50: 29 | HB50: 19 | HO50: 0 | HP50: 0 | HQ50: 0 | HR50: 4 | HS50: 33 | HT50: 14 | HU50: 16 | IA50: 10 | IB50: 3 | IC50: 5 | ID50: 50 | IE50: 404 | IF50: 340 | IG50: 293
GU51: Jihomoravský kraj | GV51: 0 | GW51: 0 | GX51: 0 | GY51: 5 | GZ51: 11 | HA51: 25 | HB51: 13 | HO51: 0 | HP51: 0 | HQ51: 0 | HR51: 8 | HS51: 41 | HT51: 13 | HU51: 11 | IA51: 12 | IB51: 6 | IC51: 6 | ID51: 43 | IE51: 404 | IF51: 455 | IG51: 264
GU52: Pardubický kraj | GV52: 0 | GW52: 0 | GX52: 0 | GY52: 3 | GZ52: 9 | HA52: 25 | HB52: 21 | HO52: 0 | HP52: 0 | HQ52: 0 | HR52: 6 | HS52: 33 | HT52: 13 | HU52: 18 | IA52: 30 | IB52: 9 | IC52: 12 | ID52: 78 | IE52: 504 | IF52: 397 | IG52: 175
GU53: Královehradecký kraj | GV53: 0 | GW53: 0 | GX53: 0 | GY53: 2 | GZ53: 6 | HA53: 33 | HB53: 11 | HO53: 0 | HP53: 0 | HQ53: 0 | HR53: 3 | HS53: 20 | HT53: 16 | HU53: 9 | IA53: 12 | IB53: 4 | IC53: 8 | ID53: 54 | IE53: 404 | IF53: 397 | IG53: 293
GU54: Kraj Vysočina | GV54: 0 | GW54: 0 | GX54: 0 | GY54: 1 | GZ54: 6 | HA54: 36 | HB54: 19 | HO54: 0 | HP54: 0 | HQ54: 0 | HR54: 2 | HS54: 20 | HT54: 18 | HU54: 16 | IA54: 15 | IB54: 4 | IC54: 5 | ID54: 27 | IE54: 253 | IF54: 513 | IG54: 147
GU55: Středočeský kraj | GV55: 0 | GW55: 0 | GX55: 0 | GY55: 11 | GZ55: 33 | HA55: 65 | HB55: 28 | HO55: 0 | HP55: 0 | HQ55: 0 | HR55: 18 | HS55: 118 | HT55: 32 | HU55: 23 | IA55: 12 | IB55: 5 | IC55: 6 | ID55: 22 | IE55: 253 | IF55: 569 | IG55: 264
IA56: 30 | IB56: 17 | IC56: 12 | ID56: 178 | IE56: 1462 | IF56: 1022 | IG56: 383
GV57: 2012-02-29 | GW57: 2014-02-28 | GX57: 2015-02-28 | GY57: 2016-02-29 | GZ57: 2017-02-28 | HA57: 2018-02-28 | HB57: 2019-02-28 | HK57: 2012-08-31 | HL57: 2014-08-31 | HM57: 2015-08-31 | HN57: 2016-08-31 | HO57: 2017-08-31 | HP57: 2018-08-31 | HQ57: 2019-08-31
GU58: Olomoucký kraj | GV58: =GW28 -> 0 | GW58: =HI28 -> 0 | GX58: =HU28 -> 0 | GY58: =IG28 -> 3 | GZ58: =IS28 -> 33 | HA58: =JE28 -> 29 | HB58: =JQ28 -> 9 | HK58: =HC28 -> 0 | HL58: =HO28 -> 0 | HM58: =IA28 -> 0 | HN58: =IM28 -> 4 | HO58: =IY28 -> 26 | HP58: =JK28 -> 76 | HQ58: =JW28 -> 9
GU59: Moravskoslezský kraj | GV59: =GW29 -> 0 | GW59: =HI29 -> 0 | GX59: =HU29 -> 0 | GY59: 3 | GZ59: =IS29 -> 37 | HA59: =JE29 -> 26 | HB59: =JQ29 -> 18 | HK59: 2 | HL59: 0 | HM59: 0 | HN59: 4 | HO59: 30 | HP59: 69 | HQ59: 18
GU60: Zlínský kraj | GV60: 0 | GW60: 0 | GX60: 0 | GY60: 3 | GZ60: 47 | HA60: 29 | HB60: 18 | HK60: 3 | HL60: 0 | HM60: 0 | HN60: 4 | HO60: 38 | HP60: 76 | HQ60: 18
GU61: Liberecký kraj | GV61: 0 | GW61: 0 | GX61: 0 | GY61: 1 | GZ61: 28 | HA61: 20 | HB61: 7 | HK61: 3 | HL61: 0 | HM61: 0 | HN61: 1 | HO61: 23 | HP61: 53 | HQ61: 7
GU62: Ústecký kraj | GV62: 0 | GW62: 0 | GX62: 0 | GY62: 3 | GZ62: 42 | HA62: 14 | HB62: 11 | HK62: 1 | HL62: 0 | HM62: 0 | HN62: 4 | HO62: 34 | HP62: 38 | HQ62: 11
GU63: Karlovarský kraj | GV63: 0 | GW63: 0 | GX63: 0 | GY63: 2 | GZ63: 47 | HA63: 9 | HB63: 15 | HK63: 3 | HL63: 0 | HM63: 0 | HN63: 3 | HO63: 38 | HP63: 23 | HQ63: 14
GU64: Plzeňský kraj | GV64: 0 | GW64: 0 | GX64: 0 | GY64: 3 | GZ64: 37 | HA64: 17 | HB64: 18 | HK64: 2 | HL64: 0 | HM64: 0 | HN64: 4 | HO64: 30 | HP64: 46 | HQ64: 18
GU65: Jihočeský kraj | GV65: 0 | GW65: 0 | GX65: 0 | GY65: 2 | GZ65: 37 | HA65: 23 | HB65: 16 | HK65: 2 | HL65: 0 | HM65: 0 | HN65: 3 | HO65: 30 | HP65: 61 | HQ65: 16
GU66: Jihomoravský kraj | GV66: 0 | GW66: 0 | GX66: 0 | GY66: 4 | GZ66: 47 | HA66: 20 | HB66: 11 | HK66: 6 | HL66: 0 | HM66: 0 | HN66: 6 | HO66: 38 | HP66: 53 | HQ66: 11
GU67: Pardubický kraj | GV67: 0 | GW67: 0 | GX67: 0 | GY67: 3 | GZ67: 37 | HA67: 20 | HB67: 18 | HK67: 2 | HL67: 0 | HM67: 0 | HN67: 4 | HO67: 30 | HP67: 53 | HQ67: 18 | IA67: 2020
GU68: Královehradecký kraj | GV68: 0 | GW68: 0 | GX68: 0 | GY68: 1 | GZ68: 23 | HA68: 26 | HB68: 9 | HK68: 3 | HL68: 0 | HM68: 0 | HN68: 2 | HO68: 19 | HP68: 69 | HQ68: 9
GU69: Kraj Vysočina | GV69: 0 | GW69: 0 | GX69: 0 | GY69: 1 | GZ69: 23 | HA69: 29 | HB69: 16 | HK69: 2 | HL69: 0 | HM69: 0 | HN69: 2 | HO69: 19 | HP69: 76 | HQ69: 16
GU70: Středočeský kraj | GV70: 0 | GW70: 0 | GX70: 0 | GY70: 9 | GZ70: 135 | HA70: 52 | HB70: 24 | HK70: 6 | HL70: 0 | HM70: 0 | HN70: 14 | HO70: 109 | HP70: 137 | HQ70: 24
GV72: 2012-03-31 | GW72: 2014-03-31 | GX72: 2015-03-31 | GY72: 2016-03-31 | GZ72: 2017-03-31 | HA72: 2018-03-31 | HB72: 2019-03-31 | HK72: 2012-09-30 | HL72: 2014-09-30 | HM72: 2015-09-30 | HN72: 2016-09-30 | HO72: 2017-09-30 | HP72: 2018-09-30 | HQ72: 2019-09-30
GU73: Olomoucký kraj | GV73: =GX28 -> 0 | GW73: =HJ28 -> 0 | GX73: =HV28 -> 0 | GY73: =IH28 -> 3 | GZ73: =IT28 -> 39 | HA73: =JF28 -> 31 | HB73: =JR28 -> 9 | HK73: =HD28 -> 0 | HL73: =HP28 -> 1 | HM73: =IB28 -> 1 | HN73: =IN28 -> 4 | HO73: =IZ28 -> 26 | HP73: =JL28 -> 77 | HQ73: =JX28 -> 13
GU74: Moravskoslezský kraj | GV74: =GX29 -> 0 | GW74: =HJ29 -> 0 | GX74: =HV29 -> 0 | GY74: 3 | GZ74: =IT29 -> 44 | HA74: =JF29 -> 28 | HB74: =JR29 -> 17 | HK74: 4 | HL74: 1 | HM74: 2 | HN74: 4 | HO74: 30 | HP74: 69 | HQ74: 27
GU75: Zlínský kraj | GV75: 0 | GW75: 0 | GX75: 0 | GY75: 3 | GZ75: 55 | HA75: 31 | HB75: 17 | HK75: 5 | HL75: 1 | HM75: 1 | HN75: 4 | HO75: 37 | HP75: 77 | HQ75: 27
GU76: Liberecký kraj | GV76: 0 | GW76: 0 | GX76: 0 | GY76: 1 | GZ76: 33 | HA76: 21 | HB76: 7 | HK76: 5 | HL76: 1 | HM76: 1 | HN76: 1 | HO76: 22 | HP76: 54 | HQ76: 11
GU77: Ústecký kraj | GV77: 0 | GW77: 0 | GX77: 0 | GY77: 3 | GZ77: 50 | HA77: 15 | HB77: 10 | HK77: 2 | HL77: 1 | HM77: 0 | HN77: 4 | HO77: 34 | HP77: 39 | HQ77: 16
GU78: Karlovarský kraj | GV78: 0 | GW78: 0 | GX78: 0 | GY78: 2 | GZ78: 55 | HA78: 9 | HB78: 14 | HK78: 5 | HL78: 1 | HM78: 0 | HN78: 2 | HO78: 37 | HP78: 23 | HQ78: 21
GU79: Plzeňský kraj | GV79: 0 | GW79: 0 | GX79: 0 | GY79: 3 | GZ79: 44 | HA79: 18 | HB79: 17 | HK79: 3 | HL79: 1 | HM79: 1 | HN79: 4 | HO79: 30 | HP79: 46 | HQ79: 27
GU80: Jihočeský kraj | GV80: 0 | GW80: 0 | GX80: 0 | GY80: 3 | GZ80: 44 | HA80: 25 | HB80: 16 | HK80: 4 | HL80: 1 | HM80: 1 | HN80: 3 | HO80: 30 | HP80: 62 | HQ80: 24
GU81: Jihomoravský kraj | GV81: 0 | GW81: 0 | GX81: 0 | GY81: 5 | GZ81: 55 | HA81: 21 | HB81: 10 | HK81: 10 | HL81: 2 | HM81: 3 | HN81: 6 | HO81: 37 | HP81: 54 | HQ81: 16
GU82: Pardubický kraj | GV82: 0 | GW82: 0 | GX82: 0 | GY82: 3 | GZ82: 44 | HA82: 21 | HB82: 17 | HK82: 4 | HL82: 1 | HM82: 2 | HN82: 4 | HO82: 30 | HP82: 54 | HQ82: 27
GU83: Královehradecký kraj | GV83: 0 | GW83: 0 | GX83: 0 | GY83: 2 | GZ83: 28 | HA83: 28 | HB83: 9 | HK83: 5 | HL83: 1 | HM83: 1 | HN83: 2 | HO83: 19 | HP83: 69 | HQ83: 13
GU84: Kraj Vysočina | GV84: 0 | GW84: 0 | GX84: 0 | GY84: 1 | GZ84: 28 | HA84: 31 | HB84: 16 | HK84: 4 | HL84: 1 | HM84: 1 | HN84: 2 | HO84: 19 | HP84: 77 | HQ84: 24
GU85: Středočeský kraj | GV85: 0 | GW85: 0 | GX85: 0 | GY85: 11 | GZ85: 160 | HA85: 55 | HB85: 23 | HK85: 10 | HL85: 4 | HM85: 3 | HN85: 13 | HO85: 109 | HP85: 139 | HQ85: 35
GV87: 2012-04-30 | GW87: 2014-04-30 | GX87: 2015-04-30 | GY87: 2016-04-30 | GZ87: 2017-04-30 | HA87: 2018-04-30 | HB87: 2019-04-30 | HK87: 2012-10-31 | HL87: 2014-10-31 | HM87: 2015-10-31 | HN87: 2016-10-31 | HO87: 2017-10-31 | HP87: 2018-10-31 | HQ87: 2019-10-31
GU88: Olomoucký kraj | GV88: =GY28 -> 0 | GW88: =HK28 -> 0 | GX88: =HW28 -> 0 | GY88: =II28 -> 2 | GZ88: =IU28 -> 41 | HA88: =JG28 -> 29 | HB88: =JS28 -> 9 | HK88: =HE28 -> 0 | HL88: =HQ28 -> 2 | HM88: =IC28 -> 1 | HN88: =IO28 -> 4 | HO88: =JA28 -> 19 | HP88: =JM28 -> 79 | HQ88: =JY28 -> 17
GU89: Moravskoslezský kraj | GV89: =GY29 -> 0 | GW89: =HK29 -> 0 | GX89: =HW29 -> 0 | GY89: 2 | GZ89: =IU29 -> 47 | HA89: =JG29 -> 26 | HB89: =JS29 -> 18 | HK89: 4 | HL89: 2 | HM89: 3 | HN89: 4 | HO89: 22 | HP89: 71 | HQ89: 33
GU90: Zlínský kraj | GV90: 0 | GW90: 0 | GX90: 0 | GY90: 2 | GZ90: 59 | HA90: 29 | HB90: 18 | HK90: 4 | HL90: 3 | HM90: 3 | HN90: 5 | HO90: 27 | HP90: 79 | HQ90: 33
GU91: Liberecký kraj | GV91: 0 | GW91: 0 | GX91: 0 | GY91: 1 | GZ91: 35 | HA91: 20 | HB91: 7 | HK91: 5 | HL91: 1 | HM91: 2 | HN91: 1 | HO91: 16 | HP91: 55 | HQ91: 13
GU92: Ústecký kraj | GV92: 0 | GW92: 0 | GX92: 0 | GY92: 2 | GZ92: 53 | HA92: 14 | HB92: 11 | HK92: 1 | HL92: 2 | HM92: 0 | HN92: 5 | HO92: 24 | HP92: 39 | HQ92: 20
GU93: Karlovarský kraj | GV93: 0 | GW93: 0 | GX93: 0 | GY93: 1 | GZ93: 59 | HA93: 9 | HB93: 15 | HK93: 4 | HL93: 3 | HM93: 0 | HN93: 3 | HO93: 27 | HP93: 24 | HQ93: 27
GU94: Plzeňský kraj | GV94: 0 | GW94: 0 | GX94: 0 | GY94: 2 | GZ94: 47 | HA94: 17 | HB94: 18 | HK94: 3 | HL94: 1 | HM94: 2 | HN94: 4 | HO94: 22 | HP94: 47 | HQ94: 33
GU95: Jihočeský kraj | GV95: 0 | GW95: 0 | GX95: 0 | GY95: 1 | GZ95: 47 | HA95: 23 | HB95: 17 | HK95: 4 | HL95: 3 | HM95: 3 | HN95: 4 | HO95: 22 | HP95: 63 | HQ95: 30
GU96: Jihomoravský kraj | GV96: 0 | GW96: 0 | GX96: 0 | GY96: 3 | GZ96: 59 | HA96: 20 | HB96: 11 | HK96: 9 | HL96: 4 | HM96: 5 | HN96: 7 | HO96: 27 | HP96: 55 | HQ96: 20
GU97: Pardubický kraj | GV97: 0 | GW97: 0 | GX97: 0 | GY97: 2 | GZ97: 47 | HA97: 20 | HB97: 18 | HK97: 4 | HL97: 2 | HM97: 3 | HN97: 5 | HO97: 22 | HP97: 55 | HQ97: 33
GU98: Královehradecký kraj | GV98: 0 | GW98: 0 | GX98: 0 | GY98: 1 | GZ98: 30 | HA98: 26 | HB98: 9 | HK98: 4 | HL98: 2 | HM98: 2 | HN98: 2 | HO98: 13 | HP98: 71 | HQ98: 17
GU99: Kraj Vysočina | GV99: 0 | GW99: 0 | GX99: 0 | GY99: 1 | GZ99: 30 | HA99: 29 | HB99: 17 | HK99: 4 | HL99: 2 | HM99: 3 | HN99: 2 | HO99: 13 | HP99: 79 | HQ99: 30
GU100: Středočeský kraj | GV100: 0 | GW100: 0 | GX100: 0 | GY100: 6 | GZ100: 171 | HA100: 52 | HB100: 24 | HK100: 9 | HL100: 7 | HM100: 5 | HN100: 16 | HO100: 78 | HP100: 141 | HQ100: 43
GV102: 2012-05-31 | GW102: 2014-05-31 | GX102: 2015-05-31 | GY102: 2016-05-31 | GZ102: 2017-05-31 | HA102: 2018-05-31 | HB102: 2019-05-31 | HK102: 2012-11-30 | HL102: 2014-11-30 | HM102: 2015-11-30 | HN102: 2016-11-30 | HO102: 2017-11-30 | HP102: 2018-11-30 | HQ102: 2019-11-30
GU103: Olomoucký kraj | GV103: =GZ28 -> 0 | GW103: =HL28 -> 0 | GX103: =HX28 -> 0 | GY103: =IJ28 -> 2 | GZ103: =IV28 -> 45 | HA103: =JH28 -> 23 | HB103: =JT28 -> 7 | HK103: =HF28 -> 0 | HL103: =HR28 -> 1 | HM103: =ID28 -> 1 | HN103: =IP28 -> 2 | HO103: =JB28 -> 21 | HP103: =JN28 -> 75 | HQ103: =JZ28 -> 25
GU104: Moravskoslezský kraj | GV104: =GZ29 -> 0 | GW104: =HL29 -> 0 | GX104: =HX29 -> 0 | GY104: 2 | GZ104: =IV29 -> 51 | HA104: =JH29 -> 21 | HB104: =JT29 -> 14 | HK104: 1 | HL104: 2 | HM104: 3 | HN104: 2 | HO104: 24 | HP104: 68 | HQ104: 51
GU105: Zlínský kraj | GV105: 0 | GW105: 0 | GX105: 0 | GY105: 2 | GZ105: 64 | HA105: 23 | HB105: 14 | HK105: 2 | HL105: 2 | HM105: 2 | HN105: 2 | HO105: 29 | HP105: 75 | HQ105: 51
GU106: Liberecký kraj | GV106: 0 | GW106: 0 | GX106: 0 | GY106: 1 | GZ106: 38 | HA106: 16 | HB106: 5 | HK106: 2 | HL106: 1 | HM106: 1 | HN106: 1 | HO106: 18 | HP106: 53 | HQ106: 20
GU107: Ústecký kraj | GV107: 0 | GW107: 0 | GX107: 0 | GY107: 2 | GZ107: 58 | HA107: 12 | HB107: 8 | HK107: 1 | HL107: 2 | HM107: 0 | HN107: 2 | HO107: 26 | HP107: 38 | HQ107: 30
GU108: Karlovarský kraj | GV108: 0 | GW108: 0 | GX108: 0 | GY108: 1 | GZ108: 64 | HA108: 7 | HB108: 11 | HK108: 2 | HL108: 2 | HM108: 0 | HN108: 1 | HO108: 29 | HP108: 23 | HQ108: 41
GU109: Plzeňský kraj | GV109: 0 | GW109: 0 | GX109: 0 | GY109: 2 | GZ109: 51 | HA109: 14 | HB109: 14 | HK109: 1 | HL109: 1 | HM109: 2 | HN109: 2 | HO109: 24 | HP109: 45 | HQ109: 51
GU110: Jihočeský kraj | GV110: 0 | GW110: 0 | GX110: 0 | GY110: 2 | GZ110: 51 | HA110: 19 | HB110: 12 | HK110: 1 | HL110: 2 | HM110: 2 | HN110: 2 | HO110: 24 | HP110: 60 | HQ110: 46
GU111: Jihomoravský kraj | GV111: 0 | GW111: 0 | GX111: 0 | GY111: 3 | GZ111: 64 | HA111: 16 | HB111: 8 | HK111: 3 | HL111: 3 | HM111: 4 | HN111: 3 | HO111: 29 | HP111: 53 | HQ111: 30
GU112: Pardubický kraj | GV112: 0 | GW112: 0 | GX112: 0 | GY112: 2 | GZ112: 51 | HA112: 16 | HB112: 14 | HK112: 1 | HL112: 1 | HM112: 3 | HN112: 2 | HO112: 24 | HP112: 53 | HQ112: 51
GU113: Královehradecký kraj | GV113: 0 | GW113: 0 | GX113: 0 | GY113: 1 | GZ113: 32 | HA113: 21 | HB113: 7 | HK113: 2 | HL113: 1 | HM113: 2 | HN113: 1 | HO113: 15 | HP113: 68 | HQ113: 25
GU114: Kraj Vysočina | GV114: 0 | GW114: 0 | GX114: 0 | GY114: 1 | GZ114: 32 | HA114: 23 | HB114: 12 | HK114: 1 | HL114: 2 | HM114: 2 | HN114: 1 | HO114: 15 | HP114: 75 | HQ114: 46
GU115: Středočeský kraj | GV115: 0 | GW115: 0 | GX115: 0 | GY115: 7 | GZ115: 185 | HA115: 42 | HB115: 18 | HK115: 3 | HL115: 6 | HM115: 4 | HN115: 8 | HO115: 85 | HP115: 135 | HQ115: 66
GV117: 2012-06-30 | GW117: 2014-06-30 | GX117: 2015-06-30 | GY117: 2016-06-30 | GZ117: 2017-06-30 | HA117: 2018-06-30 | HB117: 2019-06-30 | HK117: 2013-12-31 | HL117: 2014-12-31 | HM117: 2015-12-31 | HN117: 2016-12-31 | HO117: 2017-12-31 | HP117: 2018-12-31 | HQ117: 2019-12-31
GU118: Olomoucký kraj | GV118: =HA28 -> 0 | GW118: =HM28 -> 0 | GX118: =HY28 -> 0 | GY118: =IK28 -> 2 | GZ118: =IW28 -> 47 | HA118: =JI28 -> 17 | HB118: =JU28 -> 6 | HK118: =HG28 -> 0 | HL118: =HS28 -> 0 | HM118: =IE28 -> 0 | HN118: =IQ28 -> 16 | HO118: =JC28 -> 20 | HP118: =JO28 -> 79 | HQ118: =KA28 -> 23
GU119: Moravskoslezský kraj | GV119: =HA29 -> 0 | GW119: =HM29 -> 0 | GX119: =HY29 -> 0 | GY119: 2 | GZ119: =IW29 -> 54 | HA119: =JI29 -> 15 | HB119: =JU29 -> 12 | HK119: 1 | HL119: 0 | HM119: 0 | HN119: 16 | HO119: 23 | HP119: 71 | HQ119: 46
GU120: Zlínský kraj | GV120: 0 | GW120: 0 | GX120: 0 | GY120: 2 | GZ120: 68 | HA120: 17 | HB120: 12 | HK120: 1 | HL120: 0 | HM120: 0 | HN120: 18 | HO120: 28 | HP120: 79 | HQ120: 46
GU121: Liberecký kraj | GV121: 0 | GW121: 0 | GX121: 0 | GY121: 1 | GZ121: 41 | HA121: 12 | HB121: 5 | HK121: 1 | HL121: 0 | HM121: 0 | HN121: 5 | HO121: 17 | HP121: 55 | HQ121: 18
GU122: Ústecký kraj | GV122: 0 | GW122: 0 | GX122: 0 | GY122: 2 | GZ122: 61 | HA122: 8 | HB122: 7 | HK122: 0 | HL122: 0 | HM122: 0 | HN122: 18 | HO122: 26 | HP122: 39 | HQ122: 27
GU123: Karlovarský kraj | GV123: 0 | GW123: 0 | GX123: 0 | GY123: 1 | GZ123: 68 | HA123: 5 | HB123: 10 | HK123: 1 | HL123: 0 | HM123: 0 | HN123: 11 | HO123: 28 | HP123: 24 | HQ123: 37
GU124: Plzeňský kraj | GV124: 0 | GW124: 0 | GX124: 0 | GY124: 2 | GZ124: 54 | HA124: 10 | HB124: 12 | HK124: 1 | HL124: 0 | HM124: 0 | HN124: 16 | HO124: 23 | HP124: 47 | HQ124: 46
GU125: Jihočeský kraj | GV125: 0 | GW125: 0 | GX125: 0 | GY125: 2 | GZ125: 54 | HA125: 13 | HB125: 11 | HK125: 1 | HL125: 0 | HM125: 0 | HN125: 14 | HO125: 23 | HP125: 63 | HQ125: 41
GU126: Jihomoravský kraj | GV126: 0 | GW126: 0 | GX126: 0 | GY126: 3 | GZ126: 68 | HA126: 12 | HB126: 7 | HK126: 2 | HL126: 0 | HM126: 0 | HN126: 25 | HO126: 28 | HP126: 55 | HQ126: 27
GU127: Pardubický kraj | GV127: 0 | GW127: 0 | GX127: 0 | GY127: 2 | GZ127: 54 | HA127: 12 | HB127: 12 | HK127: 1 | HL127: 0 | HM127: 0 | HN127: 18 | HO127: 23 | HP127: 55 | HQ127: 46
GU128: Královehradecký kraj | GV128: 0 | GW128: 0 | GX128: 0 | GY128: 1 | GZ128: 34 | HA128: 15 | HB128: 6 | HK128: 1 | HL128: 0 | HM128: 0 | HN128: 9 | HO128: 14 | HP128: 71 | HQ128: 23
GU129: Kraj Vysočina | GV129: 0 | GW129: 0 | GX129: 0 | GY129: 1 | GZ129: 34 | HA129: 17 | HB129: 11 | HK129: 1 | HL129: 0 | HM129: 0 | HN129: 7 | HO129: 14 | HP129: 79 | HQ129: 41
GU130: Středočeský kraj | GV130: 0 | GW130: 0 | GX130: 0 | GY130: 7 | GZ130: 196 | HA130: 30 | HB130: 16 | HK130: 2 | HL130: 0 | HM130: 0 | HN130: 58 | HO130: 83 | HP130: 142 | HQ130: 59
GT132: =AC26 -> Kraj | GU132: 2012-01-01 | GV132: 2012-02-01 | GW132: 2012-03-01 | GX132: 2012-04-01 | GY132: 2012-05-01 | GZ132: 2012-06-01 | HA132: 2012-07-01 | HB132: 2012-08-01 | HC132: 2012-09-01 | HD132: 2012-10-01 | HE132: 2012-11-01 | HF132: 2012-12-01 | HG132: 2014-01-01 | HH132: 2014-02-01 | HI132: 2014-03-01 | HJ132: 2014-04-01 | HK132: 2014-05-01 | HL132: 2014-06-01 | HM132: 2014-07-01 | HN132: 2014-08-01 | HO132: 2014-09-01 | HP132: 2014-10-01 | HQ132: 2014-11-01 | HR132: 2014-12-01 | HS132: 2015-01-01 | HT132: 2015-02-01 | HU132: 2015-03-01 | HV132: 2015-04-01 | HW132: 2015-05-01 | HX132: 2015-06-01 | HY132: 2015-07-01 | HZ132: 2015-08-01 | IA132: 2015-09-01 | IB132: 2015-10-01 | IC132: 2015-11-01 | ID132: 2015-12-01 | IE132: 2016-01-01 | IF132: 2016-02-01 | IG132: 2016-03-01 | IH132: 2016-04-01 | II132: 2016-05-01 | IJ132: 2016-06-01 | IK132: 2016-07-01 | IL132: 2016-08-01 | IM132: 2016-09-01 | IN132: 2016-10-01 | IO132: 2016-11-01 | IP132: 2016-12-01 | IQ132: 2017-01-01 | IR132: 2017-02-01 | IS132: 2017-03-01 | IT132: 2017-04-01 | IU132: 2017-05-01 | IV132: 2017-06-01 | IW132: 2017-07-01 | IX132: 2017-08-01 | IY132: 2017-09-01 | IZ132: 2017-10-01 | JA132: 2017-11-01 | JB132: 2017-12-01 | JC132: 2018-01-01 | JD132: 2018-02-01 | JE132: 2018-03-01 | JF132: 2018-04-01 | JG132: 2018-05-01 | JH132: 2018-06-01 | JI132: 2018-07-01 | JJ132: 2018-08-01 | JK132: 2018-09-01 | JL132: 2018-10-01 | JM132: 2018-11-01 | JN132: 2018-12-01 | JO132: 2019-01-01 | JP132: 2019-02-01 | JQ132: 2019-03-01 | JR132: 2019-04-01 | JS132: 2019-05-01 | JT132: 2019-06-01 | JU132: 2019-07-01 | JV132: 2019-08-01 | JW132: 2019-09-01 | JX132: 2019-10-01 | JY132: 2019-11-01 | JZ132: 2019-12-01 | KA132: 2020-01-01 | KB132: 2020-02-01 | KC132: 2020-03-01 | KD132: 2020-04-01 | KE132: 2020-05-01 | KF132: 2020-06-01 | KG132: 2020-07-01 | KH132: 2020-08-01 | KI132: 2020-09-01 | KJ132: 2020-10-01 | KK132: 2020-11-01 | KL132: 2020-12-01
GT133: =AC28 -> Olomoucký kraj | GU133: =IF($E14=FALSE,-1,AD28) -> 0 | GV133: =IF($E14=FALSE,-1,AE28) -> 0 | GW133: =IF($E14=FALSE,-1,AF28) -> 0 | GX133: =IF($E14=FALSE,-1,AG28) -> 0 | GY133: =IF($E14=FALSE,-1,AH28) -> 0 | GZ133: =IF($E14=FALSE,-1,AI28) -> 0 | HA133: =IF($E14=FALSE,-1,AJ28) -> 0 | HB133: =IF($E14=FALSE,-1,AK28) -> 0 | HC133: =IF($E14=FALSE,-1,AL28) -> 0 | HD133: =IF($E14=FALSE,-1,AM28) -> 0 | HE133: =IF($E14=FALSE,-1,AN28) -> 0 | HF133: =IF($E14=FALSE,-1,AO28) -> 0 | HG133: =IF($E14=FALSE,-1,AQ28) -> 0 | HH133: =IF($E14=FALSE,-1,AR28) -> 0 | HI133: =IF($E14=FALSE,-1,AS28) -> 0 | HJ133: =IF($E14=FALSE,-1,AT28) -> 0 | HK133: =IF($E14=FALSE,-1,AU28) -> 0 | HL133: =IF($E14=FALSE,-1,AV28) -> 0 | HM133: =IF($E14=FALSE,-1,AW28) -> 0 | HN133: =IF($E14=FALSE,-1,AX28) -> 0 | HO133: =IF($E14=FALSE,-1,AY28) -> 1 | HP133: =IF($E14=FALSE,-1,AZ28) -> 2 | HQ133: =IF($E14=FALSE,-1,BA28) -> 1 | HR133: =IF($E14=FALSE,-1,BB28) -> 0 | HS133: =IF($E14=FALSE,-1,BD28) -> 0 | HT133: =IF($E14=FALSE,-1,BE28) -> 0 | HU133: =IF($E14=FALSE,-1,BF28) -> 0 | HV133: =IF($E14=FALSE,-1,BG28) -> 0 | HW133: =IF($E14=FALSE,-1,BH28) -> 0 | HX133: =IF($E14=FALSE,-1,BI28) -> 0 | HY133: =IF($E14=FALSE,-1,BJ28) -> 0 | HZ133: =IF($E14=FALSE,-1,BK28) -> 0 | IA133: =IF($E14=FALSE,-1,BL28) -> 1 | IB133: =IF($E14=FALSE,-1,BM28) -> 1 | IC133: =IF($E14=FALSE,-1,BN28) -> 1 | ID133: =IF($E14=FALSE,-1,BO28) -> 0 | IE133: =IF($E14=FALSE,-1,BQ28) -> 3 | IF133: =IF($E14=FALSE,-1,BR28) -> 3 | IG133: =IF($E14=FALSE,-1,BS28) -> 3 | IH133: =IF($E14=FALSE,-1,BT28) -> 2 | II133: =IF($E14=FALSE,-1,BU28) -> 2 | IJ133: =IF($E14=FALSE,-1,BV28) -> 2 | IK133: =IF($E14=FALSE,-1,BW28) -> 5 | IL133: =IF($E14=FALSE,-1,BX28) -> 4 | IM133: =IF($E14=FALSE,-1,BY28) -> 4 | IN133: =IF($E14=FALSE,-1,BZ28) -> 4 | IO133: =IF($E14=FALSE,-1,CA28) -> 2 | IP133: =IF($E14=FALSE,-1,CB28) -> 16 | IQ133: =IF($E14=FALSE,-1,CD28) -> 8 | IR133: =IF($E14=FALSE,-1,CE28) -> 33 | IS133: =IF($E14=FALSE,-1,CF28) -> 39 | IT133: =IF($E14=FALSE,-1,CG28) -> 41 | IU133: =IF($E14=FALSE,-1,CH28) -> 45 | IV133: =IF($E14=FALSE,-1,CI28) -> 47 | IW133: =IF($E14=FALSE,-1,CJ28) -> 29 | IX133: =IF($E14=FALSE,-1,CK28) -> 26 | IY133: =IF($E14=FALSE,-1,CL28) -> 26 | IZ133: =IF($E14=FALSE,-1,CM28) -> 19 | JA133: =IF($E14=FALSE,-1,CN28) -> 21 | JB133: =IF($E14=FALSE,-1,CO28) -> 20 | JC133: =IF($E14=FALSE,-1,CQ28) -> 36 | JD133: =IF($E14=FALSE,-1,CR28) -> 29 | JE133: =IF($E14=FALSE,-1,CS28) -> 31 | JF133: =IF($E14=FALSE,-1,CT28) -> 29 | JG133: =IF($E14=FALSE,-1,CU28) -> 23 | JH133: =IF($E14=FALSE,-1,CV28) -> 17 | JI133: =IF($E14=FALSE,-1,CW28) -> 18 | JJ133: =IF($E14=FALSE,-1,CX28) -> 76 | JK133: =IF($E14=FALSE,-1,CY28) -> 77 | JL133: =IF($E14=FALSE,-1,CZ28) -> 79 | JM133: =IF($E14=FALSE,-1,DA28) -> 75 | JN133: =IF($E14=FALSE,-1,DB28) -> 79 | JO133: =IF($E14=FALSE,-1,DD28) -> 11 | JP133: =IF($E14=FALSE,-1,DE28) -> 9 | JQ133: =IF($E14=FALSE,-1,DF28) -> 9 | JR133: =IF($E14=FALSE,-1,DG28) -> 9 | JS133: =IF($E14=FALSE,-1,DH28) -> 7 | JT133: =IF($E14=FALSE,-1,DI28) -> 6 | JU133: =IF($E14=FALSE,-1,DJ28) -> 9 | JV133: =IF($E14=FALSE,-1,DK28) -> 9 | JW133: =IF($E14=FALSE,-1,DL28) -> 13 | JX133: =IF($E14=FALSE,-1,DM28) -> 17 | JY133: =IF($E14=FALSE,-1,DN28) -> 25 | JZ133: =IF($E14=FALSE,-1,DO28) -> 23 | KA133: =IF($E14=FALSE,-1,DQ28) -> 20.31700249 | KB133: =IF($E14=FALSE,-1,DR28) -> 20.64170521 | KC133: =IF($E14=FALSE,-1,DS28) -> 20.27853528 | KD133: =IF($E14=FALSE,-1,DT28) -> 19.48989148 | KE133: =IF($E14=FALSE,-1,DU28) -> 19.44176421 | KF133: =IF($E14=FALSE,-1,DV28) -> 19.27393717 | KG133: =IF($E14=FALSE,-1,DW28) -> 20.0400151 | KH133: =IF($E14=FALSE,-1,DX28) -> 24.38871408 | KI133: =IF($E14=FALSE,-1,DY28) -> 24.26430282 | KJ133: =IF($E14=FALSE,-1,DZ28) -> 24.08990898 | KK133: =IF($E14=FALSE,-1,EA28) -> 24.11289939 | KL133: =IF($E14=FALSE,-1,EB28) -> 24.1837999
GT134: Moravskoslezský kraj | GU134: 0 | GV134: 0 | GW134: 0 | GX134: 0 | GY134: 0 | GZ134: 0 | HA134: 0 | HB134: 2 | HC134: 4 | HD134: 4 | HE134: 1 | HF134: 1 | HG134: 0 | HH134: 0 | HI134: 0 | HJ134: 0 | HK134: 0 | HL134: 0 | HM134: 0 | HN134: 0 | HO134: 1 | HP134: 2 | HQ134: 2 | HR134: 0 | HS134: 0 | HT134: 0 | HU134: 0 | HV134: 0 | HW134: 0 | HX134: 0 | HY134: 0 | HZ134: 0 | IA134: 2 | IB134: 3 | IC134: 3 | ID134: 0 | IE134: 3 | IF134: 3 | IG134: 3 | IH134: 2 | II134: 2 | IJ134: 2 | IK134: 5 | IL134: 4 | IM134: 4 | IN134: 4 | IO134: 2 | IP134: 16 | IQ134: 9 | IR134: 37 | IS134: 44 | IT134: 47 | IU134: 51 | IV134: 54 | IW134: 33 | IX134: 30 | IY134: 30 | IZ134: 22 | JA134: 24 | JB134: 23 | JC134: 33 | JD134: 26 | JE134: 28 | JF134: 26 | JG134: 21 | JH134: 15 | JI134: 16 | JJ134: 69 | JK134: 69 | JL134: 71 | JM134: 68 | JN134: 71 | JO134: 21 | JP134: 18 | JQ134: 17 | JR134: 18 | JS134: 14 | JT134: 12 | JU134: 18 | JV134: 18 | JW134: 27 | JX134: 33 | JY134: 51 | JZ134: 46 | KA134: 36.78744638 | KB134: 37.26813599 | KC134: 37.3589966 | KD134: 36.36149275 | KE134: 36.43417238 | KF134: 36.33060133 | KG134: 37.15224613 | KH134: 42.33711132 | KI134: 42.89491178 | KJ134: 42.76211378 | KK134: 41.86369207 | KL134: 42.00445924
GT135: Zlínský kraj | GU135: 0 | GV135: 0 | GW135: 0 | GX135: 0 | GY135: 0 | GZ135: 0 | HA135: 0 | HB135: 3 | HC135: 5 | HD135: 4 | HE135: 2 | HF135: 1 | HG135: 0 | HH135: 0 | HI135: 0 | HJ135: 0 | HK135: 0 | HL135: 0 | HM135: 0 | HN135: 0 | HO135: 1 | HP135: 3 | HQ135: 2 | HR135: 0 | HS135: 0 | HT135: 0 | HU135: 0 | HV135: 0 | HW135: 0 | HX135: 0 | HY135: 0 | HZ135: 0 | IA135: 1 | IB135: 3 | IC135: 2 | ID135: 0 | IE135: 3 | IF135: 3 | IG135: 3 | IH135: 2 | II135: 2 | IJ135: 2 | IK135: 6 | IL135: 4 | IM135: 4 | IN135: 5 | IO135: 2 | IP135: 18 | IQ135: 11 | IR135: 47 | IS135: 55 | IT135: 59 | IU135: 64 | IV135: 68 | IW135: 41 | IX135: 38 | IY135: 37 | IZ135: 27 | JA135: 29 | JB135: 28 | JC135: 36 | JD135: 29 | JE135: 31 | JF135: 29 | JG135: 23 | JH135: 17 | JI135: 18 | JJ135: 76 | JK135: 77 | JL135: 79 | JM135: 75 | JN135: 79 | JO135: 21 | JP135: 18 | JQ135: 17 | JR135: 18 | JS135: 14 | JT135: 12 | JU135: 18 | JV135: 18 | JW135: 27 | JX135: 33 | JY135: 51 | JZ135: 46 | KA135: 37.25605968 | KB135: 38.03877373 | KC135: 37.77785503 | KD135: 36.73384382 | KE135: 36.76055129 | KF135: 36.52985893 | KG135: 37.54949517 | KH135: 43.84456151 | KI135: 44.26668201 | KJ135: 43.66167122 | KK135: 43.01589599 | KL135: 42.75029876
GT136: Liberecký kraj | GU136: 0 | GV136: 0 | GW136: 0 | GX136: 0 | GY136: 0 | GZ136: 0 | HA136: 0 | HB136: 3 | HC136: 5 | HD136: 5 | HE136: 2 | HF136: 1 | HG136: 0 | HH136: 0 | HI136: 0 | HJ136: 0 | HK136: 0 | HL136: 0 | HM136: 0 | HN136: 0 | HO136: 1 | HP136: 1 | HQ136: 1 | HR136: 0 | HS136: 0 | HT136: 0 | HU136: 0 | HV136: 0 | HW136: 0 | HX136: 0 | HY136: 0 | HZ136: 0 | IA136: 1 | IB136: 2 | IC136: 1 | ID136: 0 | IE136: 1 | IF136: 1 | IG136: 1 | IH136: 1 | II136: 1 | IJ136: 1 | IK136: 2 | IL136: 1 | IM136: 1 | IN136: 1 | IO136: 1 | IP136: 5 | IQ136: 7 | IR136: 28 | IS136: 33 | IT136: 35 | IU136: 38 | IV136: 41 | IW136: 24 | IX136: 23 | IY136: 22 | IZ136: 16 | JA136: 18 | JB136: 17 | JC136: 25 | JD136: 20 | JE136: 21 | JF136: 20 | JG136: 16 | JH136: 12 | JI136: 13 | JJ136: 53 | JK136: 54 | JL136: 55 | JM136: 53 | JN136: 55 | JO136: 9 | JP136: 7 | JQ136: 7 | JR136: 7 | JS136: 5 | JT136: 5 | JU136: 7 | JV136: 7 | JW136: 11 | JX136: 13 | JY136: 20 | JZ136: 18 | KA136: 15.23156436 | KB136: 15.28195787 | KC136: 15.26979172 | KD136: 14.91096229 | KE136: 14.85637917 | KF136: 14.67635714 | KG136: 14.77494932 | KH136: 19.37191135 | KI136: 19.87985966 | KJ136: 19.70172992 | KK136: 18.70894702 | KL136: 18.38722101
GT137: Ústecký kraj | GU137: 0 | GV137: 0 | GW137: 0 | GX137: 0 | GY137: 0 | GZ137: 0 | HA137: 0 | HB137: 1 | HC137: 2 | HD137: 1 | HE137: 1 | HF137: 0 | HG137: 0 | HH137: 0 | HI137: 0 | HJ137: 0 | HK137: 0 | HL137: 0 | HM137: 0 | HN137: 0 | HO137: 1 | HP137: 2 | HQ137: 2 | HR137: 0 | HS137: 0 | HT137: 0 | HU137: 0 | HV137: 0 | HW137: 0 | HX137: 0 | HY137: 0 | HZ137: 0 | IA137: 0 | IB137: 0 | IC137: 0 | ID137: 0 | IE137: 3 | IF137: 3 | IG137: 3 | IH137: 2 | II137: 2 | IJ137: 2 | IK137: 6 | IL137: 4 | IM137: 4 | IN137: 5 | IO137: 2 | IP137: 18 | IQ137: 10 | IR137: 42 | IS137: 50 | IT137: 53 | IU137: 58 | IV137: 61 | IW137: 37 | IX137: 34 | IY137: 34 | IZ137: 24 | JA137: 26 | JB137: 26 | JC137: 18 | JD137: 14 | JE137: 15 | JF137: 14 | JG137: 12 | JH137: 8 | JI137: 9 | JJ137: 38 | JK137: 39 | JL137: 39 | JM137: 38 | JN137: 39 | JO137: 13 | JP137: 11 | JQ137: 10 | JR137: 11 | JS137: 8 | JT137: 7 | JU137: 11 | JV137: 11 | JW137: 16 | JX137: 20 | JY137: 30 | JZ137: 27 | KA137: 27.5621039 | KB137: 27.89192417 | KC137: 28.22174443 | KD137: 28.5515647 | KE137: 28.88138496 | KF137: 29.21120523 | KG137: 29.54102549 | KH137: 29.87084576 | KI137: 30.20066603 | KJ137: 30.53048629 | KK137: 30.86030656 | KL137: 31.19012682
GT138: Karlovarský kraj | GU138: 0 | GV138: 0 | GW138: 0 | GX138: 0 | GY138: 0 | GZ138: 0 | HA138: 0 | HB138: 3 | HC138: 5 | HD138: 4 | HE138: 2 | HF138: 1 | HG138: 0 | HH138: 0 | HI138: 0 | HJ138: 0 | HK138: 0 | HL138: 0 | HM138: 0 | HN138: 0 | HO138: 1 | HP138: 3 | HQ138: 2 | HR138: 0 | HS138: 0 | HT138: 0 | HU138: 0 | HV138: 0 | HW138: 0 | HX138: 0 | HY138: 0 | HZ138: 0 | IA138: 0 | IB138: 0 | IC138: 0 | ID138: 0 | IE138: 2 | IF138: 2 | IG138: 2 | IH138: 1 | II138: 1 | IJ138: 1 | IK138: 3 | IL138: 3 | IM138: 2 | IN138: 3 | IO138: 1 | IP138: 11 | IQ138: 11 | IR138: 47 | IS138: 55 | IT138: 59 | IU138: 64 | IV138: 68 | IW138: 41 | IX138: 38 | IY138: 37 | IZ138: 27 | JA138: 29 | JB138: 28 | JC138: 11 | JD138: 9 | JE138: 9 | JF138: 9 | JG138: 7 | JH138: 5 | JI138: 5 | JJ138: 23 | JK138: 23 | JL138: 24 | JM138: 23 | JN138: 24 | JO138: 17 | JP138: 15 | JQ138: 14 | JR138: 15 | JS138: 11 | JT138: 10 | JU138: 14 | JV138: 14 | JW138: 21 | JX138: 27 | JY138: 41 | JZ138: 37 | KA138: 37.3238809 | KB138: 37.6477618 | KC138: 37.9716427 | KD138: 38.2955236 | KE138: 38.6194045 | KF138: 38.9432854 | KG138: 39.2671663 | KH138: 39.59104721 | KI138: 39.91492811 | KJ138: 40.23880901 | KK138: 40.56268991 | KL138: 40.88657081
GT139: Plzeňský kraj | GU139: 0 | GV139: 0 | GW139: 0 | GX139: 0 | GY139: 0 | GZ139: 0 | HA139: 0 | HB139: 2 | HC139: 3 | HD139: 3 | HE139: 1 | HF139: 1 | HG139: 0 | HH139: 0 | HI139: 0 | HJ139: 0 | HK139: 0 | HL139: 0 | HM139: 0 | HN139: 0 | HO139: 1 | HP139: 1 | HQ139: 1 | HR139: 0 | HS139: 0 | HT139: 0 | HU139: 0 | HV139: 0 | HW139: 0 | HX139: 0 | HY139: 0 | HZ139: 0 | IA139: 1 | IB139: 2 | IC139: 2 | ID139: 0 | IE139: 3 | IF139: 3 | IG139: 3 | IH139: 2 | II139: 2 | IJ139: 2 | IK139: 5 | IL139: 4 | IM139: 4 | IN139: 4 | IO139: 2 | IP139: 16 | IQ139: 9 | IR139: 37 | IS139: 44 | IT139: 47 | IU139: 51 | IV139: 54 | IW139: 33 | IX139: 30 | IY139: 30 | IZ139: 22 | JA139: 24 | JB139: 23 | JC139: 22 | JD139: 17 | JE139: 18 | JF139: 17 | JG139: 14 | JH139: 10 | JI139: 11 | JJ139: 46 | JK139: 46 | JL139: 47 | JM139: 45 | JN139: 47 | JO139: 21 | JP139: 18 | JQ139: 17 | JR139: 18 | JS139: 14 | JT139: 12 | JU139: 18 | JV139: 18 | JW139: 27 | JX139: 33 | JY139: 51 | JZ139: 46 | KA139: 46.77918075 | KB139: 47.19848849 | KC139: 47.61779623 | KD139: 48.03710397 | KE139: 48.45641171 | KF139: 48.87571945 | KG139: 49.29502719 | KH139: 49.71433493 | KI139: 50.13364267 | KJ139: 50.55295041 | KK139: 50.97225815 | KL139: 51.39156589
GT140: Jihočeský kraj | GU140: 0 | GV140: 0 | GW140: 0 | GX140: 0 | GY140: 0 | GZ140: 0 | HA140: 0 | HB140: 2 | HC140: 4 | HD140: 4 | HE140: 1 | HF140: 1 | HG140: 0 | HH140: 0 | HI140: 0 | HJ140: 0 | HK140: 0 | HL140: 0 | HM140: 0 | HN140: 0 | HO140: 1 | HP140: 3 | HQ140: 2 | HR140: 0 | HS140: 0 | HT140: 0 | HU140: 0 | HV140: 0 | HW140: 0 | HX140: 0 | HY140: 0 | HZ140: 0 | IA140: 1 | IB140: 3 | IC140: 2 | ID140: 0 | IE140: 3 | IF140: 2 | IG140: 3 | IH140: 1 | II140: 2 | IJ140: 2 | IK140: 4 | IL140: 3 | IM140: 3 | IN140: 4 | IO140: 2 | IP140: 14 | IQ140: 9 | IR140: 37 | IS140: 44 | IT140: 47 | IU140: 51 | IV140: 54 | IW140: 33 | IX140: 30 | IY140: 30 | IZ140: 22 | JA140: 24 | JB140: 23 | JC140: 29 | JD140: 23 | JE140: 25 | JF140: 23 | JG140: 19 | JH140: 13 | JI140: 14 | JJ140: 61 | JK140: 62 | JL140: 63 | JM140: 60 | JN140: 63 | JO140: 19 | JP140: 16 | JQ140: 16 | JR140: 17 | JS140: 12 | JT140: 11 | JU140: 16 | JV140: 16 | JW140: 24 | JX140: 30 | JY140: 46 | JZ140: 41 | KA140: 33.17283202 | KB140: 33.64276385 | KC140: 33.72392453 | KD140: 32.40488097 | KE140: 32.79525328 | KF140: 32.66969664 | KG140: 33.13827215 | KH140: 38.34250915 | KI140: 38.85288946 | KJ140: 38.6924308 | KK140: 37.7510625 | KL140: 37.85852914
GT141: Jihomoravský kraj | GU141: 0 | GV141: 0 | GW141: 0 | GX141: 0 | GY141: 0 | GZ141: 0 | HA141: 0 | HB141: 6 | HC141: 10 | HD141: 9 | HE141: 3 | HF141: 2 | HG141: 0 | HH141: 0 | HI141: 0 | HJ141: 0 | HK141: 0 | HL141: 0 | HM141: 0 | HN141: 0 | HO141: 2 | HP141: 4 | HQ141: 3 | HR141: 0 | HS141: 0 | HT141: 0 | HU141: 0 | HV141: 0 | HW141: 0 | HX141: 0 | HY141: 0 | HZ141: 0 | IA141: 3 | IB141: 5 | IC141: 4 | ID141: 0 | IE141: 5 | IF141: 4 | IG141: 5 | IH141: 3 | II141: 3 | IJ141: 3 | IK141: 8 | IL141: 6 | IM141: 6 | IN141: 7 | IO141: 3 | IP141: 25 | IQ141: 11 | IR141: 47 | IS141: 55 | IT141: 59 | IU141: 64 | IV141: 68 | IW141: 41 | IX141: 38 | IY141: 37 | IZ141: 27 | JA141: 29 | JB141: 28 | JC141: 25 | JD141: 20 | JE141: 21 | JF141: 20 | JG141: 16 | JH141: 12 | JI141: 13 | JJ141: 53 | JK141: 54 | JL141: 55 | JM141: 53 | JN141: 55 | JO141: 13 | JP141: 11 | JQ141: 10 | JR141: 11 | JS141: 8 | JT141: 7 | JU141: 11 | JV141: 11 | JW141: 16 | JX141: 20 | JY141: 30 | JZ141: 27 | KA141: 27.60486746 | KB141: 27.97317018 | KC141: 28.34147289 | KD141: 28.7097756 | KE141: 29.07807832 | KF141: 29.44638103 | KG141: 29.81468375 | KH141: 30.18298646 | KI141: 30.55128917 | KJ141: 30.91959189 | KK141: 31.2878946 | KL141: 31.65619732
GT142: Pardubický kraj | GU142: 0 | GV142: 0 | GW142: 0 | GX142: 0 | GY142: 0 | GZ142: 0 | HA142: 0 | HB142: 2 | HC142: 4 | HD142: 4 | HE142: 1 | HF142: 1 | HG142: 0 | HH142: 0 | HI142: 0 | HJ142: 0 | HK142: 0 | HL142: 0 | HM142: 0 | HN142: 0 | HO142: 1 | HP142: 2 | HQ142: 1 | HR142: 0 | HS142: 0 | HT142: 0 | HU142: 0 | HV142: 0 | HW142: 0 | HX142: 0 | HY142: 0 | HZ142: 0 | IA142: 2 | IB142: 3 | IC142: 3 | ID142: 0 | IE142: 3 | IF142: 3 | IG142: 3 | IH142: 2 | II142: 2 | IJ142: 2 | IK142: 6 | IL142: 4 | IM142: 4 | IN142: 5 | IO142: 2 | IP142: 18 | IQ142: 9 | IR142: 37 | IS142: 44 | IT142: 47 | IU142: 51 | IV142: 54 | IW142: 33 | IX142: 30 | IY142: 30 | IZ142: 22 | JA142: 24 | JB142: 23 | JC142: 25 | JD142: 20 | JE142: 21 | JF142: 20 | JG142: 16 | JH142: 12 | JI142: 13 | JJ142: 53 | JK142: 54 | JL142: 55 | JM142: 53 | JN142: 55 | JO142: 21 | JP142: 18 | JQ142: 17 | JR142: 18 | JS142: 14 | JT142: 12 | JU142: 18 | JV142: 18 | JW142: 27 | JX142: 33 | JY142: 51 | JZ142: 46 | KA142: 46.80264576 | KB142: 47.24306939 | KC142: 47.68349302 | KD142: 48.12391665 | KE142: 48.56434028 | KF142: 49.00476392 | KG142: 49.44518755 | KH142: 49.88561118 | KI142: 50.32603481 | KJ142: 50.76645844 | KK142: 51.20688208 | KL142: 51.64730571
GT143: Královehradecký kraj | GU143: 0 | GV143: 0 | GW143: 0 | GX143: 0 | GY143: 0 | GZ143: 0 | HA143: 0 | HB143: 3 | HC143: 5 | HD143: 4 | HE143: 2 | HF143: 1 | HG143: 0 | HH143: 0 | HI143: 0 | HJ143: 0 | HK143: 0 | HL143: 0 | HM143: 0 | HN143: 0 | HO143: 1 | HP143: 2 | HQ143: 1 | HR143: 0 | HS143: 0 | HT143: 0 | HU143: 0 | HV143: 0 | HW143: 0 | HX143: 0 | HY143: 0 | HZ143: 0 | IA143: 1 | IB143: 2 | IC143: 2 | ID143: 0 | IE143: 2 | IF143: 1 | IG143: 2 | IH143: 1 | II143: 1 | IJ143: 1 | IK143: 3 | IL143: 2 | IM143: 2 | IN143: 2 | IO143: 1 | IP143: 9 | IQ143: 6 | IR143: 23 | IS143: 28 | IT143: 30 | IU143: 32 | IV143: 34 | IW143: 20 | IX143: 19 | IY143: 19 | IZ143: 13 | JA143: 15 | JB143: 14 | JC143: 33 | JD143: 26 | JE143: 28 | JF143: 26 | JG143: 21 | JH143: 15 | JI143: 16 | JJ143: 69 | JK143: 69 | JL143: 71 | JM143: 68 | JN143: 71 | JO143: 11 | JP143: 9 | JQ143: 9 | JR143: 9 | JS143: 7 | JT143: 6 | JU143: 9 | JV143: 9 | JW143: 13 | JX143: 17 | JY143: 25 | JZ143: 23 | KA143: 23.35660608 | KB143: 23.71321215 | KC143: 24.06981823 | KD143: 24.42642431 | KE143: 24.78303039 | KF143: 25.13963646 | KG143: 25.49624254 | KH143: 25.85284862 | KI143: 26.20945469 | KJ143: 26.56606077 | KK143: 26.92266685 | KL143: 27.27927292
GT144: Kraj Vysočina | GU144: =IF($F155=FALSE,-1,AD39) -> 0 | GV144: 0 | GW144: 0 | GX144: 0 | GY144: 0 | GZ144: 0 | HA144: 0 | HB144: 2 | HC144: 4 | HD144: 4 | HE144: 1 | HF144: 1 | HG144: =IF($F155=FALSE,-1,AQ39) -> 0 | HH144: 0 | HI144: 0 | HJ144: 0 | HK144: 0 | HL144: 0 | HM144: 0 | HN144: 0 | HO144: 1 | HP144: 2 | HQ144: 2 | HR144: 0 | HS144: =IF($F155=FALSE,-1,BD39) -> 0 | HT144: 0 | HU144: 0 | HV144: 0 | HW144: 0 | HX144: 0 | HY144: 0 | HZ144: 0 | IA144: 1 | IB144: 3 | IC144: 2 | ID144: 0 | IE144: =IF($F155=FALSE,-1,BQ39) -> 1 | IF144: 1 | IG144: 1 | IH144: 1 | II144: 1 | IJ144: 1 | IK144: 2 | IL144: 2 | IM144: 2 | IN144: 2 | IO144: 1 | IP144: 7 | IQ144: =IF($F155=FALSE,-1,CD39) -> 6 | IR144: 23 | IS144: 28 | IT144: 30 | IU144: 32 | IV144: 34 | IW144: 20 | IX144: 19 | IY144: 19 | IZ144: 13 | JA144: 15 | JB144: 14 | JC144: =IF($F155=FALSE,-1,CQ39) -> 36 | JD144: 29 | JE144: 31 | JF144: 29 | JG144: 23 | JH144: 17 | JI144: 18 | JJ144: 76 | JK144: 77 | JL144: 79 | JM144: 75 | JN144: 79 | JO144: =IF($F155=FALSE,-1,DD39) -> 19 | JP144: 16 | JQ144: 16 | JR144: 17 | JS144: 12 | JT144: 11 | JU144: 16 | JV144: 16 | JW144: 24 | JX144: 30 | JY144: 46 | JZ144: 41 | KA144: =IF($F155=FALSE,-1,DQ39) -> 41.83309253 | KB144: 42.28278582 | KC144: 42.73247911 | KD144: 43.1821724 | KE144: 43.63186569 | KF144: 44.08155898 | KG144: 44.53125227 | KH144: 44.98094556 | KI144: 45.43063885 | KJ144: 45.88033214 | KK144: 46.33002542 | KL144: 46.77971871
GT145: Středočeský kraj | GU145: 0 | GV145: 0 | GW145: 0 | GX145: 0 | GY145: 0 | GZ145: 0 | HA145: 0 | HB145: 6 | HC145: 10 | HD145: 9 | HE145: 3 | HF145: 2 | HG145: 0 | HH145: 0 | HI145: 0 | HJ145: 0 | HK145: 0 | HL145: 0 | HM145: 0 | HN145: 0 | HO145: 4 | HP145: 7 | HQ145: 6 | HR145: 0 | HS145: 0 | HT145: 0 | HU145: 0 | HV145: 0 | HW145: 0 | HX145: 0 | HY145: 0 | HZ145: 0 | IA145: 3 | IB145: 5 | IC145: 4 | ID145: 0 | IE145: 11 | IF145: 9 | IG145: 11 | IH145: 6 | II145: 7 | IJ145: 7 | IK145: 18 | IL145: 14 | IM145: 13 | IN145: 16 | IO145: 8 | IP145: 58 | IQ145: 33 | IR145: 135 | IS145: 160 | IT145: 171 | IU145: 185 | IV145: 196 | IW145: 118 | IX145: 109 | IY145: 109 | IZ145: 78 | JA145: 85 | JB145: 83 | JC145: 65 | JD145: 52 | JE145: 55 | JF145: 52 | JG145: 42 | JH145: 30 | JI145: 32 | JJ145: 137 | JK145: 139 | JL145: 141 | JM145: 135 | JN145: 142 | JO145: 28 | JP145: 24 | JQ145: 23 | JR145: 24 | JS145: 18 | JT145: 16 | JU145: 23 | JV145: 24 | JW145: 35 | JX145: 43 | JY145: 66 | JZ145: 59 | KA145: 60.53414963 | KB145: 61.4997585 | KC145: 62.46536738 | KD145: 63.43097626 | KE145: 64.39658514 | KF145: 65.36219401 | KG145: 66.32780289 | KH145: 67.29341177 | KI145: 68.25902065 | KJ145: 69.22462952 | KK145: 70.1902384 | KL145: 71.15584728
GU148: 2012-01-01 | GV148: 2014-01-01 | GW148: 2015-01-01 | GX148: 2016-01-01 | GY148: 2017-01-01 | GZ148: 2018-01-01 | HA148: 2019-01-01 | HB148: 2020-01-01 | HC148: 2020 Pesimistická | HD148: 2020 Optimistická | HE148: 2020 Korona
GT149: =GT133 -> Olomoucký kraj | GU149: =AP28 -> 0 | GV149: =BC28 -> 4 | GW149: =BP28 -> 3 | GX149: =CC28 -> 50 | GY149: =CP28 -> 354 | GZ149: =DC28 -> 569 | HA149: =DP28 -> 147 | HB149: =SUM(KB28:KM28) -> 260.5224761 | HC149: =HB149*0.8 -> 208.4179809 | HD149: =HB149*1.2 -> 312.6269714 | HE149: =HB149*$D$40 -> 179.1092023
GT150: =GT134 -> Moravskoslezský kraj | GU150: 12 | GV150: =BC29 -> 5 | GW150: 8 | GX150: 50 | GY150: 404 | GZ150: 513 | HA150: 293 | HB150: =SUM(KB29:KM29) -> 469.5553797 | HC150: =HB150*0.8 -> 375.6443038 | HD150: =HB150*1.2 -> 563.4664557 | HE150: =HB150*$D$40 -> 322.8193236
GT151: Zlínský kraj | GU151: 15 | GV151: 6 | GW151: 6 | GX151: 54 | GY151: 504 | GZ151: 569 | HA151: 293 | HB151: 478.1855471 | HC151: 382.5484377 | HD151: 573.8226565 | HE151: 328.7525636
GT152: Liberecký kraj | GU152: 16 | GV152: 3 | GW152: 4 | GX152: 17 | GY152: 302 | GZ152: 397 | HA152: 116 | HB152: 201.0516308 | HC152: 160.8413047 | HD152: 241.261957 | HE152: 138.2229962
GT153: Ústecký kraj | GU153: 5 | GV153: 5 | GW153: 0 | GX153: 54 | GY153: 455 | GZ153: 283 | HA153: 175 | HB153: 352.5133843 | HC153: 282.0107075 | HD153: 423.0160612 | HE153: 242.3529517
GT154: Karlovarský kraj | GU154: 15 | GV154: 6 | GW154: 0 | GX154: 32 | GY154: 504 | GZ154: 172 | HA154: 236 | HB154: 469.2627103 | HC154: 375.4101682 | HD154: 563.1152523 | HE154: 322.6181133 | JS154: ahoj
F155: TRUE | GT155: Plzeňský kraj | GU155: 10 | GV155: 3 | GW155: 5 | GX155: 50 | GY155: 404 | GZ155: 340 | HA155: 293 | HB155: 589.0244799 | HC155: 471.2195839 | HD155: 706.8293759 | HE155: 404.9543299
F156: TRUE | GT156: Jihočeský kraj | GU156: 12 | GV156: 6 | GW156: 6 | GX156: 43 | GY156: 404 | GZ156: 455 | HA156: 264 | HB156: 423.0450445 | HC156: 338.4360356 | HD156: 507.6540534 | HE156: 290.8434681
GT157: Jihomoravský kraj | GU157: 30 | GV157: 9 | GW157: 12 | GX157: 78 | GY157: 504 | GZ157: 397 | HA157: 175 | HB157: 355.5663887 | HC157: 284.4531109 | HD157: 426.6796664 | HE157: 244.4518922
GT158: Pardubický kraj | GU158: 12 | GV158: 4 | GW158: 8 | GX158: 54 | GY158: 404 | GZ158: 397 | HA158: 293 | HB158: 590.6997088 | HC158: 472.559767 | HD158: 708.8396505 | HE158: 406.1060498
GT159: Královehradecký kraj | GU159: 15 | GV159: 4 | GW159: 5 | GX159: 27 | GY159: 253 | GZ159: 513 | HA159: 147 | HB159: 303.815274 | HC159: 243.0522192 | HD159: 364.5783288 | HE159: 208.8730009
GT160: Kraj Vysočina | GU160: 12 | GV160: 5 | GW160: 6 | GX160: 22 | GY160: 253 | GZ160: 569 | HA160: 264 | HB160: 531.6768675 | HC160: 425.341494 | HD160: 638.012241 | HE160: 365.5278464
GT161: Středočeský kraj | GU161: 30 | GV161: 17 | GW161: 12 | GX161: 178 | GY161: 1462 | GZ161: 1022 | HA161: 383 | HB161: 790.1399814 | HC161: 632.1119851 | HD161: 948.1679777 | HE161: 543.2212372

Sheet Výstupy z Tasha
B2: Rozvoz | C2: Cena | D2: Počet zakázek | E2: Poměry zakázek | F2: Nový výpočet ceny | G2: MAX hranice | H2: DELTA | I2: Označení rozvozu | J2: Výpočet použité ceny | N2: Varianty | O2: VVP | P2: NVP | Q2: PI | T2: Varianty | V2: statická PP | W2: dynamické PP
B3: Olomoucký kraj | C3: 11270.25 | D3: 20.31700249 | E3: =C3/$C$16 -> 0.09418165023 | F3: =($C$17/100)*E3*100 -> 6904.296669 | G3: =C3 -> 11270.25 | H3: =G3-F3 -> 4365.953331 | I3: ='Rozvoz investoři'!T3 -> 1 | J3: =F3+((H3/13)*$I$17) -> 6904.296669 | M3: Célá ČR | N3: Realistická varianta | O3: 0.2743576474 | P3: 1573150.694 | Q3: 1.637260704 | S3: Célá ČR | T3: Realistická varianta | U3: Rok | V3: 2 | W3: 2
B4: Moravskoslezský kraj | C4: 13617 | D4: 36.78744638 | E4: =C4/$C$16 -> 0.1137926427 | F4: =($C$17/100)*E4*100 -> 8341.945187 | G4: =C4 -> 13617 | H4: =G4-F4 -> 5275.054813 | I4: ='Rozvoz investoři'!T4 -> 1 | J4: =F4+((H4/13)*$I$17) -> 8341.945187 | N4: Optimistická varianty | O4: 0.4036980416 | P4: 2900584.058 | Q4: 2.174984853 | U4: Měsíc | V4: 4.934872319 | W4: 6.869032779
B5: Zlínský kraj | C5: 11962 | D5: 37.25605968 | E5: 0.09996236996 | F5: 7328.071406 | G5: 11962 | H5: 4633.928594 | I5: ='Rozvoz investoři'!T5 -> 1 | J5: 7328.071406 | N5: Pesimistická varianta | O5: 0.1217811894 | P5: 245717.3309 | Q5: 1.099536554 | T5: Optimistická varianty | U5: Rok | V5: 2 | W5: 2
B6: Liberecký kraj | C6: 5698.35 | D6: 15.23156436 | E6: 0.04761917496 | F6: 3490.880764 | G6: 5698.35 | H6: 2207.469236 | I6: ='Rozvoz investoři'!T6 -> 1 | J6: 3490.880764 | N6: Koronavirová varianta | O6: 0.07133474957 | P6: -138061.672 | Q6: 0.9440732038 | U6: Měsíc | V6: 2.981799876 | W6: 4.450287233
B7: Ústecký kraj | C7: 7086.3 | D7: 27.5621039 | E7: 0.05921780156 | F7: 4341.156362 | G7: 7086.3 | H7: 2745.143638 | I7: ='Rozvoz investoři'!T7 -> 1 | J7: 4341.156362 | M7: Jen Čechy | N7: Realistická varianta | O7: 0.3154102421 | P7: 1910433.89 | Q7: 1.773889272 | T7: Pesimistická varianta | U7: Rok | V7: 2 | W7: 2
B8: Karlovarský kraj | C8: 7687.2 | D8: 37.3238809 | E8: 0.0642393187 | F8: 4709.275247 | G8: 7687.2 | H8: 2977.924753 | I8: ='Rozvoz investoři'!T8 -> 1 | J8: 4709.275247 | N8: Optimistická varianty | O8: 0.4446066524 | P8: 3243688.482 | Q8: 2.313971517 | U8: Měsíc | V8: 8.211573453 | W8: 10.92700119
B9: Plzeňský kraj | C9: 8521.68 | D9: 46.77918075 | E9: 0.07121278455 | F9: 5220.488174 | G9: 8521.68 | H9: 3301.191826 | I9: ='Rozvoz investoři'!T9 -> 1 | J9: 5220.488174 | N9: Pesimistická varianta | O9: 0.1647625343 | P9: 577179.2992 | Q9: 1.233807027 | T9: Koronavirová varianta | U9: Rok | V9: 2 | W9: 3
B10: Jihočeský kraj | C10: 9517.2 | D10: 33.17283202 | E10: 0.07953200697 | F10: 5830.356227 | G10: 9517.2 | H10: 3686.843773 | I10: ='Rozvoz investoři'!T10 -> 1 | J10: 5830.356227 | N10: Koronavirová varianta | O10: 0.103430653 | P10: 98998.60776 | Q10: 1.040102911 | U10: Měsíc | V10: 9.577673917 | W10: 0
B11: Jihomoravský kraj | C11: 11128.8 | D11: 27.60486746 | E11: 0.09299960064 | F11: 6817.642623 | G11: 11128.8 | H11: 4311.157377 | I11: ='Rozvoz investoři'!T11 -> 1 | J11: 6817.642623 | S11: Jen Čechy | T11: Realistická varianta | U11: Rok | V11: 2 | W11: 2
B12: Pardubický kraj | C12: 7860.3 | D12: 46.80264576 | E12: 0.06568585659 | F12: 4815.318481 | G12: 7860.3 | H12: 3044.981519 | I12: ='Rozvoz investoři'!T12 -> 1 | J12: 4815.318481 | U12: Měsíc | V12: 4.130072694 | W12: 5.920442316
B13: Královehradecký kraj | C13: 6876.15 | D13: 23.35660608 | E13: 0.05746164941 | F13: 4212.415833 | G13: 6876.15 | H13: 2663.734167 | I13: ='Rozvoz investoři'!T13 -> 1 | J13: 4212.415833 | T13: Optimistická varianty | U13: Rok | V13: 2 | W13: 2
B14: Kraj Vysočina | C14: 8478.6 | D14: 41.83309253 | E14: 0.07085277963 | F14: 5194.096825 | G14: 8478.6 | H14: 3284.503175 | I14: ='Rozvoz investoři'!T14 -> 1 | J14: 5194.096825 | U14: Měsíc | V14: 2.346358488 | W14: 3.703043325
B15: Středočeský kraj | C15: 9961.2 | D15: 60.53414963 | E15: 0.08324236412 | F15: 6102.356202 | G15: 9961.2 | H15: 3858.843798 | I15: ='Rozvoz investoři'!T15 -> 1 | J15: 6102.356202 | T15: Pesimistická varianta | U15: Rok | V15: 2 | W15: 2
B16: Celá ČR součet | C16: =SUM(C3:C15) -> 119665.03 | D16: 454.5614319 | E16: 1 | F16: 73308.3 | G16: 119665.03 | H16: 46356.73 | I16: 13 | J16: 73308.3 | U16: Měsíc | V16: 7.065892759 | W16: 9.570065352
B17: Celá ČR | C17: 73308.3 | D17: =SUM(D3:D15) -> 454.5614319 | I17: =13-I16 -> 0 | T17: Koronavirová varianta | U17: Rok | V17: 2 | W17: 2
U18: Měsíc | V18: 8.592400522 | W18: 11.51862704

Sheet Rozvoz investoři
W1: 2020-01-01 | AA1: počet zakázek
W2: Koronavirus | X2: Pesimistická | Y2: Realistická | Z2: Optimistická | AA2: Realistická | AB2: leden | AC2: únor | AD2: březen | AE2: duben | AF2: květen | AG2: červen | AH2: červenec | AI2: srpen | AJ2: září | AK2: říjen | AL2: listopad | AM2: prosinec | AP2: ='Počet odeslaných zásilek'!C6 -> Realistická | AQ2: leden | AR2: únor | AS2: březen | AT2: duben | AU2: květen | AV2: červen | AW2: červenec | AX2: srpen | AY2: září | AZ2: říjen | BA2: listopad | BB2: prosinec | BC2: SUMA | BF2: leden | BG2: únor | BH2: březen | BI2: duben | BJ2: květen | BK2: červen | BL2: červenec | BM2: srpen | BN2: září | BO2: říjen | BP2: listopad | BQ2: prosinec | BR2: SUMA | BU2: leden | BV2: únor | BW2: březen | BX2: duben | BY2: květen | BZ2: červen | CA2: červenec | CB2: srpen | CC2: září | CD2: říjen | CE2: listopad | CF2: prosinec | CG2: SUMA | CI2: 2020 | CV2: 2021 | DI2: 2022
S3: Olomoucký kraj | T3: 1 | W3: =Y3*'Počet odeslaných zásilek'!$D$28 -> 6904.296669 | X3: =Y3*0.8 -> 5523.437336 | Y3: ='Výstupy z Tasha'!J3 -> 6904.296669 | Z3: =Y3*1.2 -> 8285.156003 | AA3: ='Počet odeslaných zásilek'!KB28 -> 20.31700249 | AB3: =IF($AP$2=$X$2,('Počet odeslaných zásilek'!KB28)*0.8,IF($AP$2=$Y$2,('Počet odeslaných zásilek'!KB28),IF($AP$2=$Z$2,('Počet odeslaných zásilek'!KB28)*1.2,IF($AP$2=$W$2,('Počet odeslaných zásilek'!KB28)*'Počet odeslaných zásilek'!$D$28,"")))) -> 20.31700249 | AC3: =IF($AP$2=$X$2,('Počet odeslaných zásilek'!KC28)*0.8,IF($AP$2=$Y$2,('Počet odeslaných zásilek'!KC28),IF($AP$2=$Z$2,('Počet odeslaných zásilek'!KC28)*1.2,IF($AP$2=$W$2,('Počet odeslaných zásilek'!KC28)*'Počet odeslaných zásilek'!$D$29,"")))) -> 20.64170521 | AD3: =IF($AP$2=$X$2,('Počet odeslaných zásilek'!KD28)*0.8,IF($AP$2=$Y$2,('Počet odeslaných zásilek'!KD28),IF($AP$2=$Z$2,('Počet odeslaných zásilek'!KD28)*1.2,IF($AP$2=$W$2,('Počet odeslaných zásilek'!KD28)*'Počet odeslaných zásilek'!$D$30,"")))) -> 20.27853528 | AE3: =IF($AP$2=$X$2,('Počet odeslaných zásilek'!KE28)*0.8,IF($AP$2=$Y$2,('Počet odeslaných zásilek'!KE28),IF($AP$2=$Z$2,('Počet odeslaných zásilek'!KE28)*1.2,IF($AP$2=$W$2,('Počet odeslaných zásilek'!KE28)*'Počet odeslaných zásilek'!$D$31,"")))) -> 19.48989148 | AF3: =IF($AP$2=$X$2,('Počet odeslaných zásilek'!KF28)*0.8,IF($AP$2=$Y$2,('Počet odeslaných zásilek'!KF28),IF($AP$2=$Z$2,('Počet odeslaných zásilek'!KF28)*1.2,IF($AP$2=$W$2,('Počet odeslaných zásilek'!KF28)*'Počet odeslaných zásilek'!$D$32,"")))) -> 19.44176421 | AG3: =IF($AP$2=$X$2,('Počet odeslaných zásilek'!KG28)*0.8,IF($AP$2=$Y$2,('Počet odeslaných zásilek'!KG28),IF($AP$2=$Z$2,('Počet odeslaných zásilek'!KG28)*1.2,IF($AP$2=$W$2,('Počet odeslaných zásilek'!KG28)*'Počet odeslaných zásilek'!$D$33,"")))) -> 19.27393717 | AH3: =IF($AP$2=$X$2,('Počet odeslaných zásilek'!KH28)*0.8,IF($AP$2=$Y$2,('Počet odeslaných zásilek'!KH28),IF($AP$2=$Z$2,('Počet odeslaných zásilek'!KH28)*1.2,IF($AP$2=$W$2,('Počet odeslaných zásilek'!KH28)*'Počet odeslaných zásilek'!$D$34,"")))) -> 20.0400151 | AI3: =IF($AP$2=$X$2,('Počet odeslaných zásilek'!KI28)*0.8,IF($AP$2=$Y$2,('Počet odeslaných zásilek'!KI28),IF($AP$2=$Z$2,('Počet odeslaných zásilek'!KI28)*1.2,IF($AP$2=$W$2,('Počet odeslaných zásilek'!KI28)*'Počet odeslaných zásilek'!$D$35,"")))) -> 24.38871408 | AJ3: =IF($AP$2=$X$2,('Počet odeslaných zásilek'!KJ28)*0.8,IF($AP$2=$Y$2,('Počet odeslaných zásilek'!KJ28),IF($AP$2=$Z$2,('Počet odeslaných zásilek'!KJ28)*1.2,IF($AP$2=$W$2,('Počet odeslaných zásilek'!KJ28)*'Počet odeslaných zásilek'!$D$36,"")))) -> 24.26430282 | AK3: =IF($AP$2=$X$2,('Počet odeslaných zásilek'!KK28)*0.8,IF($AP$2=$Y$2,('Počet odeslaných zásilek'!KK28),IF($AP$2=$Z$2,('Počet odeslaných zásilek'!KK28)*1.2,IF($AP$2=$W$2,('Počet odeslaných zásilek'!KK28)*'Počet odeslaných zásilek'!$D$37,"")))) -> 24.08990898 | AL3: =IF($AP$2=$X$2,('Počet odeslaných zásilek'!KL28)*0.8,IF($AP$2=$Y$2,('Počet odeslaných zásilek'!KL28),IF($AP$2=$Z$2,('Počet odeslaných zásilek'!KL28)*1.2,IF($AP$2=$W$2,('Počet odeslaných zásilek'!KL28)*'Počet odeslaných zásilek'!$D$38,"")))) -> 24.11289939 | AM3: =IF($AP$2=$X$2,('Počet odeslaných zásilek'!KM28)*0.8,IF($AP$2=$Y$2,('Počet odeslaných zásilek'!KM28),IF($AP$2=$Z$2,('Počet odeslaných zásilek'!KM28)*1.2,IF($AP$2=$W$2,('Počet odeslaných zásilek'!KM28)*'Počet odeslaných zásilek'!$D$39,"")))) -> 24.1837999 | AN3: Olomoucký kraj | AP3: Olomoucký kraj | AQ3: =IF($AP$2=X$2,X3,IF($AP$2=Y$2,Y3,IF($AP$2=Z$2,Z3,IF($AP$2=W$2,W3,"")))) -> 6904.296669 | AR3: =($Y3/$AA3)*AC3 -> 7014.639913 | AS3: =($Y3/$AA3)*AD3 -> 6891.224417 | AT3: 6623.22077 | AU3: 6606.865751 | AV3: 6549.833339 | AW3: 6810.16846 | AX3: 8287.98035 | AY3: 8245.701857 | AZ3: 8186.437858 | BA3: 8194.250657 | BB3: =($Y3/$AA3)*AM3 -> 8218.344672 | BC3: =SUM(AQ3:BB3) -> 88532.96471 | BE3: Olomoucký kraj | BF3: =IF($AP$2=X$18,X19,IF($AP$2=Y$18,Y19,IF($AP$2=Z$18,Z19,IF($AP$2=W$18,W19,"")))) -> 8346.537442 | BG3: =($Y3/$AB19)*AC19 -> 6947.313344 | BH3: =($Y3/$AB19)*AD19 -> 6971.743555 | BI3: 6919.838165 | BJ3: 7269.124718 | BK3: 7360.401189 | BL3: 7258.311287 | BM3: 7036.617356 | BN3: 7023.088405 | BO3: 6975.910914 | BP3: 7191.261401 | BQ3: 8413.714638 | BR3: =SUM(BF3:BQ3) -> 87713.86241 | BT3: Olomoucký kraj | BU3: =IF($AP$2=X$34,X35,IF($AP$2=Y$34,Y35,IF($AP$2=Z$34,Z35,IF($AP$2=W$34,W35,"")))) -> 10128.97973 | BV3: =($Y3/$AB35)*AC35 -> 6863.900081 | BW3: =($Y3/$AB35)*AD35 -> 6869.225581 | BX3: 6885.648975 | BY3: 6973.030028 | BZ3: 7008.476864 | CA3: 7028.607981 | CB3: 6985.836617 | CC3: 7273.657638 | CD3: 7348.871777 | CE3: 7264.747095 | CF3: =($Y3/$AB35)*AM35 -> 7082.065646 | CG3: =SUM(BU3:CF3) -> 87713.04801 | CI3: =IF($T3=1,AQ3,0) -> 6904.296669 | CJ3: =IF($T3=1,AR3,0) -> 7014.639913 | CK3: =IF($T3=1,AS3,0) -> 6891.224417 | CL3: =IF($T3=1,AT3,0) -> 6623.22077 | CM3: =IF($T3=1,AU3,0) -> 6606.865751 | CN3: =IF($T3=1,AV3,0) -> 6549.833339 | CO3: =IF($T3=1,AW3,0) -> 6810.16846 | CP3: =IF($T3=1,AX3,0) -> 8287.98035 | CQ3: =IF($T3=1,AY3,0) -> 8245.701857 | CR3: =IF($T3=1,AZ3,0) -> 8186.437858 | CS3: =IF($T3=1,BA3,0) -> 8194.250657 | CT3: =IF($T3=1,BB3,0) -> 8218.344672 | CV3: =IF($T3=1,BF3,0) -> 8346.537442 | CW3: =IF($T3=1,BG3,0) -> 6947.313344 | CX3: 6971.743555 | CY3: 6919.838165 | CZ3: 7269.124718 | DA3: 7360.401189 | DB3: 7258.311287 | DC3: 7036.617356 | DD3: 7023.088405 | DE3: 6975.910914 | DF3: 7191.261401 | DG3: 8413.714638 | DI3: =IF($T3=1,BU3,0) -> 10128.97973 | DJ3: =IF($T3=1,BV3,0) -> 6863.900081 | DK3: 6869.225581 | DL3: 6885.648975 | DM3: 6973.030028 | DN3: 7008.476864 | DO3: 7028.607981 | DP3: 6985.836617 | DQ3: 7273.657638 | DR3: 7348.871777 | DS3: 7264.747095 | DT3: 7082.065646
S4: Moravskoslezský kraj | T4: 1 | W4: =Y4*'Počet odeslaných zásilek'!$D$28 -> 8341.945187 | X4: =Y4*0.8 -> 6673.55615 | Y4: ='Výstupy z Tasha'!J4 -> 8341.945187 | Z4: =Y4*1.2 -> 10010.33422 | AA4: ='Počet odeslaných zásilek'!KB29 -> 36.78744638 | AB4: =IF($AP$2=$X$2,('Počet odeslaných zásilek'!KB29)*0.8,IF($AP$2=$Y$2,('Počet odeslaných zásilek'!KB29),IF($AP$2=$Z$2,('Počet odeslaných zásilek'!KB29)*1.2,IF($AP$2=$W$2,('Počet odeslaných zásilek'!KB29)*'Počet odeslaných zásilek'!$D$28,"")))) -> 36.78744638 | AC4: =IF($AP$2=$X$2,('Počet odeslaných zásilek'!KC29)*0.8,IF($AP$2=$Y$2,('Počet odeslaných zásilek'!KC29),IF($AP$2=$Z$2,('Počet odeslaných zásilek'!KC29)*1.2,IF($AP$2=$W$2,('Počet odeslaných zásilek'!KC29)*'Počet odeslaných zásilek'!$D$29,"")))) -> 37.26813599 | AD4: =IF($AP$2=$X$2,('Počet odeslaných zásilek'!KD29)*0.8,IF($AP$2=$Y$2,('Počet odeslaných zásilek'!KD29),IF($AP$2=$Z$2,('Počet odeslaných zásilek'!KD29)*1.2,IF($AP$2=$W$2,('Počet odeslaných zásilek'!KD29)*'Počet odeslaných zásilek'!$D$30,"")))) -> 37.3589966 | AE4: =IF($AP$2=$X$2,('Počet odeslaných zásilek'!KE29)*0.8,IF($AP$2=$Y$2,('Počet odeslaných zásilek'!KE29),IF($AP$2=$Z$2,('Počet odeslaných zásilek'!KE29)*1.2,IF($AP$2=$W$2,('Počet odeslaných zásilek'!KE29)*'Počet odeslaných zásilek'!$D$31,"")))) -> 36.36149275 | AF4: =IF($AP$2=$X$2,('Počet odeslaných zásilek'!KF29)*0.8,IF($AP$2=$Y$2,('Počet odeslaných zásilek'!KF29),IF($AP$2=$Z$2,('Počet odeslaných zásilek'!KF29)*1.2,IF($AP$2=$W$2,('Počet odeslaných zásilek'!KF29)*'Počet odeslaných zásilek'!$D$32,"")))) -> 36.43417238 | AG4: =IF($AP$2=$X$2,('Počet odeslaných zásilek'!KG29)*0.8,IF($AP$2=$Y$2,('Počet odeslaných zásilek'!KG29),IF($AP$2=$Z$2,('Počet odeslaných zásilek'!KG29)*1.2,IF($AP$2=$W$2,('Počet odeslaných zásilek'!KG29)*'Počet odeslaných zásilek'!$D$33,"")))) -> 36.33060133 | AH4: =IF($AP$2=$X$2,('Počet odeslaných zásilek'!KH29)*0.8,IF($AP$2=$Y$2,('Počet odeslaných zásilek'!KH29),IF($AP$2=$Z$2,('Počet odeslaných zásilek'!KH29)*1.2,IF($AP$2=$W$2,('Počet odeslaných zásilek'!KH29)*'Počet odeslaných zásilek'!$D$34,"")))) -> 37.15224613 | AI4: =IF($AP$2=$X$2,('Počet odeslaných zásilek'!KI29)*0.8,IF($AP$2=$Y$2,('Počet odeslaných zásilek'!KI29),IF($AP$2=$Z$2,('Počet odeslaných zásilek'!KI29)*1.2,IF($AP$2=$W$2,('Počet odeslaných zásilek'!KI29)*'Počet odeslaných zásilek'!$D$35,"")))) -> 42.33711132 | AJ4: =IF($AP$2=$X$2,('Počet odeslaných zásilek'!KJ29)*0.8,IF($AP$2=$Y$2,('Počet odeslaných zásilek'!KJ29),IF($AP$2=$Z$2,('Počet odeslaných zásilek'!KJ29)*1.2,IF($AP$2=$W$2,('Počet odeslaných zásilek'!KJ29)*'Počet odeslaných zásilek'!$D$36,"")))) -> 42.89491178 | AK4: =IF($AP$2=$X$2,('Počet odeslaných zásilek'!KK29)*0.8,IF($AP$2=$Y$2,('Počet odeslaných zásilek'!KK29),IF($AP$2=$Z$2,('Počet odeslaných zásilek'!KK29)*1.2,IF($AP$2=$W$2,('Počet odeslaných zásilek'!KK29)*'Počet odeslaných zásilek'!$D$37,"")))) -> 42.76211378 | AL4: =IF($AP$2=$X$2,('Počet odeslaných zásilek'!KL29)*0.8,IF($AP$2=$Y$2,('Počet odeslaných zásilek'!KL29),IF($AP$2=$Z$2,('Počet odeslaných zásilek'!KL29)*1.2,IF($AP$2=$W$2,('Počet odeslaných zásilek'!KL29)*'Počet odeslaných zásilek'!$D$38,"")))) -> 41.86369207 | AM4: =IF($AP$2=$X$2,('Počet odeslaných zásilek'!KM29)*0.8,IF($AP$2=$Y$2,('Počet odeslaných zásilek'!KM29),IF($AP$2=$Z$2,('Počet odeslaných zásilek'!KM29)*1.2,IF($AP$2=$W$2,('Počet odeslaných zásilek'!KM29)*'Počet odeslaných zásilek'!$D$39,"")))) -> 42.00445924 | AN4: Moravskoslezský kraj | AP4: Moravskoslezský kraj | AQ4: =IF($AP$2=X$2,X4,IF($AP$2=Y$2,Y4,IF($AP$2=Z$2,Z4,IF($AP$2=W$2,W4,"")))) -> 8341.945187 | AR4: =($Y4/$AA4)*AC4 -> 8450.946673 | AS4: 8471.550286 | AT4: 8245.355665 | AU4: 8261.836545 | AV4: 8238.350707 | AW4: 8424.667414 | AX4: 9600.390806 | AY4: 9726.878 | AZ4: 9696.764639 | BA4: 9493.03795 | BB4: 9524.958405 | BC4: =SUM(AQ4:BB4) -> 106476.6823 | BE4: Moravskoslezský kraj | BF4: =IF($AP$2=X$18,X20,IF($AP$2=Y$18,Y20,IF($AP$2=Z$18,Z20,IF($AP$2=W$18,W20,"")))) -> 9697.325874 | BG4: =($Y4/$AB20)*AC20 -> 8447.670836 | BH4: 8476.570866 | BI4: 8322.78683 | BJ4: 8593.420033 | BK4: 8687.186545 | BL4: 8704.910422 | BM4: 8510.330683 | BN4: 8524.508056 | BO4: 8504.304798 | BP4: 8664.580298 | BQ4: 9675.974596 | BR4: =SUM(BF4:BQ4) -> 104809.5698 | BT4: Moravskoslezský kraj | BU4: =IF($AP$2=X$34,X36,IF($AP$2=Y$34,Y36,IF($AP$2=Z$34,Z36,IF($AP$2=W$34,W36,"")))) -> 11374.59261 | BV4: =($Y4/$AB36)*AC36 -> 8319.860528 | BW4: 8170.450617 | BX4: 8193.86057 | BY4: 8320.272128 | BZ4: 8410.407758 | CA4: 8435.046267 | CB4: 8303.938811 | CC4: 8534.665172 | CD4: 8614.605127 | CE4: 8629.715489 | CF4: 8463.827954 | CG4: =SUM(BU4:CF4) -> 103771.243 | CI4: 8341.945187 | CJ4: 8450.946673 | CK4: 8471.550286 | CL4: 8245.355665 | CM4: 8261.836545 | CN4: 8238.350707 | CO4: 8424.667414 | CP4: 9600.390806 | CQ4: 9726.878 | CR4: 9696.764639 | CS4: 9493.03795 | CT4: 9524.958405 | CV4: =IF($T4=1,BF4,0) -> 9697.325874 | CW4: 8447.670836 | CX4: 8476.570866 | CY4: 8322.78683 | CZ4: 8593.420033 | DA4: 8687.186545 | DB4: 8704.910422 | DC4: 8510.330683 | DD4: 8524.508056 | DE4: 8504.304798 | DF4: 8664.580298 | DG4: 9675.974596 | DI4: =IF($T4=1,BU4,0) -> 11374.59261 | DJ4: 8319.860528 | DK4: 8170.450617 | DL4: 8193.86057 | DM4: 8320.272128 | DN4: 8410.407758 | DO4: 8435.046267 | DP4: 8303.938811 | DQ4: 8534.665172 | DR4: 8614.605127 | DS4: 8629.715489 | DT4: 8463.827954
S5: Zlínský kraj | T5: 1 | W5: =Y5*'Počet odeslaných zásilek'!$D$28 -> 7328.071406 | X5: 5862.457125 | Y5: ='Výstupy z Tasha'!J5 -> 7328.071406 | Z5: 8793.685687 | AA5: ='Počet odeslaných zásilek'!KB30 -> 37.25605968 | AB5: =IF($AP$2=$X$2,('Počet odeslaných zásilek'!KB30)*0.8,IF($AP$2=$Y$2,('Počet odeslaných zásilek'!KB30),IF($AP$2=$Z$2,('Počet odeslaných zásilek'!KB30)*1.2,IF($AP$2=$W$2,('Počet odeslaných zásilek'!KB30)*'Počet odeslaných zásilek'!$D$28,"")))) -> 37.25605968 | AC5: =IF($AP$2=$X$2,('Počet odeslaných zásilek'!KC30)*0.8,IF($AP$2=$Y$2,('Počet odeslaných zásilek'!KC30),IF($AP$2=$Z$2,('Počet odeslaných zásilek'!KC30)*1.2,IF($AP$2=$W$2,('Počet odeslaných zásilek'!KC30)*'Počet odeslaných zásilek'!$D$29,"")))) -> 38.03877373 | AD5: =IF($AP$2=$X$2,('Počet odeslaných zásilek'!KD30)*0.8,IF($AP$2=$Y$2,('Počet odeslaných zásilek'!KD30),IF($AP$2=$Z$2,('Počet odeslaných zásilek'!KD30)*1.2,IF($AP$2=$W$2,('Počet odeslaných zásilek'!KD30)*'Počet odeslaných zásilek'!$D$30,"")))) -> 37.77785503 | AE5: =IF($AP$2=$X$2,('Počet odeslaných zásilek'!KE30)*0.8,IF($AP$2=$Y$2,('Počet odeslaných zásilek'!KE30),IF($AP$2=$Z$2,('Počet odeslaných zásilek'!KE30)*1.2,IF($AP$2=$W$2,('Počet odeslaných zásilek'!KE30)*'Počet odeslaných zásilek'!$D$31,"")))) -> 36.73384382 | AF5: =IF($AP$2=$X$2,('Počet odeslaných zásilek'!KF30)*0.8,IF($AP$2=$Y$2,('Počet odeslaných zásilek'!KF30),IF($AP$2=$Z$2,('Počet odeslaných zásilek'!KF30)*1.2,IF($AP$2=$W$2,('Počet odeslaných zásilek'!KF30)*'Počet odeslaných zásilek'!$D$32,"")))) -> 36.76055129 | AG5: =IF($AP$2=$X$2,('Počet odeslaných zásilek'!KG30)*0.8,IF($AP$2=$Y$2,('Počet odeslaných zásilek'!KG30),IF($AP$2=$Z$2,('Počet odeslaných zásilek'!KG30)*1.2,IF($AP$2=$W$2,('Počet odeslaných zásilek'!KG30)*'Počet odeslaných zásilek'!$D$33,"")))) -> 36.52985893 | AH5: =IF($AP$2=$X$2,('Počet odeslaných zásilek'!KH30)*0.8,IF($AP$2=$Y$2,('Počet odeslaných zásilek'!KH30),IF($AP$2=$Z$2,('Počet odeslaných zásilek'!KH30)*1.2,IF($AP$2=$W$2,('Počet odeslaných zásilek'!KH30)*'Počet odeslaných zásilek'!$D$34,"")))) -> 37.54949517 | AI5: =IF($AP$2=$X$2,('Počet odeslaných zásilek'!KI30)*0.8,IF($AP$2=$Y$2,('Počet odeslaných zásilek'!KI30),IF($AP$2=$Z$2,('Počet odeslaných zásilek'!KI30)*1.2,IF($AP$2=$W$2,('Počet odeslaných zásilek'!KI30)*'Počet odeslaných zásilek'!$D$35,"")))) -> 43.84456151 | AJ5: =IF($AP$2=$X$2,('Počet odeslaných zásilek'!KJ30)*0.8,IF($AP$2=$Y$2,('Počet odeslaných zásilek'!KJ30),IF($AP$2=$Z$2,('Počet odeslaných zásilek'!KJ30)*1.2,IF($AP$2=$W$2,('Počet odeslaných zásilek'!KJ30)*'Počet odeslaných zásilek'!$D$36,"")))) -> 44.26668201 | AK5: =IF($AP$2=$X$2,('Počet odeslaných zásilek'!KK30)*0.8,IF($AP$2=$Y$2,('Počet odeslaných zásilek'!KK30),IF($AP$2=$Z$2,('Počet odeslaných zásilek'!KK30)*1.2,IF($AP$2=$W$2,('Počet odeslaných zásilek'!KK30)*'Počet odeslaných zásilek'!$D$37,"")))) -> 43.66167122 | AL5: =IF($AP$2=$X$2,('Počet odeslaných zásilek'!KL30)*0.8,IF($AP$2=$Y$2,('Počet odeslaných zásilek'!KL30),IF($AP$2=$Z$2,('Počet odeslaných zásilek'!KL30)*1.2,IF($AP$2=$W$2,('Počet odeslaných zásilek'!KL30)*'Počet odeslaných zásilek'!$D$38,"")))) -> 43.01589599 | AM5: =IF($AP$2=$X$2,('Počet odeslaných zásilek'!KM30)*0.8,IF($AP$2=$Y$2,('Počet odeslaných zásilek'!KM30),IF($AP$2=$Z$2,('Počet odeslaných zásilek'!KM30)*1.2,IF($AP$2=$W$2,('Počet odeslaných zásilek'!KM30)*'Počet odeslaných zásilek'!$D$39,"")))) -> 42.75029876 | AN5: Zlínský kraj | AP5: Zlínský kraj | AQ5: 7328.071406 | AR5: 7482.027151 | AS5: 7430.705814 | AT5: 7225.354287 | AU5: 7230.607506 | AV5: 7185.23153 | AW5: 7385.788627 | AX5: 8623.995137 | AY5: 8707.024024 | AZ5: 8588.021577 | BA5: 8461.00098 | BB5: 8408.759399 | BC5: 94056.58744 | BE5: Zlínský kraj | BF5: 8480.081626 | BG5: 7470.49443 | BH5: 7430.457424 | BI5: 7348.881033 | BJ5: 7584.235951 | BK5: 7717.276969 | BL5: 7672.927582 | BM5: 7495.472845 | BN5: 7500.01242 | BO5: 7460.800723 | BP5: 7634.112348 | BQ5: 8704.109799 | BR5: 92498.86315 | BT5: Zlínský kraj | BU5: 10155.46916 | BV5: 7242.200589 | BW5: 7150.543966 | BX5: 7112.847034 | BY5: 7164.312345 | BZ5: 7283.239284 | CA5: 7249.80734 | CB5: 7181.688927 | CC5: 7378.216421 | CD5: 7489.309142 | CE5: 7452.276246 | CF5: 7304.096913 | CG5: 90164.00737 | CI5: 7328.071406 | CJ5: 7482.027151 | CK5: 7430.705814 | CL5: 7225.354287 | CM5: 7230.607506 | CN5: 7185.23153 | CO5: 7385.788627 | CP5: 8623.995137 | CQ5: 8707.024024 | CR5: 8588.021577 | CS5: 8461.00098 | CT5: 8408.759399 | CV5: 8480.081626 | CW5: 7470.49443 | CX5: 7430.457424 | CY5: 7348.881033 | CZ5: 7584.235951 | DA5: 7717.276969 | DB5: 7672.927582 | DC5: 7495.472845 | DD5: 7500.01242 | DE5: 7460.800723 | DF5: 7634.112348 | DG5: 8704.109799 | DI5: 10155.46916 | DJ5: 7242.200589 | DK5: 7150.543966 | DL5: 7112.847034 | DM5: 7164.312345 | DN5: 7283.239284 | DO5: 7249.80734 | DP5: 7181.688927 | DQ5: 7378.216421 | DR5: 7489.309142 | DS5: 7452.276246 | DT5: 7304.096913
S6: Liberecký kraj | T6: 1 | W6: =Y6*'Počet odeslaných zásilek'!$D$28 -> 3490.880764 | X6: 2792.704611 | Y6: ='Výstupy z Tasha'!J6 -> 3490.880764 | Z6: 4189.056916 | AA6: ='Počet odeslaných zásilek'!KB31 -> 15.23156436 | AB6: =IF($AP$2=$X$2,('Počet odeslaných zásilek'!KB31)*0.8,IF($AP$2=$Y$2,('Počet odeslaných zásilek'!KB31),IF($AP$2=$Z$2,('Počet odeslaných zásilek'!KB31)*1.2,IF($AP$2=$W$2,('Počet odeslaných zásilek'!KB31)*'Počet odeslaných zásilek'!$D$28,"")))) -> 15.23156436 | AC6: =IF($AP$2=$X$2,('Počet odeslaných zásilek'!KC31)*0.8,IF($AP$2=$Y$2,('Počet odeslaných zásilek'!KC31),IF($AP$2=$Z$2,('Počet odeslaných zásilek'!KC31)*1.2,IF($AP$2=$W$2,('Počet odeslaných zásilek'!KC31)*'Počet odeslaných zásilek'!$D$29,"")))) -> 15.28195787 | AD6: =IF($AP$2=$X$2,('Počet odeslaných zásilek'!KD31)*0.8,IF($AP$2=$Y$2,('Počet odeslaných zásilek'!KD31),IF($AP$2=$Z$2,('Počet odeslaných zásilek'!KD31)*1.2,IF($AP$2=$W$2,('Počet odeslaných zásilek'!KD31)*'Počet odeslaných zásilek'!$D$30,"")))) -> 15.26979172 | AE6: =IF($AP$2=$X$2,('Počet odeslaných zásilek'!KE31)*0.8,IF($AP$2=$Y$2,('Počet odeslaných zásilek'!KE31),IF($AP$2=$Z$2,('Počet odeslaných zásilek'!KE31)*1.2,IF($AP$2=$W$2,('Počet odeslaných zásilek'!KE31)*'Počet odeslaných zásilek'!$D$31,"")))) -> 14.91096229 | AF6: =IF($AP$2=$X$2,('Počet odeslaných zásilek'!KF31)*0.8,IF($AP$2=$Y$2,('Počet odeslaných zásilek'!KF31),IF($AP$2=$Z$2,('Počet odeslaných zásilek'!KF31)*1.2,IF($AP$2=$W$2,('Počet odeslaných zásilek'!KF31)*'Počet odeslaných zásilek'!$D$32,"")))) -> 14.85637917 | AG6: =IF($AP$2=$X$2,('Počet odeslaných zásilek'!KG31)*0.8,IF($AP$2=$Y$2,('Počet odeslaných zásilek'!KG31),IF($AP$2=$Z$2,('Počet odeslaných zásilek'!KG31)*1.2,IF($AP$2=$W$2,('Počet odeslaných zásilek'!KG31)*'Počet odeslaných zásilek'!$D$33,"")))) -> 14.67635714 | AH6: =IF($AP$2=$X$2,('Počet odeslaných zásilek'!KH31)*0.8,IF($AP$2=$Y$2,('Počet odeslaných zásilek'!KH31),IF($AP$2=$Z$2,('Počet odeslaných zásilek'!KH31)*1.2,IF($AP$2=$W$2,('Počet odeslaných zásilek'!KH31)*'Počet odeslaných zásilek'!$D$34,"")))) -> 14.77494932 | AI6: =IF($AP$2=$X$2,('Počet odeslaných zásilek'!KI31)*0.8,IF($AP$2=$Y$2,('Počet odeslaných zásilek'!KI31),IF($AP$2=$Z$2,('Počet odeslaných zásilek'!KI31)*1.2,IF($AP$2=$W$2,('Počet odeslaných zásilek'!KI31)*'Počet odeslaných zásilek'!$D$35,"")))) -> 19.37191135 | AJ6: =IF($AP$2=$X$2,('Počet odeslaných zásilek'!KJ31)*0.8,IF($AP$2=$Y$2,('Počet odeslaných zásilek'!KJ31),IF($AP$2=$Z$2,('Počet odeslaných zásilek'!KJ31)*1.2,IF($AP$2=$W$2,('Počet odeslaných zásilek'!KJ31)*'Počet odeslaných zásilek'!$D$36,"")))) -> 19.87985966 | AK6: =IF($AP$2=$X$2,('Počet odeslaných zásilek'!KK31)*0.8,IF($AP$2=$Y$2,('Počet odeslaných zásilek'!KK31),IF($AP$2=$Z$2,('Počet odeslaných zásilek'!KK31)*1.2,IF($AP$2=$W$2,('Počet odeslaných zásilek'!KK31)*'Počet odeslaných zásilek'!$D$37,"")))) -> 19.70172992 | AL6: =IF($AP$2=$X$2,('Počet odeslaných zásilek'!KL31)*0.8,IF($AP$2=$Y$2,('Počet odeslaných zásilek'!KL31),IF($AP$2=$Z$2,('Počet odeslaných zásilek'!KL31)*1.2,IF($AP$2=$W$2,('Počet odeslaných zásilek'!KL31)*'Počet odeslaných zásilek'!$D$38,"")))) -> 18.70894702 | AM6: =IF($AP$2=$X$2,('Počet odeslaných zásilek'!KM31)*0.8,IF($AP$2=$Y$2,('Počet odeslaných zásilek'!KM31),IF($AP$2=$Z$2,('Počet odeslaných zásilek'!KM31)*1.2,IF($AP$2=$W$2,('Počet odeslaných zásilek'!KM31)*'Počet odeslaných zásilek'!$D$39,"")))) -> 18.38722101 | AN6: Liberecký kraj | AP6: Liberecký kraj | AQ6: 3490.880764 | AR6: 3502.430314 | AS6: 3499.641987 | AT6: 3417.402847 | AU6: 3404.89309 | AV6: 3363.634333 | AW6: 3386.230406 | AX6: 4439.795616 | AY6: 4556.210906 | AZ6: 4515.385836 | BA6: 4287.852626 | BB6: 4214.117119 | BC6: 46078.47584 | BE6: Liberecký kraj | BF6: 4288.393694 | BG6: 3565.829255 | BH6: 3508.845439 | BI6: 3465.925467 | BJ6: 3588.435975 | BK6: 3597.837654 | BL6: 3595.567872 | BM6: 3528.622752 | BN6: 3518.439436 | BO6: 3484.853573 | BP6: 3503.247452 | BQ6: 4360.881053 | BR6: 44006.87962 | BT6: Liberecký kraj | BU6: 5473.566128 | BV6: 3464.843726 | BW6: 3319.729683 | BX6: 3272.703329 | BY6: 3320.074761 | BZ6: 3378.794913 | CA6: 3334.149607 | CB6: 3300.522949 | CC6: 3396.506678 | CD6: 3403.872644 | CE6: 3402.09433 | CF6: 3349.644606 | CG6: 42416.50335 | CI6: 3490.880764 | CJ6: 3502.430314 | CK6: 3499.641987 | CL6: 3417.402847 | CM6: 3404.89309 | CN6: 3363.634333 | CO6: 3386.230406 | CP6: 4439.795616 | CQ6: 4556.210906 | CR6: 4515.385836 | CS6: 4287.852626 | CT6: 4214.117119 | CV6: 4288.393694 | CW6: 3565.829255 | CX6: 3508.845439 | CY6: 3465.925467 | CZ6: 3588.435975 | DA6: 3597.837654 | DB6: 3595.567872 | DC6: 3528.622752 | DD6: 3518.439436 | DE6: 3484.853573 | DF6: 3503.247452 | DG6: 4360.881053 | DI6: 5473.566128 | DJ6: 3464.843726 | DK6: 3319.729683 | DL6: 3272.703329 | DM6: 3320.074761 | DN6: 3378.794913 | DO6: 3334.149607 | DP6: 3300.522949 | DQ6: 3396.506678 | DR6: 3403.872644 | DS6: 3402.09433 | DT6: 3349.644606
S7: Ústecký kraj | T7: 1 | W7: =Y7*'Počet odeslaných zásilek'!$D$28 -> 4341.156362 | X7: 3472.92509 | Y7: ='Výstupy z Tasha'!J7 -> 4341.156362 | Z7: 5209.387634 | AA7: ='Počet odeslaných zásilek'!KB32 -> 27.5621039 | AB7: =IF($AP$2=$X$2,('Počet odeslaných zásilek'!KB32)*0.8,IF($AP$2=$Y$2,('Počet odeslaných zásilek'!KB32),IF($AP$2=$Z$2,('Počet odeslaných zásilek'!KB32)*1.2,IF($AP$2=$W$2,('Počet odeslaných zásilek'!KB32)*'Počet odeslaných zásilek'!$D$28,"")))) -> 27.5621039 | AC7: =IF($AP$2=$X$2,('Počet odeslaných zásilek'!KC32)*0.8,IF($AP$2=$Y$2,('Počet odeslaných zásilek'!KC32),IF($AP$2=$Z$2,('Počet odeslaných zásilek'!KC32)*1.2,IF($AP$2=$W$2,('Počet odeslaných zásilek'!KC32)*'Počet odeslaných zásilek'!$D$29,"")))) -> 27.89192417 | AD7: =IF($AP$2=$X$2,('Počet odeslaných zásilek'!KD32)*0.8,IF($AP$2=$Y$2,('Počet odeslaných zásilek'!KD32),IF($AP$2=$Z$2,('Počet odeslaných zásilek'!KD32)*1.2,IF($AP$2=$W$2,('Počet odeslaných zásilek'!KD32)*'Počet odeslaných zásilek'!$D$30,"")))) -> 28.22174443 | AE7: =IF($AP$2=$X$2,('Počet odeslaných zásilek'!KE32)*0.8,IF($AP$2=$Y$2,('Počet odeslaných zásilek'!KE32),IF($AP$2=$Z$2,('Počet odeslaných zásilek'!KE32)*1.2,IF($AP$2=$W$2,('Počet odeslaných zásilek'!KE32)*'Počet odeslaných zásilek'!$D$31,"")))) -> 28.5515647 | AF7: =IF($AP$2=$X$2,('Počet odeslaných zásilek'!KF32)*0.8,IF($AP$2=$Y$2,('Počet odeslaných zásilek'!KF32),IF($AP$2=$Z$2,('Počet odeslaných zásilek'!KF32)*1.2,IF($AP$2=$W$2,('Počet odeslaných zásilek'!KF32)*'Počet odeslaných zásilek'!$D$32,"")))) -> 28.88138496 | AG7: =IF($AP$2=$X$2,('Počet odeslaných zásilek'!KG32)*0.8,IF($AP$2=$Y$2,('Počet odeslaných zásilek'!KG32),IF($AP$2=$Z$2,('Počet odeslaných zásilek'!KG32)*1.2,IF($AP$2=$W$2,('Počet odeslaných zásilek'!KG32)*'Počet odeslaných zásilek'!$D$33,"")))) -> 29.21120523 | AH7: =IF($AP$2=$X$2,('Počet odeslaných zásilek'!KH32)*0.8,IF($AP$2=$Y$2,('Počet odeslaných zásilek'!KH32),IF($AP$2=$Z$2,('Počet odeslaných zásilek'!KH32)*1.2,IF($AP$2=$W$2,('Počet odeslaných zásilek'!KH32)*'Počet odeslaných zásilek'!$D$34,"")))) -> 29.54102549 | AI7: =IF($AP$2=$X$2,('Počet odeslaných zásilek'!KI32)*0.8,IF($AP$2=$Y$2,('Počet odeslaných zásilek'!KI32),IF($AP$2=$Z$2,('Počet odeslaných zásilek'!KI32)*1.2,IF($AP$2=$W$2,('Počet odeslaných zásilek'!KI32)*'Počet odeslaných zásilek'!$D$35,"")))) -> 29.87084576 | AJ7: =IF($AP$2=$X$2,('Počet odeslaných zásilek'!KJ32)*0.8,IF($AP$2=$Y$2,('Počet odeslaných zásilek'!KJ32),IF($AP$2=$Z$2,('Počet odeslaných zásilek'!KJ32)*1.2,IF($AP$2=$W$2,('Počet odeslaných zásilek'!KJ32)*'Počet odeslaných zásilek'!$D$36,"")))) -> 30.20066603 | AK7: =IF($AP$2=$X$2,('Počet odeslaných zásilek'!KK32)*0.8,IF($AP$2=$Y$2,('Počet odeslaných zásilek'!KK32),IF($AP$2=$Z$2,('Počet odeslaných zásilek'!KK32)*1.2,IF($AP$2=$W$2,('Počet odeslaných zásilek'!KK32)*'Počet odeslaných zásilek'!$D$37,"")))) -> 30.53048629 | AL7: =IF($AP$2=$X$2,('Počet odeslaných zásilek'!KL32)*0.8,IF($AP$2=$Y$2,('Počet odeslaných zásilek'!KL32),IF($AP$2=$Z$2,('Počet odeslaných zásilek'!KL32)*1.2,IF($AP$2=$W$2,('Počet odeslaných zásilek'!KL32)*'Počet odeslaných zásilek'!$D$38,"")))) -> 30.86030656 | AM7: =IF($AP$2=$X$2,('Počet odeslaných zásilek'!KM32)*0.8,IF($AP$2=$Y$2,('Počet odeslaných zásilek'!KM32),IF($AP$2=$Z$2,('Počet odeslaných zásilek'!KM32)*1.2,IF($AP$2=$W$2,('Počet odeslaných zásilek'!KM32)*'Počet odeslaných zásilek'!$D$39,"")))) -> 31.19012682 | AN7: Ústecký kraj | AP7: Ústecký kraj | AQ7: 4341.156362 | AR7: 4393.10455 | AS7: 4445.052737 | AT7: 4497.000925 | AU7: 4548.949112 | AV7: 4600.8973 | AW7: 4652.845488 | AX7: 4704.793675 | AY7: 4756.741863 | AZ7: 4808.69005 | BA7: 4860.638238 | BB7: 4912.586426 | BC7: 55522.45673 | BE7: Ústecký kraj | BF7: 4964.534613 | BG7: 4386.581608 | BH7: 4432.006854 | BI7: 4477.432099 | BJ7: 4522.857345 | BK7: 4568.282591 | BL7: 4613.707837 | BM7: 4659.133083 | BN7: 4704.558328 | BO7: 4749.983574 | BP7: 4795.40882 | BQ7: 4840.834066 | BR7: 55715.32082 | BT7: Ústecký kraj | BU7: 5587.912865 | BV7: 4381.514043 | BW7: 4421.871724 | BX7: 4462.229405 | BY7: 4502.587086 | BZ7: 4542.944767 | CA7: 4583.302448 | CB7: 4623.660129 | CC7: 4664.01781 | CD7: 4704.375491 | CE7: 4744.733172 | CF7: 4785.090854 | CG7: 56004.2398 | CI7: 4341.156362 | CJ7: 4393.10455 | CK7: 4445.052737 | CL7: 4497.000925 | CM7: 4548.949112 | CN7: 4600.8973 | CO7: 4652.845488 | CP7: 4704.793675 | CQ7: 4756.741863 | CR7: 4808.69005 | CS7: 4860.638238 | CT7: 4912.586426 | CV7: 4964.534613 | CW7: 4386.581608 | CX7: 4432.006854 | CY7: 4477.432099 | CZ7: 4522.857345 | DA7: 4568.282591 | DB7: 4613.707837 | DC7: 4659.133083 | DD7: 4704.558328 | DE7: 4749.983574 | DF7: 4795.40882 | DG7: 4840.834066 | DI7: 5587.912865 | DJ7: 4381.514043 | DK7: 4421.871724 | DL7: 4462.229405 | DM7: 4502.587086 | DN7: 4542.944767 | DO7: 4583.302448 | DP7: 4623.660129 | DQ7: 4664.01781 | DR7: 4704.375491 | DS7: 4744.733172 | DT7: 4785.090854
S8: Karlovarský kraj | T8: 1 | W8: =Y8*'Počet odeslaných zásilek'!$D$28 -> 4709.275247 | X8: 3767.420198 | Y8: ='Výstupy z Tasha'!J8 -> 4709.275247 | Z8: 5651.130297 | AA8: ='Počet odeslaných zásilek'!KB33 -> 37.3238809 | AB8: =IF($AP$2=$X$2,('Počet odeslaných zásilek'!KB33)*0.8,IF($AP$2=$Y$2,('Počet odeslaných zásilek'!KB33),IF($AP$2=$Z$2,('Počet odeslaných zásilek'!KB33)*1.2,IF($AP$2=$W$2,('Počet odeslaných zásilek'!KB33)*'Počet odeslaných zásilek'!$D$28,"")))) -> 37.3238809 | AC8: =IF($AP$2=$X$2,('Počet odeslaných zásilek'!KC33)*0.8,IF($AP$2=$Y$2,('Počet odeslaných zásilek'!KC33),IF($AP$2=$Z$2,('Počet odeslaných zásilek'!KC33)*1.2,IF($AP$2=$W$2,('Počet odeslaných zásilek'!KC33)*'Počet odeslaných zásilek'!$D$29,"")))) -> 37.6477618 | AD8: =IF($AP$2=$X$2,('Počet odeslaných zásilek'!KD33)*0.8,IF($AP$2=$Y$2,('Počet odeslaných zásilek'!KD33),IF($AP$2=$Z$2,('Počet odeslaných zásilek'!KD33)*1.2,IF($AP$2=$W$2,('Počet odeslaných zásilek'!KD33)*'Počet odeslaných zásilek'!$D$30,"")))) -> 37.9716427 | AE8: =IF($AP$2=$X$2,('Počet odeslaných zásilek'!KE33)*0.8,IF($AP$2=$Y$2,('Počet odeslaných zásilek'!KE33),IF($AP$2=$Z$2,('Počet odeslaných zásilek'!KE33)*1.2,IF($AP$2=$W$2,('Počet odeslaných zásilek'!KE33)*'Počet odeslaných zásilek'!$D$31,"")))) -> 38.2955236 | AF8: =IF($AP$2=$X$2,('Počet odeslaných zásilek'!KF33)*0.8,IF($AP$2=$Y$2,('Počet odeslaných zásilek'!KF33),IF($AP$2=$Z$2,('Počet odeslaných zásilek'!KF33)*1.2,IF($AP$2=$W$2,('Počet odeslaných zásilek'!KF33)*'Počet odeslaných zásilek'!$D$32,"")))) -> 38.6194045 | AG8: =IF($AP$2=$X$2,('Počet odeslaných zásilek'!KG33)*0.8,IF($AP$2=$Y$2,('Počet odeslaných zásilek'!KG33),IF($AP$2=$Z$2,('Počet odeslaných zásilek'!KG33)*1.2,IF($AP$2=$W$2,('Počet odeslaných zásilek'!KG33)*'Počet odeslaných zásilek'!$D$33,"")))) -> 38.9432854 | AH8: =IF($AP$2=$X$2,('Počet odeslaných zásilek'!KH33)*0.8,IF($AP$2=$Y$2,('Počet odeslaných zásilek'!KH33),IF($AP$2=$Z$2,('Počet odeslaných zásilek'!KH33)*1.2,IF($AP$2=$W$2,('Počet odeslaných zásilek'!KH33)*'Počet odeslaných zásilek'!$D$34,"")))) -> 39.2671663 | AI8: =IF($AP$2=$X$2,('Počet odeslaných zásilek'!KI33)*0.8,IF($AP$2=$Y$2,('Počet odeslaných zásilek'!KI33),IF($AP$2=$Z$2,('Počet odeslaných zásilek'!KI33)*1.2,IF($AP$2=$W$2,('Počet odeslaných zásilek'!KI33)*'Počet odeslaných zásilek'!$D$35,"")))) -> 39.59104721 | AJ8: =IF($AP$2=$X$2,('Počet odeslaných zásilek'!KJ33)*0.8,IF($AP$2=$Y$2,('Počet odeslaných zásilek'!KJ33),IF($AP$2=$Z$2,('Počet odeslaných zásilek'!KJ33)*1.2,IF($AP$2=$W$2,('Počet odeslaných zásilek'!KJ33)*'Počet odeslaných zásilek'!$D$36,"")))) -> 39.91492811 | AK8: =IF($AP$2=$X$2,('Počet odeslaných zásilek'!KK33)*0.8,IF($AP$2=$Y$2,('Počet odeslaných zásilek'!KK33),IF($AP$2=$Z$2,('Počet odeslaných zásilek'!KK33)*1.2,IF($AP$2=$W$2,('Počet odeslaných zásilek'!KK33)*'Počet odeslaných zásilek'!$D$37,"")))) -> 40.23880901 | AL8: =IF($AP$2=$X$2,('Počet odeslaných zásilek'!KL33)*0.8,IF($AP$2=$Y$2,('Počet odeslaných zásilek'!KL33),IF($AP$2=$Z$2,('Počet odeslaných zásilek'!KL33)*1.2,IF($AP$2=$W$2,('Počet odeslaných zásilek'!KL33)*'Počet odeslaných zásilek'!$D$38,"")))) -> 40.56268991 | AM8: =IF($AP$2=$X$2,('Počet odeslaných zásilek'!KM33)*0.8,IF($AP$2=$Y$2,('Počet odeslaných zásilek'!KM33),IF($AP$2=$Z$2,('Počet odeslaných zásilek'!KM33)*1.2,IF($AP$2=$W$2,('Počet odeslaných zásilek'!KM33)*'Počet odeslaných zásilek'!$D$39,"")))) -> 40.88657081 | AN8: Karlovarský kraj | AP8: Karlovarský kraj | AQ8: 4709.275247 | AR8: 4750.140352 | AS8: 4791.005457 | AT8: 4831.870562 | AU8: 4872.735667 | AV8: 4913.600772 | AW8: 4954.465877 | AX8: 4995.330982 | AY8: 5036.196087 | AZ8: 5077.061192 | BA8: 5117.926297 | BB8: 5158.791401 | BC8: 59208.39989 | BE8: Karlovarský kraj | BF8: 5199.656506 | BG8: 4746.286351 | BH8: 4783.297455 | BI8: 4820.308559 | BJ8: 4857.319663 | BK8: 4894.330767 | BL8: 4931.341871 | BM8: 4968.352975 | BN8: 5005.364078 | BO8: 5042.375182 | BP8: 5079.386286 | BQ8: 5116.39739 | BR8: 59444.41708 | BT8: Karlovarský kraj | BU8: 5690.037765 | BV8: 4743.096645 | BW8: 4776.918042 | BX8: 4810.739439 | BY8: 4844.560836 | BZ8: 4878.382233 | CA8: 4912.20363 | CB8: 4946.025027 | CC8: 4979.846425 | CD8: 5013.667822 | CE8: 5047.489219 | CF8: 5081.310616 | CG8: 59724.2777 | CI8: 4709.275247 | CJ8: 4750.140352 | CK8: 4791.005457 | CL8: 4831.870562 | CM8: 4872.735667 | CN8: 4913.600772 | CO8: 4954.465877 | CP8: 4995.330982 | CQ8: 5036.196087 | CR8: 5077.061192 | CS8: 5117.926297 | CT8: 5158.791401 | CV8: 5199.656506 | CW8: 4746.286351 | CX8: 4783.297455 | CY8: 4820.308559 | CZ8: 4857.319663 | DA8: 4894.330767 | DB8: 4931.341871 | DC8: 4968.352975 | DD8: 5005.364078 | DE8: 5042.375182 | DF8: 5079.386286 | DG8: 5116.39739 | DI8: 5690.037765 | DJ8: 4743.096645 | DK8: 4776.918042 | DL8: 4810.739439 | DM8: 4844.560836 | DN8: 4878.382233 | DO8: 4912.20363 | DP8: 4946.025027 | DQ8: 4979.846425 | DR8: 5013.667822 | DS8: 5047.489219 | DT8: 5081.310616
S9: Plzeňský kraj | T9: 1 | W9: =Y9*'Počet odeslaných zásilek'!$D$28 -> 5220.488174 | X9: 4176.390539 | Y9: ='Výstupy z Tasha'!J9 -> 5220.488174 | Z9: 6264.585809 | AA9: ='Počet odeslaných zásilek'!KB34 -> 46.77918075 | AB9: =IF($AP$2=$X$2,('Počet odeslaných zásilek'!KB34)*0.8,IF($AP$2=$Y$2,('Počet odeslaných zásilek'!KB34),IF($AP$2=$Z$2,('Počet odeslaných zásilek'!KB34)*1.2,IF($AP$2=$W$2,('Počet odeslaných zásilek'!KB34)*'Počet odeslaných zásilek'!$D$28,"")))) -> 46.77918075 | AC9: =IF($AP$2=$X$2,('Počet odeslaných zásilek'!KC34)*0.8,IF($AP$2=$Y$2,('Počet odeslaných zásilek'!KC34),IF($AP$2=$Z$2,('Počet odeslaných zásilek'!KC34)*1.2,IF($AP$2=$W$2,('Počet odeslaných zásilek'!KC34)*'Počet odeslaných zásilek'!$D$29,"")))) -> 47.19848849 | AD9: =IF($AP$2=$X$2,('Počet odeslaných zásilek'!KD34)*0.8,IF($AP$2=$Y$2,('Počet odeslaných zásilek'!KD34),IF($AP$2=$Z$2,('Počet odeslaných zásilek'!KD34)*1.2,IF($AP$2=$W$2,('Počet odeslaných zásilek'!KD34)*'Počet odeslaných zásilek'!$D$30,"")))) -> 47.61779623 | AE9: =IF($AP$2=$X$2,('Počet odeslaných zásilek'!KE34)*0.8,IF($AP$2=$Y$2,('Počet odeslaných zásilek'!KE34),IF($AP$2=$Z$2,('Počet odeslaných zásilek'!KE34)*1.2,IF($AP$2=$W$2,('Počet odeslaných zásilek'!KE34)*'Počet odeslaných zásilek'!$D$31,"")))) -> 48.03710397 | AF9: =IF($AP$2=$X$2,('Počet odeslaných zásilek'!KF34)*0.8,IF($AP$2=$Y$2,('Počet odeslaných zásilek'!KF34),IF($AP$2=$Z$2,('Počet odeslaných zásilek'!KF34)*1.2,IF($AP$2=$W$2,('Počet odeslaných zásilek'!KF34)*'Počet odeslaných zásilek'!$D$32,"")))) -> 48.45641171 | AG9: =IF($AP$2=$X$2,('Počet odeslaných zásilek'!KG34)*0.8,IF($AP$2=$Y$2,('Počet odeslaných zásilek'!KG34),IF($AP$2=$Z$2,('Počet odeslaných zásilek'!KG34)*1.2,IF($AP$2=$W$2,('Počet odeslaných zásilek'!KG34)*'Počet odeslaných zásilek'!$D$33,"")))) -> 48.87571945 | AH9: =IF($AP$2=$X$2,('Počet odeslaných zásilek'!KH34)*0.8,IF($AP$2=$Y$2,('Počet odeslaných zásilek'!KH34),IF($AP$2=$Z$2,('Počet odeslaných zásilek'!KH34)*1.2,IF($AP$2=$W$2,('Počet odeslaných zásilek'!KH34)*'Počet odeslaných zásilek'!$D$34,"")))) -> 49.29502719 | AI9: =IF($AP$2=$X$2,('Počet odeslaných zásilek'!KI34)*0.8,IF($AP$2=$Y$2,('Počet odeslaných zásilek'!KI34),IF($AP$2=$Z$2,('Počet odeslaných zásilek'!KI34)*1.2,IF($AP$2=$W$2,('Počet odeslaných zásilek'!KI34)*'Počet odeslaných zásilek'!$D$35,"")))) -> 49.71433493 | AJ9: =IF($AP$2=$X$2,('Počet odeslaných zásilek'!KJ34)*0.8,IF($AP$2=$Y$2,('Počet odeslaných zásilek'!KJ34),IF($AP$2=$Z$2,('Počet odeslaných zásilek'!KJ34)*1.2,IF($AP$2=$W$2,('Počet odeslaných zásilek'!KJ34)*'Počet odeslaných zásilek'!$D$36,"")))) -> 50.13364267 | AK9: =IF($AP$2=$X$2,('Počet odeslaných zásilek'!KK34)*0.8,IF($AP$2=$Y$2,('Počet odeslaných zásilek'!KK34),IF($AP$2=$Z$2,('Počet odeslaných zásilek'!KK34)*1.2,IF($AP$2=$W$2,('Počet odeslaných zásilek'!KK34)*'Počet odeslaných zásilek'!$D$37,"")))) -> 50.55295041 | AL9: =IF($AP$2=$X$2,('Počet odeslaných zásilek'!KL34)*0.8,IF($AP$2=$Y$2,('Počet odeslaných zásilek'!KL34),IF($AP$2=$Z$2,('Počet odeslaných zásilek'!KL34)*1.2,IF($AP$2=$W$2,('Počet odeslaných zásilek'!KL34)*'Počet odeslaných zásilek'!$D$38,"")))) -> 50.97225815 | AM9: =IF($AP$2=$X$2,('Počet odeslaných zásilek'!KM34)*0.8,IF($AP$2=$Y$2,('Počet odeslaných zásilek'!KM34),IF($AP$2=$Z$2,('Počet odeslaných zásilek'!KM34)*1.2,IF($AP$2=$W$2,('Počet odeslaných zásilek'!KM34)*'Počet odeslaných zásilek'!$D$39,"")))) -> 51.39156589 | AN9: Plzeňský kraj | AP9: Plzeňský kraj | AQ9: 5220.488174 | AR9: 5267.282305 | AS9: 5314.076435 | AT9: 5360.870566 | AU9: 5407.664697 | AV9: 5454.458827 | AW9: 5501.252958 | AX9: 5548.047089 | AY9: 5594.84122 | AZ9: 5641.63535 | BA9: 5688.429481 | BB9: 5735.223612 | BC9: 65734.27071 | BE9: Plzeňský kraj | BF9: 5782.017742 | BG9: 5262.73782 | BH9: 5304.987467 | BI9: 5347.237114 | BJ9: 5389.48676 | BK9: 5431.736407 | BL9: 5473.986053 | BM9: 5516.2357 | BN9: 5558.485346 | BO9: 5600.734993 | BP9: 5642.984639 | BQ9: 5685.234286 | BR9: 65995.86433 | BT9: Plzeňský kraj | BU9: 6343.547311 | BV9: 5258.99789 | BW9: 5297.507606 | BX9: 5336.017322 | BY9: 5374.527038 | BZ9: 5413.036754 | CA9: 5451.54647 | CB9: 5490.056187 | CC9: 5528.565903 | CD9: 5567.075619 | CE9: 5605.585335 | CF9: 5644.095051 | CG9: 66310.55849 | CI9: 5220.488174 | CJ9: 5267.282305 | CK9: 5314.076435 | CL9: 5360.870566 | CM9: 5407.664697 | CN9: 5454.458827 | CO9: 5501.252958 | CP9: 5548.047089 | CQ9: 5594.84122 | CR9: 5641.63535 | CS9: 5688.429481 | CT9: 5735.223612 | CV9: 5782.017742 | CW9: 5262.73782 | CX9: 5304.987467 | CY9: 5347.237114 | CZ9: 5389.48676 | DA9: 5431.736407 | DB9: 5473.986053 | DC9: 5516.2357 | DD9: 5558.485346 | DE9: 5600.734993 | DF9: 5642.984639 | DG9: 5685.234286 | DI9: 6343.547311 | DJ9: 5258.99789 | DK9: 5297.507606 | DL9: 5336.017322 | DM9: 5374.527038 | DN9: 5413.036754 | DO9: 5451.54647 | DP9: 5490.056187 | DQ9: 5528.565903 | DR9: 5567.075619 | DS9: 5605.585335 | DT9: 5644.095051
S10: Jihočeský kraj | T10: 1 | W10: =Y10*'Počet odeslaných zásilek'!$D$28 -> 5830.356227 | X10: 4664.284981 | Y10: ='Výstupy z Tasha'!J10 -> 5830.356227 | Z10: 6996.427472 | AA10: ='Počet odeslaných zásilek'!KB35 -> 33.17283202 | AB10: =IF($AP$2=$X$2,('Počet odeslaných zásilek'!KB35)*0.8,IF($AP$2=$Y$2,('Počet odeslaných zásilek'!KB35),IF($AP$2=$Z$2,('Počet odeslaných zásilek'!KB35)*1.2,IF($AP$2=$W$2,('Počet odeslaných zásilek'!KB35)*'Počet odeslaných zásilek'!$D$28,"")))) -> 33.17283202 | AC10: =IF($AP$2=$X$2,('Počet odeslaných zásilek'!KC35)*0.8,IF($AP$2=$Y$2,('Počet odeslaných zásilek'!KC35),IF($AP$2=$Z$2,('Počet odeslaných zásilek'!KC35)*1.2,IF($AP$2=$W$2,('Počet odeslaných zásilek'!KC35)*'Počet odeslaných zásilek'!$D$29,"")))) -> 33.64276385 | AD10: =IF($AP$2=$X$2,('Počet odeslaných zásilek'!KD35)*0.8,IF($AP$2=$Y$2,('Počet odeslaných zásilek'!KD35),IF($AP$2=$Z$2,('Počet odeslaných zásilek'!KD35)*1.2,IF($AP$2=$W$2,('Počet odeslaných zásilek'!KD35)*'Počet odeslaných zásilek'!$D$30,"")))) -> 33.72392453 | AE10: =IF($AP$2=$X$2,('Počet odeslaných zásilek'!KE35)*0.8,IF($AP$2=$Y$2,('Počet odeslaných zásilek'!KE35),IF($AP$2=$Z$2,('Počet odeslaných zásilek'!KE35)*1.2,IF($AP$2=$W$2,('Počet odeslaných zásilek'!KE35)*'Počet odeslaných zásilek'!$D$31,"")))) -> 32.40488097 | AF10: =IF($AP$2=$X$2,('Počet odeslaných zásilek'!KF35)*0.8,IF($AP$2=$Y$2,('Počet odeslaných zásilek'!KF35),IF($AP$2=$Z$2,('Počet odeslaných zásilek'!KF35)*1.2,IF($AP$2=$W$2,('Počet odeslaných zásilek'!KF35)*'Počet odeslaných zásilek'!$D$32,"")))) -> 32.79525328 | AG10: =IF($AP$2=$X$2,('Počet odeslaných zásilek'!KG35)*0.8,IF($AP$2=$Y$2,('Počet odeslaných zásilek'!KG35),IF($AP$2=$Z$2,('Počet odeslaných zásilek'!KG35)*1.2,IF($AP$2=$W$2,('Počet odeslaných zásilek'!KG35)*'Počet odeslaných zásilek'!$D$33,"")))) -> 32.66969664 | AH10: =IF($AP$2=$X$2,('Počet odeslaných zásilek'!KH35)*0.8,IF($AP$2=$Y$2,('Počet odeslaných zásilek'!KH35),IF($AP$2=$Z$2,('Počet odeslaných zásilek'!KH35)*1.2,IF($AP$2=$W$2,('Počet odeslaných zásilek'!KH35)*'Počet odeslaných zásilek'!$D$34,"")))) -> 33.13827215 | AI10: =IF($AP$2=$X$2,('Počet odeslaných zásilek'!KI35)*0.8,IF($AP$2=$Y$2,('Počet odeslaných zásilek'!KI35),IF($AP$2=$Z$2,('Počet odeslaných zásilek'!KI35)*1.2,IF($AP$2=$W$2,('Počet odeslaných zásilek'!KI35)*'Počet odeslaných zásilek'!$D$35,"")))) -> 38.34250915 | AJ10: =IF($AP$2=$X$2,('Počet odeslaných zásilek'!KJ35)*0.8,IF($AP$2=$Y$2,('Počet odeslaných zásilek'!KJ35),IF($AP$2=$Z$2,('Počet odeslaných zásilek'!KJ35)*1.2,IF($AP$2=$W$2,('Počet odeslaných zásilek'!KJ35)*'Počet odeslaných zásilek'!$D$36,"")))) -> 38.85288946 | AK10: =IF($AP$2=$X$2,('Počet odeslaných zásilek'!KK35)*0.8,IF($AP$2=$Y$2,('Počet odeslaných zásilek'!KK35),IF($AP$2=$Z$2,('Počet odeslaných zásilek'!KK35)*1.2,IF($AP$2=$W$2,('Počet odeslaných zásilek'!KK35)*'Počet odeslaných zásilek'!$D$37,"")))) -> 38.6924308 | AL10: =IF($AP$2=$X$2,('Počet odeslaných zásilek'!KL35)*0.8,IF($AP$2=$Y$2,('Počet odeslaných zásilek'!KL35),IF($AP$2=$Z$2,('Počet odeslaných zásilek'!KL35)*1.2,IF($AP$2=$W$2,('Počet odeslaných zásilek'!KL35)*'Počet odeslaných zásilek'!$D$38,"")))) -> 37.7510625 | AM10: =IF($AP$2=$X$2,('Počet odeslaných zásilek'!KM35)*0.8,IF($AP$2=$Y$2,('Počet odeslaných zásilek'!KM35),IF($AP$2=$Z$2,('Počet odeslaných zásilek'!KM35)*1.2,IF($AP$2=$W$2,('Počet odeslaných zásilek'!KM35)*'Počet odeslaných zásilek'!$D$39,"")))) -> 37.85852914 | AN10: Jihočeský kraj | AP10: Jihočeský kraj | AQ10: =IF($AP$2=X$2,X10,IF($AP$2=Y$2,Y10,IF($AP$2=Z$2,Z10,IF($AP$2=W$2,W10,"")))) -> 5830.356227 | AR10: 5912.950018 | AS10: 5927.214573 | AT10: 5695.383482 | AU10: 5763.994133 | AV10: 5741.926679 | AW10: 5824.282088 | AX10: 6738.962981 | AY10: 6828.665874 | AZ10: 6800.464148 | BA10: 6635.012113 | BB10: 6653.900123 | BC10: 74353.11244 | BE10: Jihočeský kraj | BF10: 6722.20146 | BG10: 5957.223388 | BH10: 5924.054192 | BI10: 5848.875 | BJ10: 6062.555057 | BK10: 6134.190998 | BL10: 6146.563052 | BM10: 5945.489363 | BN10: 6004.997329 | BO10: 5985.8576 | BP10: 6057.286785 | BQ10: 6850.615498 | BR10: 73639.90972 | BT10: Jihočeský kraj | BU10: 7988.228423 | BV10: 5809.772676 | BW10: 5689.014448 | BX10: 5702.800212 | BY10: 5752.651206 | BZ10: 5859.411625 | CA10: 5831.499302 | CB10: 5768.235002 | CC10: 5948.049639 | CD10: 6008.332245 | CE10: 6018.743494 | CF10: 5849.537286 | CG10: 72226.27556 | CI10: 5830.356227 | CJ10: 5912.950018 | CK10: 5927.214573 | CL10: 5695.383482 | CM10: 5763.994133 | CN10: 5741.926679 | CO10: 5824.282088 | CP10: 6738.962981 | CQ10: 6828.665874 | CR10: 6800.464148 | CS10: 6635.012113 | CT10: 6653.900123 | CV10: 6722.20146 | CW10: 5957.223388 | CX10: 5924.054192 | CY10: 5848.875 | CZ10: 6062.555057 | DA10: 6134.190998 | DB10: 6146.563052 | DC10: 5945.489363 | DD10: 6004.997329 | DE10: 5985.8576 | DF10: 6057.286785 | DG10: 6850.615498 | DI10: 7988.228423 | DJ10: 5809.772676 | DK10: 5689.014448 | DL10: 5702.800212 | DM10: 5752.651206 | DN10: 5859.411625 | DO10: 5831.499302 | DP10: 5768.235002 | DQ10: 5948.049639 | DR10: 6008.332245 | DS10: 6018.743494 | DT10: 5849.537286
S11: Jihomoravský kraj | T11: 1 | W11: =Y11*'Počet odeslaných zásilek'!$D$28 -> 6817.642623 | X11: 5454.114099 | Y11: ='Výstupy z Tasha'!J11 -> 6817.642623 | Z11: 8181.171148 | AA11: ='Počet odeslaných zásilek'!KB36 -> 27.60486746 | AB11: =IF($AP$2=$X$2,('Počet odeslaných zásilek'!KB36)*0.8,IF($AP$2=$Y$2,('Počet odeslaných zásilek'!KB36),IF($AP$2=$Z$2,('Počet odeslaných zásilek'!KB36)*1.2,IF($AP$2=$W$2,('Počet odeslaných zásilek'!KB36)*'Počet odeslaných zásilek'!$D$28,"")))) -> 27.60486746 | AC11: =IF($AP$2=$X$2,('Počet odeslaných zásilek'!KC36)*0.8,IF($AP$2=$Y$2,('Počet odeslaných zásilek'!KC36),IF($AP$2=$Z$2,('Počet odeslaných zásilek'!KC36)*1.2,IF($AP$2=$W$2,('Počet odeslaných zásilek'!KC36)*'Počet odeslaných zásilek'!$D$29,"")))) -> 27.97317018 | AD11: =IF($AP$2=$X$2,('Počet odeslaných zásilek'!KD36)*0.8,IF($AP$2=$Y$2,('Počet odeslaných zásilek'!KD36),IF($AP$2=$Z$2,('Počet odeslaných zásilek'!KD36)*1.2,IF($AP$2=$W$2,('Počet odeslaných zásilek'!KD36)*'Počet odeslaných zásilek'!$D$30,"")))) -> 28.34147289 | AE11: =IF($AP$2=$X$2,('Počet odeslaných zásilek'!KE36)*0.8,IF($AP$2=$Y$2,('Počet odeslaných zásilek'!KE36),IF($AP$2=$Z$2,('Počet odeslaných zásilek'!KE36)*1.2,IF($AP$2=$W$2,('Počet odeslaných zásilek'!KE36)*'Počet odeslaných zásilek'!$D$31,"")))) -> 28.7097756 | AF11: =IF($AP$2=$X$2,('Počet odeslaných zásilek'!KF36)*0.8,IF($AP$2=$Y$2,('Počet odeslaných zásilek'!KF36),IF($AP$2=$Z$2,('Počet odeslaných zásilek'!KF36)*1.2,IF($AP$2=$W$2,('Počet odeslaných zásilek'!KF36)*'Počet odeslaných zásilek'!$D$32,"")))) -> 29.07807832 | AG11: =IF($AP$2=$X$2,('Počet odeslaných zásilek'!KG36)*0.8,IF($AP$2=$Y$2,('Počet odeslaných zásilek'!KG36),IF($AP$2=$Z$2,('Počet odeslaných zásilek'!KG36)*1.2,IF($AP$2=$W$2,('Počet odeslaných zásilek'!KG36)*'Počet odeslaných zásilek'!$D$33,"")))) -> 29.44638103 | AH11: =IF($AP$2=$X$2,('Počet odeslaných zásilek'!KH36)*0.8,IF($AP$2=$Y$2,('Počet odeslaných zásilek'!KH36),IF($AP$2=$Z$2,('Počet odeslaných zásilek'!KH36)*1.2,IF($AP$2=$W$2,('Počet odeslaných zásilek'!KH36)*'Počet odeslaných zásilek'!$D$34,"")))) -> 29.81468375 | AI11: =IF($AP$2=$X$2,('Počet odeslaných zásilek'!KI36)*0.8,IF($AP$2=$Y$2,('Počet odeslaných zásilek'!KI36),IF($AP$2=$Z$2,('Počet odeslaných zásilek'!KI36)*1.2,IF($AP$2=$W$2,('Počet odeslaných zásilek'!KI36)*'Počet odeslaných zásilek'!$D$35,"")))) -> 30.18298646 | AJ11: =IF($AP$2=$X$2,('Počet odeslaných zásilek'!KJ36)*0.8,IF($AP$2=$Y$2,('Počet odeslaných zásilek'!KJ36),IF($AP$2=$Z$2,('Počet odeslaných zásilek'!KJ36)*1.2,IF($AP$2=$W$2,('Počet odeslaných zásilek'!KJ36)*'Počet odeslaných zásilek'!$D$36,"")))) -> 30.55128917 | AK11: =IF($AP$2=$X$2,('Počet odeslaných zásilek'!KK36)*0.8,IF($AP$2=$Y$2,('Počet odeslaných zásilek'!KK36),IF($AP$2=$Z$2,('Počet odeslaných zásilek'!KK36)*1.2,IF($AP$2=$W$2,('Počet odeslaných zásilek'!KK36)*'Počet odeslaných zásilek'!$D$37,"")))) -> 30.91959189 | AL11: =IF($AP$2=$X$2,('Počet odeslaných zásilek'!KL36)*0.8,IF($AP$2=$Y$2,('Počet odeslaných zásilek'!KL36),IF($AP$2=$Z$2,('Počet odeslaných zásilek'!KL36)*1.2,IF($AP$2=$W$2,('Počet odeslaných zásilek'!KL36)*'Počet odeslaných zásilek'!$D$38,"")))) -> 31.2878946 | AM11: =IF($AP$2=$X$2,('Počet odeslaných zásilek'!KM36)*0.8,IF($AP$2=$Y$2,('Počet odeslaných zásilek'!KM36),IF($AP$2=$Z$2,('Počet odeslaných zásilek'!KM36)*1.2,IF($AP$2=$W$2,('Počet odeslaných zásilek'!KM36)*'Počet odeslaných zásilek'!$D$39,"")))) -> 31.65619732 | AN11: Jihomoravský kraj | AP11: Jihomoravský kraj | AQ11: 6817.642623 | AR11: 6908.603259 | AS11: 6999.563894 | AT11: 7090.524529 | AU11: 7181.485164 | AV11: 7272.4458 | AW11: 7363.406435 | AX11: 7454.36707 | AY11: 7545.327705 | AZ11: 7636.288341 | BA11: 7727.248976 | BB11: 7818.209611 | BC11: 87815.11341 | BE11: Jihomoravský kraj | BF11: 7909.170246 | BG11: 6896.049976 | BH11: 6974.457329 | BI11: 7052.864682 | BJ11: 7131.272036 | BK11: 7209.679389 | BL11: 7288.086742 | BM11: 7366.494095 | BN11: 7444.901448 | BO11: 7523.308801 | BP11: 7601.716154 | BQ11: 7680.123507 | BR11: 88078.1244 | BT11: Jihomoravský kraj | BU11: 9000.697869 | BV11: 6886.541403 | BW11: 6955.440184 | BX11: 7024.338964 | BY11: 7093.237744 | BZ11: 7162.136524 | CA11: 7231.035304 | CB11: 7299.934084 | CC11: 7368.832865 | CD11: 7437.731645 | CE11: 7506.630425 | CF11: 7575.529205 | CG11: 88542.08622 | CI11: 6817.642623 | CJ11: 6908.603259 | CK11: 6999.563894 | CL11: 7090.524529 | CM11: 7181.485164 | CN11: 7272.4458 | CO11: 7363.406435 | CP11: 7454.36707 | CQ11: 7545.327705 | CR11: 7636.288341 | CS11: 7727.248976 | CT11: 7818.209611 | CV11: 7909.170246 | CW11: 6896.049976 | CX11: 6974.457329 | CY11: 7052.864682 | CZ11: 7131.272036 | DA11: 7209.679389 | DB11: 7288.086742 | DC11: 7366.494095 | DD11: 7444.901448 | DE11: 7523.308801 | DF11: 7601.716154 | DG11: 7680.123507 | DI11: 9000.697869 | DJ11: 6886.541403 | DK11: 6955.440184 | DL11: 7024.338964 | DM11: 7093.237744 | DN11: 7162.136524 | DO11: 7231.035304 | DP11: 7299.934084 | DQ11: 7368.832865 | DR11: 7437.731645 | DS11: 7506.630425 | DT11: 7575.529205
S12: Pardubický kraj | T12: 1 | W12: =Y12*'Počet odeslaných zásilek'!$D$28 -> 4815.318481 | X12: 3852.254785 | Y12: ='Výstupy z Tasha'!J12 -> 4815.318481 | Z12: 5778.382177 | AA12: ='Počet odeslaných zásilek'!KB37 -> 46.80264576 | AB12: =IF($AP$2=$X$2,('Počet odeslaných zásilek'!KB37)*0.8,IF($AP$2=$Y$2,('Počet odeslaných zásilek'!KB37),IF($AP$2=$Z$2,('Počet odeslaných zásilek'!KB37)*1.2,IF($AP$2=$W$2,('Počet odeslaných zásilek'!KB37)*'Počet odeslaných zásilek'!$D$28,"")))) -> 46.80264576 | AC12: =IF($AP$2=$X$2,('Počet odeslaných zásilek'!KC37)*0.8,IF($AP$2=$Y$2,('Počet odeslaných zásilek'!KC37),IF($AP$2=$Z$2,('Počet odeslaných zásilek'!KC37)*1.2,IF($AP$2=$W$2,('Počet odeslaných zásilek'!KC37)*'Počet odeslaných zásilek'!$D$29,"")))) -> 47.24306939 | AD12: =IF($AP$2=$X$2,('Počet odeslaných zásilek'!KD37)*0.8,IF($AP$2=$Y$2,('Počet odeslaných zásilek'!KD37),IF($AP$2=$Z$2,('Počet odeslaných zásilek'!KD37)*1.2,IF($AP$2=$W$2,('Počet odeslaných zásilek'!KD37)*'Počet odeslaných zásilek'!$D$30,"")))) -> 47.68349302 | AE12: =IF($AP$2=$X$2,('Počet odeslaných zásilek'!KE37)*0.8,IF($AP$2=$Y$2,('Počet odeslaných zásilek'!KE37),IF($AP$2=$Z$2,('Počet odeslaných zásilek'!KE37)*1.2,IF($AP$2=$W$2,('Počet odeslaných zásilek'!KE37)*'Počet odeslaných zásilek'!$D$31,"")))) -> 48.12391665 | AF12: =IF($AP$2=$X$2,('Počet odeslaných zásilek'!KF37)*0.8,IF($AP$2=$Y$2,('Počet odeslaných zásilek'!KF37),IF($AP$2=$Z$2,('Počet odeslaných zásilek'!KF37)*1.2,IF($AP$2=$W$2,('Počet odeslaných zásilek'!KF37)*'Počet odeslaných zásilek'!$D$32,"")))) -> 48.56434028 | AG12: =IF($AP$2=$X$2,('Počet odeslaných zásilek'!KG37)*0.8,IF($AP$2=$Y$2,('Počet odeslaných zásilek'!KG37),IF($AP$2=$Z$2,('Počet odeslaných zásilek'!KG37)*1.2,IF($AP$2=$W$2,('Počet odeslaných zásilek'!KG37)*'Počet odeslaných zásilek'!$D$33,"")))) -> 49.00476392 | AH12: =IF($AP$2=$X$2,('Počet odeslaných zásilek'!KH37)*0.8,IF($AP$2=$Y$2,('Počet odeslaných zásilek'!KH37),IF($AP$2=$Z$2,('Počet odeslaných zásilek'!KH37)*1.2,IF($AP$2=$W$2,('Počet odeslaných zásilek'!KH37)*'Počet odeslaných zásilek'!$D$34,"")))) -> 49.44518755 | AI12: =IF($AP$2=$X$2,('Počet odeslaných zásilek'!KI37)*0.8,IF($AP$2=$Y$2,('Počet odeslaných zásilek'!KI37),IF($AP$2=$Z$2,('Počet odeslaných zásilek'!KI37)*1.2,IF($AP$2=$W$2,('Počet odeslaných zásilek'!KI37)*'Počet odeslaných zásilek'!$D$35,"")))) -> 49.88561118 | AJ12: =IF($AP$2=$X$2,('Počet odeslaných zásilek'!KJ37)*0.8,IF($AP$2=$Y$2,('Počet odeslaných zásilek'!KJ37),IF($AP$2=$Z$2,('Počet odeslaných zásilek'!KJ37)*1.2,IF($AP$2=$W$2,('Počet odeslaných zásilek'!KJ37)*'Počet odeslaných zásilek'!$D$36,"")))) -> 50.32603481 | AK12: =IF($AP$2=$X$2,('Počet odeslaných zásilek'!KK37)*0.8,IF($AP$2=$Y$2,('Počet odeslaných zásilek'!KK37),IF($AP$2=$Z$2,('Počet odeslaných zásilek'!KK37)*1.2,IF($AP$2=$W$2,('Počet odeslaných zásilek'!KK37)*'Počet odeslaných zásilek'!$D$37,"")))) -> 50.76645844 | AL12: =IF($AP$2=$X$2,('Počet odeslaných zásilek'!KL37)*0.8,IF($AP$2=$Y$2,('Počet odeslaných zásilek'!KL37),IF($AP$2=$Z$2,('Počet odeslaných zásilek'!KL37)*1.2,IF($AP$2=$W$2,('Počet odeslaných zásilek'!KL37)*'Počet odeslaných zásilek'!$D$38,"")))) -> 51.20688208 | AM12: =IF($AP$2=$X$2,('Počet odeslaných zásilek'!KM37)*0.8,IF($AP$2=$Y$2,('Počet odeslaných zásilek'!KM37),IF($AP$2=$Z$2,('Počet odeslaných zásilek'!KM37)*1.2,IF($AP$2=$W$2,('Počet odeslaných zásilek'!KM37)*'Počet odeslaných zásilek'!$D$39,"")))) -> 51.64730571 | AN12: Pardubický kraj | AP12: Pardubický kraj | AQ12: 4815.318481 | AR12: 4860.631732 | AS12: 4905.944984 | AT12: 4951.258235 | AU12: 4996.571487 | AV12: 5041.884738 | AW12: 5087.19799 | AX12: 5132.511241 | AY12: 5177.824493 | AZ12: 5223.137744 | BA12: 5268.450995 | BB12: 5313.764247 | BC12: 60774.49637 | BE12: Pardubický kraj | BF12: 5359.077498 | BG12: 4856.034022 | BH12: 4896.749562 | BI12: 4937.465103 | BJ12: 4978.180643 | BK12: 5018.896184 | BL12: 5059.611724 | BM12: 5100.327265 | BN12: 5141.042805 | BO12: 5181.758346 | BP12: 5222.473886 | BQ12: 5263.189427 | BR12: 61014.80646 | BT12: Pardubický kraj | BU12: 5902.836516 | BV12: 4852.283377 | BW12: 4889.248273 | BX12: 4926.213169 | BY12: 4963.178064 | BZ12: 5000.14296 | CA12: 5037.107856 | CB12: 5074.072752 | CC12: 5111.037648 | CD12: 5148.002544 | CE12: 5184.96744 | CF12: 5221.932336 | CG12: 61311.02293 | CI12: 4815.318481 | CJ12: 4860.631732 | CK12: 4905.944984 | CL12: 4951.258235 | CM12: 4996.571487 | CN12: 5041.884738 | CO12: 5087.19799 | CP12: 5132.511241 | CQ12: 5177.824493 | CR12: 5223.137744 | CS12: 5268.450995 | CT12: 5313.764247 | CV12: 5359.077498 | CW12: 4856.034022 | CX12: 4896.749562 | CY12: 4937.465103 | CZ12: 4978.180643 | DA12: 5018.896184 | DB12: 5059.611724 | DC12: 5100.327265 | DD12: 5141.042805 | DE12: 5181.758346 | DF12: 5222.473886 | DG12: 5263.189427 | DI12: 5902.836516 | DJ12: 4852.283377 | DK12: 4889.248273 | DL12: 4926.213169 | DM12: 4963.178064 | DN12: 5000.14296 | DO12: 5037.107856 | DP12: 5074.072752 | DQ12: 5111.037648 | DR12: 5148.002544 | DS12: 5184.96744 | DT12: 5221.932336
S13: Královehradecký kraj | T13: 1 | W13: =Y13*'Počet odeslaných zásilek'!$D$28 -> 4212.415833 | X13: 3369.932667 | Y13: ='Výstupy z Tasha'!J13 -> 4212.415833 | Z13: 5054.899 | AA13: ='Počet odeslaných zásilek'!KB38 -> 23.35660608 | AB13: =IF($AP$2=$X$2,('Počet odeslaných zásilek'!KB38)*0.8,IF($AP$2=$Y$2,('Počet odeslaných zásilek'!KB38),IF($AP$2=$Z$2,('Počet odeslaných zásilek'!KB38)*1.2,IF($AP$2=$W$2,('Počet odeslaných zásilek'!KB38)*'Počet odeslaných zásilek'!$D$28,"")))) -> 23.35660608 | AC13: =IF($AP$2=$X$2,('Počet odeslaných zásilek'!KC38)*0.8,IF($AP$2=$Y$2,('Počet odeslaných zásilek'!KC38),IF($AP$2=$Z$2,('Počet odeslaných zásilek'!KC38)*1.2,IF($AP$2=$W$2,('Počet odeslaných zásilek'!KC38)*'Počet odeslaných zásilek'!$D$29,"")))) -> 23.71321215 | AD13: =IF($AP$2=$X$2,('Počet odeslaných zásilek'!KD38)*0.8,IF($AP$2=$Y$2,('Počet odeslaných zásilek'!KD38),IF($AP$2=$Z$2,('Počet odeslaných zásilek'!KD38)*1.2,IF($AP$2=$W$2,('Počet odeslaných zásilek'!KD38)*'Počet odeslaných zásilek'!$D$30,"")))) -> 24.06981823 | AE13: =IF($AP$2=$X$2,('Počet odeslaných zásilek'!KE38)*0.8,IF($AP$2=$Y$2,('Počet odeslaných zásilek'!KE38),IF($AP$2=$Z$2,('Počet odeslaných zásilek'!KE38)*1.2,IF($AP$2=$W$2,('Počet odeslaných zásilek'!KE38)*'Počet odeslaných zásilek'!$D$31,"")))) -> 24.42642431 | AF13: =IF($AP$2=$X$2,('Počet odeslaných zásilek'!KF38)*0.8,IF($AP$2=$Y$2,('Počet odeslaných zásilek'!KF38),IF($AP$2=$Z$2,('Počet odeslaných zásilek'!KF38)*1.2,IF($AP$2=$W$2,('Počet odeslaných zásilek'!KF38)*'Počet odeslaných zásilek'!$D$32,"")))) -> 24.78303039 | AG13: =IF($AP$2=$X$2,('Počet odeslaných zásilek'!KG38)*0.8,IF($AP$2=$Y$2,('Počet odeslaných zásilek'!KG38),IF($AP$2=$Z$2,('Počet odeslaných zásilek'!KG38)*1.2,IF($AP$2=$W$2,('Počet odeslaných zásilek'!KG38)*'Počet odeslaných zásilek'!$D$33,"")))) -> 25.13963646 | AH13: =IF($AP$2=$X$2,('Počet odeslaných zásilek'!KH38)*0.8,IF($AP$2=$Y$2,('Počet odeslaných zásilek'!KH38),IF($AP$2=$Z$2,('Počet odeslaných zásilek'!KH38)*1.2,IF($AP$2=$W$2,('Počet odeslaných zásilek'!KH38)*'Počet odeslaných zásilek'!$D$34,"")))) -> 25.49624254 | AI13: =IF($AP$2=$X$2,('Počet odeslaných zásilek'!KI38)*0.8,IF($AP$2=$Y$2,('Počet odeslaných zásilek'!KI38),IF($AP$2=$Z$2,('Počet odeslaných zásilek'!KI38)*1.2,IF($AP$2=$W$2,('Počet odeslaných zásilek'!KI38)*'Počet odeslaných zásilek'!$D$35,"")))) -> 25.85284862 | AJ13: =IF($AP$2=$X$2,('Počet odeslaných zásilek'!KJ38)*0.8,IF($AP$2=$Y$2,('Počet odeslaných zásilek'!KJ38),IF($AP$2=$Z$2,('Počet odeslaných zásilek'!KJ38)*1.2,IF($AP$2=$W$2,('Počet odeslaných zásilek'!KJ38)*'Počet odeslaných zásilek'!$D$36,"")))) -> 26.20945469 | AK13: =IF($AP$2=$X$2,('Počet odeslaných zásilek'!KK38)*0.8,IF($AP$2=$Y$2,('Počet odeslaných zásilek'!KK38),IF($AP$2=$Z$2,('Počet odeslaných zásilek'!KK38)*1.2,IF($AP$2=$W$2,('Počet odeslaných zásilek'!KK38)*'Počet odeslaných zásilek'!$D$37,"")))) -> 26.56606077 | AL13: =IF($AP$2=$X$2,('Počet odeslaných zásilek'!KL38)*0.8,IF($AP$2=$Y$2,('Počet odeslaných zásilek'!KL38),IF($AP$2=$Z$2,('Počet odeslaných zásilek'!KL38)*1.2,IF($AP$2=$W$2,('Počet odeslaných zásilek'!KL38)*'Počet odeslaných zásilek'!$D$38,"")))) -> 26.92266685 | AM13: =IF($AP$2=$X$2,('Počet odeslaných zásilek'!KM38)*0.8,IF($AP$2=$Y$2,('Počet odeslaných zásilek'!KM38),IF($AP$2=$Z$2,('Počet odeslaných zásilek'!KM38)*1.2,IF($AP$2=$W$2,('Počet odeslaných zásilek'!KM38)*'Počet odeslaných zásilek'!$D$39,"")))) -> 27.27927292 | AN13: Královehradecký kraj | AP13: Královehradecký kraj | AQ13: 4212.415833 | AR13: 4276.730532 | AS13: 4341.045231 | AT13: 4405.35993 | AU13: 4469.674628 | AV13: 4533.989327 | AW13: 4598.304026 | AX13: 4662.618725 | AY13: 4726.933424 | AZ13: 4791.248122 | BA13: 4855.562821 | BB13: 4919.87752 | BC13: 54793.76012 | BE13: Královehradecký kraj | BF13: 4984.192219 | BG13: 4266.771733 | BH13: 4321.127634 | BI13: 4375.483534 | BJ13: 4429.839435 | BK13: 4484.195335 | BL13: 4538.551235 | BM13: 4592.907136 | BN13: 4647.263036 | BO13: 4701.618936 | BP13: 4755.974837 | BQ13: 4810.330737 | BR13: 54908.25581 | BT13: Královehradecký kraj | BU13: 5755.968605 | BV13: 4259.483542 | BW13: 4306.551251 | BX13: 4353.61896 | BY13: 4400.686669 | BZ13: 4447.754378 | CA13: 4494.822087 | CB13: 4541.889796 | CC13: 4588.957506 | CD13: 4636.025215 | CE13: 4683.092924 | CF13: 4730.160633 | CG13: 55199.01157 | CI13: 4212.415833 | CJ13: 4276.730532 | CK13: 4341.045231 | CL13: 4405.35993 | CM13: 4469.674628 | CN13: 4533.989327 | CO13: 4598.304026 | CP13: 4662.618725 | CQ13: 4726.933424 | CR13: 4791.248122 | CS13: 4855.562821 | CT13: 4919.87752 | CV13: 4984.192219 | CW13: 4266.771733 | CX13: 4321.127634 | CY13: 4375.483534 | CZ13: 4429.839435 | DA13: 4484.195335 | DB13: 4538.551235 | DC13: 4592.907136 | DD13: 4647.263036 | DE13: 4701.618936 | DF13: 4755.974837 | DG13: 4810.330737 | DI13: 5755.968605 | DJ13: 4259.483542 | DK13: 4306.551251 | DL13: 4353.61896 | DM13: 4400.686669 | DN13: 4447.754378 | DO13: 4494.822087 | DP13: 4541.889796 | DQ13: 4588.957506 | DR13: 4636.025215 | DS13: 4683.092924 | DT13: 4730.160633
S14: Kraj Vysočina | T14: 1 | W14: =Y14*'Počet odeslaných zásilek'!$D$28 -> 5194.096825 | X14: 4155.27746 | Y14: ='Výstupy z Tasha'!J14 -> 5194.096825 | Z14: 6232.91619 | AA14: ='Počet odeslaných zásilek'!KB39 -> 41.83309253 | AB14: =IF($AP$2=$X$2,('Počet odeslaných zásilek'!KB39)*0.8,IF($AP$2=$Y$2,('Počet odeslaných zásilek'!KB39),IF($AP$2=$Z$2,('Počet odeslaných zásilek'!KB39)*1.2,IF($AP$2=$W$2,('Počet odeslaných zásilek'!KB39)*'Počet odeslaných zásilek'!$D$28,"")))) -> 41.83309253 | AC14: =IF($AP$2=$X$2,('Počet odeslaných zásilek'!KC39)*0.8,IF($AP$2=$Y$2,('Počet odeslaných zásilek'!KC39),IF($AP$2=$Z$2,('Počet odeslaných zásilek'!KC39)*1.2,IF($AP$2=$W$2,('Počet odeslaných zásilek'!KC39)*'Počet odeslaných zásilek'!$D$29,"")))) -> 42.28278582 | AD14: =IF($AP$2=$X$2,('Počet odeslaných zásilek'!KD39)*0.8,IF($AP$2=$Y$2,('Počet odeslaných zásilek'!KD39),IF($AP$2=$Z$2,('Počet odeslaných zásilek'!KD39)*1.2,IF($AP$2=$W$2,('Počet odeslaných zásilek'!KD39)*'Počet odeslaných zásilek'!$D$30,"")))) -> 42.73247911 | AE14: =IF($AP$2=$X$2,('Počet odeslaných zásilek'!KE39)*0.8,IF($AP$2=$Y$2,('Počet odeslaných zásilek'!KE39),IF($AP$2=$Z$2,('Počet odeslaných zásilek'!KE39)*1.2,IF($AP$2=$W$2,('Počet odeslaných zásilek'!KE39)*'Počet odeslaných zásilek'!$D$31,"")))) -> 43.1821724 | AF14: =IF($AP$2=$X$2,('Počet odeslaných zásilek'!KF39)*0.8,IF($AP$2=$Y$2,('Počet odeslaných zásilek'!KF39),IF($AP$2=$Z$2,('Počet odeslaných zásilek'!KF39)*1.2,IF($AP$2=$W$2,('Počet odeslaných zásilek'!KF39)*'Počet odeslaných zásilek'!$D$32,"")))) -> 43.63186569 | AG14: =IF($AP$2=$X$2,('Počet odeslaných zásilek'!KG39)*0.8,IF($AP$2=$Y$2,('Počet odeslaných zásilek'!KG39),IF($AP$2=$Z$2,('Počet odeslaných zásilek'!KG39)*1.2,IF($AP$2=$W$2,('Počet odeslaných zásilek'!KG39)*'Počet odeslaných zásilek'!$D$33,"")))) -> 44.08155898 | AH14: =IF($AP$2=$X$2,('Počet odeslaných zásilek'!KH39)*0.8,IF($AP$2=$Y$2,('Počet odeslaných zásilek'!KH39),IF($AP$2=$Z$2,('Počet odeslaných zásilek'!KH39)*1.2,IF($AP$2=$W$2,('Počet odeslaných zásilek'!KH39)*'Počet odeslaných zásilek'!$D$34,"")))) -> 44.53125227 | AI14: =IF($AP$2=$X$2,('Počet odeslaných zásilek'!KI39)*0.8,IF($AP$2=$Y$2,('Počet odeslaných zásilek'!KI39),IF($AP$2=$Z$2,('Počet odeslaných zásilek'!KI39)*1.2,IF($AP$2=$W$2,('Počet odeslaných zásilek'!KI39)*'Počet odeslaných zásilek'!$D$35,"")))) -> 44.98094556 | AJ14: =IF($AP$2=$X$2,('Počet odeslaných zásilek'!KJ39)*0.8,IF($AP$2=$Y$2,('Počet odeslaných zásilek'!KJ39),IF($AP$2=$Z$2,('Počet odeslaných zásilek'!KJ39)*1.2,IF($AP$2=$W$2,('Počet odeslaných zásilek'!KJ39)*'Počet odeslaných zásilek'!$D$36,"")))) -> 45.43063885 | AK14: =IF($AP$2=$X$2,('Počet odeslaných zásilek'!KK39)*0.8,IF($AP$2=$Y$2,('Počet odeslaných zásilek'!KK39),IF($AP$2=$Z$2,('Počet odeslaných zásilek'!KK39)*1.2,IF($AP$2=$W$2,('Počet odeslaných zásilek'!KK39)*'Počet odeslaných zásilek'!$D$37,"")))) -> 45.88033214 | AL14: =IF($AP$2=$X$2,('Počet odeslaných zásilek'!KL39)*0.8,IF($AP$2=$Y$2,('Počet odeslaných zásilek'!KL39),IF($AP$2=$Z$2,('Počet odeslaných zásilek'!KL39)*1.2,IF($AP$2=$W$2,('Počet odeslaných zásilek'!KL39)*'Počet odeslaných zásilek'!$D$38,"")))) -> 46.33002542 | AM14: =IF($AP$2=$X$2,('Počet odeslaných zásilek'!KM39)*0.8,IF($AP$2=$Y$2,('Počet odeslaných zásilek'!KM39),IF($AP$2=$Z$2,('Počet odeslaných zásilek'!KM39)*1.2,IF($AP$2=$W$2,('Počet odeslaných zásilek'!KM39)*'Počet odeslaných zásilek'!$D$39,"")))) -> 46.77971871 | AN14: Kraj Vysočina | AP14: Kraj Vysočina | AQ14: 5194.096825 | AR14: 5249.931819 | AS14: 5305.766814 | AT14: 5361.601808 | AU14: 5417.436802 | AV14: 5473.271797 | AW14: 5529.106791 | AX14: 5584.941785 | AY14: 5640.77678 | AZ14: 5696.611774 | BA14: 5752.446768 | BB14: 5808.281763 | BC14: 66014.27153 | BE14: Kraj Vysočina | BF14: 5864.116757 | BG14: 5243.552247 | BH14: 5293.007668 | BI14: 5342.46309 | BJ14: 5391.918512 | BK14: 5441.373933 | BL14: 5490.829355 | BM14: 5540.284777 | BN14: 5589.740198 | BO14: 5639.19562 | BP14: 5688.651041 | BQ14: 5738.106463 | BR14: 66263.23966 | BT14: Kraj Vysočina | BU14: 6534.136689 | BV14: 5238.481015 | BW14: 5282.865206 | BX14: 5327.249396 | BY14: 5371.633587 | BZ14: 5416.017777 | CA14: 5460.401967 | CB14: 5504.786158 | CC14: 5549.170348 | CD14: 5593.554538 | CE14: 5637.938729 | CF14: 5682.322919 | CG14: 66598.55833 | CI14: 5194.096825 | CJ14: 5249.931819 | CK14: 5305.766814 | CL14: 5361.601808 | CM14: 5417.436802 | CN14: 5473.271797 | CO14: 5529.106791 | CP14: 5584.941785 | CQ14: 5640.77678 | CR14: 5696.611774 | CS14: 5752.446768 | CT14: 5808.281763 | CV14: 5864.116757 | CW14: 5243.552247 | CX14: 5293.007668 | CY14: 5342.46309 | CZ14: 5391.918512 | DA14: 5441.373933 | DB14: 5490.829355 | DC14: 5540.284777 | DD14: 5589.740198 | DE14: 5639.19562 | DF14: 5688.651041 | DG14: 5738.106463 | DI14: 6534.136689 | DJ14: 5238.481015 | DK14: 5282.865206 | DL14: 5327.249396 | DM14: 5371.633587 | DN14: 5416.017777 | DO14: 5460.401967 | DP14: 5504.786158 | DQ14: 5549.170348 | DR14: 5593.554538 | DS14: 5637.938729 | DT14: 5682.322919
S15: Středočeský kraj | T15: 1 | W15: =Y15*'Počet odeslaných zásilek'!$D$28 -> 6102.356202 | X15: 4881.884961 | Y15: ='Výstupy z Tasha'!J15 -> 6102.356202 | Z15: 7322.827442 | AA15: ='Počet odeslaných zásilek'!KB40 -> 60.53414963 | AB15: =IF($AP$2=$X$2,('Počet odeslaných zásilek'!KB40)*0.8,IF($AP$2=$Y$2,('Počet odeslaných zásilek'!KB40),IF($AP$2=$Z$2,('Počet odeslaných zásilek'!KB40)*1.2,IF($AP$2=$W$2,('Počet odeslaných zásilek'!KB40)*'Počet odeslaných zásilek'!$D$28,"")))) -> 60.53414963 | AC15: =IF($AP$2=$X$2,('Počet odeslaných zásilek'!KC40)*0.8,IF($AP$2=$Y$2,('Počet odeslaných zásilek'!KC40),IF($AP$2=$Z$2,('Počet odeslaných zásilek'!KC40)*1.2,IF($AP$2=$W$2,('Počet odeslaných zásilek'!KC40)*'Počet odeslaných zásilek'!$D$29,"")))) -> 61.4997585 | AD15: =IF($AP$2=$X$2,('Počet odeslaných zásilek'!KD40)*0.8,IF($AP$2=$Y$2,('Počet odeslaných zásilek'!KD40),IF($AP$2=$Z$2,('Počet odeslaných zásilek'!KD40)*1.2,IF($AP$2=$W$2,('Počet odeslaných zásilek'!KD40)*'Počet odeslaných zásilek'!$D$30,"")))) -> 62.46536738 | AE15: =IF($AP$2=$X$2,('Počet odeslaných zásilek'!KE40)*0.8,IF($AP$2=$Y$2,('Počet odeslaných zásilek'!KE40),IF($AP$2=$Z$2,('Počet odeslaných zásilek'!KE40)*1.2,IF($AP$2=$W$2,('Počet odeslaných zásilek'!KE40)*'Počet odeslaných zásilek'!$D$31,"")))) -> 63.43097626 | AF15: =IF($AP$2=$X$2,('Počet odeslaných zásilek'!KF40)*0.8,IF($AP$2=$Y$2,('Počet odeslaných zásilek'!KF40),IF($AP$2=$Z$2,('Počet odeslaných zásilek'!KF40)*1.2,IF($AP$2=$W$2,('Počet odeslaných zásilek'!KF40)*'Počet odeslaných zásilek'!$D$32,"")))) -> 64.39658514 | AG15: =IF($AP$2=$X$2,('Počet odeslaných zásilek'!KG40)*0.8,IF($AP$2=$Y$2,('Počet odeslaných zásilek'!KG40),IF($AP$2=$Z$2,('Počet odeslaných zásilek'!KG40)*1.2,IF($AP$2=$W$2,('Počet odeslaných zásilek'!KG40)*'Počet odeslaných zásilek'!$D$33,"")))) -> 65.36219401 | AH15: =IF($AP$2=$X$2,('Počet odeslaných zásilek'!KH40)*0.8,IF($AP$2=$Y$2,('Počet odeslaných zásilek'!KH40),IF($AP$2=$Z$2,('Počet odeslaných zásilek'!KH40)*1.2,IF($AP$2=$W$2,('Počet odeslaných zásilek'!KH40)*'Počet odeslaných zásilek'!$D$34,"")))) -> 66.32780289 | AI15: =IF($AP$2=$X$2,('Počet odeslaných zásilek'!KI40)*0.8,IF($AP$2=$Y$2,('Počet odeslaných zásilek'!KI40),IF($AP$2=$Z$2,('Počet odeslaných zásilek'!KI40)*1.2,IF($AP$2=$W$2,('Počet odeslaných zásilek'!KI40)*'Počet odeslaných zásilek'!$D$35,"")))) -> 67.29341177 | AJ15: =IF($AP$2=$X$2,('Počet odeslaných zásilek'!KJ40)*0.8,IF($AP$2=$Y$2,('Počet odeslaných zásilek'!KJ40),IF($AP$2=$Z$2,('Počet odeslaných zásilek'!KJ40)*1.2,IF($AP$2=$W$2,('Počet odeslaných zásilek'!KJ40)*'Počet odeslaných zásilek'!$D$36,"")))) -> 68.25902065 | AK15: =IF($AP$2=$X$2,('Počet odeslaných zásilek'!KK40)*0.8,IF($AP$2=$Y$2,('Počet odeslaných zásilek'!KK40),IF($AP$2=$Z$2,('Počet odeslaných zásilek'!KK40)*1.2,IF($AP$2=$W$2,('Počet odeslaných zásilek'!KK40)*'Počet odeslaných zásilek'!$D$37,"")))) -> 69.22462952 | AL15: =IF($AP$2=$X$2,('Počet odeslaných zásilek'!KL40)*0.8,IF($AP$2=$Y$2,('Počet odeslaných zásilek'!KL40),IF($AP$2=$Z$2,('Počet odeslaných zásilek'!KL40)*1.2,IF($AP$2=$W$2,('Počet odeslaných zásilek'!KL40)*'Počet odeslaných zásilek'!$D$38,"")))) -> 70.1902384 | AM15: =IF($AP$2=$X$2,('Počet odeslaných zásilek'!KM40)*0.8,IF($AP$2=$Y$2,('Počet odeslaných zásilek'!KM40),IF($AP$2=$Z$2,('Počet odeslaných zásilek'!KM40)*1.2,IF($AP$2=$W$2,('Počet odeslaných zásilek'!KM40)*'Počet odeslaných zásilek'!$D$39,"")))) -> 71.15584728 | AN15: Středočeský kraj | AP15: Středočeský kraj | AQ15: 6102.356202 | AR15: 6199.697774 | AS15: 6297.039347 | AT15: 6394.38092 | AU15: 6491.722492 | AV15: 6589.064065 | AW15: 6686.405637 | AX15: 6783.74721 | AY15: 6881.088783 | AZ15: 6978.430355 | BA15: 7075.771928 | BB15: 7173.1135 | BC15: 79652.81821 | BE15: Středočeský kraj | BF15: 7270.455073 | BG15: 6184.058508 | BH15: 6265.760815 | BI15: 6347.463122 | BJ15: 6429.165428 | BK15: 6510.867735 | BL15: 6592.570041 | BM15: 6674.272348 | BN15: 6755.974654 | BO15: 6837.676961 | BP15: 6919.379268 | BQ15: 7001.081574 | BR15: 79788.72553 | BT15: Středočeský kraj | BU15: 8438.553944 | BV15: 6172.748944 | BW15: 6243.141685 | BX15: 6313.534427 | BY15: 6383.927169 | BZ15: 6454.319911 | CA15: 6524.712653 | CB15: 6595.105395 | CC15: 6665.498137 | CD15: 6735.890878 | CE15: 6806.28362 | CF15: 6876.676362 | CG15: 80210.39313 | CI15: 6102.356202 | CJ15: 6199.697774 | CK15: 6297.039347 | CL15: 6394.38092 | CM15: 6491.722492 | CN15: 6589.064065 | CO15: 6686.405637 | CP15: 6783.74721 | CQ15: 6881.088783 | CR15: 6978.430355 | CS15: 7075.771928 | CT15: 7173.1135 | CV15: 7270.455073 | CW15: 6184.058508 | CX15: 6265.760815 | CY15: 6347.463122 | CZ15: 6429.165428 | DA15: 6510.867735 | DB15: 6592.570041 | DC15: 6674.272348 | DD15: 6755.974654 | DE15: 6837.676961 | DF15: 6919.379268 | DG15: 7001.081574 | DI15: 8438.553944 | DJ15: 6172.748944 | DK15: 6243.141685 | DL15: 6313.534427 | DM15: 6383.927169 | DN15: 6454.319911 | DO15: 6524.712653 | DP15: 6595.105395 | DQ15: 6665.498137 | DR15: 6735.890878 | DS15: 6806.28362 | DT15: 6876.676362
AP16: Celkem napočítáno | AQ16: =SUM(AQ3:AQ15) -> 73308.3 | AR16: =SUM(AR3:AR15) -> 74269.11639 | AS16: 74619.83198 | AT16: 74099.58452 | AU16: 74654.43708 | AV16: 74958.58921 | AW16: 76204.1222 | AX16: 82557.48267 | AY16: 83424.21101 | AZ16: 83640.17699 | BA16: 83417.62983 | BB16: 83859.9278 | BC16: 939013.4097 | BE16: Celkem napočítáno | BF16: =SUM(BF3:BF15) -> 84867.76075 | BG16: =SUM(BG3:BG15) -> 74230.60352 | BH16: 74583.06626 | BI16: 74607.0238 | BJ16: 76227.81156 | BK16: 77056.2557 | BL16: 77366.96507 | BM16: 76934.54038 | BN16: 77418.37554 | BO16: 77688.38002 | BP16: 78756.46322 | BQ16: 84140.59303 | BR16: 933877.8388 | BT16: Celkem napočítáno | BU16: =SUM(BU3:BU15) -> 98374.52761 | BV16: =SUM(BV3:BV15) -> 73493.72446 | BW16: 73372.50827 | BX16: 73721.8012 | BY16: 74464.67866 | BZ16: 75255.06575 | CA16: 75574.24291 | CB16: 75615.75183 | CC16: 76987.02219 | CD16: 77701.31469 | CE16: 77984.29752 | CF16: 77646.29038 | CG16: 930191.2255 | CI16: =SUM(CI3:CI15) -> 73308.3 | CJ16: =SUM(CJ3:CJ15) -> 74269.11639 | CK16: 74619.83198 | CL16: 74099.58452 | CM16: 74654.43708 | CN16: 74958.58921 | CO16: 76204.1222 | CP16: 82557.48267 | CQ16: 83424.21101 | CR16: 83640.17699 | CS16: 83417.62983 | CT16: 83859.9278 | CV16: =SUM(CV3:CV15) -> 84867.76075 | CW16: =SUM(CW3:CW15) -> 74230.60352 | CX16: 74583.06626 | CY16: 74607.0238 | CZ16: 76227.81156 | DA16: 77056.2557 | DB16: 77366.96507 | DC16: 76934.54038 | DD16: 77418.37554 | DE16: 77688.38002 | DF16: 78756.46322 | DG16: 84140.59303 | DI16: =SUM(DI3:DI15) -> 98374.52761 | DJ16: =SUM(DJ3:DJ15) -> 73493.72446 | DK16: 73372.50827 | DL16: 73721.8012 | DM16: 74464.67866 | DN16: 75255.06575 | DO16: 75574.24291 | DP16: 75615.75183 | DQ16: 76987.02219 | DR16: 77701.31469 | DS16: 77984.29752 | DT16: 77646.29038
W17: 2021-01-01 | AA17: počet zakázek | AP17: Cekem simulace | BC17: 0 | BE17: Cekem simulace | BF17: 202279.8372 | BR17: 202279.8372 | BT17: Cekem simulace | CG17: 0
W18: Koronavirus | X18: Pesimistická | Y18: Realistická | Z18: Optimistická | AA18: Realistická | AB18: leden | AC18: únor | AD18: březen | AE18: duben | AF18: květen | AG18: červen | AH18: červenec | AI18: srpen | AJ18: září | AK18: říjen | AL18: listopad | AM18: prosinec | AP18: Počet rozvážek | AQ18: =datový_list_zakázky!AE20 -> 454.5614319 | AR18: =datový_list_zakázky!AF20 -> 460.3235072 | AS18: =datový_list_zakázky!AG20 -> 463.5129172 | AT18: =datový_list_zakázky!AH20 -> 462.6585288 | AU18: =datový_list_zakázky!AI20 -> 466.6992213 | AV18: =datový_list_zakázky!AJ20 -> 469.5451957 | AW18: =datový_list_zakázky!AK20 -> 476.3733659 | AX18: =datový_list_zakázky!AL20 -> 505.6568389 | AY18: =datový_list_zakázky!AM20 -> 511.1843207 | AZ18: =datový_list_zakázky!AN20 -> 513.5871732 | BA18: =datový_list_zakázky!AO20 -> 513.7854589 | BB18: =datový_list_zakázky!AP20 -> 517.1709135 | BC18: 5815.058873 | BE18: Počet rozvážek | BF18: ='Počet odeslaných zásilek'!EL28 -> 24.56102773 | BG18: ='Počet odeslaných zásilek'!EM28 -> 24.71405327 | BH18: ='Počet odeslaných zásilek'!EN28 -> 24.80096018 | BI18: ='Počet odeslaných zásilek'!EO28 -> 24.61631434 | BJ18: ='Počet odeslaných zásilek'!EP28 -> 25.85885027 | BK18: ='Počet odeslaných zásilek'!EQ28 -> 26.18355299 | BL18: ='Počet odeslaných zásilek'!ER28 -> 25.82038306 | BM18: ='Počet odeslaných zásilek'!ES28 -> 25.03173926 | BN18: ='Počet odeslaných zásilek'!ET28 -> 24.98361199 | BO18: ='Počet odeslaných zásilek'!EU28 -> 24.81578496 | BP18: ='Počet odeslaných zásilek'!EV28 -> 25.58186288 | BQ18: ='Počet odeslaných zásilek'!EW28 -> 29.93056186 | BR18: 306.8987028 | BT18: Počet rozvážek | BU18: ='Počet odeslaných zásilek'!FH28 -> 29.8061506 | BV18: ='Počet odeslaných zásilek'!FI28 -> 29.63175676 | BW18: ='Počet odeslaných zásilek'!FJ28 -> 29.65474718 | BX18: ='Počet odeslaných zásilek'!FK28 -> 29.72564769 | BY18: ='Počet odeslaných zásilek'!FL28 -> 30.10287551 | BZ18: ='Počet odeslaných zásilek'!FM28 -> 30.25590105 | CA18: ='Počet odeslaných zásilek'!FN28 -> 30.34280797 | CB18: ='Počet odeslaných zásilek'!FO28 -> 30.15816212 | CC18: ='Počet odeslaných zásilek'!FP28 -> 31.40069805 | CD18: ='Počet odeslaných zásilek'!FQ28 -> 31.72540078 | CE18: ='Počet odeslaných zásilek'!FR28 -> 31.36223085 | CF18: ='Počet odeslaných zásilek'!FS28 -> 30.57358704 | CG18: 364.7399656
W19: =Y19*'Počet odeslaných zásilek'!$D$28 -> 8346.537442 | X19: =Y19*0.8 -> 6677.229954 | Y19: =Y3/AA3*AA19 -> 8346.537442 | Z19: =Y19*1.2 -> 10015.84493 | AA19: ='Počet odeslaných zásilek'!KN28 -> 24.56102773 | AB19: =IF($AP$2=$X$2,('Počet odeslaných zásilek'!KN28)*0.8,IF($AP$2=$Y$2,('Počet odeslaných zásilek'!KN28),IF($AP$2=$Z$2,('Počet odeslaných zásilek'!KN28)*1.2,IF($AP$2=$W$2,('Počet odeslaných zásilek'!KN28)*'Počet odeslaných zásilek'!$D$28,"")))) -> 24.56102773 | AC19: =IF($AP$2=$X$2,('Počet odeslaných zásilek'!KO28)*0.8,IF($AP$2=$Y$2,('Počet odeslaných zásilek'!KO28),IF($AP$2=$Z$2,('Počet odeslaných zásilek'!KO28)*1.2,IF($AP$2=$W$2,('Počet odeslaných zásilek'!KO28)*'Počet odeslaných zásilek'!$D$29,"")))) -> 24.71405327 | AD19: =IF($AP$2=$X$2,('Počet odeslaných zásilek'!KP28)*0.8,IF($AP$2=$Y$2,('Počet odeslaných zásilek'!KP28),IF($AP$2=$Z$2,('Počet odeslaných zásilek'!KP28)*1.2,IF($AP$2=$W$2,('Počet odeslaných zásilek'!KP28)*'Počet odeslaných zásilek'!$D$30,"")))) -> 24.80096018 | AE19: =IF($AP$2=$X$2,('Počet odeslaných zásilek'!KQ28)*0.8,IF($AP$2=$Y$2,('Počet odeslaných zásilek'!KQ28),IF($AP$2=$Z$2,('Počet odeslaných zásilek'!KQ28)*1.2,IF($AP$2=$W$2,('Počet odeslaných zásilek'!KQ28)*'Počet odeslaných zásilek'!$D$31,"")))) -> 24.61631434 | AF19: =IF($AP$2=$X$2,('Počet odeslaných zásilek'!KR28)*0.8,IF($AP$2=$Y$2,('Počet odeslaných zásilek'!KR28),IF($AP$2=$Z$2,('Počet odeslaných zásilek'!KR28)*1.2,IF($AP$2=$W$2,('Počet odeslaných zásilek'!KR28)*'Počet odeslaných zásilek'!$D$32,"")))) -> 25.85885027 | AG19: =IF($AP$2=$X$2,('Počet odeslaných zásilek'!KS28)*0.8,IF($AP$2=$Y$2,('Počet odeslaných zásilek'!KS28),IF($AP$2=$Z$2,('Počet odeslaných zásilek'!KS28)*1.2,IF($AP$2=$W$2,('Počet odeslaných zásilek'!KS28)*'Počet odeslaných zásilek'!$D$33,"")))) -> 26.18355299 | AH19: =IF($AP$2=$X$2,('Počet odeslaných zásilek'!KT28)*0.8,IF($AP$2=$Y$2,('Počet odeslaných zásilek'!KT28),IF($AP$2=$Z$2,('Počet odeslaných zásilek'!KT28)*1.2,IF($AP$2=$W$2,('Počet odeslaných zásilek'!KT28)*'Počet odeslaných zásilek'!$D$34,"")))) -> 25.82038306 | AI19: =IF($AP$2=$X$2,('Počet odeslaných zásilek'!KU28)*0.8,IF($AP$2=$Y$2,('Počet odeslaných zásilek'!KU28),IF($AP$2=$Z$2,('Počet odeslaných zásilek'!KU28)*1.2,IF($AP$2=$W$2,('Počet odeslaných zásilek'!KU28)*'Počet odeslaných zásilek'!$D$35,"")))) -> 25.03173926 | AJ19: =IF($AP$2=$X$2,('Počet odeslaných zásilek'!KV28)*0.8,IF($AP$2=$Y$2,('Počet odeslaných zásilek'!KV28),IF($AP$2=$Z$2,('Počet odeslaných zásilek'!KV28)*1.2,IF($AP$2=$W$2,('Počet odeslaných zásilek'!KV28)*'Počet odeslaných zásilek'!$D$36,"")))) -> 24.98361199 | AK19: =IF($AP$2=$X$2,('Počet odeslaných zásilek'!KW28)*0.8,IF($AP$2=$Y$2,('Počet odeslaných zásilek'!KW28),IF($AP$2=$Z$2,('Počet odeslaných zásilek'!KW28)*1.2,IF($AP$2=$W$2,('Počet odeslaných zásilek'!KW28)*'Počet odeslaných zásilek'!$D$37,"")))) -> 24.81578496 | AL19: =IF($AP$2=$X$2,('Počet odeslaných zásilek'!KX28)*0.8,IF($AP$2=$Y$2,('Počet odeslaných zásilek'!KX28),IF($AP$2=$Z$2,('Počet odeslaných zásilek'!KX28)*1.2,IF($AP$2=$W$2,('Počet odeslaných zásilek'!KX28)*'Počet odeslaných zásilek'!$D$38,"")))) -> 25.58186288 | AM19: =IF($AP$2=$X$2,('Počet odeslaných zásilek'!KY28)*0.8,IF($AP$2=$Y$2,('Počet odeslaných zásilek'!KY28),IF($AP$2=$Z$2,('Počet odeslaných zásilek'!KY28)*1.2,IF($AP$2=$W$2,('Počet odeslaných zásilek'!KY28)*'Počet odeslaných zásilek'!$D$39,"")))) -> 29.93056186
W20: =Y20*'Počet odeslaných zásilek'!$D$28 -> 9697.325874 | X20: =Y20*0.8 -> 7757.860699 | Y20: =Y4/AA4*AA20 -> 9697.325874 | Z20: =Y20*1.2 -> 11636.79105 | AA20: ='Počet odeslaných zásilek'!KN29 -> 42.76458879 | AB20: =IF($AP$2=$X$2,('Počet odeslaných zásilek'!KN29)*0.8,IF($AP$2=$Y$2,('Počet odeslaných zásilek'!KN29),IF($AP$2=$Z$2,('Počet odeslaných zásilek'!KN29)*1.2,IF($AP$2=$W$2,('Počet odeslaných zásilek'!KN29)*'Počet odeslaných zásilek'!$D$28,"")))) -> 42.76458879 | AC20: =IF($AP$2=$X$2,('Počet odeslaných zásilek'!KO29)*0.8,IF($AP$2=$Y$2,('Počet odeslaných zásilek'!KO29),IF($AP$2=$Z$2,('Počet odeslaných zásilek'!KO29)*1.2,IF($AP$2=$W$2,('Počet odeslaných zásilek'!KO29)*'Počet odeslaných zásilek'!$D$29,"")))) -> 43.30658634 | AD20: =IF($AP$2=$X$2,('Počet odeslaných zásilek'!KP29)*0.8,IF($AP$2=$Y$2,('Počet odeslaných zásilek'!KP29),IF($AP$2=$Z$2,('Počet odeslaných zásilek'!KP29)*1.2,IF($AP$2=$W$2,('Počet odeslaných zásilek'!KP29)*'Počet odeslaných zásilek'!$D$30,"")))) -> 43.45474098 | AE20: =IF($AP$2=$X$2,('Počet odeslaných zásilek'!KQ29)*0.8,IF($AP$2=$Y$2,('Počet odeslaných zásilek'!KQ29),IF($AP$2=$Z$2,('Počet odeslaných zásilek'!KQ29)*1.2,IF($AP$2=$W$2,('Počet odeslaných zásilek'!KQ29)*'Počet odeslaných zásilek'!$D$31,"")))) -> 42.66637437 | AF20: =IF($AP$2=$X$2,('Počet odeslaných zásilek'!KR29)*0.8,IF($AP$2=$Y$2,('Počet odeslaných zásilek'!KR29),IF($AP$2=$Z$2,('Počet odeslaných zásilek'!KR29)*1.2,IF($AP$2=$W$2,('Počet odeslaných zásilek'!KR29)*'Počet odeslaných zásilek'!$D$32,"")))) -> 44.05376273 | AG20: =IF($AP$2=$X$2,('Počet odeslaných zásilek'!KS29)*0.8,IF($AP$2=$Y$2,('Počet odeslaných zásilek'!KS29),IF($AP$2=$Z$2,('Počet odeslaných zásilek'!KS29)*1.2,IF($AP$2=$W$2,('Počet odeslaných zásilek'!KS29)*'Počet odeslaných zásilek'!$D$33,"")))) -> 44.53445234 | AH20: =IF($AP$2=$X$2,('Počet odeslaných zásilek'!KT29)*0.8,IF($AP$2=$Y$2,('Počet odeslaných zásilek'!KT29),IF($AP$2=$Z$2,('Počet odeslaných zásilek'!KT29)*1.2,IF($AP$2=$W$2,('Počet odeslaných zásilek'!KT29)*'Počet odeslaných zásilek'!$D$34,"")))) -> 44.62531295 | AI20: =IF($AP$2=$X$2,('Počet odeslaných zásilek'!KU29)*0.8,IF($AP$2=$Y$2,('Počet odeslaných zásilek'!KU29),IF($AP$2=$Z$2,('Počet odeslaných zásilek'!KU29)*1.2,IF($AP$2=$W$2,('Počet odeslaných zásilek'!KU29)*'Počet odeslaných zásilek'!$D$35,"")))) -> 43.6278091 | AJ20: =IF($AP$2=$X$2,('Počet odeslaných zásilek'!KV29)*0.8,IF($AP$2=$Y$2,('Počet odeslaných zásilek'!KV29),IF($AP$2=$Z$2,('Počet odeslaných zásilek'!KV29)*1.2,IF($AP$2=$W$2,('Počet odeslaných zásilek'!KV29)*'Počet odeslaných zásilek'!$D$36,"")))) -> 43.70048873 | AK20: =IF($AP$2=$X$2,('Počet odeslaných zásilek'!KW29)*0.8,IF($AP$2=$Y$2,('Počet odeslaných zásilek'!KW29),IF($AP$2=$Z$2,('Počet odeslaných zásilek'!KW29)*1.2,IF($AP$2=$W$2,('Počet odeslaných zásilek'!KW29)*'Počet odeslaných zásilek'!$D$37,"")))) -> 43.59691768 | AL20: =IF($AP$2=$X$2,('Počet odeslaných zásilek'!KX29)*0.8,IF($AP$2=$Y$2,('Počet odeslaných zásilek'!KX29),IF($AP$2=$Z$2,('Počet odeslaných zásilek'!KX29)*1.2,IF($AP$2=$W$2,('Počet odeslaných zásilek'!KX29)*'Počet odeslaných zásilek'!$D$38,"")))) -> 44.41856248 | AM20: =IF($AP$2=$X$2,('Počet odeslaných zásilek'!KY29)*0.8,IF($AP$2=$Y$2,('Počet odeslaných zásilek'!KY29),IF($AP$2=$Z$2,('Počet odeslaných zásilek'!KY29)*1.2,IF($AP$2=$W$2,('Počet odeslaných zásilek'!KY29)*'Počet odeslaných zásilek'!$D$39,"")))) -> 49.60342767 | CI20: Pošta 2020 | CV20: Pošta 2021 | DI20: Pošta 2022
W21: =Y21*'Počet odeslaných zásilek'!$D$28 -> 8480.081626 | X21: 6784.065301 | Y21: 8480.081626 | Z21: 10176.09795 | AA21: ='Počet odeslaných zásilek'!KN30 -> 43.11290238 | AB21: =IF($AP$2=$X$2,('Počet odeslaných zásilek'!KN30)*0.8,IF($AP$2=$Y$2,('Počet odeslaných zásilek'!KN30),IF($AP$2=$Z$2,('Počet odeslaných zásilek'!KN30)*1.2,IF($AP$2=$W$2,('Počet odeslaných zásilek'!KN30)*'Počet odeslaných zásilek'!$D$28,"")))) -> 43.11290238 | AC21: =IF($AP$2=$X$2,('Počet odeslaných zásilek'!KO30)*0.8,IF($AP$2=$Y$2,('Počet odeslaných zásilek'!KO30),IF($AP$2=$Z$2,('Počet odeslaných zásilek'!KO30)*1.2,IF($AP$2=$W$2,('Počet odeslaných zásilek'!KO30)*'Počet odeslaných zásilek'!$D$29,"")))) -> 43.95081315 | AD21: =IF($AP$2=$X$2,('Počet odeslaných zásilek'!KP30)*0.8,IF($AP$2=$Y$2,('Počet odeslaných zásilek'!KP30),IF($AP$2=$Z$2,('Počet odeslaných zásilek'!KP30)*1.2,IF($AP$2=$W$2,('Počet odeslaných zásilek'!KP30)*'Počet odeslaných zásilek'!$D$30,"")))) -> 43.71526529 | AE21: =IF($AP$2=$X$2,('Počet odeslaných zásilek'!KQ30)*0.8,IF($AP$2=$Y$2,('Počet odeslaných zásilek'!KQ30),IF($AP$2=$Z$2,('Počet odeslaných zásilek'!KQ30)*1.2,IF($AP$2=$W$2,('Počet odeslaných zásilek'!KQ30)*'Počet odeslaných zásilek'!$D$31,"")))) -> 43.23533069 | AF21: =IF($AP$2=$X$2,('Počet odeslaných zásilek'!KR30)*0.8,IF($AP$2=$Y$2,('Počet odeslaných zásilek'!KR30),IF($AP$2=$Z$2,('Počet odeslaných zásilek'!KR30)*1.2,IF($AP$2=$W$2,('Počet odeslaných zásilek'!KR30)*'Počet odeslaných zásilek'!$D$32,"")))) -> 44.61998336 | AG21: =IF($AP$2=$X$2,('Počet odeslaných zásilek'!KS30)*0.8,IF($AP$2=$Y$2,('Počet odeslaných zásilek'!KS30),IF($AP$2=$Z$2,('Počet odeslaných zásilek'!KS30)*1.2,IF($AP$2=$W$2,('Počet odeslaných zásilek'!KS30)*'Počet odeslaných zásilek'!$D$33,"")))) -> 45.40269741 | AH21: =IF($AP$2=$X$2,('Počet odeslaných zásilek'!KT30)*0.8,IF($AP$2=$Y$2,('Počet odeslaných zásilek'!KT30),IF($AP$2=$Z$2,('Počet odeslaných zásilek'!KT30)*1.2,IF($AP$2=$W$2,('Počet odeslaných zásilek'!KT30)*'Počet odeslaných zásilek'!$D$34,"")))) -> 45.14177871 | AI21: =IF($AP$2=$X$2,('Počet odeslaných zásilek'!KU30)*0.8,IF($AP$2=$Y$2,('Počet odeslaných zásilek'!KU30),IF($AP$2=$Z$2,('Počet odeslaných zásilek'!KU30)*1.2,IF($AP$2=$W$2,('Počet odeslaných zásilek'!KU30)*'Počet odeslaných zásilek'!$D$35,"")))) -> 44.0977675 | AJ21: =IF($AP$2=$X$2,('Počet odeslaných zásilek'!KV30)*0.8,IF($AP$2=$Y$2,('Počet odeslaných zásilek'!KV30),IF($AP$2=$Z$2,('Počet odeslaných zásilek'!KV30)*1.2,IF($AP$2=$W$2,('Počet odeslaných zásilek'!KV30)*'Počet odeslaných zásilek'!$D$36,"")))) -> 44.12447497 | AK21: =IF($AP$2=$X$2,('Počet odeslaných zásilek'!KW30)*0.8,IF($AP$2=$Y$2,('Počet odeslaných zásilek'!KW30),IF($AP$2=$Z$2,('Počet odeslaných zásilek'!KW30)*1.2,IF($AP$2=$W$2,('Počet odeslaných zásilek'!KW30)*'Počet odeslaných zásilek'!$D$37,"")))) -> 43.89378261 | AL21: =IF($AP$2=$X$2,('Počet odeslaných zásilek'!KX30)*0.8,IF($AP$2=$Y$2,('Počet odeslaných zásilek'!KX30),IF($AP$2=$Z$2,('Počet odeslaných zásilek'!KX30)*1.2,IF($AP$2=$W$2,('Počet odeslaných zásilek'!KX30)*'Počet odeslaných zásilek'!$D$38,"")))) -> 44.91341885 | AM21: =IF($AP$2=$X$2,('Počet odeslaných zásilek'!KY30)*0.8,IF($AP$2=$Y$2,('Počet odeslaných zásilek'!KY30),IF($AP$2=$Z$2,('Počet odeslaných zásilek'!KY30)*1.2,IF($AP$2=$W$2,('Počet odeslaných zásilek'!KY30)*'Počet odeslaných zásilek'!$D$39,"")))) -> 51.20848519 | AQ21: leden | AR21: únor | AS21: březen | AT21: duben | AU21: květen | AV21: červen | AW21: červenec | AX21: srpen | AY21: září | AZ21: říjen | BA21: listopad | BB21: prosinec | BC21: 2020 | BD21: leden | BE21: únor | BF21: březen | BG21: duben | BH21: květen | BI21: červen | BJ21: červenec | BK21: srpen | BL21: září | BM21: říjen | BN21: listopad | BO21: prosinec | BP21: 2021 | BQ21: leden | BR21: únor | BS21: březen | BT21: duben | BU21: květen | BV21: červen | BW21: červenec | BX21: srpen | BY21: září | BZ21: říjen | CA21: listopad | CB21: prosinec | CC21: 2021
W22: =Y22*'Počet odeslaných zásilek'!$D$28 -> 4288.393694 | X22: 3430.714955 | Y22: 4288.393694 | Z22: 5146.072433 | AA22: ='Počet odeslaných zásilek'!KN31 -> 18.71130783 | AB22: =IF($AP$2=$X$2,('Počet odeslaných zásilek'!KN31)*0.8,IF($AP$2=$Y$2,('Počet odeslaných zásilek'!KN31),IF($AP$2=$Z$2,('Počet odeslaných zásilek'!KN31)*1.2,IF($AP$2=$W$2,('Počet odeslaných zásilek'!KN31)*'Počet odeslaných zásilek'!$D$28,"")))) -> 18.71130783 | AC22: =IF($AP$2=$X$2,('Počet odeslaných zásilek'!KO31)*0.8,IF($AP$2=$Y$2,('Počet odeslaných zásilek'!KO31),IF($AP$2=$Z$2,('Počet odeslaných zásilek'!KO31)*1.2,IF($AP$2=$W$2,('Počet odeslaných zásilek'!KO31)*'Počet odeslaných zásilek'!$D$29,"")))) -> 19.11303576 | AD22: =IF($AP$2=$X$2,('Počet odeslaných zásilek'!KP31)*0.8,IF($AP$2=$Y$2,('Počet odeslaných zásilek'!KP31),IF($AP$2=$Z$2,('Počet odeslaných zásilek'!KP31)*1.2,IF($AP$2=$W$2,('Počet odeslaných zásilek'!KP31)*'Počet odeslaných zásilek'!$D$30,"")))) -> 18.80759945 | AE22: =IF($AP$2=$X$2,('Počet odeslaných zásilek'!KQ31)*0.8,IF($AP$2=$Y$2,('Počet odeslaných zásilek'!KQ31),IF($AP$2=$Z$2,('Počet odeslaných zásilek'!KQ31)*1.2,IF($AP$2=$W$2,('Počet odeslaných zásilek'!KQ31)*'Počet odeslaných zásilek'!$D$31,"")))) -> 18.5775461 | AF22: =IF($AP$2=$X$2,('Počet odeslaných zásilek'!KR31)*0.8,IF($AP$2=$Y$2,('Počet odeslaných zásilek'!KR31),IF($AP$2=$Z$2,('Počet odeslaných zásilek'!KR31)*1.2,IF($AP$2=$W$2,('Počet odeslaných zásilek'!KR31)*'Počet odeslaných zásilek'!$D$32,"")))) -> 19.23420898 | AG22: =IF($AP$2=$X$2,('Počet odeslaných zásilek'!KS31)*0.8,IF($AP$2=$Y$2,('Počet odeslaných zásilek'!KS31),IF($AP$2=$Z$2,('Počet odeslaných zásilek'!KS31)*1.2,IF($AP$2=$W$2,('Počet odeslaných zásilek'!KS31)*'Počet odeslaných zásilek'!$D$33,"")))) -> 19.28460249 | AH22: =IF($AP$2=$X$2,('Počet odeslaných zásilek'!KT31)*0.8,IF($AP$2=$Y$2,('Počet odeslaných zásilek'!KT31),IF($AP$2=$Z$2,('Počet odeslaných zásilek'!KT31)*1.2,IF($AP$2=$W$2,('Počet odeslaných zásilek'!KT31)*'Počet odeslaných zásilek'!$D$34,"")))) -> 19.27243634 | AI22: =IF($AP$2=$X$2,('Počet odeslaných zásilek'!KU31)*0.8,IF($AP$2=$Y$2,('Počet odeslaných zásilek'!KU31),IF($AP$2=$Z$2,('Počet odeslaných zásilek'!KU31)*1.2,IF($AP$2=$W$2,('Počet odeslaných zásilek'!KU31)*'Počet odeslaných zásilek'!$D$35,"")))) -> 18.91360691 | AJ22: =IF($AP$2=$X$2,('Počet odeslaných zásilek'!KV31)*0.8,IF($AP$2=$Y$2,('Počet odeslaných zásilek'!KV31),IF($AP$2=$Z$2,('Počet odeslaných zásilek'!KV31)*1.2,IF($AP$2=$W$2,('Počet odeslaných zásilek'!KV31)*'Počet odeslaných zásilek'!$D$36,"")))) -> 18.85902379 | AK22: =IF($AP$2=$X$2,('Počet odeslaných zásilek'!KW31)*0.8,IF($AP$2=$Y$2,('Počet odeslaných zásilek'!KW31),IF($AP$2=$Z$2,('Počet odeslaných zásilek'!KW31)*1.2,IF($AP$2=$W$2,('Počet odeslaných zásilek'!KW31)*'Počet odeslaných zásilek'!$D$37,"")))) -> 18.67900177 | AL22: =IF($AP$2=$X$2,('Počet odeslaných zásilek'!KX31)*0.8,IF($AP$2=$Y$2,('Počet odeslaných zásilek'!KX31),IF($AP$2=$Z$2,('Počet odeslaných zásilek'!KX31)*1.2,IF($AP$2=$W$2,('Počet odeslaných zásilek'!KX31)*'Počet odeslaných zásilek'!$D$38,"")))) -> 18.77759394 | AM22: =IF($AP$2=$X$2,('Počet odeslaných zásilek'!KY31)*0.8,IF($AP$2=$Y$2,('Počet odeslaných zásilek'!KY31),IF($AP$2=$Z$2,('Počet odeslaných zásilek'!KY31)*1.2,IF($AP$2=$W$2,('Počet odeslaných zásilek'!KY31)*'Počet odeslaných zásilek'!$D$39,"")))) -> 23.37455597 | AO22: Výnosy | AP22: Navýšení třeb | AQ22: =$BC$22 -> 1.02 | AR22: =$BC$22 -> 1.02 | AS22: 1.02 | AT22: 1.02 | AU22: 1.02 | AV22: 1.02 | AW22: 1.02 | AX22: 1.02 | AY22: 1.02 | AZ22: 1.02 | BA22: 1.02 | BB22: 1.02 | BC22: =AQ50 -> 1.02 | BD22: =$BP$22 -> 1.1 | BE22: =$BP$22 -> 1.1 | BF22: 1.1 | BG22: 1.1 | BH22: 1.1 | BI22: 1.1 | BJ22: 1.1 | BK22: 1.1 | BL22: 1.1 | BM22: 1.1 | BN22: 1.1 | BO22: 1.1 | BP22: =AQ51 -> 1.1 | BQ22: =$CC$22 -> 1.2 | BR22: =$CC$22 -> 1.2 | BS22: 1.2 | BT22: 1.2 | BU22: 1.2 | BV22: 1.2 | BW22: 1.2 | BX22: 1.2 | BY22: 1.2 | BZ22: 1.2 | CA22: 1.2 | CB22: 1.2 | CC22: =AQ52 -> 1.2 | CI22: =IF($T3=0,AB3,0)*$AQ$47 -> 0 | CJ22: =IF($T3=0,AC3,0)*$AQ$47 -> 0 | CK22: 0 | CL22: 0 | CM22: 0 | CN22: 0 | CO22: 0 | CP22: 0 | CQ22: 0 | CR22: 0 | CS22: 0 | CT22: 0 | CV22: =IF($T3=0,AB19,0)*$AQ$47 -> 0 | CW22: =IF($T3=0,AC19,0)*$AQ$47 -> 0 | CX22: 0 | CY22: 0 | CZ22: 0 | DA22: 0 | DB22: 0 | DC22: 0 | DD22: 0 | DE22: 0 | DF22: 0 | DG22: 0 | DI22: =IF($T3=0,AB35,0)*$AQ$47 -> 0 | DJ22: =IF($T3=0,AC35,0)*$AQ$47 -> 0 | DK22: 0 | DL22: 0 | DM22: 0 | DN22: 0 | DO22: 0 | DP22: 0 | DQ22: 0 | DR22: 0 | DS22: 0 | DT22: 0
W23: =Y23*'Počet odeslaných zásilek'!$D$28 -> 4964.534613 | X23: 3971.627691 | Y23: 4964.534613 | Z23: 5957.441536 | AA23: ='Počet odeslaných zásilek'!KN32 -> 31.51994709 | AB23: =IF($AP$2=$X$2,('Počet odeslaných zásilek'!KN32)*0.8,IF($AP$2=$Y$2,('Počet odeslaných zásilek'!KN32),IF($AP$2=$Z$2,('Počet odeslaných zásilek'!KN32)*1.2,IF($AP$2=$W$2,('Počet odeslaných zásilek'!KN32)*'Počet odeslaných zásilek'!$D$28,"")))) -> 31.51994709 | AC23: =IF($AP$2=$X$2,('Počet odeslaných zásilek'!KO32)*0.8,IF($AP$2=$Y$2,('Počet odeslaných zásilek'!KO32),IF($AP$2=$Z$2,('Počet odeslaných zásilek'!KO32)*1.2,IF($AP$2=$W$2,('Počet odeslaných zásilek'!KO32)*'Počet odeslaných zásilek'!$D$29,"")))) -> 31.84976735 | AD23: =IF($AP$2=$X$2,('Počet odeslaných zásilek'!KP32)*0.8,IF($AP$2=$Y$2,('Počet odeslaných zásilek'!KP32),IF($AP$2=$Z$2,('Počet odeslaných zásilek'!KP32)*1.2,IF($AP$2=$W$2,('Počet odeslaných zásilek'!KP32)*'Počet odeslaných zásilek'!$D$30,"")))) -> 32.17958762 | AE23: =IF($AP$2=$X$2,('Počet odeslaných zásilek'!KQ32)*0.8,IF($AP$2=$Y$2,('Počet odeslaných zásilek'!KQ32),IF($AP$2=$Z$2,('Počet odeslaných zásilek'!KQ32)*1.2,IF($AP$2=$W$2,('Počet odeslaných zásilek'!KQ32)*'Počet odeslaných zásilek'!$D$31,"")))) -> 32.50940788 | AF23: =IF($AP$2=$X$2,('Počet odeslaných zásilek'!KR32)*0.8,IF($AP$2=$Y$2,('Počet odeslaných zásilek'!KR32),IF($AP$2=$Z$2,('Počet odeslaných zásilek'!KR32)*1.2,IF($AP$2=$W$2,('Počet odeslaných zásilek'!KR32)*'Počet odeslaných zásilek'!$D$32,"")))) -> 32.83922815 | AG23: =IF($AP$2=$X$2,('Počet odeslaných zásilek'!KS32)*0.8,IF($AP$2=$Y$2,('Počet odeslaných zásilek'!KS32),IF($AP$2=$Z$2,('Počet odeslaných zásilek'!KS32)*1.2,IF($AP$2=$W$2,('Počet odeslaných zásilek'!KS32)*'Počet odeslaných zásilek'!$D$33,"")))) -> 33.16904842 | AH23: =IF($AP$2=$X$2,('Počet odeslaných zásilek'!KT32)*0.8,IF($AP$2=$Y$2,('Počet odeslaných zásilek'!KT32),IF($AP$2=$Z$2,('Počet odeslaných zásilek'!KT32)*1.2,IF($AP$2=$W$2,('Počet odeslaných zásilek'!KT32)*'Počet odeslaných zásilek'!$D$34,"")))) -> 33.49886868 | AI23: =IF($AP$2=$X$2,('Počet odeslaných zásilek'!KU32)*0.8,IF($AP$2=$Y$2,('Počet odeslaných zásilek'!KU32),IF($AP$2=$Z$2,('Počet odeslaných zásilek'!KU32)*1.2,IF($AP$2=$W$2,('Počet odeslaných zásilek'!KU32)*'Počet odeslaných zásilek'!$D$35,"")))) -> 33.82868895 | AJ23: =IF($AP$2=$X$2,('Počet odeslaných zásilek'!KV32)*0.8,IF($AP$2=$Y$2,('Počet odeslaných zásilek'!KV32),IF($AP$2=$Z$2,('Počet odeslaných zásilek'!KV32)*1.2,IF($AP$2=$W$2,('Počet odeslaných zásilek'!KV32)*'Počet odeslaných zásilek'!$D$36,"")))) -> 34.15850921 | AK23: =IF($AP$2=$X$2,('Počet odeslaných zásilek'!KW32)*0.8,IF($AP$2=$Y$2,('Počet odeslaných zásilek'!KW32),IF($AP$2=$Z$2,('Počet odeslaných zásilek'!KW32)*1.2,IF($AP$2=$W$2,('Počet odeslaných zásilek'!KW32)*'Počet odeslaných zásilek'!$D$37,"")))) -> 34.48832948 | AL23: =IF($AP$2=$X$2,('Počet odeslaných zásilek'!KX32)*0.8,IF($AP$2=$Y$2,('Počet odeslaných zásilek'!KX32),IF($AP$2=$Z$2,('Počet odeslaných zásilek'!KX32)*1.2,IF($AP$2=$W$2,('Počet odeslaných zásilek'!KX32)*'Počet odeslaných zásilek'!$D$38,"")))) -> 34.81814974 | AM23: =IF($AP$2=$X$2,('Počet odeslaných zásilek'!KY32)*0.8,IF($AP$2=$Y$2,('Počet odeslaných zásilek'!KY32),IF($AP$2=$Z$2,('Počet odeslaných zásilek'!KY32)*1.2,IF($AP$2=$W$2,('Počet odeslaných zásilek'!KY32)*'Počet odeslaných zásilek'!$D$39,"")))) -> 35.14797001 | AP23: Delta tržby | AQ23: =AQ24-AQ25 -> 46338.45718 | AR23: =AR24-AR25 -> 46898.24595 | AS23: 47458.03472 | AT23: 48017.82349 | AU23: 48577.61226 | AV23: 49137.40103 | AW23: 49697.1898 | AX23: 50256.97857 | AY23: 50816.76734 | AZ23: 51376.55611 | BA23: 51936.34488 | BB23: 52496.13365 | BC23: =SUM(AQ23:BB23) -> 593007.545 | BD23: =BD24-BD25 -> 265279.6121 | BE23: =BE24-BE25 -> 268078.556 | BF23: =BF24-BF25 -> 270877.4998 | BG23: =BG24-BG25 -> 273676.4437 | BH23: =BH24-BH25 -> 276475.3875 | BI23: =BI24-BI25 -> 279274.3314 | BJ23: =BJ24-BJ25 -> 282073.2752 | BK23: =BK24-BK25 -> 284872.2191 | BL23: =BL24-BL25 -> 287671.1629 | BM23: =BM24-BM25 -> 290470.1068 | BN23: =BN24-BN25 -> 293269.0506 | BO23: =BO24-BO25 -> 296067.9945 | BP23: =SUM(BD23:BO23) -> 3368085.64 | BQ23: =BQ24-BQ25 -> 597733.8767 | BR23: =BR24-BR25 -> 603331.7644 | BS23: 608929.6521 | BT23: 614527.5398 | BU23: 620125.4275 | BV23: 625723.3152 | BW23: 631321.2029 | BX23: 636919.0906 | BY23: 642516.9783 | BZ23: 648114.866 | CA23: 653712.7537 | CB23: 659310.6414 | CC23: =SUM(BQ23:CB23) -> 7542267.109 | CI23: =IF($T4=0,AB4,0)*$AQ$47 -> 0 | CJ23: 0 | CK23: 0 | CL23: 0 | CM23: 0 | CN23: 0 | CO23: 0 | CP23: 0 | CQ23: 0 | CR23: 0 | CS23: 0 | CT23: 0 | CV23: =IF($T4=0,AB20,0)*$AQ$47 -> 0 | CW23: 0 | CX23: 0 | CY23: 0 | CZ23: 0 | DA23: 0 | DB23: 0 | DC23: 0 | DD23: 0 | DE23: 0 | DF23: 0 | DG23: 0 | DI23: =IF($T4=0,AB36,0)*$AQ$47 -> 0 | DJ23: 0 | DK23: 0 | DL23: 0 | DM23: 0 | DN23: 0 | DO23: 0 | DP23: 0 | DQ23: 0 | DR23: 0 | DS23: 0 | DT23: 0
W24: =Y24*'Počet odeslaných zásilek'!$D$28 -> 5199.656506 | X24: 4159.725205 | Y24: 5199.656506 | Z24: 6239.587808 | AA24: ='Počet odeslaných zásilek'!KN33 -> 41.21045171 | AB24: =IF($AP$2=$X$2,('Počet odeslaných zásilek'!KN33)*0.8,IF($AP$2=$Y$2,('Počet odeslaných zásilek'!KN33),IF($AP$2=$Z$2,('Počet odeslaných zásilek'!KN33)*1.2,IF($AP$2=$W$2,('Počet odeslaných zásilek'!KN33)*'Počet odeslaných zásilek'!$D$28,"")))) -> 41.21045171 | AC24: =IF($AP$2=$X$2,('Počet odeslaných zásilek'!KO33)*0.8,IF($AP$2=$Y$2,('Počet odeslaných zásilek'!KO33),IF($AP$2=$Z$2,('Počet odeslaných zásilek'!KO33)*1.2,IF($AP$2=$W$2,('Počet odeslaných zásilek'!KO33)*'Počet odeslaných zásilek'!$D$29,"")))) -> 41.53433261 | AD24: =IF($AP$2=$X$2,('Počet odeslaných zásilek'!KP33)*0.8,IF($AP$2=$Y$2,('Počet odeslaných zásilek'!KP33),IF($AP$2=$Z$2,('Počet odeslaných zásilek'!KP33)*1.2,IF($AP$2=$W$2,('Počet odeslaných zásilek'!KP33)*'Počet odeslaných zásilek'!$D$30,"")))) -> 41.85821351 | AE24: =IF($AP$2=$X$2,('Počet odeslaných zásilek'!KQ33)*0.8,IF($AP$2=$Y$2,('Počet odeslaných zásilek'!KQ33),IF($AP$2=$Z$2,('Počet odeslaných zásilek'!KQ33)*1.2,IF($AP$2=$W$2,('Počet odeslaných zásilek'!KQ33)*'Počet odeslaných zásilek'!$D$31,"")))) -> 42.18209441 | AF24: =IF($AP$2=$X$2,('Počet odeslaných zásilek'!KR33)*0.8,IF($AP$2=$Y$2,('Počet odeslaných zásilek'!KR33),IF($AP$2=$Z$2,('Počet odeslaných zásilek'!KR33)*1.2,IF($AP$2=$W$2,('Počet odeslaných zásilek'!KR33)*'Počet odeslaných zásilek'!$D$32,"")))) -> 42.50597531 | AG24: =IF($AP$2=$X$2,('Počet odeslaných zásilek'!KS33)*0.8,IF($AP$2=$Y$2,('Počet odeslaných zásilek'!KS33),IF($AP$2=$Z$2,('Počet odeslaných zásilek'!KS33)*1.2,IF($AP$2=$W$2,('Počet odeslaných zásilek'!KS33)*'Počet odeslaných zásilek'!$D$33,"")))) -> 42.82985621 | AH24: =IF($AP$2=$X$2,('Počet odeslaných zásilek'!KT33)*0.8,IF($AP$2=$Y$2,('Počet odeslaných zásilek'!KT33),IF($AP$2=$Z$2,('Počet odeslaných zásilek'!KT33)*1.2,IF($AP$2=$W$2,('Počet odeslaných zásilek'!KT33)*'Počet odeslaných zásilek'!$D$34,"")))) -> 43.15373711 | AI24: =IF($AP$2=$X$2,('Počet odeslaných zásilek'!KU33)*0.8,IF($AP$2=$Y$2,('Počet odeslaných zásilek'!KU33),IF($AP$2=$Z$2,('Počet odeslaných zásilek'!KU33)*1.2,IF($AP$2=$W$2,('Počet odeslaných zásilek'!KU33)*'Počet odeslaných zásilek'!$D$35,"")))) -> 43.47761801 | AJ24: =IF($AP$2=$X$2,('Počet odeslaných zásilek'!KV33)*0.8,IF($AP$2=$Y$2,('Počet odeslaných zásilek'!KV33),IF($AP$2=$Z$2,('Počet odeslaných zásilek'!KV33)*1.2,IF($AP$2=$W$2,('Počet odeslaných zásilek'!KV33)*'Počet odeslaných zásilek'!$D$36,"")))) -> 43.80149891 | AK24: =IF($AP$2=$X$2,('Počet odeslaných zásilek'!KW33)*0.8,IF($AP$2=$Y$2,('Počet odeslaných zásilek'!KW33),IF($AP$2=$Z$2,('Počet odeslaných zásilek'!KW33)*1.2,IF($AP$2=$W$2,('Počet odeslaných zásilek'!KW33)*'Počet odeslaných zásilek'!$D$37,"")))) -> 44.12537982 | AL24: =IF($AP$2=$X$2,('Počet odeslaných zásilek'!KX33)*0.8,IF($AP$2=$Y$2,('Počet odeslaných zásilek'!KX33),IF($AP$2=$Z$2,('Počet odeslaných zásilek'!KX33)*1.2,IF($AP$2=$W$2,('Počet odeslaných zásilek'!KX33)*'Počet odeslaných zásilek'!$D$38,"")))) -> 44.44926072 | AM24: =IF($AP$2=$X$2,('Počet odeslaných zásilek'!KY33)*0.8,IF($AP$2=$Y$2,('Počet odeslaných zásilek'!KY33),IF($AP$2=$Z$2,('Počet odeslaných zásilek'!KY33)*1.2,IF($AP$2=$W$2,('Počet odeslaných zásilek'!KY33)*'Počet odeslaných zásilek'!$D$39,"")))) -> 44.77314162 | AP24: Tržby predikované navýšené | AQ24: =AQ25*AQ22 -> 2363261.316 | AR24: =AR25*AR22 -> 2391810.543 | AS24: 2420359.771 | AT24: 2448908.998 | AU24: 2477458.225 | AV24: 2506007.453 | AW24: 2534556.68 | AX24: 2563105.907 | AY24: 2591655.134 | AZ24: 2620204.362 | BA24: 2648753.589 | BB24: =BB25*BB22 -> 2677302.816 | BC24: =SUM(AQ24:BB24) -> 30243384.79 | BD24: =BD25*BD22 -> 2918075.733 | BE24: =BE25*BE22 -> 2948864.116 | BF24: =BF25*BF22 -> 2979652.498 | BG24: =BG25*BG22 -> 3010440.88 | BH24: =BH25*BH22 -> 3041229.263 | BI24: =BI25*BI22 -> 3072017.645 | BJ24: =BJ25*BJ22 -> 3102806.028 | BK24: =BK25*BK22 -> 3133594.41 | BL24: =BL25*BL22 -> 3164382.792 | BM24: =BM25*BM22 -> 3195171.175 | BN24: =BN25*BN22 -> 3225959.557 | BO24: =BO25*BO22 -> 3256747.939 | BP24: =SUM(BD24:BO24) -> 37048942.04 | BQ24: =BQ25*BQ22 -> 3586403.26 | BR24: =BR25*BR22 -> 3619990.586 | BS24: 3653577.913 | BT24: 3687165.239 | BU24: 3720752.565 | BV24: 3754339.891 | BW24: 3787927.217 | BX24: 3821514.544 | BY24: 3855101.87 | BZ24: 3888689.196 | CA24: 3922276.522 | CB24: 3955863.849 | CC24: =SUM(BQ24:CB24) -> 45253602.65 | CI24: 0 | CJ24: 0 | CK24: 0 | CL24: 0 | CM24: 0 | CN24: 0 | CO24: 0 | CP24: 0 | CQ24: 0 | CR24: 0 | CS24: 0 | CT24: 0 | CV24: 0 | CW24: 0 | CX24: 0 | CY24: 0 | CZ24: 0 | DA24: 0 | DB24: 0 | DC24: 0 | DD24: 0 | DE24: 0 | DF24: 0 | DG24: 0 | DI24: 0 | DJ24: 0 | DK24: 0 | DL24: 0 | DM24: 0 | DN24: 0 | DO24: 0 | DP24: 0 | DQ24: 0 | DR24: 0 | DS24: 0 | DT24: 0
W25: =Y25*'Počet odeslaných zásilek'!$D$28 -> 5782.017742 | X25: 4625.614194 | Y25: 5782.017742 | Z25: 6938.421291 | AA25: ='Počet odeslaných zásilek'!KN34 -> 51.81087363 | AB25: =IF($AP$2=$X$2,('Počet odeslaných zásilek'!KN34)*0.8,IF($AP$2=$Y$2,('Počet odeslaných zásilek'!KN34),IF($AP$2=$Z$2,('Počet odeslaných zásilek'!KN34)*1.2,IF($AP$2=$W$2,('Počet odeslaných zásilek'!KN34)*'Počet odeslaných zásilek'!$D$28,"")))) -> 51.81087363 | AC25: =IF($AP$2=$X$2,('Počet odeslaných zásilek'!KO34)*0.8,IF($AP$2=$Y$2,('Počet odeslaných zásilek'!KO34),IF($AP$2=$Z$2,('Počet odeslaných zásilek'!KO34)*1.2,IF($AP$2=$W$2,('Počet odeslaných zásilek'!KO34)*'Počet odeslaných zásilek'!$D$29,"")))) -> 52.23018138 | AD25: =IF($AP$2=$X$2,('Počet odeslaných zásilek'!KP34)*0.8,IF($AP$2=$Y$2,('Počet odeslaných zásilek'!KP34),IF($AP$2=$Z$2,('Počet odeslaných zásilek'!KP34)*1.2,IF($AP$2=$W$2,('Počet odeslaných zásilek'!KP34)*'Počet odeslaných zásilek'!$D$30,"")))) -> 52.64948912 | AE25: =IF($AP$2=$X$2,('Počet odeslaných zásilek'!KQ34)*0.8,IF($AP$2=$Y$2,('Počet odeslaných zásilek'!KQ34),IF($AP$2=$Z$2,('Počet odeslaných zásilek'!KQ34)*1.2,IF($AP$2=$W$2,('Počet odeslaných zásilek'!KQ34)*'Počet odeslaných zásilek'!$D$31,"")))) -> 53.06879686 | AF25: =IF($AP$2=$X$2,('Počet odeslaných zásilek'!KR34)*0.8,IF($AP$2=$Y$2,('Počet odeslaných zásilek'!KR34),IF($AP$2=$Z$2,('Počet odeslaných zásilek'!KR34)*1.2,IF($AP$2=$W$2,('Počet odeslaných zásilek'!KR34)*'Počet odeslaných zásilek'!$D$32,"")))) -> 53.4881046 | AG25: =IF($AP$2=$X$2,('Počet odeslaných zásilek'!KS34)*0.8,IF($AP$2=$Y$2,('Počet odeslaných zásilek'!KS34),IF($AP$2=$Z$2,('Počet odeslaných zásilek'!KS34)*1.2,IF($AP$2=$W$2,('Počet odeslaných zásilek'!KS34)*'Počet odeslaných zásilek'!$D$33,"")))) -> 53.90741234 | AH25: =IF($AP$2=$X$2,('Počet odeslaných zásilek'!KT34)*0.8,IF($AP$2=$Y$2,('Počet odeslaných zásilek'!KT34),IF($AP$2=$Z$2,('Počet odeslaných zásilek'!KT34)*1.2,IF($AP$2=$W$2,('Počet odeslaných zásilek'!KT34)*'Počet odeslaných zásilek'!$D$34,"")))) -> 54.32672008 | AI25: =IF($AP$2=$X$2,('Počet odeslaných zásilek'!KU34)*0.8,IF($AP$2=$Y$2,('Počet odeslaných zásilek'!KU34),IF($AP$2=$Z$2,('Počet odeslaných zásilek'!KU34)*1.2,IF($AP$2=$W$2,('Počet odeslaných zásilek'!KU34)*'Počet odeslaných zásilek'!$D$35,"")))) -> 54.74602782 | AJ25: =IF($AP$2=$X$2,('Počet odeslaných zásilek'!KV34)*0.8,IF($AP$2=$Y$2,('Počet odeslaných zásilek'!KV34),IF($AP$2=$Z$2,('Počet odeslaných zásilek'!KV34)*1.2,IF($AP$2=$W$2,('Počet odeslaných zásilek'!KV34)*'Počet odeslaných zásilek'!$D$36,"")))) -> 55.16533556 | AK25: =IF($AP$2=$X$2,('Počet odeslaných zásilek'!KW34)*0.8,IF($AP$2=$Y$2,('Počet odeslaných zásilek'!KW34),IF($AP$2=$Z$2,('Počet odeslaných zásilek'!KW34)*1.2,IF($AP$2=$W$2,('Počet odeslaných zásilek'!KW34)*'Počet odeslaných zásilek'!$D$37,"")))) -> 55.5846433 | AL25: =IF($AP$2=$X$2,('Počet odeslaných zásilek'!KX34)*0.8,IF($AP$2=$Y$2,('Počet odeslaných zásilek'!KX34),IF($AP$2=$Z$2,('Počet odeslaných zásilek'!KX34)*1.2,IF($AP$2=$W$2,('Počet odeslaných zásilek'!KX34)*'Počet odeslaných zásilek'!$D$38,"")))) -> 56.00395104 | AM25: =IF($AP$2=$X$2,('Počet odeslaných zásilek'!KY34)*0.8,IF($AP$2=$Y$2,('Počet odeslaných zásilek'!KY34),IF($AP$2=$Z$2,('Počet odeslaných zásilek'!KY34)*1.2,IF($AP$2=$W$2,('Počet odeslaných zásilek'!KY34)*'Počet odeslaných zásilek'!$D$39,"")))) -> 56.42325878 | AP25: Tržby predikované | AQ25: =IF($AP$2=$X$2,('Příjmy a náklady'!CT17)*0.8,IF($AP$2=$Y$2,('Příjmy a náklady'!CT17),IF($AP$2=$Z$2,('Příjmy a náklady'!CT17)*1.2,IF($AP$2=$W$2,('Příjmy a náklady'!CT17)*'Počet odeslaných zásilek'!$D$28,"")))) -> 2316922.859 | AR25: =IF($AP$2=$X$2,('Příjmy a náklady'!CU17)*0.8,IF($AP$2=$Y$2,('Příjmy a náklady'!CU17),IF($AP$2=$Z$2,('Příjmy a náklady'!CU17)*1.2,IF($AP$2=$W$2,('Příjmy a náklady'!CU17)*'Počet odeslaných zásilek'!$D$29,"")))) -> 2344912.297 | AS25: =IF($AP$2=$X$2,('Příjmy a náklady'!CV17)*0.8,IF($AP$2=$Y$2,('Příjmy a náklady'!CV17),IF($AP$2=$Z$2,('Příjmy a náklady'!CV17)*1.2,IF($AP$2=$W$2,('Příjmy a náklady'!CV17)*'Počet odeslaných zásilek'!$D$30,"")))) -> 2372901.736 | AT25: =IF($AP$2=$X$2,('Příjmy a náklady'!CW17)*0.8,IF($AP$2=$Y$2,('Příjmy a náklady'!CW17),IF($AP$2=$Z$2,('Příjmy a náklady'!CW17)*1.2,IF($AP$2=$W$2,('Příjmy a náklady'!CW17)*'Počet odeslaných zásilek'!$D$31,"")))) -> 2400891.175 | AU25: =IF($AP$2=$X$2,('Příjmy a náklady'!CX17)*0.8,IF($AP$2=$Y$2,('Příjmy a náklady'!CX17),IF($AP$2=$Z$2,('Příjmy a náklady'!CX17)*1.2,IF($AP$2=$W$2,('Příjmy a náklady'!CX17)*'Počet odeslaných zásilek'!$D$32,"")))) -> 2428880.613 | AV25: =IF($AP$2=$X$2,('Příjmy a náklady'!CY17)*0.8,IF($AP$2=$Y$2,('Příjmy a náklady'!CY17),IF($AP$2=$Z$2,('Příjmy a náklady'!CY17)*1.2,IF($AP$2=$W$2,('Příjmy a náklady'!CY17)*'Počet odeslaných zásilek'!$D$33,"")))) -> 2456870.052 | AW25: =IF($AP$2=$X$2,('Příjmy a náklady'!CZ17)*0.8,IF($AP$2=$Y$2,('Příjmy a náklady'!CZ17),IF($AP$2=$Z$2,('Příjmy a náklady'!CZ17)*1.2,IF($AP$2=$W$2,('Příjmy a náklady'!CZ17)*'Počet odeslaných zásilek'!$D$34,"")))) -> 2484859.49 | AX25: =IF($AP$2=$X$2,('Příjmy a náklady'!DA17)*0.8,IF($AP$2=$Y$2,('Příjmy a náklady'!DA17),IF($AP$2=$Z$2,('Příjmy a náklady'!DA17)*1.2,IF($AP$2=$W$2,('Příjmy a náklady'!DA17)*'Počet odeslaných zásilek'!$D$35,"")))) -> 2512848.929 | AY25: =IF($AP$2=$X$2,('Příjmy a náklady'!DB17)*0.8,IF($AP$2=$Y$2,('Příjmy a náklady'!DB17),IF($AP$2=$Z$2,('Příjmy a náklady'!DB17)*1.2,IF($AP$2=$W$2,('Příjmy a náklady'!DB17)*'Počet odeslaných zásilek'!$D$36,"")))) -> 2540838.367 | AZ25: =IF($AP$2=$X$2,('Příjmy a náklady'!DC17)*0.8,IF($AP$2=$Y$2,('Příjmy a náklady'!DC17),IF($AP$2=$Z$2,('Příjmy a náklady'!DC17)*1.2,IF($AP$2=$W$2,('Příjmy a náklady'!DC17)*'Počet odeslaných zásilek'!$D$37,"")))) -> 2568827.806 | BA25: =IF($AP$2=$X$2,('Příjmy a náklady'!DD17)*0.8,IF($AP$2=$Y$2,('Příjmy a náklady'!DD17),IF($AP$2=$Z$2,('Příjmy a náklady'!DD17)*1.2,IF($AP$2=$W$2,('Příjmy a náklady'!DD17)*'Počet odeslaných zásilek'!$D$38,"")))) -> 2596817.244 | BB25: =IF($AP$2=$X$2,('Příjmy a náklady'!DE17)*0.8,IF($AP$2=$Y$2,('Příjmy a náklady'!DE17),IF($AP$2=$Z$2,('Příjmy a náklady'!DE17)*1.2,IF($AP$2=$W$2,('Příjmy a náklady'!DE17)*'Počet odeslaných zásilek'!$D$39,"")))) -> 2624806.683 | BC25: =SUM(AQ25:BB25) -> 29650377.25 | BD25: =IF($AP$2=$X$2,('Příjmy a náklady'!DF17)*0.8,IF($AP$2=$Y$2,('Příjmy a náklady'!DF17),IF($AP$2=$Z$2,('Příjmy a náklady'!DF17)*1.2,IF($AP$2=$W$2,('Příjmy a náklady'!DF17)*'Počet odeslaných zásilek'!$D$28,"")))) -> 2652796.121 | BE25: =IF($AP$2=$X$2,('Příjmy a náklady'!DG17)*0.8,IF($AP$2=$Y$2,('Příjmy a náklady'!DG17),IF($AP$2=$Z$2,('Příjmy a náklady'!DG17)*1.2,IF($AP$2=$W$2,('Příjmy a náklady'!DG17)*'Počet odeslaných zásilek'!$D$29,"")))) -> 2680785.56 | BF25: =IF($AP$2=$X$2,('Příjmy a náklady'!DH17)*0.8,IF($AP$2=$Y$2,('Příjmy a náklady'!DH17),IF($AP$2=$Z$2,('Příjmy a náklady'!DH17)*1.2,IF($AP$2=$W$2,('Příjmy a náklady'!DH17)*'Počet odeslaných zásilek'!$D$30,"")))) -> 2708774.998 | BG25: =IF($AP$2=$X$2,('Příjmy a náklady'!DI17)*0.8,IF($AP$2=$Y$2,('Příjmy a náklady'!DI17),IF($AP$2=$Z$2,('Příjmy a náklady'!DI17)*1.2,IF($AP$2=$W$2,('Příjmy a náklady'!DI17)*'Počet odeslaných zásilek'!$D$31,"")))) -> 2736764.437 | BH25: =IF($AP$2=$X$2,('Příjmy a náklady'!DJ17)*0.8,IF($AP$2=$Y$2,('Příjmy a náklady'!DJ17),IF($AP$2=$Z$2,('Příjmy a náklady'!DJ17)*1.2,IF($AP$2=$W$2,('Příjmy a náklady'!DJ17)*'Počet odeslaných zásilek'!$D$32,"")))) -> 2764753.875 | BI25: =IF($AP$2=$X$2,('Příjmy a náklady'!DK17)*0.8,IF($AP$2=$Y$2,('Příjmy a náklady'!DK17),IF($AP$2=$Z$2,('Příjmy a náklady'!DK17)*1.2,IF($AP$2=$W$2,('Příjmy a náklady'!DK17)*'Počet odeslaných zásilek'!$D$33,"")))) -> 2792743.314 | BJ25: =IF($AP$2=$X$2,('Příjmy a náklady'!DL17)*0.8,IF($AP$2=$Y$2,('Příjmy a náklady'!DL17),IF($AP$2=$Z$2,('Příjmy a náklady'!DL17)*1.2,IF($AP$2=$W$2,('Příjmy a náklady'!DL17)*'Počet odeslaných zásilek'!$D$34,"")))) -> 2820732.752 | BK25: =IF($AP$2=$X$2,('Příjmy a náklady'!DM17)*0.8,IF($AP$2=$Y$2,('Příjmy a náklady'!DM17),IF($AP$2=$Z$2,('Příjmy a náklady'!DM17)*1.2,IF($AP$2=$W$2,('Příjmy a náklady'!DM17)*'Počet odeslaných zásilek'!$D$35,"")))) -> 2848722.191 | BL25: =IF($AP$2=$X$2,('Příjmy a náklady'!DN17)*0.8,IF($AP$2=$Y$2,('Příjmy a náklady'!DN17),IF($AP$2=$Z$2,('Příjmy a náklady'!DN17)*1.2,IF($AP$2=$W$2,('Příjmy a náklady'!DN17)*'Počet odeslaných zásilek'!$D$36,"")))) -> 2876711.629 | BM25: =IF($AP$2=$X$2,('Příjmy a náklady'!DO17)*0.8,IF($AP$2=$Y$2,('Příjmy a náklady'!DO17),IF($AP$2=$Z$2,('Příjmy a náklady'!DO17)*1.2,IF($AP$2=$W$2,('Příjmy a náklady'!DO17)*'Počet odeslaných zásilek'!$D$37,"")))) -> 2904701.068 | BN25: =IF($AP$2=$X$2,('Příjmy a náklady'!DP17)*0.8,IF($AP$2=$Y$2,('Příjmy a náklady'!DP17),IF($AP$2=$Z$2,('Příjmy a náklady'!DP17)*1.2,IF($AP$2=$W$2,('Příjmy a náklady'!DP17)*'Počet odeslaných zásilek'!$D$38,"")))) -> 2932690.506 | BO25: =IF($AP$2=$X$2,('Příjmy a náklady'!DQ17)*0.8,IF($AP$2=$Y$2,('Příjmy a náklady'!DQ17),IF($AP$2=$Z$2,('Příjmy a náklady'!DQ17)*1.2,IF($AP$2=$W$2,('Příjmy a náklady'!DQ17)*'Počet odeslaných zásilek'!$D$39,"")))) -> 2960679.945 | BP25: =SUM(BD25:BO25) -> 33680856.4 | BQ25: =IF($AP$2=$X$2,('Příjmy a náklady'!DR17)*0.8,IF($AP$2=$Y$2,('Příjmy a náklady'!DR17),IF($AP$2=$Z$2,('Příjmy a náklady'!DR17)*1.2,IF($AP$2=$W$2,('Příjmy a náklady'!DR17)*'Počet odeslaných zásilek'!$D$28,"")))) -> 2988669.383 | BR25: =IF($AP$2=$X$2,('Příjmy a náklady'!DS17)*0.8,IF($AP$2=$Y$2,('Příjmy a náklady'!DS17),IF($AP$2=$Z$2,('Příjmy a náklady'!DS17)*1.2,IF($AP$2=$W$2,('Příjmy a náklady'!DS17)*'Počet odeslaných zásilek'!$D$29,"")))) -> 3016658.822 | BS25: =IF($AP$2=$X$2,('Příjmy a náklady'!DT17)*0.8,IF($AP$2=$Y$2,('Příjmy a náklady'!DT17),IF($AP$2=$Z$2,('Příjmy a náklady'!DT17)*1.2,IF($AP$2=$W$2,('Příjmy a náklady'!DT17)*'Počet odeslaných zásilek'!$D$30,"")))) -> 3044648.26 | BT25: =IF($AP$2=$X$2,('Příjmy a náklady'!DU17)*0.8,IF($AP$2=$Y$2,('Příjmy a náklady'!DU17),IF($AP$2=$Z$2,('Příjmy a náklady'!DU17)*1.2,IF($AP$2=$W$2,('Příjmy a náklady'!DU17)*'Počet odeslaných zásilek'!$D$31,"")))) -> 3072637.699 | BU25: =IF($AP$2=$X$2,('Příjmy a náklady'!DV17)*0.8,IF($AP$2=$Y$2,('Příjmy a náklady'!DV17),IF($AP$2=$Z$2,('Příjmy a náklady'!DV17)*1.2,IF($AP$2=$W$2,('Příjmy a náklady'!DV17)*'Počet odeslaných zásilek'!$D$32,"")))) -> 3100627.137 | BV25: =IF($AP$2=$X$2,('Příjmy a náklady'!DW17)*0.8,IF($AP$2=$Y$2,('Příjmy a náklady'!DW17),IF($AP$2=$Z$2,('Příjmy a náklady'!DW17)*1.2,IF($AP$2=$W$2,('Příjmy a náklady'!DW17)*'Počet odeslaných zásilek'!$D$33,"")))) -> 3128616.576 | BW25: =IF($AP$2=$X$2,('Příjmy a náklady'!DX17)*0.8,IF($AP$2=$Y$2,('Příjmy a náklady'!DX17),IF($AP$2=$Z$2,('Příjmy a náklady'!DX17)*1.2,IF($AP$2=$W$2,('Příjmy a náklady'!DX17)*'Počet odeslaných zásilek'!$D$34,"")))) -> 3156606.015 | BX25: =IF($AP$2=$X$2,('Příjmy a náklady'!DY17)*0.8,IF($AP$2=$Y$2,('Příjmy a náklady'!DY17),IF($AP$2=$Z$2,('Příjmy a náklady'!DY17)*1.2,IF($AP$2=$W$2,('Příjmy a náklady'!DY17)*'Počet odeslaných zásilek'!$D$35,"")))) -> 3184595.453 | BY25: =IF($AP$2=$X$2,('Příjmy a náklady'!DZ17)*0.8,IF($AP$2=$Y$2,('Příjmy a náklady'!DZ17),IF($AP$2=$Z$2,('Příjmy a náklady'!DZ17)*1.2,IF($AP$2=$W$2,('Příjmy a náklady'!DZ17)*'Počet odeslaných zásilek'!$D$36,"")))) -> 3212584.892 | BZ25: =IF($AP$2=$X$2,('Příjmy a náklady'!EA17)*0.8,IF($AP$2=$Y$2,('Příjmy a náklady'!EA17),IF($AP$2=$Z$2,('Příjmy a náklady'!EA17)*1.2,IF($AP$2=$W$2,('Příjmy a náklady'!EA17)*'Počet odeslaných zásilek'!$D$37,"")))) -> 3240574.33 | CA25: =IF($AP$2=$X$2,('Příjmy a náklady'!EB17)*0.8,IF($AP$2=$Y$2,('Příjmy a náklady'!EB17),IF($AP$2=$Z$2,('Příjmy a náklady'!EB17)*1.2,IF($AP$2=$W$2,('Příjmy a náklady'!EB17)*'Počet odeslaných zásilek'!$D$38,"")))) -> 3268563.769 | CB25: =IF($AP$2=$X$2,('Příjmy a náklady'!EC17)*0.8,IF($AP$2=$Y$2,('Příjmy a náklady'!EC17),IF($AP$2=$Z$2,('Příjmy a náklady'!EC17)*1.2,IF($AP$2=$W$2,('Příjmy a náklady'!EC17)*'Počet odeslaných zásilek'!$D$39,"")))) -> 3296553.207 | CC25: =SUM(BQ25:CB25) -> 37711335.54 | CI25: 0 | CJ25: 0 | CK25: 0 | CL25: 0 | CM25: 0 | CN25: 0 | CO25: 0 | CP25: 0 | CQ25: 0 | CR25: 0 | CS25: 0 | CT25: 0 | CV25: 0 | CW25: 0 | CX25: 0 | CY25: 0 | CZ25: 0 | DA25: 0 | DB25: 0 | DC25: 0 | DD25: 0 | DE25: 0 | DF25: 0 | DG25: 0 | DI25: 0 | DJ25: 0 | DK25: 0 | DL25: 0 | DM25: 0 | DN25: 0 | DO25: 0 | DP25: 0 | DQ25: 0 | DR25: 0 | DS25: 0 | DT25: 0
W26: =Y26*'Počet odeslaných zásilek'!$D$28 -> 6722.20146 | X26: 5377.761168 | Y26: 6722.20146 | Z26: 8066.641752 | AA26: ='Počet odeslaných zásilek'!KN35 -> 38.24714155 | AB26: =IF($AP$2=$X$2,('Počet odeslaných zásilek'!KN35)*0.8,IF($AP$2=$Y$2,('Počet odeslaných zásilek'!KN35),IF($AP$2=$Z$2,('Počet odeslaných zásilek'!KN35)*1.2,IF($AP$2=$W$2,('Počet odeslaných zásilek'!KN35)*'Počet odeslaných zásilek'!$D$28,"")))) -> 38.24714155 | AC26: =IF($AP$2=$X$2,('Počet odeslaných zásilek'!KO35)*0.8,IF($AP$2=$Y$2,('Počet odeslaných zásilek'!KO35),IF($AP$2=$Z$2,('Počet odeslaných zásilek'!KO35)*1.2,IF($AP$2=$W$2,('Počet odeslaných zásilek'!KO35)*'Počet odeslaných zásilek'!$D$29,"")))) -> 39.07939023 | AD26: =IF($AP$2=$X$2,('Počet odeslaných zásilek'!KP35)*0.8,IF($AP$2=$Y$2,('Počet odeslaných zásilek'!KP35),IF($AP$2=$Z$2,('Počet odeslaných zásilek'!KP35)*1.2,IF($AP$2=$W$2,('Počet odeslaných zásilek'!KP35)*'Počet odeslaných zásilek'!$D$30,"")))) -> 38.86180028 | AE26: =IF($AP$2=$X$2,('Počet odeslaných zásilek'!KQ35)*0.8,IF($AP$2=$Y$2,('Počet odeslaných zásilek'!KQ35),IF($AP$2=$Z$2,('Počet odeslaných zásilek'!KQ35)*1.2,IF($AP$2=$W$2,('Počet odeslaných zásilek'!KQ35)*'Počet odeslaných zásilek'!$D$31,"")))) -> 38.36862471 | AF26: =IF($AP$2=$X$2,('Počet odeslaných zásilek'!KR35)*0.8,IF($AP$2=$Y$2,('Počet odeslaných zásilek'!KR35),IF($AP$2=$Z$2,('Počet odeslaných zásilek'!KR35)*1.2,IF($AP$2=$W$2,('Počet odeslaných zásilek'!KR35)*'Počet odeslaných zásilek'!$D$32,"")))) -> 39.77036606 | AG26: =IF($AP$2=$X$2,('Počet odeslaných zásilek'!KS35)*0.8,IF($AP$2=$Y$2,('Počet odeslaných zásilek'!KS35),IF($AP$2=$Z$2,('Počet odeslaných zásilek'!KS35)*1.2,IF($AP$2=$W$2,('Počet odeslaných zásilek'!KS35)*'Počet odeslaných zásilek'!$D$33,"")))) -> 40.2402979 | AH26: =IF($AP$2=$X$2,('Počet odeslaných zásilek'!KT35)*0.8,IF($AP$2=$Y$2,('Počet odeslaných zásilek'!KT35),IF($AP$2=$Z$2,('Počet odeslaných zásilek'!KT35)*1.2,IF($AP$2=$W$2,('Počet odeslaných zásilek'!KT35)*'Počet odeslaných zásilek'!$D$34,"")))) -> 40.32145858 | AI26: =IF($AP$2=$X$2,('Počet odeslaných zásilek'!KU35)*0.8,IF($AP$2=$Y$2,('Počet odeslaných zásilek'!KU35),IF($AP$2=$Z$2,('Počet odeslaných zásilek'!KU35)*1.2,IF($AP$2=$W$2,('Počet odeslaných zásilek'!KU35)*'Počet odeslaných zásilek'!$D$35,"")))) -> 39.00241501 | AJ26: =IF($AP$2=$X$2,('Počet odeslaných zásilek'!KV35)*0.8,IF($AP$2=$Y$2,('Počet odeslaných zásilek'!KV35),IF($AP$2=$Z$2,('Počet odeslaných zásilek'!KV35)*1.2,IF($AP$2=$W$2,('Počet odeslaných zásilek'!KV35)*'Počet odeslaných zásilek'!$D$36,"")))) -> 39.39278732 | AK26: =IF($AP$2=$X$2,('Počet odeslaných zásilek'!KW35)*0.8,IF($AP$2=$Y$2,('Počet odeslaných zásilek'!KW35),IF($AP$2=$Z$2,('Počet odeslaných zásilek'!KW35)*1.2,IF($AP$2=$W$2,('Počet odeslaných zásilek'!KW35)*'Počet odeslaných zásilek'!$D$37,"")))) -> 39.26723068 | AL26: =IF($AP$2=$X$2,('Počet odeslaných zásilek'!KX35)*0.8,IF($AP$2=$Y$2,('Počet odeslaných zásilek'!KX35),IF($AP$2=$Z$2,('Počet odeslaných zásilek'!KX35)*1.2,IF($AP$2=$W$2,('Počet odeslaných zásilek'!KX35)*'Počet odeslaných zásilek'!$D$38,"")))) -> 39.73580619 | AM26: =IF($AP$2=$X$2,('Počet odeslaných zásilek'!KY35)*0.8,IF($AP$2=$Y$2,('Počet odeslaných zásilek'!KY35),IF($AP$2=$Z$2,('Počet odeslaných zásilek'!KY35)*1.2,IF($AP$2=$W$2,('Počet odeslaných zásilek'!KY35)*'Počet odeslaných zásilek'!$D$39,"")))) -> 44.94004319 | AO26: Náklady | AP26: Náklady automobil | AQ26: =$AQ$49 -> 10000 | AR26: =$AQ$49 -> 10000 | AS26: 10000 | AT26: 10000 | AU26: 10000 | AV26: 10000 | AW26: 10000 | AX26: 10000 | AY26: 10000 | AZ26: 10000 | BA26: 10000 | BB26: 10000 | BC26: =SUM(AQ26:BB26) -> 120000 | BD26: 10000 | BE26: 10000 | BF26: 10000 | BG26: 10000 | BH26: 10000 | BI26: 10000 | BJ26: 10000 | BK26: 10000 | BL26: 10000 | BM26: 10000 | BN26: 10000 | BO26: 10000 | BP26: =SUM(BD26:BO26) -> 120000 | BQ26: 10000 | BR26: 10000 | BS26: 10000 | BT26: 10000 | BU26: 10000 | BV26: 10000 | BW26: 10000 | BX26: 10000 | BY26: 10000 | BZ26: 10000 | CA26: 10000 | CB26: 10000 | CC26: =SUM(BQ26:CB26) -> 120000 | CI26: 0 | CJ26: 0 | CK26: 0 | CL26: 0 | CM26: 0 | CN26: 0 | CO26: 0 | CP26: 0 | CQ26: 0 | CR26: 0 | CS26: 0 | CT26: 0 | CV26: 0 | CW26: 0 | CX26: 0 | CY26: 0 | CZ26: 0 | DA26: 0 | DB26: 0 | DC26: 0 | DD26: 0 | DE26: 0 | DF26: 0 | DG26: 0 | DI26: 0 | DJ26: 0 | DK26: 0 | DL26: 0 | DM26: 0 | DN26: 0 | DO26: 0 | DP26: 0 | DQ26: 0 | DR26: 0 | DS26: 0 | DT26: 0
